Workbook

Sheet Introduction
E19: ` | H19: Select a CCG

Sheet Info-> (hidden)

Sheet A1. CCG overall performance
A1: A1. CCG Overall performance
B2: Change CCG
G7: =Metric_calculation!C5 -> 75 | H7: =INDEX(Metric_calculation!$AE$10:$AE$16,Metric_calculation!AE8,0) -> 2013 | N7: =Metric_calculation!CY8 -> 0.692 | V7: =Metric_calculation!DB8 -> 1014
G9: =SUMIFS('CCG_starting activity'!I:I,'CCG_starting activity'!B:B,'A1. CCG overall performance'!H7,'CCG_starting activity'!C:C,CCG_code,'CCG_starting activity'!H:H,"Colon") -> 56 | N9: =SUMIFS('Survival rates'!E:E,'Survival rates'!A:A,CCG_code,'Survival rates'!C:C,'A1. CCG overall performance'!O9)/100 -> 0.7591662 | O9: =INDEX(Metric_calculation!$AF$10:$AF$15,Metric_calculation!AF8,0) -> 2012 | V9: =Metric_calculation!DC8 -> 76.75
G11: =Metric_calculation!D5 -> 77 | N11: =SUMIFS('CRCScreening rate'!G:G,'CRCScreening rate'!F:F,'A1. CCG overall performance'!O11,'CRCScreening rate'!A:A,CCG_code)/100 -> 0.5978497222 | O11: =INDEX(Metric_calculation!AI10:AI15,Metric_calculation!AI8,) -> 2014/15 | V11: =Metric_calculation!DD8/100 -> 0.1205211726
F17: Emergency | H17: Elective | J17: Screening | L17: Others | M17: * | N17: Total
E18: Stage 1 | F18: =SUMIFS('CCG_starting activity'!$I:$I,'CCG_starting activity'!$C:$C,CCG_code,'CCG_starting activity'!$B:$B,'A1. CCG overall performance'!$H$7,'CCG_starting activity'!$F:$F,F$17,'CCG_starting activity'!$G:$G,'A1. CCG overall performance'!$E18) -> 1 | H18: =SUMIFS('CCG_starting activity'!$I:$I,'CCG_starting activity'!$C:$C,CCG_code,'CCG_starting activity'!$B:$B,'A1. CCG overall performance'!$H$7,'CCG_starting activity'!$F:$F,H$17,'CCG_starting activity'!$G:$G,'A1. CCG overall performance'!$E18) -> 9 | J18: =SUMIFS('CCG_starting activity'!$I:$I,'CCG_starting activity'!$C:$C,CCG_code,'CCG_starting activity'!$B:$B,'A1. CCG overall performance'!$H$7,'CCG_starting activity'!$F:$F,J$17,'CCG_starting activity'!$G:$G,'A1. CCG overall performance'!$E18) -> 4 | L18: =SUMIFS('CCG_starting activity'!$I:$I,'CCG_starting activity'!$C:$C,CCG_code,'CCG_starting activity'!$B:$B,'A1. CCG overall performance'!$H$7,'CCG_starting activity'!$F:$F,L$17,'CCG_starting activity'!$G:$G,'A1. CCG overall performance'!$E18) -> 0 | N18: =SUM(F18:L18) -> 14 | P18: =N18/$N$28 -> 0.1866666667
E20: Stage 2 | F20: =SUMIFS('CCG_starting activity'!$I:$I,'CCG_starting activity'!$C:$C,CCG_code,'CCG_starting activity'!$B:$B,'A1. CCG overall performance'!$H$7,'CCG_starting activity'!$F:$F,F$17,'CCG_starting activity'!$G:$G,'A1. CCG overall performance'!$E20) -> 3 | H20: =SUMIFS('CCG_starting activity'!$I:$I,'CCG_starting activity'!$C:$C,CCG_code,'CCG_starting activity'!$B:$B,'A1. CCG overall performance'!$H$7,'CCG_starting activity'!$F:$F,H$17,'CCG_starting activity'!$G:$G,'A1. CCG overall performance'!$E20) -> 13 | J20: =SUMIFS('CCG_starting activity'!$I:$I,'CCG_starting activity'!$C:$C,CCG_code,'CCG_starting activity'!$B:$B,'A1. CCG overall performance'!$H$7,'CCG_starting activity'!$F:$F,J$17,'CCG_starting activity'!$G:$G,'A1. CCG overall performance'!$E20) -> 0 | L20: =SUMIFS('CCG_starting activity'!$I:$I,'CCG_starting activity'!$C:$C,CCG_code,'CCG_starting activity'!$B:$B,'A1. CCG overall performance'!$H$7,'CCG_starting activity'!$F:$F,L$17,'CCG_starting activity'!$G:$G,'A1. CCG overall performance'!$E20) -> 0 | N20: =SUM(F20:L20) -> 16 | P20: =N20/$N$28 -> 0.2133333333
E22: Stage 3 | F22: =SUMIFS('CCG_starting activity'!$I:$I,'CCG_starting activity'!$C:$C,CCG_code,'CCG_starting activity'!$B:$B,'A1. CCG overall performance'!$H$7,'CCG_starting activity'!$F:$F,F$17,'CCG_starting activity'!$G:$G,'A1. CCG overall performance'!$E22) -> 4 | H22: =SUMIFS('CCG_starting activity'!$I:$I,'CCG_starting activity'!$C:$C,CCG_code,'CCG_starting activity'!$B:$B,'A1. CCG overall performance'!$H$7,'CCG_starting activity'!$F:$F,H$17,'CCG_starting activity'!$G:$G,'A1. CCG overall performance'!$E22) -> 13 | J22: =SUMIFS('CCG_starting activity'!$I:$I,'CCG_starting activity'!$C:$C,CCG_code,'CCG_starting activity'!$B:$B,'A1. CCG overall performance'!$H$7,'CCG_starting activity'!$F:$F,J$17,'CCG_starting activity'!$G:$G,'A1. CCG overall performance'!$E22) -> 3 | L22: =SUMIFS('CCG_starting activity'!$I:$I,'CCG_starting activity'!$C:$C,CCG_code,'CCG_starting activity'!$B:$B,'A1. CCG overall performance'!$H$7,'CCG_starting activity'!$F:$F,L$17,'CCG_starting activity'!$G:$G,'A1. CCG overall performance'!$E22) -> 0 | N22: =SUM(F22:L22) -> 20 | P22: =N22/$N$28 -> 0.2666666667
E24: Stage 4 | F24: =SUMIFS('CCG_starting activity'!$I:$I,'CCG_starting activity'!$C:$C,CCG_code,'CCG_starting activity'!$B:$B,'A1. CCG overall performance'!$H$7,'CCG_starting activity'!$F:$F,F$17,'CCG_starting activity'!$G:$G,'A1. CCG overall performance'!$E24) -> 8 | H24: =SUMIFS('CCG_starting activity'!$I:$I,'CCG_starting activity'!$C:$C,CCG_code,'CCG_starting activity'!$B:$B,'A1. CCG overall performance'!$H$7,'CCG_starting activity'!$F:$F,H$17,'CCG_starting activity'!$G:$G,'A1. CCG overall performance'!$E24) -> 10 | J24: =SUMIFS('CCG_starting activity'!$I:$I,'CCG_starting activity'!$C:$C,CCG_code,'CCG_starting activity'!$B:$B,'A1. CCG overall performance'!$H$7,'CCG_starting activity'!$F:$F,J$17,'CCG_starting activity'!$G:$G,'A1. CCG overall performance'!$E24) -> 0 | L24: =SUMIFS('CCG_starting activity'!$I:$I,'CCG_starting activity'!$C:$C,CCG_code,'CCG_starting activity'!$B:$B,'A1. CCG overall performance'!$H$7,'CCG_starting activity'!$F:$F,L$17,'CCG_starting activity'!$G:$G,'A1. CCG overall performance'!$E24) -> 1 | N24: =SUM(F24:L24) -> 19 | P24: =N24/$N$28 -> 0.2533333333
E26: Unstaged | F26: =SUMIFS('CCG_starting activity'!$I:$I,'CCG_starting activity'!$C:$C,CCG_code,'CCG_starting activity'!$B:$B,'A1. CCG overall performance'!$H$7,'CCG_starting activity'!$F:$F,F$17,'CCG_starting activity'!$G:$G,'A1. CCG overall performance'!$E26) -> 4 | H26: =SUMIFS('CCG_starting activity'!$I:$I,'CCG_starting activity'!$C:$C,CCG_code,'CCG_starting activity'!$B:$B,'A1. CCG overall performance'!$H$7,'CCG_starting activity'!$F:$F,H$17,'CCG_starting activity'!$G:$G,'A1. CCG overall performance'!$E26) -> 1 | J26: =SUMIFS('CCG_starting activity'!$I:$I,'CCG_starting activity'!$C:$C,CCG_code,'CCG_starting activity'!$B:$B,'A1. CCG overall performance'!$H$7,'CCG_starting activity'!$F:$F,J$17,'CCG_starting activity'!$G:$G,'A1. CCG overall performance'!$E26) -> 1 | L26: =SUMIFS('CCG_starting activity'!$I:$I,'CCG_starting activity'!$C:$C,CCG_code,'CCG_starting activity'!$B:$B,'A1. CCG overall performance'!$H$7,'CCG_starting activity'!$F:$F,L$17,'CCG_starting activity'!$G:$G,'A1. CCG overall performance'!$E26) -> 0 | N26: =SUM(F26:L26) -> 6 | P26: =N26/$N$28 -> 0.08
E28: Total | F28: =SUM(F18:F26) -> 20 | H28: =SUM(H18:H26) -> 46 | J28: =SUM(J18:J26) -> 8 | L28: =SUM(L18:L26) -> 1 | N28: =SUM(N18:N26) -> 75
F30: =F28/$N$28 -> 0.2666666667 | H30: =H28/$N$28 -> 0.6133333333 | J30: =J28/$N$28 -> 0.1066666667 | L30: =L28/$N$28 -> 0.01333333333
H32: *Route to diagnosis not identified for this category at time of data collection
F37: Emergency | H37: Elective | J37: Screening | L37: Others | S37: Stage 1 | U37: Stage 2 | W37: Stage 3 | Y37: Stage 4 | AA37: Unstaged
E38: Row num | F38: Peer CCG | G38: Peer CCG name
B39: 14 | E39: 8 | F39: =INDEX(Metric_calculation!$A$10:$A$220,'A1. CCG overall performance'!B39,0) -> 00R | G39: =VLOOKUP(F39,Metric_calculation!A10:B220,2,FALSE) -> Blackpool CCG
D42: NHS value | E42: =SUMIFS('CCG_starting activity'!$I:$I,'CCG_starting activity'!$B:$B,'A1. CCG overall performance'!$H$7,'CCG_starting activity'!$F:$F,F$17)/SUMIFS('CCG_starting activity'!$I:$I,'CCG_starting activity'!$B:$B,'A1. CCG overall performance'!$H$7) -> 0.242853747 | G42: =SUMIFS('CCG_starting activity'!$I:$I,'CCG_starting activity'!$B:$B,'A1. CCG overall performance'!$H$7,'CCG_starting activity'!$F:$F,H$17)/SUMIFS('CCG_starting activity'!$I:$I,'CCG_starting activity'!$B:$B,'A1. CCG overall performance'!$H$7) -> 0.6364770904 | I42: =SUMIFS('CCG_starting activity'!$I:$I,'CCG_starting activity'!$B:$B,'A1. CCG overall performance'!$H$7,'CCG_starting activity'!$F:$F,J$17)/SUMIFS('CCG_starting activity'!$I:$I,'CCG_starting activity'!$B:$B,'A1. CCG overall performance'!$H$7) -> 0.09475842396 | K42: =SUMIFS('CCG_starting activity'!$I:$I,'CCG_starting activity'!$B:$B,'A1. CCG overall performance'!$H$7,'CCG_starting activity'!$F:$F,L$17)/SUMIFS('CCG_starting activity'!$I:$I,'CCG_starting activity'!$B:$B,'A1. CCG overall performance'!$H$7) -> 0.02591073869 | R42: =SUMIFS('CCG_starting activity'!$I:$I,'CCG_starting activity'!$B:$B,'A1. CCG overall performance'!$H$7,'CCG_starting activity'!$G:$G,S$37)/SUMIFS('CCG_starting activity'!$I:$I,'CCG_starting activity'!$B:$B,'A1. CCG overall performance'!$H$7) -> 0.1462233316 | T42: =SUMIFS('CCG_starting activity'!$I:$I,'CCG_starting activity'!$B:$B,'A1. CCG overall performance'!$H$7,'CCG_starting activity'!$G:$G,U$37)/SUMIFS('CCG_starting activity'!$I:$I,'CCG_starting activity'!$B:$B,'A1. CCG overall performance'!$H$7) -> 0.2224698401 | V42: =SUMIFS('CCG_starting activity'!$I:$I,'CCG_starting activity'!$B:$B,'A1. CCG overall performance'!$H$7,'CCG_starting activity'!$G:$G,W$37)/SUMIFS('CCG_starting activity'!$I:$I,'CCG_starting activity'!$B:$B,'A1. CCG overall performance'!$H$7) -> 0.2372674868 | X42: =SUMIFS('CCG_starting activity'!$I:$I,'CCG_starting activity'!$B:$B,'A1. CCG overall performance'!$H$7,'CCG_starting activity'!$G:$G,Y$37)/SUMIFS('CCG_starting activity'!$I:$I,'CCG_starting activity'!$B:$B,'A1. CCG overall performance'!$H$7) -> 0.2170024366 | Z42: =SUMIFS('CCG_starting activity'!$I:$I,'CCG_starting activity'!$B:$B,'A1. CCG overall performance'!$H$7,'CCG_starting activity'!$G:$G,AA$37)/SUMIFS('CCG_starting activity'!$I:$I,'CCG_starting activity'!$B:$B,'A1. CCG overall performance'!$H$7) -> 0.177036905
D43: Your Trust | E43: =F30 -> 0.2666666667 | G43: =H30 -> 0.6133333333 | I43: =J30 -> 0.1066666667 | K43: =L30 -> 0.01333333333 | R43: =P18 -> 0.1866666667 | T43: =P20 -> 0.2133333333 | V43: =P22 -> 0.2666666667 | X43: =P24 -> 0.2533333333 | Z43: =P26 -> 0.08
D45: Peer | E45: =SUMIFS('CCG_starting activity'!$I:$I,'CCG_starting activity'!$C:$C,$F$39,'CCG_starting activity'!$B:$B,'A1. CCG overall performance'!$H$7,'CCG_starting activity'!$F:$F,F$17)/SUMIFS('CCG_starting activity'!$I:$I,'CCG_starting activity'!$C:$C,$F$39,'CCG_starting activity'!$B:$B,'A1. CCG overall performance'!$H$7) -> 0.3333333333 | G45: =SUMIFS('CCG_starting activity'!$I:$I,'CCG_starting activity'!$C:$C,$F$39,'CCG_starting activity'!$B:$B,'A1. CCG overall performance'!$H$7,'CCG_starting activity'!$F:$F,H$17)/SUMIFS('CCG_starting activity'!$I:$I,'CCG_starting activity'!$C:$C,$F$39,'CCG_starting activity'!$B:$B,'A1. CCG overall performance'!$H$7) -> 0.5765765766 | I45: =SUMIFS('CCG_starting activity'!$I:$I,'CCG_starting activity'!$C:$C,$F$39,'CCG_starting activity'!$B:$B,'A1. CCG overall performance'!$H$7,'CCG_starting activity'!$F:$F,J$17)/SUMIFS('CCG_starting activity'!$I:$I,'CCG_starting activity'!$C:$C,$F$39,'CCG_starting activity'!$B:$B,'A1. CCG overall performance'!$H$7) -> 0.08108108108 | K45: =SUMIFS('CCG_starting activity'!$I:$I,'CCG_starting activity'!$C:$C,$F$39,'CCG_starting activity'!$B:$B,'A1. CCG overall performance'!$H$7,'CCG_starting activity'!$F:$F,L$17)/SUMIFS('CCG_starting activity'!$I:$I,'CCG_starting activity'!$C:$C,$F$39,'CCG_starting activity'!$B:$B,'A1. CCG overall performance'!$H$7) -> 0.009009009009 | R45: =SUMIFS('CCG_starting activity'!$I:$I,'CCG_starting activity'!$C:$C,$F$39,'CCG_starting activity'!$B:$B,'A1. CCG overall performance'!$H$7,'CCG_starting activity'!$G:$G,S$37)/SUMIFS('CCG_starting activity'!$I:$I,'CCG_starting activity'!$C:$C,$F$39,'CCG_starting activity'!$B:$B,'A1. CCG overall performance'!$H$7) -> 0.1261261261 | T45: =SUMIFS('CCG_starting activity'!$I:$I,'CCG_starting activity'!$C:$C,$F$39,'CCG_starting activity'!$B:$B,'A1. CCG overall performance'!$H$7,'CCG_starting activity'!$G:$G,U$37)/SUMIFS('CCG_starting activity'!$I:$I,'CCG_starting activity'!$C:$C,$F$39,'CCG_starting activity'!$B:$B,'A1. CCG overall performance'!$H$7) -> 0.2432432432 | V45: =SUMIFS('CCG_starting activity'!$I:$I,'CCG_starting activity'!$C:$C,$F$39,'CCG_starting activity'!$B:$B,'A1. CCG overall performance'!$H$7,'CCG_starting activity'!$G:$G,W$37)/SUMIFS('CCG_starting activity'!$I:$I,'CCG_starting activity'!$C:$C,$F$39,'CCG_starting activity'!$B:$B,'A1. CCG overall performance'!$H$7) -> 0.2702702703 | X45: =SUMIFS('CCG_starting activity'!$I:$I,'CCG_starting activity'!$C:$C,$F$39,'CCG_starting activity'!$B:$B,'A1. CCG overall performance'!$H$7,'CCG_starting activity'!$G:$G,Y$37)/SUMIFS('CCG_starting activity'!$I:$I,'CCG_starting activity'!$C:$C,$F$39,'CCG_starting activity'!$B:$B,'A1. CCG overall performance'!$H$7) -> 0.2432432432 | Z45: =SUMIFS('CCG_starting activity'!$I:$I,'CCG_starting activity'!$C:$C,$F$39,'CCG_starting activity'!$B:$B,'A1. CCG overall performance'!$H$7,'CCG_starting activity'!$G:$G,AA$37)/SUMIFS('CCG_starting activity'!$I:$I,'CCG_starting activity'!$C:$C,$F$39,'CCG_starting activity'!$B:$B,'A1. CCG overall performance'!$H$7) -> 0.1171171171
D46: value
D49: Line chart | E49: =E42 -> 0.242853747 | F49: 0 | G49: =G42 -> 0.6364770904 | H49: 0 | I49: =I42 -> 0.09475842396 | J49: 0 | K49: =K42 -> 0.02591073869 | L49: 0 | R49: =R42 -> 0.1462233316 | S49: 0 | T49: =T42 -> 0.2224698401 | U49: 0 | V49: =V42 -> 0.2372674868 | W49: 0 | X49: =X42 -> 0.2170024366 | Y49: 0 | Z49: =Z42 -> 0.177036905 | AA49: 0
D50: Line chart | E50: =E49 -> 0.242853747 | F50: -1 | G50: =G49 -> 0.6364770904 | H50: -1 | I50: =I49 -> 0.09475842396 | J50: -1 | K50: =K49 -> 0.02591073869 | L50: -1 | R50: =R49 -> 0.1462233316 | S50: -1 | T50: =T49 -> 0.2224698401 | U50: -1 | V50: =V49 -> 0.2372674868 | W50: -1 | X50: =X49 -> 0.2170024366 | Y50: -1 | Z50: =Z49 -> 0.177036905 | AA50: -1

Sheet A2. CCG benchmarks
A1: A2. CCG Benchmarks
B3: Change CCG
B5: Select indicator
B7: 1. Quartile benchmarking
D8: =Metric_calculation!B1 -> Wyre Forest CCG
D9: =Metric_calculation!AA5 -> 77 | E9: =IF(Metric_calculation!AB8=TRUE,IF(D9<H10,"Fourth quartile",IF(D9<I10,"Third quartile",IF(D9<J10,"Second quartile","First quartile"))),IF(D9>H10,"Fourth quartile",IF(D9>I10,"Third quartile",IF(D9>J10,"Second quartile","First quartile")))) -> Fourth quartile
G10: =Metric_calculation!AE1 -> 96 | H10: =Metric_calculation!AE2 -> 75 | I10: =Metric_calculation!AE3 -> 66 | J10: =Metric_calculation!AE4 -> 54 | K10: =Metric_calculation!AE5 -> 19
G11: Worst performing | H11: Fourth quartile | I11: Third quartile | J11: Second quartile | K11: First quartile | L11: Best performing
I12: Median
B16: 2. Trend analysis

Sheet B1. Modelling assumptions
A1: B1. Modelling assumptions

Sheet B2. ROI user variables
A1: B2. Select ROI user variables
B3: 1. Please select type of behavioural intervention to be evaluated
B4: Screening (e.g., endorsement letters from GPs to patients to encourage uptake of screening) | K4: Screening
B5: Elective referrals (e.g., GP training to improve detection of cancer that increases the number of elective referrals for diagnostic assessments; could also be an increase in diagnostic capacity) | K5: Elective
B6: Enter your selection here -> | C6: 2
C7: =IF(C6=1,"Screening","Elective") -> Elective
B8: 2. Set an assumption of the annual recurring cost of behavioural intervention
B9: For example the cost of a GP training programme or the cost of mailing out leaflets to the eligible population for screening. See B4 Optional Variables for additional detail about the interventions profiled in the report | C9: 0
B11: 3. Set assumptions for the impact of the intervention (your choice highlighted in pink)
B13: Screening uptake | E13: Elective referrals for diagnostic assessment
B14: Variable | C14: Value (annual) | E14: Variable | F14: Value
B15: Percentage point increase in screening uptake (see sheet "B4" section 1 for detail on the types of interventions available and potential impact to uptake) | C15: 0.12 | E15: % Increase in diagnostic assessments (e.g., colonoscopies) | F15: 0.1
B16: Current screening uptake, percentage | C16: =C18/C19 -> 0.5978497222 | E16: Current # of diagnostic assessments in your CCG (NHS England annual elective colonoscopy data (2015) used as proxy for diagnostic assessment) | F16: =SUMIFS('Diagnostic waiting times'!AN:AN,'Diagnostic waiting times'!AI:AI,CCG_code)*12 -> 2232
B17: New screening uptake | C17: =C16+C15 -> 0.7178497222 | E17: New # of diagnostic assessments | F17: =F16*(1+F15) -> 2455.2
B18: Current screening uptake, number of patients (Public Health England, ONS) | C18: =SUMIFS('CRCScreening rate'!J:J,'CRCScreening rate'!A:A,CCG_code,'CRCScreening rate'!F:F,"2014/15") -> 6734.1043 | E18: Additional diagnostic assessments | F18: =F17-F16 -> 223.2
B19: Eligible population for screening, number of patients (Public Health England, ONS) | C19: =SUMIFS('CRCScreening rate'!K:K,'CRCScreening rate'!A:A,CCG_code,'CRCScreening rate'!F:F,"2014/15") -> 11263.8746 | E19: Cost of a diagnostic assessment (e.g., colonoscopy; based on CRUK/Incisive costs) | F19: ='B4. Optional variables'!B8 -> 550
B20: New # of patients screened | C20: =C19*C17-C18 -> 1351.664952 | E20: Total cost for diagnostic assessment (assume costs of other diagnostics related activities like CT scans are included here) | F20: =(F18*'B2. ROI user variables'!F19) -> 122760
B21: Unit cost of screening | C21: ='B4. Optional variables'!B9 -> 2 | E21: Current annual number of CRC patients found via elective route | F21: ='A1. CCG overall performance'!H28 -> 46
B22: Total cost of additional screening | C22: ='B2. ROI user variables'!C21*'B2. ROI user variables'!C20 -> 2703.329904 | E22: CRC patients found via the elective route as a percent of total diagnostic assessments | F22: =+F21/F16 -> 0.020609319
B23: Percent of screened patients who go for a diagnostic assessment (i.e. colonoscopy) | C23: ='B4. Optional variables'!B6 -> 0.05 | E23: Assumption: % of diagnostic assessments that result in a positive cancer diagnosis (either (i) above or 5% if (i) > 5% or 1% if (i) < 1% | F23: =IF(F22>0.05,0.05,IF(F22<0.01,0.01,F22)) -> 0.020609319
B24: New # of patients screened who go for a diagnostic assessment | C24: =C20*C23 -> 67.5832476 | E24: Number of CRC cases found after intervention | F24: =F23*F17 -> 50.6
B25: Cost of a diagnostic assessment (e.g., colonoscopy; based on CRUK/Incisive costs) | C25: ='B4. Optional variables'!B8 -> 550 | E25: Additional cases found | F25: =F24-F21 -> 4.6
B26: Total cost for additional diagnostic assessments | C26: ='B2. ROI user variables'!C25*'B2. ROI user variables'!C24 -> 37170.78618 | E26: Total annual cost for diagnostic assessment and behavioural intervention | F26: =+F20+C9 -> 122760
B27: Total cost for additional diagnostic assessment and additional screening | C27: =SUM(C22,C26) -> 39874.11608
B28: % referred to diagnostics who are diagnosed with cancer | C28: ='B4. Optional variables'!B7 -> 0.05
B29: Additional cases found | C29: =C24*C28 -> 3.37916238
B30: Total annual cost for diagnostic assessment, additional screening, and behavioural intervention | C30: =+C27+C9 -> 39874.11608
B32: Go to output sheet | C32: Cost for intervention | D32: Cost distribution
B37: Total Cost for selected intervention | C37: =IF('B2. ROI user variables'!C7="Screening",'B2. ROI user variables'!C27,F20) -> 122760
B40: 4. Go to tool outputs by clicking here:

Sheet B3. Tool outputs
A1: B3. Tool outputs
B3: Change CCG | AD3: 2
J7: Undiscounted | K7: Discounted | P7: Undiscounted | Q7: Discounted | W7: Undiscounted | X7: Discounted
D8: ='C4. Life years'!F10 -> 1.533333333 | J8: ='C3. Overall Cost'!$BB$27 -> 88136.26808 | K8: =J8/(1+'B4. Optional variables'!C58)^10 -> 62481.45861 | P8: =Life_year_gained -> 53.76207407 | Q8: =P8/(1+'B4. Optional variables'!C59)^10 -> 46.32501754 | W8: =+J8/P8 -> 1639.376263 | X8: =K8/Q8 -> 1348.762762 | AF8: ="£ "&ROUND(Metric_calculation!EO7/1000000/10,0)&" m" -> £ 46 m
AF11: =ROUND(Metric_calculation!ER7,0)&" yrs" -> 13417 yrs
B53: Cost of do something minus cost of do nothing over 10 years | N53: Breakeven year

Sheet B4. Optional variables
A1: B4. Optional variables
A5: 1. Impact of intervention variables
A6: Percent of screened patients who go for a diagnostic assessment (i.e. colonoscopy) | B6: 0.05 | C6: Estimate drawn from DH, Impact of earlier diagnosis, 2011, p34
A7: % referred to diagnostics who are diagnosed with cancer | B7: =0.25%/B6 -> 0.05 | C7: Estimate drawn from DH, Impact of earlier diagnosis, 2011, p34 (implied based on 0.25% assumption of FOBT test takers having cancer)
A8: Cost of a diagnostic assessment (e.g., colonoscopy) | B8: 550 | C8: CRUK / Incisive - averaged from different stages and rounded; includes CT scan
A9: Unit cost of screening | B9: 2 | C9: Ranges provided in 2015 FIT review summary from the Bowel Cancer Screening Programme
A12: Type | B12: Intervention Name | C12: Percentage point change in the screening uptake rate (i.e. the number of people returning FOBT tests) with the intervention compared to without the intervention | D12: Unit | E12: Number of units (assumed to be the size of the entire eligiable population) | F12: Unit Cost - set at default of £1 for all interventions; input local cost estimates as appropriate (£) | G12: Total cost (£) | H12: Sources | I12: Cost guidance - local costs will vary significantly
A13: Screening | B13: GP letter endorsing screening | C13: 0.056 | D13: Letters | E13: ='B2. ROI user variables'!$C$19 -> 11263.8746 | F13: 1 | G13: =E13*F13 -> 11263.8746 | H13: Source for further information | I13: n/a
A14: Screening | B14: Enhanced leaflet and testing kit | C14: 0.059 | D14: Leaflets | E14: ='B2. ROI user variables'!$C$19 -> 11263.8746 | F14: 1 | G14: =E14*F14 -> 11263.8746 | H14: Source for further information | I14: £1.53 + postage per unit
A15: Screening | B15: GP letter and enhanced leaflet | C15: 0.118 | D15: Letters and leaflets | E15: ='B2. ROI user variables'!$C$19 -> 11263.8746 | F15: 1 | G15: 11263.8746 | H15: Source for further information | I15: n/a
A16: Screening | B16: Kit enhancement, endorsement and advertisement | C16: 0.061 | D16: Kits | E16: ='B2. ROI user variables'!$C$19 -> 11263.8746 | F16: 1 | G16: 11263.8746 | H16: Source for further information | I16: £14.40 per unit and above in London or £6 per unti and above in Wales
A17: Screening | B17: Face to face health promotion | C17: 0.047 | D17: Leaflets | E17: ='B2. ROI user variables'!$C$19 -> 11263.8746 | F17: 1 | G17: 11263.8746 | H17: Source for further information | I17: £6 per unit
A20: 2. Year on year % change in incidence | F20: 3. Average time spent in stage (Click for source)
A22: Stage 1 | B22: Stage 2 | C22: Stage 3 | D22: Stage 4 | F22: Stage 1 | G22: Stage 2 | H22: Stage 3 | I22: Stage 4
A23: 0.02 | B23: 0.02 | C23: 0.02 | D23: 0.02 | E23: Years | F23: 2 | G23: 1 | H23: 0.5 | I23: 0.3
A25: 4a. Recurrence rate for Colon (click for source) | F25: 4b. Recurrence rate for Rectal (click for source)
A27: Stage 1 | B27: Stage 2 | C27: Stage 3 | D27: Stage 4 | F27: Stage 1 | G27: Stage 2 | H27: Stage 3 | I27: Stage 4
A28: 0.1 | B28: 0.2 | C28: 0.34 | D28: 0 | F28: 0.03 | G28: 0.16 | H28: 0.28 | I28: 0
A29: 5. Distribution of costs over time (totals 100). Three sources to estimate how costs are spread out over time, as no one source is fully suitable for use in this model.
B30: Stage 1
C31: Year 1 | D31: Year 2 | E31: Year 3 | F31: Year 4 | G31: Year 5 | H31: Year 6 | I31: Year 7 | J31: Year 8 | K31: Year 9 | L31: Year 10 | N31: Source 1 | O31: M. Laudicella (2016)
B32: Emergency | C32: 0.9 | D32: 0.02 | E32: 0.02 | F32: 0.02 | G32: 0.01 | H32: 0.03 | I32: 0 | J32: 0 | K32: 0 | L32: 0 | N32: Source 2 | O32: York (2008)
B33: Elective | C33: 0.9 | D33: 0.02 | E33: 0.02 | F33: 0.02 | G33: 0.01 | H33: 0.03 | I33: 0 | J33: 0 | K33: 0 | L33: 0 | N33: Source 3 | O33: CRUK/Incisive (2014)
B34: Screening | C34: 0.9 | D34: 0.02 | E34: 0.02 | F34: 0.02 | G34: 0.01 | H34: 0.03 | I34: 0 | J34: 0 | K34: 0 | L34: 0
B36: Stage 2
C37: Year 1 | D37: Year 2 | E37: Year 3 | F37: Year 4 | G37: Year 5 | H37: Year 6 | I37: Year 7 | J37: Year 8 | K37: Year 9 | L37: Year 10
B38: Emergency | C38: 0.9 | D38: 0.02 | E38: 0.02 | F38: 0.02 | G38: 0.01 | H38: 0.03 | I38: 0 | J38: 0 | K38: 0 | L38: 0
B39: Elective | C39: 0.9 | D39: 0.02 | E39: 0.02 | F39: 0.02 | G39: 0.01 | H39: 0.03 | I39: 0 | J39: 0 | K39: 0 | L39: 0
B40: Screening | C40: 0.9 | D40: 0.02 | E40: 0.02 | F40: 0.02 | G40: 0.01 | H40: 0.03 | I40: 0 | J40: 0 | K40: 0 | L40: 0
B42: Stage 3
C43: Year 1 | D43: Year 2 | E43: Year 3 | F43: Year 4 | G43: Year 5 | H43: Year 6 | I43: Year 7 | J43: Year 8 | K43: Year 9 | L43: Year 10
B44: Emergency | C44: 0.89 | D44: 0.03 | E44: 0.02 | F44: 0.02 | G44: 0 | H44: 0.04 | I44: 0 | J44: 0 | K44: 0 | L44: 0
B45: Elective | C45: 0.89 | D45: 0.03 | E45: 0.02 | F45: 0.02 | G45: 0 | H45: 0.04 | I45: 0 | J45: 0 | K45: 0 | L45: 0
B46: Screening | C46: 0.89 | D46: 0.03 | E46: 0.02 | F46: 0.02 | G46: 0 | H46: 0.04 | I46: 0 | J46: 0 | K46: 0 | L46: 0
B48: Stage 4
C49: Year 1 | D49: Year 2 | E49: Year 3 | F49: Year 4 | G49: Year 5 | H49: Year 6 | I49: Year 7 | J49: Year 8 | K49: Year 9 | L49: Year 10
B50: Emergency | C50: 0.89 | D50: 0.03 | E50: 0.02 | F50: 0.02 | G50: 0 | H50: 0.04 | I50: 0 | J50: 0 | K50: 0 | L50: 0
B51: Elective | C51: 0.89 | D51: 0.03 | E51: 0.02 | F51: 0.02 | G51: 0 | H51: 0.04 | I51: 0 | J51: 0 | K51: 0 | L51: 0
B52: Screening | C52: 0.89 | D52: 0.03 | E52: 0.02 | F52: 0.02 | G52: 0 | H52: 0.04 | I52: 0 | J52: 0 | K52: 0 | L52: 0
C55: Year 1 | D55: Year 2 | E55: Year 3 | F55: Year 4 | G55: Year 5 | H55: Year 6 | I55: Year 7 | J55: Year 8 | K55: Year 9 | L55: Year 10
B56: Inflation rate | C56: 0 | D56: 0 | E56: 0 | F56: 0 | G56: 0 | H56: 0 | I56: 0 | J56: 0 | K56: 0 | L56: 0
B58: Discount rate - costs | C58: 0.035 | D58: https://www.nice.org.uk/guidance/ta235/resources/osteosarcoma-mifamurtide-discounting-of-health-benefits-in-special-circumstances2
B59: Discount rate - benefits | C59: 0.015

Sheet Activity (hidden)
A1: Activity worksheet
A2: This worksheet forecasts number of patients detected each year by each state and route to diagnosis, based on the "organic" incidence and the "changing factor table" calculated on the "Impact of intervention" worksheet
A3: 2016
B5: YoY % change in incidence | C5: ='B4. Optional variables'!A23 -> 0.02 | E5: 0 | F5: =C5 -> 0.02 | G5: =F5 -> 0.02 | H5: 0.02 | I5: 0.02 | J5: 0.02 | K5: 0.02 | L5: 0.02 | M5: 0.02 | N5: 0.02 | S5: 0 | T5: =C5 -> 0.02 | U5: =T5 -> 0.02 | V5: 0.02 | W5: 0.02 | X5: 0.02 | Y5: 0.02 | Z5: 0.02 | AA5: 0.02 | AB5: 0.02 | AG5: 0 | AH5: =C5 -> 0.02 | AI5: =AH5 -> 0.02 | AJ5: 0.02 | AK5: 0.02 | AL5: 0.02 | AM5: 0.02 | AN5: 0.02 | AO5: 0.02 | AP5: 0.02
D8: Emergency | S8: Elective | AG8: Screening
A9: Stage - 1 Do nothing scenario
D12: CCG Code | E12: =Start_year -> 2016 | F12: =E12+1 -> 2017 | G12: =F12+1 -> 2018 | H12: 2019 | I12: 2020 | J12: 2021 | K12: 2022 | L12: 2023 | M12: 2024 | N12: 2025 | S12: =Start_year -> 2016 | T12: =S12+1 -> 2017 | U12: 2018 | V12: 2019 | W12: 2020 | X12: 2021 | Y12: 2022 | Z12: 2023 | AA12: 2024 | AB12: 2025 | AG12: =Start_year -> 2016 | AH12: =AG12+1 -> 2017 | AI12: 2018 | AJ12: 2019 | AK12: 2020 | AL12: 2021 | AM12: 2022 | AN12: 2023 | AO12: 2024 | AP12: 2025
D13: =CCG_code -> 06D | E13: =Metric_calculation!CT34 -> 1.25 | F13: =(E13*(1+F5)) -> 1.275 | G13: =(F13*(1+G5)) -> 1.3005 | H13: 1.32651 | I13: 1.3530402 | J13: 1.380101004 | K13: 1.407703024 | L13: 1.435857085 | M13: 1.464574226 | N13: 1.493865711 | S13: =Metric_calculation!CS34 -> 9.2 | T13: =S13*(1+T5) -> 9.384 | U13: =T13*(1+U5) -> 9.57168 | V13: 9.7631136 | W13: 9.958375872 | X13: 10.15754339 | Y13: 10.36069426 | Z13: 10.56790814 | AA13: 10.77926631 | AB13: 10.99485163 | AG13: =Metric_calculation!CU34 -> 4.571428571 | AH13: =AG13*(1+AH5) -> 4.662857143 | AI13: =AH13*(1+AI5) -> 4.756114286 | AJ13: 4.851236571 | AK13: 4.948261303 | AL13: 5.047226529 | AM13: 5.148171059 | AN13: 5.251134481 | AO13: 5.35615717 | AP13: 5.463280314
D15: Note how incidence grows over time based on the organic rate of growth of the disease
A23: Stage - 1 Do something scenario
D26: Changing factor | E26: ='C1. Impact of intervention'!D111 -> 0 | F26: ='C1. Impact of intervention'!E111 -> 0 | G26: ='C1. Impact of intervention'!F111 -> 0 | H26: ='C1. Impact of intervention'!G111 -> 0 | I26: ='C1. Impact of intervention'!H111 -> 0 | J26: ='C1. Impact of intervention'!I111 -> 0 | K26: ='C1. Impact of intervention'!J111 -> 0 | L26: ='C1. Impact of intervention'!K111 -> 0 | M26: ='C1. Impact of intervention'!L111 -> 0 | N26: ='C1. Impact of intervention'!M111 -> 0 | S26: ='C1. Impact of intervention'!D112 -> 4.6 | T26: ='C1. Impact of intervention'!E112 -> 4.6 | U26: ='C1. Impact of intervention'!F112 -> 4.6 | V26: ='C1. Impact of intervention'!G112 -> 4.6 | W26: ='C1. Impact of intervention'!H112 -> 4.6 | X26: ='C1. Impact of intervention'!I112 -> 4.6 | Y26: ='C1. Impact of intervention'!J112 -> 4.6 | Z26: ='C1. Impact of intervention'!K112 -> 4.6 | AA26: ='C1. Impact of intervention'!L112 -> 4.6 | AB26: ='C1. Impact of intervention'!M112 -> 4.6 | AG26: ='C1. Impact of intervention'!D113 -> 0 | AH26: ='C1. Impact of intervention'!E113 -> 0 | AI26: ='C1. Impact of intervention'!F113 -> 0 | AJ26: ='C1. Impact of intervention'!G113 -> 0 | AK26: ='C1. Impact of intervention'!H113 -> 0 | AL26: ='C1. Impact of intervention'!I113 -> 0 | AM26: ='C1. Impact of intervention'!J113 -> 0 | AN26: ='C1. Impact of intervention'!K113 -> 0 | AO26: ='C1. Impact of intervention'!L113 -> 0 | AP26: ='C1. Impact of intervention'!M113 -> 0
D28: CCG Code | E28: =Start_year -> 2016 | F28: =E28+1 -> 2017 | G28: 2018 | H28: 2019 | I28: 2020 | J28: 2021 | K28: 2022 | L28: 2023 | M28: 2024 | N28: 2025 | S28: =Start_year -> 2016 | T28: =S28+1 -> 2017 | U28: 2018 | V28: 2019 | W28: 2020 | X28: 2021 | Y28: 2022 | Z28: 2023 | AA28: 2024 | AB28: 2025 | AG28: =Start_year -> 2016 | AH28: =AG28+1 -> 2017 | AI28: 2018 | AJ28: 2019 | AK28: 2020 | AL28: 2021 | AM28: 2022 | AN28: 2023 | AO28: 2024 | AP28: 2025
D29: =CCG_code -> 06D | E29: =IF(E13+E26<0,0,E13+E26) -> 1.25 | F29: 1.275 | G29: 1.3005 | H29: 1.32651 | I29: 1.3530402 | J29: 1.380101004 | K29: 1.407703024 | L29: 1.435857085 | M29: 1.464574226 | N29: 1.493865711 | S29: =IF(S13+S26<0,0,S13+S26) -> 13.8 | T29: 13.984 | U29: 14.17168 | V29: 14.3631136 | W29: 14.55837587 | X29: 14.75754339 | Y29: 14.96069426 | Z29: 15.16790814 | AA29: 15.37926631 | AB29: 15.59485163 | AG29: =IF(AG13+AG26<0,0,AG13+AG26) -> 4.571428571 | AH29: 4.662857143 | AI29: 4.756114286 | AJ29: 4.851236571 | AK29: 4.948261303 | AL29: 5.047226529 | AM29: 5.148171059 | AN29: 5.251134481 | AO29: 5.35615717 | AP29: 5.463280314
B36: YoY % change in incidence | C36: ='B4. Optional variables'!B23 -> 0.02 | E36: 0 | F36: =C36 -> 0.02 | G36: =F36 -> 0.02 | H36: 0.02 | I36: 0.02 | J36: 0.02 | K36: 0.02 | L36: 0.02 | M36: 0.02 | N36: 0.02 | S36: 0 | T36: =C36 -> 0.02 | U36: =T36 -> 0.02 | V36: 0.02 | W36: 0.02 | X36: 0.02 | Y36: 0.02 | Z36: 0.02 | AA36: 0.02 | AB36: 0.02 | AG36: 0 | AH36: =C36 -> 0.02 | AI36: =AH36 -> 0.02 | AJ36: 0.02 | AK36: 0.02 | AL36: 0.02 | AM36: 0.02 | AN36: 0.02 | AO36: 0.02 | AP36: 0.02
A40: Stage - 2 Do nothing scenario
D45: CCG Code | E45: =Start_year -> 2016 | F45: =E45+1 -> 2017 | G45: 2018 | H45: 2019 | I45: 2020 | J45: 2021 | K45: 2022 | L45: 2023 | M45: 2024 | N45: 2025 | S45: =Start_year -> 2016 | T45: =S45+1 -> 2017 | U45: 2018 | V45: 2019 | W45: 2020 | X45: 2021 | Y45: 2022 | Z45: 2023 | AA45: 2024 | AB45: 2025 | AG45: =Start_year -> 2016 | AH45: =AG45+1 -> 2017 | AI45: 2018 | AJ45: 2019 | AK45: 2020 | AL45: 2021 | AM45: 2022 | AN45: 2023 | AO45: 2024 | AP45: 2025
D46: =CCG_code -> 06D | E46: =Metric_calculation!CT35 -> 3.75 | F46: =E46*(1+F36) -> 3.825 | G46: =F46*(1+G36) -> 3.9015 | H46: 3.97953 | I46: 4.0591206 | J46: 4.140303012 | K46: 4.223109072 | L46: 4.307571254 | M46: 4.393722679 | N46: 4.481597132 | S46: =Metric_calculation!CS35 -> 13.28888889 | T46: =(S46*(1+T36)) -> 13.55466667 | U46: =(T46*(1+U36)) -> 13.82576 | V46: 14.1022752 | W46: 14.3843207 | X46: 14.67200712 | Y46: 14.96544726 | Z46: 15.26475621 | AA46: 15.57005133 | AB46: 15.88145236 | AG46: =Metric_calculation!CU35 -> 0 | AH46: =AG46*(1+AH36) -> 0 | AI46: =AH46*(1+AI36) -> 0 | AJ46: 0 | AK46: 0 | AL46: 0 | AM46: 0 | AN46: 0 | AO46: 0 | AP46: 0
A56: Stage - 2 Do something scenario
D59: Changing factor | E59: ='C1. Impact of intervention'!D114 -> 0 | F59: ='C1. Impact of intervention'!E114 -> 0 | G59: ='C1. Impact of intervention'!F114 -> -0.1362962963 | H59: ='C1. Impact of intervention'!G114 -> -0.1362962963 | I59: ='C1. Impact of intervention'!H114 -> -0.1362962963 | J59: ='C1. Impact of intervention'!I114 -> -0.1362962963 | K59: ='C1. Impact of intervention'!J114 -> -0.1362962963 | L59: ='C1. Impact of intervention'!K114 -> -0.1362962963 | M59: ='C1. Impact of intervention'!L114 -> -0.1362962963 | N59: ='C1. Impact of intervention'!M114 -> -0.1362962963 | S59: ='C1. Impact of intervention'!D115 -> 0 | T59: ='C1. Impact of intervention'!E115 -> 0 | U59: ='C1. Impact of intervention'!F115 -> -1.226666667 | V59: ='C1. Impact of intervention'!G115 -> -1.226666667 | W59: ='C1. Impact of intervention'!H115 -> -1.226666667 | X59: ='C1. Impact of intervention'!I115 -> -1.226666667 | Y59: ='C1. Impact of intervention'!J115 -> -1.226666667 | Z59: ='C1. Impact of intervention'!K115 -> -1.226666667 | AA59: ='C1. Impact of intervention'!L115 -> -1.226666667 | AB59: ='C1. Impact of intervention'!M115 -> -1.226666667 | AG59: ='C1. Impact of intervention'!D116 -> 0 | AH59: ='C1. Impact of intervention'!E116 -> 0 | AI59: ='C1. Impact of intervention'!F116 -> 0 | AJ59: ='C1. Impact of intervention'!G116 -> 0 | AK59: ='C1. Impact of intervention'!H116 -> 0 | AL59: ='C1. Impact of intervention'!I116 -> 0 | AM59: ='C1. Impact of intervention'!J116 -> 0 | AN59: ='C1. Impact of intervention'!K116 -> 0 | AO59: ='C1. Impact of intervention'!L116 -> 0 | AP59: ='C1. Impact of intervention'!M116 -> 0
D61: CCG Code | E61: =Start_year -> 2016 | F61: =E61+1 -> 2017 | G61: 2018 | H61: 2019 | I61: 2020 | J61: 2021 | K61: 2022 | L61: 2023 | M61: 2024 | N61: 2025 | S61: =Start_year -> 2016 | T61: =S61+1 -> 2017 | U61: 2018 | V61: 2019 | W61: 2020 | X61: 2021 | Y61: 2022 | Z61: 2023 | AA61: 2024 | AB61: 2025 | AG61: =Start_year -> 2016 | AH61: =AG61+1 -> 2017 | AI61: 2018 | AJ61: 2019 | AK61: 2020 | AL61: 2021 | AM61: 2022 | AN61: 2023 | AO61: 2024 | AP61: 2025
D62: =CCG_code -> 06D | E62: =IF(E46+E59<0,0,E46+E59) -> 3.75 | F62: =IF(F46+F59<0,0,F46+F59) -> 3.825 | G62: 3.765203704 | H62: 3.843233704 | I62: 3.922824304 | J62: 4.004006716 | K62: 4.086812776 | L62: 4.171274957 | M62: 4.257426382 | N62: 4.345300836 | S62: =IF(S46+S59<0,0,S46+S59) -> 13.28888889 | T62: =IF(T46+T59<0,0,T46+T59) -> 13.55466667 | U62: 12.59909333 | V62: 12.87560853 | W62: 13.15765404 | X62: 13.44534045 | Y62: 13.73878059 | Z62: 14.03808954 | AA62: 14.34338466 | AB62: 14.65478569 | AG62: =IF(AG46+AG59<0,0,AG46+AG59) -> 0 | AH62: =IF(AH46+AH59<0,0,AH46+AH59) -> 0 | AI62: 0 | AJ62: 0 | AK62: 0 | AL62: 0 | AM62: 0 | AN62: 0 | AO62: 0 | AP62: 0
B69: YoY % change in incidence | C69: ='B4. Optional variables'!C23 -> 0.02 | E69: 0 | F69: =C69 -> 0.02 | G69: =F69 -> 0.02 | H69: 0.02 | I69: 0.02 | J69: 0.02 | K69: 0.02 | L69: 0.02 | M69: 0.02 | N69: 0.02 | S69: 0 | T69: =C69 -> 0.02 | U69: =T69 -> 0.02 | V69: 0.02 | W69: 0.02 | X69: 0.02 | Y69: 0.02 | Z69: 0.02 | AA69: 0.02 | AB69: 0.02 | AG69: 0 | AH69: =C69 -> 0.02 | AI69: =AH69 -> 0.02 | AJ69: 0.02 | AK69: 0.02 | AL69: 0.02 | AM69: 0.02 | AN69: 0.02 | AO69: 0.02 | AP69: 0.02
A73: Stage - 3 Do nothing scenario
D78: CCG Code | E78: =Start_year -> 2016 | F78: =E78+1 -> 2017 | G78: 2018 | H78: 2019 | I78: 2020 | J78: 2021 | K78: 2022 | L78: 2023 | M78: 2024 | N78: 2025 | S78: =Start_year -> 2016 | T78: =S78+1 -> 2017 | U78: 2018 | V78: 2019 | W78: 2020 | X78: 2021 | Y78: 2022 | Z78: 2023 | AA78: 2024 | AB78: 2025 | AG78: =Start_year -> 2016 | AH78: =AG78+1 -> 2017 | AI78: 2018 | AJ78: 2019 | AK78: 2020 | AL78: 2021 | AM78: 2022 | AN78: 2023 | AO78: 2024 | AP78: 2025
D79: =CCG_code -> 06D | E79: =Metric_calculation!CT36 -> 5 | F79: =E79*(1+F69) -> 5.1 | G79: =F79*(1+G69) -> 5.202 | H79: 5.30604 | I79: 5.4121608 | J79: 5.520404016 | K79: 5.630812096 | L79: 5.743428338 | M79: 5.858296905 | N79: 5.975462843 | S79: =Metric_calculation!CS36 -> 13.28888889 | T79: =S79*(1+T69) -> 13.55466667 | U79: =T79*(1+U69) -> 13.82576 | V79: 14.1022752 | W79: 14.3843207 | X79: 14.67200712 | Y79: 14.96544726 | Z79: 15.26475621 | AA79: 15.57005133 | AB79: 15.88145236 | AG79: =Metric_calculation!CU36 -> 3.428571429 | AH79: =AG79*(1+AH69) -> 3.497142857 | AI79: =AH79*(1+AI69) -> 3.567085714 | AJ79: 3.638427429 | AK79: 3.711195977 | AL79: 3.785419897 | AM79: 3.861128295 | AN79: 3.938350861 | AO79: 4.017117878 | AP79: 4.097460235
A89: Stage - 3 Do something scenario
D92: Changing factor | E92: ='C1. Impact of intervention'!D117 -> 0 | F92: ='C1. Impact of intervention'!E117 -> 0 | G92: ='C1. Impact of intervention'!F117 -> 0 | H92: ='C1. Impact of intervention'!G117 -> -0.3194444444 | I92: ='C1. Impact of intervention'!H117 -> -0.3194444444 | J92: ='C1. Impact of intervention'!I117 -> -0.3194444444 | K92: ='C1. Impact of intervention'!J117 -> -0.3194444444 | L92: ='C1. Impact of intervention'!K117 -> -0.3194444444 | M92: ='C1. Impact of intervention'!L117 -> -0.3194444444 | N92: ='C1. Impact of intervention'!M117 -> -0.3194444444 | S92: ='C1. Impact of intervention'!D118 -> 0 | T92: ='C1. Impact of intervention'!E118 -> 0 | U92: ='C1. Impact of intervention'!F118 -> 0 | V92: ='C1. Impact of intervention'!G118 -> -1.384259259 | W92: ='C1. Impact of intervention'!H118 -> -1.384259259 | X92: ='C1. Impact of intervention'!I118 -> -1.384259259 | Y92: ='C1. Impact of intervention'!J118 -> -1.384259259 | Z92: ='C1. Impact of intervention'!K118 -> -1.384259259 | AA92: ='C1. Impact of intervention'!L118 -> -1.384259259 | AB92: ='C1. Impact of intervention'!M118 -> -1.384259259 | AG92: ='C1. Impact of intervention'!D119 -> 0 | AH92: ='C1. Impact of intervention'!E119 -> 0 | AI92: ='C1. Impact of intervention'!F119 -> 0 | AJ92: ='C1. Impact of intervention'!G119 -> 0 | AK92: ='C1. Impact of intervention'!H119 -> 0 | AL92: ='C1. Impact of intervention'!I119 -> 0 | AM92: ='C1. Impact of intervention'!J119 -> 0 | AN92: ='C1. Impact of intervention'!K119 -> 0 | AO92: ='C1. Impact of intervention'!L119 -> 0 | AP92: ='C1. Impact of intervention'!M119 -> 0
D94: CCG Code | E94: =Start_year -> 2016 | F94: =E94+1 -> 2017 | G94: 2018 | H94: 2019 | I94: 2020 | J94: 2021 | K94: 2022 | L94: 2023 | M94: 2024 | N94: 2025 | S94: =Start_year -> 2016 | T94: =S94+1 -> 2017 | U94: 2018 | V94: 2019 | W94: 2020 | X94: 2021 | Y94: 2022 | Z94: 2023 | AA94: 2024 | AB94: 2025 | AG94: =Start_year -> 2016 | AH94: =AG94+1 -> 2017 | AI94: 2018 | AJ94: 2019 | AK94: 2020 | AL94: 2021 | AM94: 2022 | AN94: 2023 | AO94: 2024 | AP94: 2025
D95: =CCG_code -> 06D | E95: =IF(E79+E92<0,0,E79+E92) -> 5 | F95: =IF(F79+F92<0,0,F79+F92) -> 5.1 | G95: 5.202 | H95: 4.986595556 | I95: 5.092716356 | J95: 5.200959572 | K95: 5.311367652 | L95: 5.423983894 | M95: 5.538852461 | N95: 5.656018399 | S95: =IF(S79+S92<0,0,S79+S92) -> 13.28888889 | T95: =IF(T79+T92<0,0,T79+T92) -> 13.55466667 | U95: 13.82576 | V95: 12.71801594 | W95: 13.00006144 | X95: 13.28774786 | Y95: 13.581188 | Z95: 13.88049695 | AA95: 14.18579207 | AB95: 14.4971931 | AG95: =IF(AG79+AG92<0,0,AG79+AG92) -> 3.428571429 | AH95: =IF(AH79+AH92<0,0,AH79+AH92) -> 3.497142857 | AI95: 3.567085714 | AJ95: 3.638427429 | AK95: 3.711195977 | AL95: 3.785419897 | AM95: 3.861128295 | AN95: 3.938350861 | AO95: 4.017117878 | AP95: 4.097460235
B102: YoY % change in incidence | C102: ='B4. Optional variables'!D23 -> 0.02 | E102: 0 | F102: =C102 -> 0.02 | G102: =F102 -> 0.02 | H102: 0.02 | I102: 0.02 | J102: 0.02 | K102: 0.02 | L102: 0.02 | M102: 0.02 | N102: 0.02 | S102: 0 | T102: =C102 -> 0.02 | U102: =T102 -> 0.02 | V102: 0.02 | W102: 0.02 | X102: 0.02 | Y102: 0.02 | Z102: 0.02 | AA102: 0.02 | AB102: 0.02 | AG102: 0 | AH102: =C102 -> 0.02 | AI102: =AH102 -> 0.02 | AJ102: 0.02 | AK102: 0.02 | AL102: 0.02 | AM102: 0.02 | AN102: 0.02 | AO102: 0.02 | AP102: 0.02
A106: Stage - 4 Do nothing scenario
D111: CCG Code | E111: =Start_year -> 2016 | F111: =E111+1 -> 2017 | G111: 2018 | H111: 2019 | I111: 2020 | J111: 2021 | K111: 2022 | L111: 2023 | M111: 2024 | N111: 2025 | S111: =Start_year -> 2016 | T111: =S111+1 -> 2017 | U111: 2018 | V111: 2019 | W111: 2020 | X111: 2021 | Y111: 2022 | Z111: 2023 | AA111: 2024 | AB111: 2025 | AG111: =Start_year -> 2016 | AH111: =AG111+1 -> 2017 | AI111: 2018 | AJ111: 2019 | AK111: 2020 | AL111: 2021 | AM111: 2022 | AN111: 2023 | AO111: 2024 | AP111: 2025
D112: =CCG_code -> 06D | E112: =Metric_calculation!CT37 -> 10 | F112: =E112*(1+F102) -> 10.2 | G112: =F112*(1+G102) -> 10.404 | H112: 10.61208 | I112: 10.8243216 | J112: 11.04080803 | K112: 11.26162419 | L112: 11.48685668 | M112: 11.71659381 | N112: 11.95092569 | S112: =Metric_calculation!CS37 -> 10.22222222 | T112: =S112*(1+T102) -> 10.42666667 | U112: 10.6352 | V112: 10.847904 | W112: 11.06486208 | X112: 11.28615932 | Y112: 11.51188251 | Z112: 11.74212016 | AA112: 11.97696256 | AB112: =AA112*(1+AB102) -> 12.21650181 | AG112: =Metric_calculation!CU37 -> 0 | AH112: =AG112*(1+AH102) -> 0 | AI112: 0 | AJ112: 0 | AK112: 0 | AL112: 0 | AM112: 0 | AN112: 0 | AO112: 0 | AP112: =AO112*(1+AP102) -> 0
A122: Stage - 4 Do something scenario
D125: Changing factor | E125: ='C1. Impact of intervention'!D120 -> 0 | F125: ='C1. Impact of intervention'!E120 -> 0 | G125: ='C1. Impact of intervention'!F120 -> 0 | H125: ='C1. Impact of intervention'!G120 -> -0.3607843137 | I125: ='C1. Impact of intervention'!H120 -> -0.3607843137 | J125: ='C1. Impact of intervention'!I120 -> -0.3607843137 | K125: ='C1. Impact of intervention'!J120 -> -0.3607843137 | L125: ='C1. Impact of intervention'!K120 -> -0.3607843137 | M125: ='C1. Impact of intervention'!L120 -> -0.3607843137 | N125: ='C1. Impact of intervention'!M120 -> -0.3607843137 | S125: ='C1. Impact of intervention'!D121 -> 0 | T125: ='C1. Impact of intervention'!E121 -> 0 | U125: ='C1. Impact of intervention'!F121 -> 0 | V125: ='C1. Impact of intervention'!G121 -> -1.17254902 | W125: ='C1. Impact of intervention'!H121 -> -1.17254902 | X125: ='C1. Impact of intervention'!I121 -> -1.17254902 | Y125: ='C1. Impact of intervention'!J121 -> -1.17254902 | Z125: ='C1. Impact of intervention'!K121 -> -1.17254902 | AA125: ='C1. Impact of intervention'!L121 -> -1.17254902 | AB125: ='C1. Impact of intervention'!M121 -> -1.17254902 | AG125: ='C1. Impact of intervention'!D122 -> 0 | AH125: ='C1. Impact of intervention'!E122 -> 0 | AI125: ='C1. Impact of intervention'!F122 -> 0 | AJ125: ='C1. Impact of intervention'!G122 -> 0 | AK125: ='C1. Impact of intervention'!H122 -> 0 | AL125: ='C1. Impact of intervention'!I122 -> 0 | AM125: ='C1. Impact of intervention'!J122 -> 0 | AN125: ='C1. Impact of intervention'!K122 -> 0 | AO125: ='C1. Impact of intervention'!L122 -> 0 | AP125: ='C1. Impact of intervention'!M122 -> 0
D127: CCG Code | E127: =Start_year -> 2016 | F127: =E127+1 -> 2017 | G127: 2018 | H127: 2019 | I127: 2020 | J127: 2021 | K127: 2022 | L127: 2023 | M127: 2024 | N127: 2025 | S127: =Start_year -> 2016 | T127: =S127+1 -> 2017 | U127: 2018 | V127: 2019 | W127: 2020 | X127: 2021 | Y127: 2022 | Z127: 2023 | AA127: 2024 | AB127: 2025 | AG127: =Start_year -> 2016 | AH127: =AG127+1 -> 2017 | AI127: 2018 | AJ127: 2019 | AK127: 2020 | AL127: 2021 | AM127: 2022 | AN127: 2023 | AO127: 2024 | AP127: 2025
D128: =CCG_code -> 06D | E128: =IF(E112+E125<0,0,E112+E125) -> 10 | F128: =IF(F112+F125<0,0,F112+F125) -> 10.2 | G128: 10.404 | H128: 10.25129569 | I128: 10.46353729 | J128: 10.68002372 | K128: 10.90083988 | L128: 11.12607236 | M128: 11.3558095 | N128: 11.59014137 | S128: =IF(S112+S125<0,0,S112+S125) -> 10.22222222 | T128: =IF(T112+T125<0,0,T112+T125) -> 10.42666667 | U128: 10.6352 | V128: 9.67535498 | W128: 9.89231306 | X128: 10.1136103 | Y128: 10.33933349 | Z128: 10.56957114 | AA128: 10.80441354 | AB128: 11.04395279 | AG128: =IF(AG112+AG125<0,0,AG112+AG125) -> 0 | AH128: =IF(AH112+AH125<0,0,AH112+AH125) -> 0 | AI128: 0 | AJ128: 0 | AK128: 0 | AL128: 0 | AM128: 0 | AN128: 0 | AO128: 0 | AP128: 0

Sheet Cost (hidden)
A1: Costs worksheet
A2: This worksheet forecasts the cost of each cohort. One cohort is defined as a group of patients detected at a specific stage through a specific pathway.
A5: Lifetime Cost | B5: ='C2. Lifetime cost adjustment'!$P$10 -> 5144.156553 | C5: <-Emergency patient | P5: ='C2. Lifetime cost adjustment'!$P$11 -> 4082.663931 | Q5: <-Elective cost | AD5: ='C2. Lifetime cost adjustment'!$P$12 -> 4082.663931 | AE5: <-Screening costs | AR5: =B5*(1+'B4. Optional variables'!$C$56) -> 5144.156553 | BF5: =P5*(1+'B4. Optional variables'!$C$56) -> 4082.663931 | BT5: =AD5*(1+'B4. Optional variables'!$C$56) -> 4082.663931 | CH5: =AR5*(1+'B4. Optional variables'!$D$56) -> 5144.156553 | CV5: =BF5*(1+'B4. Optional variables'!$D$56) -> 4082.663931 | DJ5: =BT5*(1+'B4. Optional variables'!$D$56) -> 4082.663931 | DX5: =CH5*(1+'B4. Optional variables'!$E$56) -> 5144.156553 | EL5: =CV5*(1+'B4. Optional variables'!$E$56) -> 4082.663931 | EZ5: =DJ5*(1+'B4. Optional variables'!$E$56) -> 4082.663931 | FN5: =DX5*(1+'B4. Optional variables'!$F$56) -> 5144.156553 | GB5: =EL5*(1+'B4. Optional variables'!$F$56) -> 4082.663931 | GP5: =EZ5*(1+'B4. Optional variables'!$F$56) -> 4082.663931 | HD5: =FN5*(1+'B4. Optional variables'!$G$56) -> 5144.156553 | HR5: =GB5*(1+'B4. Optional variables'!$G$56) -> 4082.663931 | IF5: =GP5*(1+'B4. Optional variables'!$G$56) -> 4082.663931 | IT5: =HD5*(1+'B4. Optional variables'!$H$56) -> 5144.156553 | JH5: =HR5*(1+'B4. Optional variables'!$H$56) -> 4082.663931 | JV5: =IF5*(1+'B4. Optional variables'!$H$56) -> 4082.663931 | KJ5: =IT5*(1+'B4. Optional variables'!$I$56) -> 5144.156553 | KX5: =JH5*(1+'B4. Optional variables'!$I$56) -> 4082.663931 | LL5: =JV5*(1+'B4. Optional variables'!$I$56) -> 4082.663931 | LZ5: =KJ5*(1+'B4. Optional variables'!$J$56) -> 5144.156553 | MN5: =KX5*(1+'B4. Optional variables'!$J$56) -> 4082.663931 | NB5: =LL5*(1+'B4. Optional variables'!$J$56) -> 4082.663931 | NP5: =LZ5*(1+'B4. Optional variables'!$K$56) -> 5144.156553 | OD5: =MN5*(1+'B4. Optional variables'!$K$56) -> 4082.663931 | OR5: =NB5*(1+'B4. Optional variables'!$K$56) -> 4082.663931
A6: Recurrence rate | B6: =Metric_calculation!DN10 -> 0.06904694168 | P6: =B6 -> 0.06904694168 | AD6: =P6 -> 0.06904694168 | AR6: =AD6 -> 0.06904694168 | BF6: =AR6 -> 0.06904694168 | BT6: =BF6 -> 0.06904694168 | CH6: =BT6 -> 0.06904694168 | CV6: =CH6 -> 0.06904694168 | DJ6: =CV6 -> 0.06904694168 | DX6: =DJ6 -> 0.06904694168 | EL6: =DX6 -> 0.06904694168 | EZ6: =EL6 -> 0.06904694168 | FN6: =EZ6 -> 0.06904694168 | GB6: =FN6 -> 0.06904694168 | GP6: =GB6 -> 0.06904694168 | HD6: =GP6 -> 0.06904694168 | HR6: =HD6 -> 0.06904694168 | IF6: =HR6 -> 0.06904694168 | IT6: =IF6 -> 0.06904694168 | JH6: =IT6 -> 0.06904694168 | JV6: =JH6 -> 0.06904694168 | KJ6: =JV6 -> 0.06904694168 | KX6: =KJ6 -> 0.06904694168 | LL6: =KX6 -> 0.06904694168 | LZ6: =LL6 -> 0.06904694168 | MN6: =LZ6 -> 0.06904694168 | NB6: =MN6 -> 0.06904694168 | NP6: =NB6 -> 0.06904694168 | OD6: =NP6 -> 0.06904694168 | OR6: =OD6 -> 0.06904694168
E8: =B5 -> 5144.156553 | F8: =E8 -> 5144.156553 | G8: =F8 -> 5144.156553 | H8: 5144.156553 | I8: 5144.156553 | J8: 5144.156553 | K8: 5144.156553 | L8: 5144.156553 | M8: 5144.156553 | N8: 5144.156553 | S8: =P5 -> 4082.663931 | T8: =S8 -> 4082.663931 | U8: =T8 -> 4082.663931 | V8: 4082.663931 | W8: 4082.663931 | X8: 4082.663931 | Y8: 4082.663931 | Z8: 4082.663931 | AA8: 4082.663931 | AB8: 4082.663931 | AG8: =AD5 -> 4082.663931 | AH8: =AG8 -> 4082.663931 | AI8: =AH8 -> 4082.663931 | AJ8: 4082.663931 | AK8: 4082.663931 | AL8: 4082.663931 | AM8: 4082.663931 | AN8: 4082.663931 | AO8: 4082.663931 | AP8: 4082.663931 | AU8: =AR5 -> 5144.156553 | AV8: =AU8 -> 5144.156553 | AW8: =AV8 -> 5144.156553 | AX8: 5144.156553 | AY8: 5144.156553 | AZ8: 5144.156553 | BA8: 5144.156553 | BB8: 5144.156553 | BC8: 5144.156553 | BD8: 5144.156553 | BI8: =BF5 -> 4082.663931 | BJ8: =BI8 -> 4082.663931 | BK8: =BJ8 -> 4082.663931 | BL8: 4082.663931 | BM8: 4082.663931 | BN8: 4082.663931 | BO8: 4082.663931 | BP8: 4082.663931 | BQ8: 4082.663931 | BR8: 4082.663931 | BW8: =BT5 -> 4082.663931 | BX8: =BW8 -> 4082.663931 | BY8: =BX8 -> 4082.663931 | BZ8: 4082.663931 | CA8: 4082.663931 | CB8: 4082.663931 | CC8: 4082.663931 | CD8: 4082.663931 | CE8: 4082.663931 | CF8: 4082.663931 | CK8: =CH5 -> 5144.156553 | CL8: =CK8 -> 5144.156553 | CM8: =CL8 -> 5144.156553 | CN8: 5144.156553 | CO8: 5144.156553 | CP8: 5144.156553 | CQ8: 5144.156553 | CR8: 5144.156553 | CS8: 5144.156553 | CT8: 5144.156553 | CY8: =CV5 -> 4082.663931 | CZ8: =CY8 -> 4082.663931 | DA8: =CZ8 -> 4082.663931 | DB8: 4082.663931 | DC8: 4082.663931 | DD8: 4082.663931 | DE8: 4082.663931 | DF8: 4082.663931 | DG8: 4082.663931 | DH8: 4082.663931 | DM8: =DJ5 -> 4082.663931 | DN8: =DM8 -> 4082.663931 | DO8: =DN8 -> 4082.663931 | DP8: 4082.663931 | DQ8: 4082.663931 | DR8: 4082.663931 | DS8: 4082.663931 | DT8: 4082.663931 | DU8: 4082.663931 | DV8: 4082.663931 | EA8: =DX5 -> 5144.156553 | EB8: =EA8 -> 5144.156553 | EC8: =EB8 -> 5144.156553 | ED8: 5144.156553 | EE8: 5144.156553 | EF8: 5144.156553 | EG8: 5144.156553 | EH8: 5144.156553 | EI8: 5144.156553 | EJ8: 5144.156553 | EO8: =EL5 -> 4082.663931 | EP8: =EO8 -> 4082.663931 | EQ8: =EP8 -> 4082.663931 | ER8: 4082.663931 | ES8: 4082.663931 | ET8: 4082.663931 | EU8: 4082.663931 | EV8: 4082.663931 | EW8: 4082.663931 | EX8: 4082.663931 | FC8: =EZ5 -> 4082.663931 | FD8: =FC8 -> 4082.663931 | FE8: =FD8 -> 4082.663931 | FF8: 4082.663931 | FG8: 4082.663931 | FH8: 4082.663931 | FI8: 4082.663931 | FJ8: 4082.663931 | FK8: 4082.663931 | FL8: 4082.663931 | FQ8: =FN5 -> 5144.156553 | FR8: =FQ8 -> 5144.156553 | FS8: =FR8 -> 5144.156553 | FT8: 5144.156553 | FU8: 5144.156553 | FV8: 5144.156553 | FW8: 5144.156553 | FX8: 5144.156553 | FY8: 5144.156553 | FZ8: 5144.156553 | GE8: =GB5 -> 4082.663931 | GF8: =GE8 -> 4082.663931 | GG8: =GF8 -> 4082.663931 | GH8: 4082.663931 | GI8: 4082.663931 | GJ8: 4082.663931 | GK8: 4082.663931 | GL8: 4082.663931 | GM8: 4082.663931 | GN8: 4082.663931 | GS8: =GP5 -> 4082.663931 | GT8: =GS8 -> 4082.663931 | GU8: =GT8 -> 4082.663931 | GV8: 4082.663931 | GW8: 4082.663931 | GX8: 4082.663931 | GY8: 4082.663931 | GZ8: 4082.663931 | HA8: 4082.663931 | HB8: 4082.663931 | HG8: =HD5 -> 5144.156553 | HH8: =HG8 -> 5144.156553 | HI8: =HH8 -> 5144.156553 | HJ8: 5144.156553 | HK8: 5144.156553 | HL8: 5144.156553 | HM8: 5144.156553 | HN8: 5144.156553 | HO8: 5144.156553 | HP8: 5144.156553 | HU8: =HR5 -> 4082.663931 | HV8: =HU8 -> 4082.663931 | HW8: =HV8 -> 4082.663931 | HX8: 4082.663931 | HY8: 4082.663931 | HZ8: 4082.663931 | IA8: 4082.663931 | IB8: 4082.663931 | IC8: 4082.663931 | ID8: 4082.663931 | II8: =IF5 -> 4082.663931 | IJ8: =II8 -> 4082.663931 | IK8: =IJ8 -> 4082.663931 | IL8: 4082.663931 | IM8: 4082.663931 | IN8: 4082.663931 | IO8: 4082.663931 | IP8: 4082.663931 | IQ8: 4082.663931 | IR8: 4082.663931 | IW8: =IT5 -> 5144.156553 | IX8: =IW8 -> 5144.156553 | IY8: =IX8 -> 5144.156553 | IZ8: 5144.156553 | JA8: 5144.156553 | JB8: 5144.156553 | JC8: 5144.156553 | JD8: 5144.156553 | JE8: 5144.156553 | JF8: 5144.156553 | JK8: =JH5 -> 4082.663931 | JL8: =JK8 -> 4082.663931 | JM8: =JL8 -> 4082.663931 | JN8: 4082.663931 | JO8: 4082.663931 | JP8: 4082.663931 | JQ8: 4082.663931 | JR8: 4082.663931 | JS8: 4082.663931 | JT8: 4082.663931 | JY8: =JV5 -> 4082.663931 | JZ8: =JY8 -> 4082.663931 | KA8: =JZ8 -> 4082.663931 | KB8: 4082.663931 | KC8: 4082.663931 | KD8: 4082.663931 | KE8: 4082.663931 | KF8: 4082.663931 | KG8: 4082.663931 | KH8: 4082.663931 | KM8: =KJ5 -> 5144.156553 | KN8: =KM8 -> 5144.156553 | KO8: =KN8 -> 5144.156553 | KP8: 5144.156553 | KQ8: 5144.156553 | KR8: 5144.156553 | KS8: 5144.156553 | KT8: 5144.156553 | KU8: 5144.156553 | KV8: 5144.156553 | LA8: =KX5 -> 4082.663931 | LB8: =LA8 -> 4082.663931 | LC8: =LB8 -> 4082.663931 | LD8: 4082.663931 | LE8: 4082.663931 | LF8: 4082.663931 | LG8: 4082.663931 | LH8: 4082.663931 | LI8: 4082.663931 | LJ8: 4082.663931 | LO8: =LL5 -> 4082.663931 | LP8: =LO8 -> 4082.663931 | LQ8: =LP8 -> 4082.663931 | LR8: 4082.663931 | LS8: 4082.663931 | LT8: 4082.663931 | LU8: 4082.663931 | LV8: 4082.663931 | LW8: 4082.663931 | LX8: 4082.663931 | MC8: =LZ5 -> 5144.156553 | MD8: =MC8 -> 5144.156553 | ME8: =MD8 -> 5144.156553 | MF8: 5144.156553 | MG8: 5144.156553 | MH8: 5144.156553 | MI8: 5144.156553 | MJ8: 5144.156553 | MK8: 5144.156553 | ML8: 5144.156553 | MQ8: =MN5 -> 4082.663931 | MR8: =MQ8 -> 4082.663931 | MS8: =MR8 -> 4082.663931 | MT8: 4082.663931 | MU8: 4082.663931 | MV8: 4082.663931 | MW8: 4082.663931 | MX8: 4082.663931 | MY8: 4082.663931 | MZ8: 4082.663931 | NE8: =NB5 -> 4082.663931 | NF8: =NE8 -> 4082.663931 | NG8: =NF8 -> 4082.663931 | NH8: 4082.663931 | NI8: 4082.663931 | NJ8: 4082.663931 | NK8: 4082.663931 | NL8: 4082.663931 | NM8: 4082.663931 | NN8: 4082.663931 | NS8: =NP5 -> 5144.156553 | NT8: =NS8 -> 5144.156553 | NU8: =NT8 -> 5144.156553 | NV8: 5144.156553 | NW8: 5144.156553 | NX8: 5144.156553 | NY8: 5144.156553 | NZ8: 5144.156553 | OA8: 5144.156553 | OB8: 5144.156553 | OG8: =OD5 -> 4082.663931 | OH8: =OG8 -> 4082.663931 | OI8: =OH8 -> 4082.663931 | OJ8: 4082.663931 | OK8: 4082.663931 | OL8: 4082.663931 | OM8: 4082.663931 | ON8: 4082.663931 | OO8: 4082.663931 | OP8: 4082.663931 | OU8: =OR5 -> 4082.663931 | OV8: =OU8 -> 4082.663931 | OW8: =OV8 -> 4082.663931 | OX8: 4082.663931 | OY8: 4082.663931 | OZ8: 4082.663931 | PA8: 4082.663931 | PB8: 4082.663931 | PC8: 4082.663931 | PD8: 4082.663931
E9: =B6 -> 0.06904694168 | F9: =E9 -> 0.06904694168 | G9: 0.06904694168 | H9: 0.06904694168 | I9: 0.06904694168 | J9: 0.06904694168 | K9: 0.06904694168 | L9: 0.06904694168 | M9: 0.06904694168 | N9: 0.06904694168 | S9: =P6 -> 0.06904694168 | T9: =S9 -> 0.06904694168 | U9: 0.06904694168 | V9: 0.06904694168 | W9: 0.06904694168 | X9: 0.06904694168 | Y9: 0.06904694168 | Z9: 0.06904694168 | AA9: 0.06904694168 | AB9: 0.06904694168 | AG9: =AD6 -> 0.06904694168 | AH9: =AG9 -> 0.06904694168 | AI9: 0.06904694168 | AJ9: 0.06904694168 | AK9: 0.06904694168 | AL9: 0.06904694168 | AM9: 0.06904694168 | AN9: 0.06904694168 | AO9: 0.06904694168 | AP9: 0.06904694168 | AU9: =AR6 -> 0.06904694168 | AV9: =AU9 -> 0.06904694168 | AW9: 0.06904694168 | AX9: 0.06904694168 | AY9: 0.06904694168 | AZ9: 0.06904694168 | BA9: 0.06904694168 | BB9: 0.06904694168 | BC9: 0.06904694168 | BD9: 0.06904694168 | BI9: =BF6 -> 0.06904694168 | BJ9: =BI9 -> 0.06904694168 | BK9: 0.06904694168 | BL9: 0.06904694168 | BM9: 0.06904694168 | BN9: 0.06904694168 | BO9: 0.06904694168 | BP9: 0.06904694168 | BQ9: 0.06904694168 | BR9: 0.06904694168 | BW9: =BT6 -> 0.06904694168 | BX9: =BW9 -> 0.06904694168 | BY9: 0.06904694168 | BZ9: 0.06904694168 | CA9: 0.06904694168 | CB9: 0.06904694168 | CC9: 0.06904694168 | CD9: 0.06904694168 | CE9: 0.06904694168 | CF9: 0.06904694168 | CK9: =CH6 -> 0.06904694168 | CL9: =CK9 -> 0.06904694168 | CM9: 0.06904694168 | CN9: 0.06904694168 | CO9: 0.06904694168 | CP9: 0.06904694168 | CQ9: 0.06904694168 | CR9: 0.06904694168 | CS9: 0.06904694168 | CT9: 0.06904694168 | CY9: =CV6 -> 0.06904694168 | CZ9: =CY9 -> 0.06904694168 | DA9: 0.06904694168 | DB9: 0.06904694168 | DC9: 0.06904694168 | DD9: 0.06904694168 | DE9: 0.06904694168 | DF9: 0.06904694168 | DG9: 0.06904694168 | DH9: 0.06904694168 | DM9: =DJ6 -> 0.06904694168 | DN9: =DM9 -> 0.06904694168 | DO9: 0.06904694168 | DP9: 0.06904694168 | DQ9: 0.06904694168 | DR9: 0.06904694168 | DS9: 0.06904694168 | DT9: 0.06904694168 | DU9: 0.06904694168 | DV9: 0.06904694168 | EA9: =DX6 -> 0.06904694168 | EB9: =EA9 -> 0.06904694168 | EC9: 0.06904694168 | ED9: 0.06904694168 | EE9: 0.06904694168 | EF9: 0.06904694168 | EG9: 0.06904694168 | EH9: 0.06904694168 | EI9: 0.06904694168 | EJ9: 0.06904694168 | EO9: =EL6 -> 0.06904694168 | EP9: =EO9 -> 0.06904694168 | EQ9: 0.06904694168 | ER9: 0.06904694168 | ES9: 0.06904694168 | ET9: 0.06904694168 | EU9: 0.06904694168 | EV9: 0.06904694168 | EW9: 0.06904694168 | EX9: 0.06904694168 | FC9: =EZ6 -> 0.06904694168 | FD9: =FC9 -> 0.06904694168 | FE9: 0.06904694168 | FF9: 0.06904694168 | FG9: 0.06904694168 | FH9: 0.06904694168 | FI9: 0.06904694168 | FJ9: 0.06904694168 | FK9: 0.06904694168 | FL9: 0.06904694168 | FQ9: =FN6 -> 0.06904694168 | FR9: =FQ9 -> 0.06904694168 | FS9: 0.06904694168 | FT9: 0.06904694168 | FU9: 0.06904694168 | FV9: 0.06904694168 | FW9: 0.06904694168 | FX9: 0.06904694168 | FY9: 0.06904694168 | FZ9: 0.06904694168 | GE9: =GB6 -> 0.06904694168 | GF9: =GE9 -> 0.06904694168 | GG9: 0.06904694168 | GH9: 0.06904694168 | GI9: 0.06904694168 | GJ9: 0.06904694168 | GK9: 0.06904694168 | GL9: 0.06904694168 | GM9: 0.06904694168 | GN9: 0.06904694168 | GS9: =GP6 -> 0.06904694168 | GT9: =GS9 -> 0.06904694168 | GU9: 0.06904694168 | GV9: 0.06904694168 | GW9: 0.06904694168 | GX9: 0.06904694168 | GY9: 0.06904694168 | GZ9: 0.06904694168 | HA9: 0.06904694168 | HB9: 0.06904694168 | HG9: =HD6 -> 0.06904694168 | HH9: =HG9 -> 0.06904694168 | HI9: 0.06904694168 | HJ9: 0.06904694168 | HK9: 0.06904694168 | HL9: 0.06904694168 | HM9: 0.06904694168 | HN9: 0.06904694168 | HO9: 0.06904694168 | HP9: 0.06904694168 | HU9: =HR6 -> 0.06904694168 | HV9: =HU9 -> 0.06904694168 | HW9: 0.06904694168 | HX9: 0.06904694168 | HY9: 0.06904694168 | HZ9: 0.06904694168 | IA9: 0.06904694168 | IB9: 0.06904694168 | IC9: 0.06904694168 | ID9: 0.06904694168 | II9: =IF6 -> 0.06904694168 | IJ9: =II9 -> 0.06904694168 | IK9: 0.06904694168 | IL9: 0.06904694168 | IM9: 0.06904694168 | IN9: 0.06904694168 | IO9: 0.06904694168 | IP9: 0.06904694168 | IQ9: 0.06904694168 | IR9: 0.06904694168 | IW9: =IT6 -> 0.06904694168 | IX9: =IW9 -> 0.06904694168 | IY9: 0.06904694168 | IZ9: 0.06904694168 | JA9: 0.06904694168 | JB9: 0.06904694168 | JC9: 0.06904694168 | JD9: 0.06904694168 | JE9: 0.06904694168 | JF9: 0.06904694168 | JK9: =JH6 -> 0.06904694168 | JL9: =JK9 -> 0.06904694168 | JM9: 0.06904694168 | JN9: 0.06904694168 | JO9: 0.06904694168 | JP9: 0.06904694168 | JQ9: 0.06904694168 | JR9: 0.06904694168 | JS9: 0.06904694168 | JT9: 0.06904694168 | JY9: =JV6 -> 0.06904694168 | JZ9: =JY9 -> 0.06904694168 | KA9: 0.06904694168 | KB9: 0.06904694168 | KC9: 0.06904694168 | KD9: 0.06904694168 | KE9: 0.06904694168 | KF9: 0.06904694168 | KG9: 0.06904694168 | KH9: 0.06904694168 | KM9: =KJ6 -> 0.06904694168 | KN9: =KM9 -> 0.06904694168 | KO9: 0.06904694168 | KP9: 0.06904694168 | KQ9: 0.06904694168 | KR9: 0.06904694168 | KS9: 0.06904694168 | KT9: 0.06904694168 | KU9: 0.06904694168 | KV9: 0.06904694168 | LA9: =KX6 -> 0.06904694168 | LB9: =LA9 -> 0.06904694168 | LC9: 0.06904694168 | LD9: 0.06904694168 | LE9: 0.06904694168 | LF9: 0.06904694168 | LG9: 0.06904694168 | LH9: 0.06904694168 | LI9: 0.06904694168 | LJ9: 0.06904694168 | LO9: =LL6 -> 0.06904694168 | LP9: =LO9 -> 0.06904694168 | LQ9: 0.06904694168 | LR9: 0.06904694168 | LS9: 0.06904694168 | LT9: 0.06904694168 | LU9: 0.06904694168 | LV9: 0.06904694168 | LW9: 0.06904694168 | LX9: 0.06904694168 | MC9: =LZ6 -> 0.06904694168 | MD9: =MC9 -> 0.06904694168 | ME9: 0.06904694168 | MF9: 0.06904694168 | MG9: 0.06904694168 | MH9: 0.06904694168 | MI9: 0.06904694168 | MJ9: 0.06904694168 | MK9: 0.06904694168 | ML9: 0.06904694168 | MQ9: =MN6 -> 0.06904694168 | MR9: =MQ9 -> 0.06904694168 | MS9: 0.06904694168 | MT9: 0.06904694168 | MU9: 0.06904694168 | MV9: 0.06904694168 | MW9: 0.06904694168 | MX9: 0.06904694168 | MY9: 0.06904694168 | MZ9: 0.06904694168 | NE9: =NB6 -> 0.06904694168 | NF9: =NE9 -> 0.06904694168 | NG9: 0.06904694168 | NH9: 0.06904694168 | NI9: 0.06904694168 | NJ9: 0.06904694168 | NK9: 0.06904694168 | NL9: 0.06904694168 | NM9: 0.06904694168 | NN9: 0.06904694168 | NS9: =NP6 -> 0.06904694168 | NT9: =NS9 -> 0.06904694168 | NU9: 0.06904694168 | NV9: 0.06904694168 | NW9: 0.06904694168 | NX9: 0.06904694168 | NY9: 0.06904694168 | NZ9: 0.06904694168 | OA9: 0.06904694168 | OB9: 0.06904694168 | OG9: =OD6 -> 0.06904694168 | OH9: =OG9 -> 0.06904694168 | OI9: 0.06904694168 | OJ9: 0.06904694168 | OK9: 0.06904694168 | OL9: 0.06904694168 | OM9: 0.06904694168 | ON9: 0.06904694168 | OO9: 0.06904694168 | OP9: 0.06904694168 | OU9: =OR6 -> 0.06904694168 | OV9: =OU9 -> 0.06904694168 | OW9: 0.06904694168 | OX9: 0.06904694168 | OY9: 0.06904694168 | OZ9: 0.06904694168 | PA9: 0.06904694168 | PB9: 0.06904694168 | PC9: 0.06904694168 | PD9: 0.06904694168
E10: Emergency | S10: Elective | AG10: Screening | AU10: Emergency | BI10: Elective | BW10: Screening | CK10: Emergency | CY10: Elective | DM10: Screening | EA10: Emergency | EO10: Elective | FC10: Screening | FQ10: Emergency | GE10: Elective | GS10: Screening | HG10: Emergency | HU10: Elective | II10: Screening | IW10: Emergency | JK10: Elective | JY10: Screening | KM10: Emergency | LA10: Elective | LO10: Screening | MC10: Emergency | MQ10: Elective | NE10: Screening | NS10: Emergency | OG10: Elective | OU10: Screening
E11: =Start_year -> 2016 | F11: =E11+1 -> 2017 | G11: 2018 | H11: 2019 | I11: 2020 | J11: 2021 | K11: 2022 | L11: 2023 | M11: 2024 | N11: 2025 | S11: =Start_year -> 2016 | T11: =S11+1 -> 2017 | U11: 2018 | V11: 2019 | W11: 2020 | X11: 2021 | Y11: 2022 | Z11: 2023 | AA11: 2024 | AB11: 2025 | AG11: =Start_year+1 -> 2017 | AH11: =AG11+1 -> 2018 | AI11: =AH11+1 -> 2019 | AJ11: 2020 | AK11: 2021 | AL11: 2022 | AM11: 2023 | AN11: 2024 | AO11: 2025 | AP11: 2026 | AU11: =Start_year -> 2016 | AV11: =AU11+1 -> 2017 | AW11: =AV11+1 -> 2018 | AX11: 2019 | AY11: 2020 | AZ11: 2021 | BA11: 2022 | BB11: 2023 | BC11: 2024 | BD11: 2025 | BI11: =AU11 -> 2016 | BJ11: 2017 | BK11: 2018 | BL11: 2019 | BM11: 2020 | BN11: 2021 | BO11: 2022 | BP11: 2023 | BQ11: 2024 | BR11: 2025 | BW11: =BI11 -> 2016 | BX11: 2017 | BY11: 2018 | BZ11: 2019 | CA11: 2020 | CB11: 2021 | CC11: 2022 | CD11: 2023 | CE11: 2024 | CF11: 2025 | CK11: =Start_year -> 2016 | CL11: =CK11+1 -> 2017 | CM11: =CL11+1 -> 2018 | CN11: 2019 | CO11: 2020 | CP11: 2021 | CQ11: 2022 | CR11: 2023 | CS11: 2024 | CT11: 2025 | CY11: =CK11 -> 2016 | CZ11: 2017 | DA11: 2018 | DB11: 2019 | DC11: 2020 | DD11: 2021 | DE11: 2022 | DF11: 2023 | DG11: 2024 | DH11: 2025 | DM11: =CY11 -> 2016 | DN11: 2017 | DO11: 2018 | DP11: 2019 | DQ11: 2020 | DR11: 2021 | DS11: 2022 | DT11: 2023 | DU11: 2024 | DV11: 2025 | EA11: =Start_year -> 2016 | EB11: =EA11+1 -> 2017 | EC11: =EB11+1 -> 2018 | ED11: 2019 | EE11: 2020 | EF11: 2021 | EG11: 2022 | EH11: 2023 | EI11: 2024 | EJ11: 2025 | EO11: =EA11 -> 2016 | EP11: 2017 | EQ11: 2018 | ER11: 2019 | ES11: 2020 | ET11: 2021 | EU11: 2022 | EV11: 2023 | EW11: 2024 | EX11: 2025 | FC11: =EO11 -> 2016 | FD11: 2017 | FE11: 2018 | FF11: 2019 | FG11: 2020 | FH11: 2021 | FI11: 2022 | FJ11: 2023 | FK11: 2024 | FL11: 2025 | FQ11: =Start_year -> 2016 | FR11: =FQ11+1 -> 2017 | FS11: =FR11+1 -> 2018 | FT11: 2019 | FU11: 2020 | FV11: 2021 | FW11: 2022 | FX11: 2023 | FY11: 2024 | FZ11: 2025 | GE11: =FQ11 -> 2016 | GF11: 2017 | GG11: 2018 | GH11: 2019 | GI11: 2020 | GJ11: 2021 | GK11: 2022 | GL11: 2023 | GM11: 2024 | GN11: 2025 | GS11: =GE11 -> 2016 | GT11: 2017 | GU11: 2018 | GV11: 2019 | GW11: 2020 | GX11: 2021 | GY11: 2022 | GZ11: 2023 | HA11: 2024 | HB11: 2025 | HG11: =Start_year -> 2016 | HH11: =HG11+1 -> 2017 | HI11: =HH11+1 -> 2018 | HJ11: 2019 | HK11: 2020 | HL11: 2021 | HM11: 2022 | HN11: 2023 | HO11: 2024 | HP11: 2025 | HU11: =HG11 -> 2016 | HV11: 2017 | HW11: 2018 | HX11: 2019 | HY11: 2020 | HZ11: 2021 | IA11: 2022 | IB11: 2023 | IC11: 2024 | ID11: 2025 | II11: =HU11 -> 2016 | IJ11: 2017 | IK11: 2018 | IL11: 2019 | IM11: 2020 | IN11: 2021 | IO11: 2022 | IP11: 2023 | IQ11: 2024 | IR11: 2025 | IW11: =Start_year -> 2016 | IX11: =IW11+1 -> 2017 | IY11: =IX11+1 -> 2018 | IZ11: 2019 | JA11: 2020 | JB11: 2021 | JC11: 2022 | JD11: 2023 | JE11: 2024 | JF11: 2025 | JK11: =IW11 -> 2016 | JL11: 2017 | JM11: 2018 | JN11: 2019 | JO11: 2020 | JP11: 2021 | JQ11: 2022 | JR11: 2023 | JS11: 2024 | JT11: 2025 | JY11: =JK11 -> 2016 | JZ11: 2017 | KA11: 2018 | KB11: 2019 | KC11: 2020 | KD11: 2021 | KE11: 2022 | KF11: 2023 | KG11: 2024 | KH11: 2025 | KM11: =Start_year -> 2016 | KN11: =KM11+1 -> 2017 | KO11: =KN11+1 -> 2018 | KP11: 2019 | KQ11: 2020 | KR11: 2021 | KS11: 2022 | KT11: 2023 | KU11: 2024 | KV11: 2025 | LA11: =KM11 -> 2016 | LB11: 2017 | LC11: 2018 | LD11: 2019 | LE11: 2020 | LF11: 2021 | LG11: 2022 | LH11: 2023 | LI11: 2024 | LJ11: 2025 | LO11: =LA11 -> 2016 | LP11: 2017 | LQ11: 2018 | LR11: 2019 | LS11: 2020 | LT11: 2021 | LU11: 2022 | LV11: 2023 | LW11: 2024 | LX11: 2025 | MC11: =Start_year -> 2016 | MD11: =MC11+1 -> 2017 | ME11: =MD11+1 -> 2018 | MF11: 2019 | MG11: 2020 | MH11: 2021 | MI11: 2022 | MJ11: 2023 | MK11: 2024 | ML11: 2025 | MQ11: =MC11 -> 2016 | MR11: 2017 | MS11: 2018 | MT11: 2019 | MU11: 2020 | MV11: 2021 | MW11: 2022 | MX11: 2023 | MY11: 2024 | MZ11: 2025 | NE11: =MQ11 -> 2016 | NF11: 2017 | NG11: 2018 | NH11: 2019 | NI11: 2020 | NJ11: 2021 | NK11: 2022 | NL11: 2023 | NM11: 2024 | NN11: 2025 | NS11: =Start_year -> 2016 | NT11: =NS11+1 -> 2017 | NU11: =NT11+1 -> 2018 | NV11: 2019 | NW11: 2020 | NX11: 2021 | NY11: 2022 | NZ11: 2023 | OA11: 2024 | OB11: 2025 | OG11: =NS11 -> 2016 | OH11: 2017 | OI11: 2018 | OJ11: 2019 | OK11: 2020 | OL11: 2021 | OM11: 2022 | ON11: 2023 | OO11: 2024 | OP11: 2025 | OU11: =OG11 -> 2016 | OV11: 2017 | OW11: 2018 | OX11: 2019 | OY11: 2020 | OZ11: 2021 | PA11: 2022 | PB11: 2023 | PC11: 2024 | PD11: 2025
D12: Patinet cost profile | E12: ='B4. Optional variables'!C32 -> 0.9 | F12: ='B4. Optional variables'!D32 -> 0.02 | G12: ='B4. Optional variables'!E32 -> 0.02 | H12: ='B4. Optional variables'!F32 -> 0.02 | I12: ='B4. Optional variables'!G32 -> 0.01 | J12: ='B4. Optional variables'!H32 -> 0.03 | K12: ='B4. Optional variables'!I32 -> 0 | L12: ='B4. Optional variables'!J32 -> 0 | M12: ='B4. Optional variables'!K32 -> 0 | N12: ='B4. Optional variables'!L32 -> 0 | S12: ='B4. Optional variables'!C33 -> 0.9 | T12: ='B4. Optional variables'!D33 -> 0.02 | U12: ='B4. Optional variables'!E33 -> 0.02 | V12: ='B4. Optional variables'!F33 -> 0.02 | W12: ='B4. Optional variables'!G33 -> 0.01 | X12: ='B4. Optional variables'!H33 -> 0.03 | Y12: ='B4. Optional variables'!I33 -> 0 | Z12: ='B4. Optional variables'!J33 -> 0 | AA12: ='B4. Optional variables'!K33 -> 0 | AB12: ='B4. Optional variables'!L33 -> 0 | AG12: ='B4. Optional variables'!C34 -> 0.9 | AH12: ='B4. Optional variables'!D34 -> 0.02 | AI12: ='B4. Optional variables'!E34 -> 0.02 | AJ12: ='B4. Optional variables'!F34 -> 0.02 | AK12: ='B4. Optional variables'!G34 -> 0.01 | AL12: ='B4. Optional variables'!H34 -> 0.03 | AM12: ='B4. Optional variables'!I34 -> 0 | AN12: ='B4. Optional variables'!J34 -> 0 | AO12: ='B4. Optional variables'!K34 -> 0 | AP12: ='B4. Optional variables'!L34 -> 0 | AU12: 0 | AV12: =E12 -> 0.9 | AW12: 0.02 | AX12: 0.02 | AY12: 0.02 | AZ12: 0.01 | BA12: 0.03 | BB12: 0 | BC12: 0 | BD12: 0 | BI12: 0 | BJ12: =S12 -> 0.9 | BK12: 0.02 | BL12: 0.02 | BM12: 0.02 | BN12: 0.01 | BO12: 0.03 | BP12: 0 | BQ12: 0 | BR12: 0 | BW12: 0 | BX12: =AG12 -> 0.9 | BY12: 0.02 | BZ12: 0.02 | CA12: 0.02 | CB12: 0.01 | CC12: 0.03 | CD12: 0 | CE12: 0 | CF12: 0 | CK12: 0 | CL12: 0 | CM12: =E12 -> 0.9 | CN12: 0.02 | CO12: 0.02 | CP12: 0.02 | CQ12: 0.01 | CR12: 0.03 | CS12: 0 | CT12: 0 | CY12: 0 | CZ12: 0 | DA12: =S12 -> 0.9 | DB12: 0.02 | DC12: 0.02 | DD12: 0.02 | DE12: 0.01 | DF12: 0.03 | DG12: 0 | DH12: 0 | DM12: 0 | DN12: 0 | DO12: =AG12 -> 0.9 | DP12: 0.02 | DQ12: 0.02 | DR12: 0.02 | DS12: 0.01 | DT12: 0.03 | DU12: 0 | DV12: 0 | EA12: 0 | EB12: 0 | EC12: 0 | ED12: =E12 -> 0.9 | EE12: 0.02 | EF12: 0.02 | EG12: 0.02 | EH12: 0.01 | EI12: 0.03 | EJ12: 0 | EO12: 0 | EP12: 0 | EQ12: 0 | ER12: =S12 -> 0.9 | ES12: 0.02 | ET12: 0.02 | EU12: 0.02 | EV12: 0.01 | EW12: 0.03 | EX12: 0 | FC12: 0 | FD12: 0 | FE12: 0 | FF12: =AG12 -> 0.9 | FG12: 0.02 | FH12: 0.02 | FI12: 0.02 | FJ12: 0.01 | FK12: 0.03 | FL12: 0 | FQ12: 0 | FR12: 0 | FS12: 0 | FT12: 0 | FU12: =E12 -> 0.9 | FV12: 0.02 | FW12: 0.02 | FX12: 0.02 | FY12: 0.01 | FZ12: 0.03 | GE12: 0 | GF12: 0 | GG12: 0 | GH12: 0 | GI12: =S12 -> 0.9 | GJ12: 0.02 | GK12: 0.02 | GL12: 0.02 | GM12: 0.01 | GN12: 0.03 | GS12: 0 | GT12: 0 | GU12: 0 | GV12: 0 | GW12: =AG12 -> 0.9 | GX12: 0.02 | GY12: 0.02 | GZ12: 0.02 | HA12: 0.01 | HB12: 0.03 | HG12: 0 | HH12: 0 | HI12: 0 | HJ12: 0 | HK12: 0 | HL12: =E12 -> 0.9 | HM12: =F12 -> 0.02 | HN12: =G12 -> 0.02 | HO12: =H12 -> 0.02 | HP12: =I12 -> 0.01 | HU12: 0 | HV12: 0 | HW12: 0 | HX12: 0 | HY12: 0 | HZ12: =S12 -> 0.9 | IA12: =T12 -> 0.02 | IB12: =U12 -> 0.02 | IC12: =V12 -> 0.02 | ID12: =W12 -> 0.01 | II12: 0 | IJ12: 0 | IK12: 0 | IL12: 0 | IM12: 0 | IN12: =AG12 -> 0.9 | IO12: =AH12 -> 0.02 | IP12: =AI12 -> 0.02 | IQ12: =AJ12 -> 0.02 | IR12: =AK12 -> 0.01 | IW12: 0 | IX12: 0 | IY12: 0 | IZ12: 0 | JA12: 0 | JB12: 0 | JC12: =E12 -> 0.9 | JD12: =F12 -> 0.02 | JE12: =G12 -> 0.02 | JF12: =H12 -> 0.02 | JK12: 0 | JL12: 0 | JM12: 0 | JN12: 0 | JO12: 0 | JP12: 0 | JQ12: =S12 -> 0.9 | JR12: =T12 -> 0.02 | JS12: =U12 -> 0.02 | JT12: =V12 -> 0.02 | JY12: 0 | JZ12: 0 | KA12: 0 | KB12: 0 | KC12: 0 | KD12: 0 | KE12: =AG12 -> 0.9 | KF12: =AH12 -> 0.02 | KG12: =AI12 -> 0.02 | KH12: =AJ12 -> 0.02 | KM12: 0 | KN12: 0 | KO12: 0 | KP12: 0 | KQ12: 0 | KR12: 0 | KS12: 0 | KT12: =E12 -> 0.9 | KU12: =F12 -> 0.02 | KV12: =G12 -> 0.02 | LA12: 0 | LB12: 0 | LC12: 0 | LD12: 0 | LE12: 0 | LF12: 0 | LG12: 0 | LH12: =S12 -> 0.9 | LI12: =T12 -> 0.02 | LJ12: =U12 -> 0.02 | LO12: 0 | LP12: 0 | LQ12: 0 | LR12: 0 | LS12: 0 | LT12: 0 | LU12: 0 | LV12: =AG12 -> 0.9 | LW12: =AH12 -> 0.02 | LX12: =AI12 -> 0.02 | MC12: 0 | MD12: 0 | ME12: 0 | MF12: 0 | MG12: 0 | MH12: 0 | MI12: 0 | MJ12: 0 | MK12: =E12 -> 0.9 | ML12: =F12 -> 0.02 | MQ12: 0 | MR12: 0 | MS12: 0 | MT12: 0 | MU12: 0 | MV12: 0 | MW12: 0 | MX12: 0 | MY12: =S12 -> 0.9 | MZ12: =T12 -> 0.02 | NE12: 0 | NF12: 0 | NG12: 0 | NH12: 0 | NI12: 0 | NJ12: 0 | NK12: 0 | NL12: 0 | NM12: =AG12 -> 0.9 | NN12: =AH12 -> 0.02 | NS12: 0 | NT12: 0 | NU12: 0 | NV12: 0 | NW12: 0 | NX12: 0 | NY12: 0 | NZ12: 0 | OA12: 0 | OB12: =E12 -> 0.9 | OG12: 0 | OH12: 0 | OI12: 0 | OJ12: 0 | OK12: 0 | OL12: 0 | OM12: 0 | ON12: 0 | OO12: 0 | OP12: =S12 -> 0.9 | OU12: 0 | OV12: 0 | OW12: 0 | OX12: 0 | OY12: 0 | OZ12: 0 | PA12: 0 | PB12: 0 | PC12: 0 | PD12: =AG12 -> 0.9
D13: Activity | E13: =Activity!E13 -> 1.25 | F13: =E13 -> 1.25 | G13: =F13 -> 1.25 | H13: 1.25 | I13: 1.25 | J13: 1.25 | K13: 1.25 | L13: 1.25 | M13: 1.25 | N13: 1.25 | S13: =Activity!S13 -> 9.2 | T13: =S13 -> 9.2 | U13: =T13 -> 9.2 | V13: 9.2 | W13: 9.2 | X13: 9.2 | Y13: 9.2 | Z13: 9.2 | AA13: 9.2 | AB13: 9.2 | AG13: =Activity!AG13 -> 4.571428571 | AH13: =AG13 -> 4.571428571 | AI13: =AH13 -> 4.571428571 | AJ13: 4.571428571 | AK13: 4.571428571 | AL13: 4.571428571 | AM13: 4.571428571 | AN13: 4.571428571 | AO13: 4.571428571 | AP13: 4.571428571 | AU13: =Activity!F13 -> 1.275 | AV13: =AU13 -> 1.275 | AW13: =AV13 -> 1.275 | AX13: 1.275 | AY13: 1.275 | AZ13: 1.275 | BA13: 1.275 | BB13: 1.275 | BC13: 1.275 | BD13: 1.275 | BI13: =Activity!T13 -> 9.384 | BJ13: =BI13 -> 9.384 | BK13: =BJ13 -> 9.384 | BL13: 9.384 | BM13: 9.384 | BN13: 9.384 | BO13: 9.384 | BP13: 9.384 | BQ13: 9.384 | BR13: 9.384 | BW13: =Activity!AH13 -> 4.662857143 | BX13: =BW13 -> 4.662857143 | BY13: =BX13 -> 4.662857143 | BZ13: 4.662857143 | CA13: 4.662857143 | CB13: 4.662857143 | CC13: 4.662857143 | CD13: 4.662857143 | CE13: 4.662857143 | CF13: 4.662857143 | CK13: =Activity!G13 -> 1.3005 | CL13: =CK13 -> 1.3005 | CM13: 1.3005 | CN13: 1.3005 | CO13: 1.3005 | CP13: 1.3005 | CQ13: 1.3005 | CR13: 1.3005 | CS13: 1.3005 | CT13: 1.3005 | CY13: =Activity!U13 -> 9.57168 | CZ13: =CY13 -> 9.57168 | DA13: 9.57168 | DB13: 9.57168 | DC13: 9.57168 | DD13: 9.57168 | DE13: 9.57168 | DF13: 9.57168 | DG13: 9.57168 | DH13: 9.57168 | DM13: =Activity!AI13 -> 4.756114286 | DN13: =DM13 -> 4.756114286 | DO13: 4.756114286 | DP13: 4.756114286 | DQ13: 4.756114286 | DR13: 4.756114286 | DS13: 4.756114286 | DT13: 4.756114286 | DU13: 4.756114286 | DV13: 4.756114286 | EA13: =Activity!H13 -> 1.32651 | EB13: =EA13 -> 1.32651 | EC13: 1.32651 | ED13: 1.32651 | EE13: 1.32651 | EF13: 1.32651 | EG13: 1.32651 | EH13: 1.32651 | EI13: 1.32651 | EJ13: 1.32651 | EO13: =Activity!V13 -> 9.7631136 | EP13: =EO13 -> 9.7631136 | EQ13: 9.7631136 | ER13: 9.7631136 | ES13: 9.7631136 | ET13: 9.7631136 | EU13: 9.7631136 | EV13: 9.7631136 | EW13: 9.7631136 | EX13: 9.7631136 | FC13: =Activity!AJ13 -> 4.851236571 | FD13: =FC13 -> 4.851236571 | FE13: 4.851236571 | FF13: 4.851236571 | FG13: 4.851236571 | FH13: 4.851236571 | FI13: 4.851236571 | FJ13: 4.851236571 | FK13: 4.851236571 | FL13: 4.851236571 | FQ13: =Activity!I13 -> 1.3530402 | FR13: =FQ13 -> 1.3530402 | FS13: 1.3530402 | FT13: 1.3530402 | FU13: 1.3530402 | FV13: 1.3530402 | FW13: 1.3530402 | FX13: 1.3530402 | FY13: 1.3530402 | FZ13: 1.3530402 | GE13: =Activity!W13 -> 9.958375872 | GF13: =GE13 -> 9.958375872 | GG13: 9.958375872 | GH13: 9.958375872 | GI13: 9.958375872 | GJ13: 9.958375872 | GK13: 9.958375872 | GL13: 9.958375872 | GM13: 9.958375872 | GN13: 9.958375872 | GS13: =Activity!AK13 -> 4.948261303 | GT13: =GS13 -> 4.948261303 | GU13: 4.948261303 | GV13: 4.948261303 | GW13: 4.948261303 | GX13: 4.948261303 | GY13: 4.948261303 | GZ13: 4.948261303 | HA13: 4.948261303 | HB13: 4.948261303 | HG13: =Activity!J13 -> 1.380101004 | HH13: =HG13 -> 1.380101004 | HI13: 1.380101004 | HJ13: 1.380101004 | HK13: 1.380101004 | HL13: 1.380101004 | HM13: 1.380101004 | HN13: 1.380101004 | HO13: 1.380101004 | HP13: 1.380101004 | HU13: =Activity!X13 -> 10.15754339 | HV13: =HU13 -> 10.15754339 | HW13: 10.15754339 | HX13: 10.15754339 | HY13: 10.15754339 | HZ13: 10.15754339 | IA13: 10.15754339 | IB13: 10.15754339 | IC13: 10.15754339 | ID13: 10.15754339 | II13: =Activity!AL13 -> 5.047226529 | IJ13: =II13 -> 5.047226529 | IK13: 5.047226529 | IL13: 5.047226529 | IM13: 5.047226529 | IN13: 5.047226529 | IO13: 5.047226529 | IP13: 5.047226529 | IQ13: 5.047226529 | IR13: 5.047226529 | IW13: =Activity!K13 -> 1.407703024 | IX13: =IW13 -> 1.407703024 | IY13: 1.407703024 | IZ13: 1.407703024 | JA13: 1.407703024 | JB13: 1.407703024 | JC13: 1.407703024 | JD13: 1.407703024 | JE13: 1.407703024 | JF13: 1.407703024 | JK13: =Activity!Y13 -> 10.36069426 | JL13: =JK13 -> 10.36069426 | JM13: 10.36069426 | JN13: 10.36069426 | JO13: 10.36069426 | JP13: 10.36069426 | JQ13: 10.36069426 | JR13: 10.36069426 | JS13: 10.36069426 | JT13: 10.36069426 | JY13: =Activity!AM13 -> 5.148171059 | JZ13: =JY13 -> 5.148171059 | KA13: 5.148171059 | KB13: 5.148171059 | KC13: 5.148171059 | KD13: 5.148171059 | KE13: 5.148171059 | KF13: 5.148171059 | KG13: 5.148171059 | KH13: 5.148171059 | KM13: =Activity!L13 -> 1.435857085 | KN13: =KM13 -> 1.435857085 | KO13: 1.435857085 | KP13: 1.435857085 | KQ13: 1.435857085 | KR13: 1.435857085 | KS13: 1.435857085 | KT13: 1.435857085 | KU13: 1.435857085 | KV13: 1.435857085 | LA13: =Activity!Z13 -> 10.56790814 | LB13: =LA13 -> 10.56790814 | LC13: 10.56790814 | LD13: 10.56790814 | LE13: 10.56790814 | LF13: 10.56790814 | LG13: 10.56790814 | LH13: 10.56790814 | LI13: 10.56790814 | LJ13: 10.56790814 | LO13: =Activity!AN13 -> 5.251134481 | LP13: =LO13 -> 5.251134481 | LQ13: 5.251134481 | LR13: 5.251134481 | LS13: 5.251134481 | LT13: 5.251134481 | LU13: 5.251134481 | LV13: 5.251134481 | LW13: 5.251134481 | LX13: 5.251134481 | MC13: =Activity!M13 -> 1.464574226 | MD13: =MC13 -> 1.464574226 | ME13: 1.464574226 | MF13: 1.464574226 | MG13: 1.464574226 | MH13: 1.464574226 | MI13: 1.464574226 | MJ13: 1.464574226 | MK13: 1.464574226 | ML13: 1.464574226 | MQ13: =Activity!AA13 -> 10.77926631 | MR13: =MQ13 -> 10.77926631 | MS13: 10.77926631 | MT13: 10.77926631 | MU13: 10.77926631 | MV13: 10.77926631 | MW13: 10.77926631 | MX13: 10.77926631 | MY13: 10.77926631 | MZ13: 10.77926631 | NE13: =Activity!AO13 -> 5.35615717 | NF13: =NE13 -> 5.35615717 | NG13: 5.35615717 | NH13: 5.35615717 | NI13: 5.35615717 | NJ13: 5.35615717 | NK13: 5.35615717 | NL13: 5.35615717 | NM13: 5.35615717 | NN13: 5.35615717 | NS13: =Activity!N13 -> 1.493865711 | NT13: =NS13 -> 1.493865711 | NU13: 1.493865711 | NV13: 1.493865711 | NW13: 1.493865711 | NX13: 1.493865711 | NY13: 1.493865711 | NZ13: 1.493865711 | OA13: 1.493865711 | OB13: 1.493865711 | OG13: =Activity!AB13 -> 10.99485163 | OH13: =OG13 -> 10.99485163 | OI13: 10.99485163 | OJ13: 10.99485163 | OK13: 10.99485163 | OL13: 10.99485163 | OM13: 10.99485163 | ON13: 10.99485163 | OO13: 10.99485163 | OP13: 10.99485163 | OU13: =Activity!AP13 -> 5.463280314 | OV13: =OU13 -> 5.463280314 | OW13: 5.463280314 | OX13: 5.463280314 | OY13: 5.463280314 | OZ13: 5.463280314 | PA13: 5.463280314 | PB13: 5.463280314 | PC13: 5.463280314 | PD13: 5.463280314
E14: ^These values come from the activity sheet and are based on the increment and reduction calculations made on the "Impact of intervention" worksheet
A15: Stage - 1 Do nothing scenario
D17: Year 1 patients | AU17: Year 2 patients | CK17: Year 3 patients | EA17: Year 4 patients | FQ17: Year 5 patients | HG17: Year 6 patients | IW17: Year 7 patients | KM17: Year 8 patients | MC17: Year 9 patients | NS17: Year 10 patients
AG18: Note how costs are highest in yar 1 for the cohort of patients, and then taper off according to the assumed cost profile | AU18: Note how in the year 2 cohort there are obviously no patients found in year 1
E19: =B104 -> 16405.20366 | F19: =E19 -> 16405.20366 | G19: =F19 -> 16405.20366 | H19: 16405.20366 | I19: 16405.20366 | J19: 16405.20366 | K19: 16405.20366 | L19: 16405.20366 | M19: 16405.20366 | N19: 16405.20366 | S19: =P104 -> 13020.00291 | T19: =S19 -> 13020.00291 | U19: =T19 -> 13020.00291 | V19: 13020.00291 | W19: 13020.00291 | X19: 13020.00291 | Y19: 13020.00291 | Z19: 13020.00291 | AA19: 13020.00291 | AB19: 13020.00291 | AG19: =AD104 -> 13020.00291 | AH19: =AG19 -> 13020.00291 | AI19: =AH19 -> 13020.00291 | AJ19: 13020.00291 | AK19: 13020.00291 | AL19: 13020.00291 | AM19: 13020.00291 | AN19: 13020.00291 | AO19: 13020.00291 | AP19: 13020.00291 | AU19: =AR104 -> 16405.20366 | AV19: =AU19 -> 16405.20366 | AW19: =AV19 -> 16405.20366 | AX19: 16405.20366 | AY19: 16405.20366 | AZ19: 16405.20366 | BA19: 16405.20366 | BB19: 16405.20366 | BC19: 16405.20366 | BD19: 16405.20366 | BI19: =BF104 -> 13020.00291 | BJ19: =BI19 -> 13020.00291 | BK19: =BJ19 -> 13020.00291 | BL19: 13020.00291 | BM19: 13020.00291 | BN19: 13020.00291 | BO19: 13020.00291 | BP19: 13020.00291 | BQ19: 13020.00291 | BR19: 13020.00291 | BW19: =BT104 -> 13020.00291 | BX19: =BW19 -> 13020.00291 | BY19: =BX19 -> 13020.00291 | BZ19: 13020.00291 | CA19: 13020.00291 | CB19: 13020.00291 | CC19: 13020.00291 | CD19: 13020.00291 | CE19: 13020.00291 | CF19: 13020.00291 | CK19: =CH104 -> 16405.20366 | CL19: =CK19 -> 16405.20366 | CM19: =CL19 -> 16405.20366 | CN19: 16405.20366 | CO19: 16405.20366 | CP19: 16405.20366 | CQ19: 16405.20366 | CR19: 16405.20366 | CS19: 16405.20366 | CT19: 16405.20366 | CY19: =CV104 -> 13020.00291 | CZ19: =CY19 -> 13020.00291 | DA19: =CZ19 -> 13020.00291 | DB19: 13020.00291 | DC19: 13020.00291 | DD19: 13020.00291 | DE19: 13020.00291 | DF19: 13020.00291 | DG19: 13020.00291 | DH19: 13020.00291 | DM19: =DJ104 -> 13020.00291 | DN19: =DM19 -> 13020.00291 | DO19: =DN19 -> 13020.00291 | DP19: 13020.00291 | DQ19: 13020.00291 | DR19: 13020.00291 | DS19: 13020.00291 | DT19: 13020.00291 | DU19: 13020.00291 | DV19: 13020.00291 | EA19: =DX104 -> 16405.20366 | EB19: =EA19 -> 16405.20366 | EC19: =EB19 -> 16405.20366 | ED19: 16405.20366 | EE19: 16405.20366 | EF19: 16405.20366 | EG19: 16405.20366 | EH19: 16405.20366 | EI19: 16405.20366 | EJ19: 16405.20366 | EO19: =EL104 -> 13020.00291 | EP19: =EO19 -> 13020.00291 | EQ19: =EP19 -> 13020.00291 | ER19: 13020.00291 | ES19: 13020.00291 | ET19: 13020.00291 | EU19: 13020.00291 | EV19: 13020.00291 | EW19: 13020.00291 | EX19: 13020.00291 | FC19: =EZ104 -> 13020.00291 | FD19: =FC19 -> 13020.00291 | FE19: =FD19 -> 13020.00291 | FF19: 13020.00291 | FG19: 13020.00291 | FH19: 13020.00291 | FI19: 13020.00291 | FJ19: 13020.00291 | FK19: 13020.00291 | FL19: 13020.00291 | FQ19: =FN104 -> 16405.20366 | FR19: =FQ19 -> 16405.20366 | FS19: =FR19 -> 16405.20366 | FT19: 16405.20366 | FU19: 16405.20366 | FV19: 16405.20366 | FW19: 16405.20366 | FX19: 16405.20366 | FY19: 16405.20366 | FZ19: 16405.20366 | GE19: =GB104 -> 13020.00291 | GF19: =GE19 -> 13020.00291 | GG19: =GF19 -> 13020.00291 | GH19: 13020.00291 | GI19: 13020.00291 | GJ19: 13020.00291 | GK19: 13020.00291 | GL19: 13020.00291 | GM19: 13020.00291 | GN19: 13020.00291 | GS19: =GP104 -> 13020.00291 | GT19: =GS19 -> 13020.00291 | GU19: =GT19 -> 13020.00291 | GV19: 13020.00291 | GW19: 13020.00291 | GX19: 13020.00291 | GY19: 13020.00291 | GZ19: 13020.00291 | HA19: 13020.00291 | HB19: 13020.00291 | HG19: =HD104 -> 16405.20366 | HH19: =HG19 -> 16405.20366 | HI19: =HH19 -> 16405.20366 | HJ19: 16405.20366 | HK19: 16405.20366 | HL19: 16405.20366 | HM19: 16405.20366 | HN19: 16405.20366 | HO19: 16405.20366 | HP19: 16405.20366 | HU19: =HR104 -> 13020.00291 | HV19: =HU19 -> 13020.00291 | HW19: =HV19 -> 13020.00291 | HX19: 13020.00291 | HY19: 13020.00291 | HZ19: 13020.00291 | IA19: 13020.00291 | IB19: 13020.00291 | IC19: 13020.00291 | ID19: 13020.00291 | II19: =IF104 -> 13020.00291 | IJ19: =II19 -> 13020.00291 | IK19: =IJ19 -> 13020.00291 | IL19: 13020.00291 | IM19: 13020.00291 | IN19: 13020.00291 | IO19: 13020.00291 | IP19: 13020.00291 | IQ19: 13020.00291 | IR19: 13020.00291 | IW19: =IT104 -> 16405.20366 | IX19: =IW19 -> 16405.20366 | IY19: =IX19 -> 16405.20366 | IZ19: 16405.20366 | JA19: 16405.20366 | JB19: 16405.20366 | JC19: 16405.20366 | JD19: 16405.20366 | JE19: 16405.20366 | JF19: 16405.20366 | JK19: =JH104 -> 13020.00291 | JL19: =JK19 -> 13020.00291 | JM19: =JL19 -> 13020.00291 | JN19: 13020.00291 | JO19: 13020.00291 | JP19: 13020.00291 | JQ19: 13020.00291 | JR19: 13020.00291 | JS19: 13020.00291 | JT19: 13020.00291 | JY19: =JV104 -> 13020.00291 | JZ19: =JY19 -> 13020.00291 | KA19: =JZ19 -> 13020.00291 | KB19: 13020.00291 | KC19: 13020.00291 | KD19: 13020.00291 | KE19: 13020.00291 | KF19: 13020.00291 | KG19: 13020.00291 | KH19: 13020.00291 | KM19: =KJ104 -> 16405.20366 | KN19: =KM19 -> 16405.20366 | KO19: =KN19 -> 16405.20366 | KP19: 16405.20366 | KQ19: 16405.20366 | KR19: 16405.20366 | KS19: 16405.20366 | KT19: 16405.20366 | KU19: 16405.20366 | KV19: 16405.20366 | LA19: =KX104 -> 13020.00291 | LB19: =LA19 -> 13020.00291 | LC19: =LB19 -> 13020.00291 | LD19: 13020.00291 | LE19: 13020.00291 | LF19: 13020.00291 | LG19: 13020.00291 | LH19: 13020.00291 | LI19: 13020.00291 | LJ19: 13020.00291 | LO19: =LL104 -> 13020.00291 | LP19: =LO19 -> 13020.00291 | LQ19: =LP19 -> 13020.00291 | LR19: 13020.00291 | LS19: 13020.00291 | LT19: 13020.00291 | LU19: 13020.00291 | LV19: 13020.00291 | LW19: 13020.00291 | LX19: 13020.00291 | MC19: =LZ104 -> 16405.20366 | MD19: =MC19 -> 16405.20366 | ME19: =MD19 -> 16405.20366 | MF19: 16405.20366 | MG19: 16405.20366 | MH19: 16405.20366 | MI19: 16405.20366 | MJ19: 16405.20366 | MK19: 16405.20366 | ML19: 16405.20366 | MQ19: =MN104 -> 13020.00291 | MR19: =MQ19 -> 13020.00291 | MS19: =MR19 -> 13020.00291 | MT19: 13020.00291 | MU19: 13020.00291 | MV19: 13020.00291 | MW19: 13020.00291 | MX19: 13020.00291 | MY19: 13020.00291 | MZ19: 13020.00291 | NE19: =NB104 -> 13020.00291 | NF19: =NE19 -> 13020.00291 | NG19: =NF19 -> 13020.00291 | NH19: 13020.00291 | NI19: 13020.00291 | NJ19: 13020.00291 | NK19: 13020.00291 | NL19: 13020.00291 | NM19: 13020.00291 | NN19: 13020.00291 | NS19: =NP104 -> 16405.20366 | NT19: =NS19 -> 16405.20366 | NU19: =NT19 -> 16405.20366 | NV19: 16405.20366 | NW19: 16405.20366 | NX19: 16405.20366 | NY19: 16405.20366 | NZ19: 16405.20366 | OA19: 16405.20366 | OB19: 16405.20366 | OG19: =OD104 -> 13020.00291 | OH19: =OG19 -> 13020.00291 | OI19: =OH19 -> 13020.00291 | OJ19: 13020.00291 | OK19: 13020.00291 | OL19: 13020.00291 | OM19: 13020.00291 | ON19: 13020.00291 | OO19: 13020.00291 | OP19: 13020.00291 | OU19: =OR104 -> 13020.00291 | OV19: =OU19 -> 13020.00291 | OW19: =OV19 -> 13020.00291 | OX19: 13020.00291 | OY19: 13020.00291 | OZ19: 13020.00291 | PA19: 13020.00291 | PB19: 13020.00291 | PC19: 13020.00291 | PD19: 13020.00291
E20: =Start_year -> 2016 | F20: =E20+1 -> 2017 | G20: 2018 | H20: 2019 | I20: 2020 | J20: 2021 | K20: 2022 | L20: 2023 | M20: 2024 | N20: 2025 | S20: =Start_year -> 2016 | T20: =S20+1 -> 2017 | U20: 2018 | V20: 2019 | W20: 2020 | X20: 2021 | Y20: 2022 | Z20: 2023 | AA20: 2024 | AB20: 2025 | AG20: =Start_year+1 -> 2017 | AH20: =AG20+1 -> 2018 | AI20: =AH20+1 -> 2019 | AJ20: 2020 | AK20: 2021 | AL20: 2022 | AM20: 2023 | AN20: 2024 | AO20: 2025 | AP20: 2026 | AU20: =Start_year -> 2016 | AV20: =AU20+1 -> 2017 | AW20: =AV20+1 -> 2018 | AX20: 2019 | AY20: 2020 | AZ20: 2021 | BA20: 2022 | BB20: 2023 | BC20: 2024 | BD20: 2025 | BI20: =AU20 -> 2016 | BJ20: 2017 | BK20: 2018 | BL20: 2019 | BM20: 2020 | BN20: 2021 | BO20: 2022 | BP20: 2023 | BQ20: 2024 | BR20: 2025 | BW20: =BI20 -> 2016 | BX20: 2017 | BY20: 2018 | BZ20: 2019 | CA20: 2020 | CB20: 2021 | CC20: 2022 | CD20: 2023 | CE20: 2024 | CF20: 2025 | CK20: =Start_year -> 2016 | CL20: =CK20+1 -> 2017 | CM20: =CL20+1 -> 2018 | CN20: 2019 | CO20: 2020 | CP20: 2021 | CQ20: 2022 | CR20: 2023 | CS20: 2024 | CT20: 2025 | CY20: =CK20 -> 2016 | CZ20: 2017 | DA20: 2018 | DB20: 2019 | DC20: 2020 | DD20: 2021 | DE20: 2022 | DF20: 2023 | DG20: 2024 | DH20: 2025 | DM20: =CY20 -> 2016 | DN20: 2017 | DO20: 2018 | DP20: 2019 | DQ20: 2020 | DR20: 2021 | DS20: 2022 | DT20: 2023 | DU20: 2024 | DV20: 2025 | EA20: =Start_year -> 2016 | EB20: =EA20+1 -> 2017 | EC20: =EB20+1 -> 2018 | ED20: 2019 | EE20: 2020 | EF20: 2021 | EG20: 2022 | EH20: 2023 | EI20: 2024 | EJ20: 2025 | EO20: =EA20 -> 2016 | EP20: 2017 | EQ20: 2018 | ER20: 2019 | ES20: 2020 | ET20: 2021 | EU20: 2022 | EV20: 2023 | EW20: 2024 | EX20: 2025 | FC20: =EO20 -> 2016 | FD20: 2017 | FE20: 2018 | FF20: 2019 | FG20: 2020 | FH20: 2021 | FI20: 2022 | FJ20: 2023 | FK20: 2024 | FL20: 2025 | FQ20: =Start_year -> 2016 | FR20: =FQ20+1 -> 2017 | FS20: =FR20+1 -> 2018 | FT20: 2019 | FU20: 2020 | FV20: 2021 | FW20: 2022 | FX20: 2023 | FY20: 2024 | FZ20: 2025 | GE20: =FQ20 -> 2016 | GF20: 2017 | GG20: 2018 | GH20: 2019 | GI20: 2020 | GJ20: 2021 | GK20: 2022 | GL20: 2023 | GM20: 2024 | GN20: 2025 | GS20: =GE20 -> 2016 | GT20: 2017 | GU20: 2018 | GV20: 2019 | GW20: 2020 | GX20: 2021 | GY20: 2022 | GZ20: 2023 | HA20: 2024 | HB20: 2025 | HG20: =Start_year -> 2016 | HH20: =HG20+1 -> 2017 | HI20: =HH20+1 -> 2018 | HJ20: 2019 | HK20: 2020 | HL20: 2021 | HM20: 2022 | HN20: 2023 | HO20: 2024 | HP20: 2025 | HU20: =HG20 -> 2016 | HV20: 2017 | HW20: 2018 | HX20: 2019 | HY20: 2020 | HZ20: 2021 | IA20: 2022 | IB20: 2023 | IC20: 2024 | ID20: 2025 | II20: =HU20 -> 2016 | IJ20: 2017 | IK20: 2018 | IL20: 2019 | IM20: 2020 | IN20: 2021 | IO20: 2022 | IP20: 2023 | IQ20: 2024 | IR20: 2025 | IW20: =Start_year -> 2016 | IX20: =IW20+1 -> 2017 | IY20: =IX20+1 -> 2018 | IZ20: 2019 | JA20: 2020 | JB20: 2021 | JC20: 2022 | JD20: 2023 | JE20: 2024 | JF20: 2025 | JK20: =IW20 -> 2016 | JL20: 2017 | JM20: 2018 | JN20: 2019 | JO20: 2020 | JP20: 2021 | JQ20: 2022 | JR20: 2023 | JS20: 2024 | JT20: 2025 | JY20: =JK20 -> 2016 | JZ20: 2017 | KA20: 2018 | KB20: 2019 | KC20: 2020 | KD20: 2021 | KE20: 2022 | KF20: 2023 | KG20: 2024 | KH20: 2025 | KM20: =Start_year -> 2016 | KN20: =KM20+1 -> 2017 | KO20: =KN20+1 -> 2018 | KP20: 2019 | KQ20: 2020 | KR20: 2021 | KS20: 2022 | KT20: 2023 | KU20: 2024 | KV20: 2025 | LA20: =KM20 -> 2016 | LB20: 2017 | LC20: 2018 | LD20: 2019 | LE20: 2020 | LF20: 2021 | LG20: 2022 | LH20: 2023 | LI20: 2024 | LJ20: 2025 | LO20: =LA20 -> 2016 | LP20: 2017 | LQ20: 2018 | LR20: 2019 | LS20: 2020 | LT20: 2021 | LU20: 2022 | LV20: 2023 | LW20: 2024 | LX20: 2025 | MC20: =Start_year -> 2016 | MD20: =MC20+1 -> 2017 | ME20: =MD20+1 -> 2018 | MF20: 2019 | MG20: 2020 | MH20: 2021 | MI20: 2022 | MJ20: 2023 | MK20: 2024 | ML20: 2025 | MQ20: =MC20 -> 2016 | MR20: 2017 | MS20: 2018 | MT20: 2019 | MU20: 2020 | MV20: 2021 | MW20: 2022 | MX20: 2023 | MY20: 2024 | MZ20: 2025 | NE20: =MQ20 -> 2016 | NF20: 2017 | NG20: 2018 | NH20: 2019 | NI20: 2020 | NJ20: 2021 | NK20: 2022 | NL20: 2023 | NM20: 2024 | NN20: 2025 | NS20: =Start_year -> 2016 | NT20: =NS20+1 -> 2017 | NU20: =NT20+1 -> 2018 | NV20: 2019 | NW20: 2020 | NX20: 2021 | NY20: 2022 | NZ20: 2023 | OA20: 2024 | OB20: 2025 | OG20: =NS20 -> 2016 | OH20: 2017 | OI20: 2018 | OJ20: 2019 | OK20: 2020 | OL20: 2021 | OM20: 2022 | ON20: 2023 | OO20: 2024 | OP20: 2025 | OU20: =OG20 -> 2016 | OV20: 2017 | OW20: 2018 | OX20: 2019 | OY20: 2020 | OZ20: 2021 | PA20: 2022 | PB20: 2023 | PC20: 2024 | PD20: 2025
D21: Activity cost | E21: =E13*E12*E8 -> 5787.176122 | F21: =F13*F12*F8 -> 128.6039138 | G21: 128.6039138 | H21: 128.6039138 | I21: 64.30195691 | J21: 192.9058707 | K21: 0 | L21: 0 | M21: 0 | N21: 0 | S21: =S13*S12*S8 -> 33804.45735 | T21: =T13*T12*T8 -> 751.2101633 | U21: 751.2101633 | V21: 751.2101633 | W21: 375.6050816 | X21: 1126.815245 | Y21: 0 | Z21: 0 | AA21: 0 | AB21: 0 | AG21: =AG13*AG12*AG8 -> 16797.24589 | AH21: =AH13*AH12*AH8 -> 373.2721308 | AI21: 373.2721308 | AJ21: 373.2721308 | AK21: 186.6360654 | AL21: 559.9081962 | AM21: 0 | AN21: 0 | AO21: 0 | AP21: 0 | AU21: 0 | AV21: =AV13*AV12*AV8 -> 5902.919644 | AW21: =AW13*AW12*AW8 -> 131.1759921 | AX21: 131.1759921 | AY21: 131.1759921 | AZ21: 65.58799605 | BA21: 196.7639881 | BB21: 0 | BC21: 0 | BD21: 0 | BI21: 0 | BJ21: =BJ13*BJ12*BJ8 -> 34480.54649 | BK21: 766.2343665 | BL21: 766.2343665 | BM21: 766.2343665 | BN21: 383.1171833 | BO21: 1149.35155 | BP21: 0 | BQ21: 0 | BR21: 0 | BW21: 0 | BX21: =BX13*BX12*BX8 -> 17133.1908 | BY21: 380.7375734 | BZ21: 380.7375734 | CA21: 380.7375734 | CB21: 190.3687867 | CC21: 571.1063601 | CD21: 0 | CE21: 0 | CF21: 0 | CK21: 0 | CL21: 0 | CM21: =CM13*CM12*CM8 -> 6020.978037 | CN21: 133.7995119 | CO21: 133.7995119 | CP21: 133.7995119 | CQ21: 66.89975597 | CR21: 200.6992679 | CS21: 0 | CT21: 0 | CY21: 0 | CZ21: 0 | DA21: =DA13*DA12*DA8 -> 35170.15742 | DB21: =DB13*DB12*DB8 -> 781.5590539 | DC21: 781.5590539 | DD21: 781.5590539 | DE21: 390.7795269 | DF21: 1172.338581 | DG21: 0 | DH21: 0 | DM21: 0 | DN21: 0 | DO21: =DO13*DO12*DO8 -> 17475.85462 | DP21: =DP13*DP12*DP8 -> 388.3523249 | DQ21: 388.3523249 | DR21: 388.3523249 | DS21: 194.1761624 | DT21: 582.5284873 | DU21: 0 | DV21: 0 | EA21: 0 | EB21: 0 | EC21: 0 | ED21: =ED13*ED12*ED8 -> 6141.397598 | EE21: 136.4755022 | EF21: 136.4755022 | EG21: 136.4755022 | EH21: 68.23775109 | EI21: 204.7132533 | EJ21: 0 | EO21: 0 | EP21: 0 | EQ21: 0 | ER21: =ER13*ER12*ER8 -> 35873.56057 | ES21: 797.1902349 | ET21: 797.1902349 | EU21: 797.1902349 | EV21: 398.5951175 | EW21: 1195.785352 | EX21: 0 | FC21: 0 | FD21: 0 | FE21: 0 | FF21: =FF13*FF12*FF8 -> 17825.37171 | FG21: 396.1193714 | FH21: 396.1193714 | FI21: 396.1193714 | FJ21: 198.0596857 | FK21: 594.1790571 | FL21: 0 | FQ21: 0 | FR21: 0 | FS21: 0 | FT21: 0 | FU21: =FU13*FU12*FU8 -> 6264.22555 | FV21: 139.2050122 | FW21: 139.2050122 | FX21: 139.2050122 | FY21: 69.60250611 | FZ21: 208.8075183 | GE21: 0 | GF21: 0 | GG21: 0 | GH21: 0 | GI21: =GI13*GI12*GI8 -> 36591.03178 | GJ21: 813.1340396 | GK21: 813.1340396 | GL21: 813.1340396 | GM21: 406.5670198 | GN21: 1219.701059 | GS21: 0 | GT21: 0 | GU21: 0 | GV21: 0 | GW21: =GW13*GW12*GW8 -> 18181.87915 | GX21: 404.0417588 | GY21: 404.0417588 | GZ21: 404.0417588 | HA21: 202.0208794 | HB21: 606.0626382 | HG21: 0 | HH21: 0 | HI21: 0 | HJ21: 0 | HK21: 0 | HL21: =HL13*HL12*HL8 -> 6389.510061 | HM21: =HM13*HM12*HM8 -> 141.9891125 | HN21: =HN13*HN12*HN8 -> 141.9891125 | HO21: =HO13*HO12*HO8 -> 141.9891125 | HP21: =HP13*HP12*HP8 -> 70.99455623 | HU21: 0 | HV21: 0 | HW21: 0 | HX21: 0 | HY21: 0 | HZ21: =HZ13*HZ12*HZ8 -> 37322.85242 | IA21: =IA13*IA12*IA8 -> 829.3967204 | IB21: =IB13*IB12*IB8 -> 829.3967204 | IC21: =IC13*IC12*IC8 -> 829.3967204 | ID21: =ID13*ID12*ID8 -> 414.6983602 | II21: 0 | IJ21: 0 | IK21: 0 | IL21: 0 | IM21: 0 | IN21: =IN13*IN12*IN8 -> 18545.51673 | IO21: =IO13*IO12*IO8 -> 412.122594 | IP21: =IP13*IP12*IP8 -> 412.122594 | IQ21: =IQ13*IQ12*IQ8 -> 412.122594 | IR21: =IR13*IR12*IR8 -> 206.061297 | IW21: 0 | IX21: 0 | IY21: 0 | IZ21: 0 | JA21: 0 | JB21: 0 | JC21: =JC13*JC12*JC8 -> 6517.300262 | JD21: =JD13*JD12*JD8 -> 144.8288947 | JE21: =JE13*JE12*JE8 -> 144.8288947 | JF21: =JF13*JF12*JF8 -> 144.8288947 | JK21: 0 | JL21: 0 | JM21: 0 | JN21: 0 | JO21: 0 | JP21: 0 | JQ21: =JQ13*JQ12*JQ8 -> 38069.30947 | JR21: =JR13*JR12*JR8 -> 845.9846548 | JS21: =JS13*JS12*JS8 -> 845.9846548 | JT21: =JT13*JT12*JT8 -> 845.9846548 | JY21: 0 | JZ21: 0 | KA21: 0 | KB21: 0 | KC21: 0 | KD21: 0 | KE21: =KE13*KE12*KE8 -> 18916.42706 | KF21: =KF13*KF12*KF8 -> 420.3650459 | KG21: =KG13*KG12*KG8 -> 420.3650459 | KH21: =KH13*KH12*KH8 -> 420.3650459 | KM21: 0 | KN21: 0 | KO21: 0 | KP21: 0 | KQ21: 0 | KR21: 0 | KS21: 0 | KT21: =KT13*KT12*KT8 -> 6647.646267 | KU21: =KU13*KU12*KU8 -> 147.7254726 | KV21: =KV13*KV12*KV8 -> 147.7254726 | LA21: 0 | LB21: 0 | LC21: 0 | LD21: 0 | LE21: 0 | LF21: 0 | LG21: 0 | LH21: =LH13*LH12*LH8 -> 38830.69566 | LI21: =LI13*LI12*LI8 -> 862.9043479 | LJ21: =LJ13*LJ12*LJ8 -> 862.9043479 | LO21: 0 | LP21: 0 | LQ21: 0 | LR21: 0 | LS21: 0 | LT21: 0 | LU21: 0 | LV21: =LV13*LV12*LV8 -> 19294.75561 | LW21: =LW13*LW12*LW8 -> 428.7723468 | LX21: =LX13*LX12*LX8 -> 428.7723468 | MC21: 0 | MD21: 0 | ME21: 0 | MF21: 0 | MG21: 0 | MH21: 0 | MI21: 0 | MJ21: 0 | MK21: =MK13*MK12*MK8 -> 6780.599193 | ML21: =ML13*ML12*ML8 -> 150.6799821 | MQ21: 0 | MR21: 0 | MS21: 0 | MT21: 0 | MU21: 0 | MV21: 0 | MW21: 0 | MX21: 0 | MY21: =MY13*MY12*MY8 -> 39607.30957 | MZ21: =MZ13*MZ12*MZ8 -> 880.1624349 | NE21: 0 | NF21: 0 | NG21: 0 | NH21: 0 | NI21: 0 | NJ21: 0 | NK21: 0 | NL21: 0 | NM21: =NM13*NM12*NM8 -> 19680.65072 | NN21: =NN13*NN12*NN8 -> 437.3477937 | NS21: 0 | NT21: 0 | NU21: 0 | NV21: 0 | NW21: 0 | NX21: 0 | NY21: 0 | NZ21: 0 | OA21: 0 | OB21: =OB13*OB12*OB8 -> 6916.211177 | OG21: 0 | OH21: 0 | OI21: 0 | OJ21: 0 | OK21: 0 | OL21: 0 | OM21: 0 | ON21: 0 | OO21: 0 | OP21: =OP13*OP12*OP8 -> 40399.45576 | OU21: 0 | OV21: 0 | OW21: 0 | OX21: 0 | OY21: 0 | OZ21: 0 | PA21: 0 | PB21: 0 | PC21: 0 | PD21: =PD13*PD12*PD8 -> 20074.26373
D22: Recurrence cost | E22: =E13*E9*E19/10 -> 141.5911426 | F22: =F13*F9*F19/10 -> 141.5911426 | G22: 141.5911426 | H22: 141.5911426 | I22: 141.5911426 | J22: 141.5911426 | K22: 141.5911426 | L22: 141.5911426 | M22: 141.5911426 | N22: 141.5911426 | S22: =S13*S9*S19/10 -> 827.0720709 | T22: =T13*T9*T19/10 -> 827.0720709 | U22: 827.0720709 | V22: 827.0720709 | W22: 827.0720709 | X22: 827.0720709 | Y22: 827.0720709 | Z22: 827.0720709 | AA22: 827.0720709 | AB22: 827.0720709 | AG22: =AG13*AG9*AG19/10 -> 410.9674886 | AH22: =AH13*AH9*AH19/10 -> 410.9674886 | AI22: 410.9674886 | AJ22: 410.9674886 | AK22: 410.9674886 | AL22: 410.9674886 | AM22: 410.9674886 | AN22: 410.9674886 | AO22: 410.9674886 | AP22: 410.9674886 | AU22: 0 | AV22: =AV13*AV9*AV19/10 -> 144.4229654 | AW22: 144.4229654 | AX22: 144.4229654 | AY22: 144.4229654 | AZ22: 144.4229654 | BA22: 144.4229654 | BB22: 144.4229654 | BC22: 144.4229654 | BD22: 144.4229654 | BI22: 0 | BJ22: =BJ13*BJ9*BJ19/10 -> 843.6135123 | BK22: 843.6135123 | BL22: 843.6135123 | BM22: 843.6135123 | BN22: 843.6135123 | BO22: 843.6135123 | BP22: 843.6135123 | BQ22: 843.6135123 | BR22: 843.6135123 | BW22: 0 | BX22: =BX13*BX9*BX19/10 -> 419.1868384 | BY22: 419.1868384 | BZ22: 419.1868384 | CA22: 419.1868384 | CB22: 419.1868384 | CC22: 419.1868384 | CD22: 419.1868384 | CE22: 419.1868384 | CF22: 419.1868384 | CK22: 0 | CL22: 0 | CM22: =CM13*CM9*CM19/10 -> 147.3114247 | CN22: 147.3114247 | CO22: 147.3114247 | CP22: 147.3114247 | CQ22: 147.3114247 | CR22: 147.3114247 | CS22: 147.3114247 | CT22: 147.3114247 | CY22: 0 | CZ22: 0 | DA22: =DA13*DA9*DA19/10 -> 860.4857826 | DB22: 860.4857826 | DC22: 860.4857826 | DD22: 860.4857826 | DE22: 860.4857826 | DF22: 860.4857826 | DG22: 860.4857826 | DH22: 860.4857826 | DM22: 0 | DN22: 0 | DO22: =DO13*DO9*DO19/10 -> 427.5705752 | DP22: 427.5705752 | DQ22: 427.5705752 | DR22: 427.5705752 | DS22: 427.5705752 | DT22: 427.5705752 | DU22: 427.5705752 | DV22: 427.5705752 | EA22: 0 | EB22: 0 | EC22: 0 | ED22: =ED13*ED9*ED19/10 -> 150.2576532 | EE22: 150.2576532 | EF22: 150.2576532 | EG22: 150.2576532 | EH22: 150.2576532 | EI22: 150.2576532 | EJ22: 150.2576532 | EO22: 0 | EP22: 0 | EQ22: 0 | ER22: =ER13*ER9*ER19/10 -> 877.6954982 | ES22: 877.6954982 | ET22: 877.6954982 | EU22: 877.6954982 | EV22: 877.6954982 | EW22: 877.6954982 | EX22: 877.6954982 | FC22: 0 | FD22: 0 | FE22: 0 | FF22: =FF13*FF9*FF19/10 -> 436.1219867 | FG22: 436.1219867 | FH22: 436.1219867 | FI22: 436.1219867 | FJ22: 436.1219867 | FK22: 436.1219867 | FL22: 436.1219867 | FQ22: 0 | FR22: 0 | FS22: 0 | FT22: 0 | FU22: =FU13*FU9*FU19/10 -> 153.2628063 | FV22: 153.2628063 | FW22: 153.2628063 | FX22: 153.2628063 | FY22: 153.2628063 | FZ22: 153.2628063 | GE22: 0 | GF22: 0 | GG22: 0 | GH22: 0 | GI22: =GI13*GI9*GI19/10 -> 895.2494082 | GJ22: 895.2494082 | GK22: 895.2494082 | GL22: 895.2494082 | GM22: 895.2494082 | GN22: 895.2494082 | GS22: 0 | GT22: 0 | GU22: 0 | GV22: 0 | GW22: =GW13*GW9*GW19/10 -> 444.8444264 | GX22: 444.8444264 | GY22: 444.8444264 | GZ22: 444.8444264 | HA22: 444.8444264 | HB22: 444.8444264 | HG22: 0 | HH22: 0 | HI22: 0 | HJ22: 0 | HK22: 0 | HL22: =HL13*HL9*HL19/10 -> 156.3280624 | HM22: =HM13*HM9*HM19/10 -> 156.3280624 | HN22: =HN13*HN9*HN19/10 -> 156.3280624 | HO22: =HO13*HO9*HO19/10 -> 156.3280624 | HP22: =HP13*HP9*HP19/10 -> 156.3280624 | HU22: 0 | HV22: 0 | HW22: 0 | HX22: 0 | HY22: 0 | HZ22: =HZ13*HZ9*HZ19/10 -> 913.1543963 | IA22: =IA13*IA9*IA19/10 -> 913.1543963 | IB22: =IB13*IB9*IB19/10 -> 913.1543963 | IC22: =IC13*IC9*IC19/10 -> 913.1543963 | ID22: =ID13*ID9*ID19/10 -> 913.1543963 | II22: 0 | IJ22: 0 | IK22: 0 | IL22: 0 | IM22: 0 | IN22: =IN13*IN9*IN19/10 -> 453.7413149 | IO22: =IO13*IO9*IO19/10 -> 453.7413149 | IP22: =IP13*IP9*IP19/10 -> 453.7413149 | IQ22: =IQ13*IQ9*IQ19/10 -> 453.7413149 | IR22: =IR13*IR9*IR19/10 -> 453.7413149 | IW22: 0 | IX22: 0 | IY22: 0 | IZ22: 0 | JA22: 0 | JB22: 0 | JC22: =JC13*JC9*JC19/10 -> 159.4546237 | JD22: =JD13*JD9*JD19/10 -> 159.4546237 | JE22: =JE13*JE9*JE19/10 -> 159.4546237 | JF22: =JF13*JF9*JF19/10 -> 159.4546237 | JK22: 0 | JL22: 0 | JM22: 0 | JN22: 0 | JO22: 0 | JP22: 0 | JQ22: =JQ13*JQ9*JQ19/10 -> 931.4174843 | JR22: =JR13*JR9*JR19/10 -> 931.4174843 | JS22: =JS13*JS9*JS19/10 -> 931.4174843 | JT22: =JT13*JT9*JT19/10 -> 931.4174843 | JY22: 0 | JZ22: 0 | KA22: 0 | KB22: 0 | KC22: 0 | KD22: 0 | KE22: =KE13*KE9*KE19/10 -> 462.8161412 | KF22: =KF13*KF9*KF19/10 -> 462.8161412 | KG22: =KG13*KG9*KG19/10 -> 462.8161412 | KH22: =KH13*KH9*KH19/10 -> 462.8161412 | KM22: 0 | KN22: 0 | KO22: 0 | KP22: 0 | KQ22: 0 | KR22: 0 | KS22: 0 | KT22: =KT13*KT9*KT19/10 -> 162.6437161 | KU22: =KU13*KU9*KU19/10 -> 162.6437161 | KV22: =KV13*KV9*KV19/10 -> 162.6437161 | LA22: 0 | LB22: 0 | LC22: 0 | LD22: 0 | LE22: 0 | LF22: 0 | LG22: 0 | LH22: =LH13*LH9*LH19/10 -> 950.0458339 | LI22: =LI13*LI9*LI19/10 -> 950.0458339 | LJ22: =LJ13*LJ9*LJ19/10 -> 950.0458339 | LO22: 0 | LP22: 0 | LQ22: 0 | LR22: 0 | LS22: 0 | LT22: 0 | LU22: 0 | LV22: =LV13*LV9*LV19/10 -> 472.0724641 | LW22: =LW13*LW9*LW19/10 -> 472.0724641 | LX22: =LX13*LX9*LX19/10 -> 472.0724641 | MC22: 0 | MD22: 0 | ME22: 0 | MF22: 0 | MG22: 0 | MH22: 0 | MI22: 0 | MJ22: 0 | MK22: =MK13*MK9*MK19/10 -> 165.8965905 | ML22: =ML13*ML9*ML19/10 -> 165.8965905 | MQ22: 0 | MR22: 0 | MS22: 0 | MT22: 0 | MU22: 0 | MV22: 0 | MW22: 0 | MX22: 0 | MY22: =MY13*MY9*MY19/10 -> 969.0467506 | MZ22: =MZ13*MZ9*MZ19/10 -> 969.0467506 | NE22: 0 | NF22: 0 | NG22: 0 | NH22: 0 | NI22: 0 | NJ22: 0 | NK22: 0 | NL22: 0 | NM22: =NM13*NM9*NM19/10 -> 481.5139134 | NN22: =NN13*NN9*NN19/10 -> 481.5139134 | NS22: 0 | NT22: 0 | NU22: 0 | NV22: 0 | NW22: 0 | NX22: 0 | NY22: 0 | NZ22: 0 | OA22: 0 | OB22: =OB13*OB9*OB19/10 -> 169.2145223 | OG22: 0 | OH22: 0 | OI22: 0 | OJ22: 0 | OK22: 0 | OL22: 0 | OM22: 0 | ON22: 0 | OO22: 0 | OP22: =OP13*OP9*OP19/10 -> 988.4276856 | OU22: 0 | OV22: 0 | OW22: 0 | OX22: 0 | OY22: 0 | OZ22: 0 | PA22: 0 | PB22: 0 | PC22: 0 | PD22: =PD13*PD9*PD19/10 -> 491.1441916
D24: Total cost | E24: =SUM(E21:E22) -> 5928.767264 | F24: =SUM(F21:F22) -> 270.1950564 | G24: 270.1950564 | H24: 270.1950564 | I24: 205.8930995 | J24: 334.4970133 | K24: 141.5911426 | L24: 141.5911426 | M24: 141.5911426 | N24: 141.5911426 | S24: =SUM(S21:S22) -> 34631.52942 | T24: =SUM(T21:T22) -> 1578.282234 | U24: 1578.282234 | V24: 1578.282234 | W24: 1202.677153 | X24: 1953.887316 | Y24: 827.0720709 | Z24: 827.0720709 | AA24: 827.0720709 | AB24: 827.0720709 | AG24: =SUM(AG21:AG22) -> 17208.21338 | AH24: =SUM(AH21:AH22) -> 784.2396195 | AI24: 784.2396195 | AJ24: 784.2396195 | AK24: 597.603554 | AL24: 970.8756849 | AM24: 410.9674886 | AN24: 410.9674886 | AO24: 410.9674886 | AP24: 410.9674886 | AU24: =SUM(AU21:AU22) -> 0 | AV24: =SUM(AV21:AV22) -> 6047.34261 | AW24: 275.5989575 | AX24: 275.5989575 | AY24: 275.5989575 | AZ24: 210.0109615 | BA24: 341.1869536 | BB24: 144.4229654 | BC24: 144.4229654 | BD24: 144.4229654 | BI24: =SUM(BI21:BI22) -> 0 | BJ24: =SUM(BJ21:BJ22) -> 35324.16001 | BK24: 1609.847879 | BL24: 1609.847879 | BM24: 1609.847879 | BN24: 1226.730696 | BO24: 1992.965062 | BP24: 843.6135123 | BQ24: 843.6135123 | BR24: 843.6135123 | BW24: =SUM(BW21:BW22) -> 0 | BX24: =SUM(BX21:BX22) -> 17552.37764 | BY24: 799.9244118 | BZ24: 799.9244118 | CA24: 799.9244118 | CB24: 609.5556251 | CC24: 990.2931986 | CD24: 419.1868384 | CE24: 419.1868384 | CF24: 419.1868384 | CK24: =SUM(CK21:CK22) -> 0 | CL24: =SUM(CL21:CL22) -> 0 | CM24: 6168.289462 | CN24: 281.1109367 | CO24: 281.1109367 | CP24: 281.1109367 | CQ24: 214.2111807 | CR24: 348.0106926 | CS24: 147.3114247 | CT24: 147.3114247 | CY24: =SUM(CY21:CY22) -> 0 | CZ24: =SUM(CZ21:CZ22) -> 0 | DA24: 36030.64321 | DB24: 1642.044836 | DC24: 1642.044836 | DD24: 1642.044836 | DE24: 1251.265309 | DF24: 2032.824363 | DG24: 860.4857826 | DH24: 860.4857826 | DM24: =SUM(DM21:DM22) -> 0 | DN24: =SUM(DN21:DN22) -> 0 | DO24: 17903.4252 | DP24: 815.9229001 | DQ24: 815.9229001 | DR24: 815.9229001 | DS24: 621.7467376 | DT24: 1010.099063 | DU24: 427.5705752 | DV24: 427.5705752 | EA24: =SUM(EA21:EA22) -> 0 | EB24: =SUM(EB21:EB22) -> 0 | EC24: 0 | ED24: 6291.655251 | EE24: 286.7331554 | EF24: 286.7331554 | EG24: 286.7331554 | EH24: 218.4954043 | EI24: 354.9709065 | EJ24: 150.2576532 | EO24: =SUM(EO21:EO22) -> 0 | EP24: =SUM(EP21:EP22) -> 0 | EQ24: 0 | ER24: 36751.25607 | ES24: 1674.885733 | ET24: 1674.885733 | EU24: 1674.885733 | EV24: 1276.290616 | EW24: 2073.480851 | EX24: 877.6954982 | FC24: =SUM(FC21:FC22) -> 0 | FD24: =SUM(FD21:FD22) -> 0 | FE24: 0 | FF24: 18261.4937 | FG24: 832.2413581 | FH24: 832.2413581 | FI24: 832.2413581 | FJ24: 634.1816724 | FK24: 1030.301044 | FL24: 436.1219867 | FQ24: =SUM(FQ21:FQ22) -> 0 | FR24: =SUM(FR21:FR22) -> 0 | FS24: 0 | FT24: 0 | FU24: 6417.488356 | FV24: 292.4678185 | FW24: 292.4678185 | FX24: 292.4678185 | FY24: 222.8653124 | FZ24: 362.0703246 | GE24: =SUM(GE21:GE22) -> 0 | GF24: =SUM(GF21:GF22) -> 0 | GG24: 0 | GH24: 0 | GI24: 37486.28119 | GJ24: 1708.383448 | GK24: 1708.383448 | GL24: 1708.383448 | GM24: 1301.816428 | GN24: 2114.950468 | GS24: =SUM(GS21:GS22) -> 0 | GT24: =SUM(GT21:GT22) -> 0 | GU24: 0 | GV24: 0 | GW24: 18626.72357 | GX24: 848.8861852 | GY24: 848.8861852 | GZ24: 848.8861852 | HA24: 646.8653058 | HB24: 1050.907065 | HG24: =SUM(HG21:HG22) -> 0 | HH24: =SUM(HH21:HH22) -> 0 | HI24: 0 | HJ24: 0 | HK24: 0 | HL24: 6545.838123 | HM24: 298.3171749 | HN24: 298.3171749 | HO24: 298.3171749 | HP24: 227.3226186 | HU24: =SUM(HU21:HU22) -> 0 | HV24: =SUM(HV21:HV22) -> 0 | HW24: 0 | HX24: 0 | HY24: 0 | HZ24: 38236.00682 | IA24: 1742.551117 | IB24: 1742.551117 | IC24: 1742.551117 | ID24: 1327.852757 | II24: =SUM(II21:II22) -> 0 | IJ24: =SUM(IJ21:IJ22) -> 0 | IK24: 0 | IL24: 0 | IM24: 0 | IN24: 18999.25804 | IO24: 865.8639089 | IP24: 865.8639089 | IQ24: 865.8639089 | IR24: 659.8026119 | IW24: =SUM(IW21:IW22) -> 0 | IX24: =SUM(IX21:IX22) -> 0 | IY24: 0 | IZ24: 0 | JA24: 0 | JB24: 0 | JC24: 6676.754886 | JD24: 304.2835184 | JE24: 304.2835184 | JF24: 304.2835184 | JK24: =SUM(JK21:JK22) -> 0 | JL24: =SUM(JL21:JL22) -> 0 | JM24: 0 | JN24: 0 | JO24: 0 | JP24: 0 | JQ24: 39000.72695 | JR24: 1777.402139 | JS24: 1777.402139 | JT24: 1777.402139 | JY24: =SUM(JY21:JY22) -> 0 | JZ24: =SUM(JZ21:JZ22) -> 0 | KA24: 0 | KB24: 0 | KC24: 0 | KD24: 0 | KE24: 19379.24321 | KF24: 883.1811871 | KG24: 883.1811871 | KH24: 883.1811871 | KM24: =SUM(KM21:KM22) -> 0 | KN24: =SUM(KN21:KN22) -> 0 | KO24: 0 | KP24: 0 | KQ24: 0 | KR24: 0 | KS24: 0 | KT24: 6810.289983 | KU24: 310.3691887 | KV24: 310.3691887 | LA24: =SUM(LA21:LA22) -> 0 | LB24: =SUM(LB21:LB22) -> 0 | LC24: 0 | LD24: 0 | LE24: 0 | LF24: 0 | LG24: 0 | LH24: 39780.74149 | LI24: 1812.950182 | LJ24: 1812.950182 | LO24: =SUM(LO21:LO22) -> 0 | LP24: =SUM(LP21:LP22) -> 0 | LQ24: 0 | LR24: 0 | LS24: 0 | LT24: 0 | LU24: 0 | LV24: 19766.82807 | LW24: 900.8448109 | LX24: 900.8448109 | MC24: =SUM(MC21:MC22) -> 0 | MD24: =SUM(MD21:MD22) -> 0 | ME24: 0 | MF24: 0 | MG24: 0 | MH24: 0 | MI24: 0 | MJ24: 0 | MK24: 6946.495783 | ML24: 316.5765725 | MQ24: =SUM(MQ21:MQ22) -> 0 | MR24: =SUM(MR21:MR22) -> 0 | MS24: 0 | MT24: 0 | MU24: 0 | MV24: 0 | MW24: 0 | MX24: 0 | MY24: 40576.35632 | MZ24: 1849.209186 | NE24: =SUM(NE21:NE22) -> 0 | NF24: =SUM(NF21:NF22) -> 0 | NG24: 0 | NH24: 0 | NI24: 0 | NJ24: 0 | NK24: 0 | NL24: 0 | NM24: 20162.16463 | NN24: 918.8617071 | NS24: =SUM(NS21:NS22) -> 0 | NT24: =SUM(NT21:NT22) -> 0 | NU24: 0 | NV24: 0 | NW24: 0 | NX24: 0 | NY24: 0 | NZ24: 0 | OA24: 0 | OB24: 7085.425699 | OG24: =SUM(OG21:OG22) -> 0 | OH24: =SUM(OH21:OH22) -> 0 | OI24: 0 | OJ24: 0 | OK24: 0 | OL24: 0 | OM24: 0 | ON24: 0 | OO24: 0 | OP24: 41387.88345 | OU24: =SUM(OU21:OU22) -> 0 | OV24: =SUM(OV21:OV22) -> 0 | OW24: 0 | OX24: 0 | OY24: 0 | OZ24: 0 | PA24: 0 | PB24: 0 | PC24: 0 | PD24: 20565.40792
A26: Stage - 1 Do something scenario
D28: Year 1 patients
D29: Activity | E29: =Activity!E29 -> 1.25 | F29: =E29 -> 1.25 | G29: =F29 -> 1.25 | H29: 1.25 | I29: 1.25 | J29: 1.25 | K29: 1.25 | L29: 1.25 | M29: 1.25 | N29: 1.25 | S29: =Activity!S29 -> 13.8 | T29: =S29 -> 13.8 | U29: =T29 -> 13.8 | V29: 13.8 | W29: 13.8 | X29: 13.8 | Y29: 13.8 | Z29: 13.8 | AA29: 13.8 | AB29: 13.8 | AG29: =Activity!AG29 -> 4.571428571 | AH29: =AG29 -> 4.571428571 | AI29: =AH29 -> 4.571428571 | AJ29: 4.571428571 | AK29: 4.571428571 | AL29: 4.571428571 | AM29: 4.571428571 | AN29: 4.571428571 | AO29: 4.571428571 | AP29: 4.571428571 | AU29: =Activity!F29 -> 1.275 | AV29: =AU29 -> 1.275 | AW29: =AV29 -> 1.275 | AX29: 1.275 | AY29: 1.275 | AZ29: 1.275 | BA29: 1.275 | BB29: 1.275 | BC29: 1.275 | BD29: 1.275 | BI29: =Activity!T29 -> 13.984 | BJ29: =BI29 -> 13.984 | BK29: =BJ29 -> 13.984 | BL29: 13.984 | BM29: 13.984 | BN29: 13.984 | BO29: 13.984 | BP29: 13.984 | BQ29: 13.984 | BR29: 13.984 | BW29: =Activity!AH29 -> 4.662857143 | BX29: =BW29 -> 4.662857143 | BY29: =BX29 -> 4.662857143 | BZ29: 4.662857143 | CA29: 4.662857143 | CB29: 4.662857143 | CC29: 4.662857143 | CD29: 4.662857143 | CE29: 4.662857143 | CF29: 4.662857143 | CK29: =Activity!G29 -> 1.3005 | CL29: =CK29 -> 1.3005 | CM29: 1.3005 | CN29: 1.3005 | CO29: 1.3005 | CP29: 1.3005 | CQ29: 1.3005 | CR29: 1.3005 | CS29: 1.3005 | CT29: 1.3005 | CY29: =Activity!U29 -> 14.17168 | CZ29: =CY29 -> 14.17168 | DA29: 14.17168 | DB29: 14.17168 | DC29: 14.17168 | DD29: 14.17168 | DE29: 14.17168 | DF29: 14.17168 | DG29: 14.17168 | DH29: 14.17168 | DM29: =Activity!AI29 -> 4.756114286 | DN29: =DM29 -> 4.756114286 | DO29: 4.756114286 | DP29: 4.756114286 | DQ29: 4.756114286 | DR29: 4.756114286 | DS29: 4.756114286 | DT29: 4.756114286 | DU29: 4.756114286 | DV29: 4.756114286 | EA29: =Activity!H29 -> 1.32651 | EB29: =EA29 -> 1.32651 | EC29: 1.32651 | ED29: 1.32651 | EE29: 1.32651 | EF29: 1.32651 | EG29: 1.32651 | EH29: 1.32651 | EI29: 1.32651 | EJ29: 1.32651 | EO29: =Activity!V29 -> 14.3631136 | EP29: =EO29 -> 14.3631136 | EQ29: 14.3631136 | ER29: 14.3631136 | ES29: 14.3631136 | ET29: 14.3631136 | EU29: 14.3631136 | EV29: 14.3631136 | EW29: 14.3631136 | EX29: 14.3631136 | FC29: =Activity!AJ29 -> 4.851236571 | FD29: =FC29 -> 4.851236571 | FE29: 4.851236571 | FF29: 4.851236571 | FG29: 4.851236571 | FH29: 4.851236571 | FI29: 4.851236571 | FJ29: 4.851236571 | FK29: 4.851236571 | FL29: 4.851236571 | FQ29: =Activity!I29 -> 1.3530402 | FR29: =FQ29 -> 1.3530402 | FS29: 1.3530402 | FT29: 1.3530402 | FU29: 1.3530402 | FV29: 1.3530402 | FW29: 1.3530402 | FX29: 1.3530402 | FY29: 1.3530402 | FZ29: 1.3530402 | GE29: =Activity!W29 -> 14.55837587 | GF29: =GE29 -> 14.55837587 | GG29: 14.55837587 | GH29: 14.55837587 | GI29: 14.55837587 | GJ29: 14.55837587 | GK29: 14.55837587 | GL29: 14.55837587 | GM29: 14.55837587 | GN29: 14.55837587 | GS29: =Activity!AK29 -> 4.948261303 | GT29: =GS29 -> 4.948261303 | GU29: 4.948261303 | GV29: 4.948261303 | GW29: 4.948261303 | GX29: 4.948261303 | GY29: 4.948261303 | GZ29: 4.948261303 | HA29: 4.948261303 | HB29: 4.948261303 | HG29: =Activity!J29 -> 1.380101004 | HH29: =HG29 -> 1.380101004 | HI29: 1.380101004 | HJ29: 1.380101004 | HK29: 1.380101004 | HL29: 1.380101004 | HM29: 1.380101004 | HN29: 1.380101004 | HO29: 1.380101004 | HP29: 1.380101004 | HU29: =Activity!X29 -> 14.75754339 | HV29: =HU29 -> 14.75754339 | HW29: 14.75754339 | HX29: 14.75754339 | HY29: 14.75754339 | HZ29: 14.75754339 | IA29: 14.75754339 | IB29: 14.75754339 | IC29: 14.75754339 | ID29: 14.75754339 | II29: =Activity!AL29 -> 5.047226529 | IJ29: =II29 -> 5.047226529 | IK29: 5.047226529 | IL29: 5.047226529 | IM29: 5.047226529 | IN29: 5.047226529 | IO29: 5.047226529 | IP29: 5.047226529 | IQ29: 5.047226529 | IR29: 5.047226529 | IW29: =Activity!K29 -> 1.407703024 | IX29: =IW29 -> 1.407703024 | IY29: 1.407703024 | IZ29: 1.407703024 | JA29: 1.407703024 | JB29: 1.407703024 | JC29: 1.407703024 | JD29: 1.407703024 | JE29: 1.407703024 | JF29: 1.407703024 | JK29: =Activity!Y29 -> 14.96069426 | JL29: =JK29 -> 14.96069426 | JM29: 14.96069426 | JN29: 14.96069426 | JO29: 14.96069426 | JP29: 14.96069426 | JQ29: 14.96069426 | JR29: 14.96069426 | JS29: 14.96069426 | JT29: 14.96069426 | JY29: =Activity!AM29 -> 5.148171059 | JZ29: =JY29 -> 5.148171059 | KA29: 5.148171059 | KB29: 5.148171059 | KC29: 5.148171059 | KD29: 5.148171059 | KE29: 5.148171059 | KF29: 5.148171059 | KG29: 5.148171059 | KH29: 5.148171059 | KM29: =Activity!L29 -> 1.435857085 | KN29: =KM29 -> 1.435857085 | KO29: 1.435857085 | KP29: 1.435857085 | KQ29: 1.435857085 | KR29: 1.435857085 | KS29: 1.435857085 | KT29: 1.435857085 | KU29: 1.435857085 | KV29: 1.435857085 | LA29: =Activity!Z29 -> 15.16790814 | LB29: =LA29 -> 15.16790814 | LC29: 15.16790814 | LD29: 15.16790814 | LE29: 15.16790814 | LF29: 15.16790814 | LG29: 15.16790814 | LH29: 15.16790814 | LI29: 15.16790814 | LJ29: 15.16790814 | LO29: =Activity!AN29 -> 5.251134481 | LP29: =LO29 -> 5.251134481 | LQ29: 5.251134481 | LR29: 5.251134481 | LS29: 5.251134481 | LT29: 5.251134481 | LU29: 5.251134481 | LV29: 5.251134481 | LW29: 5.251134481 | LX29: 5.251134481 | MC29: =Activity!M29 -> 1.464574226 | MD29: =MC29 -> 1.464574226 | ME29: 1.464574226 | MF29: 1.464574226 | MG29: 1.464574226 | MH29: 1.464574226 | MI29: 1.464574226 | MJ29: 1.464574226 | MK29: 1.464574226 | ML29: 1.464574226 | MQ29: =Activity!AA29 -> 15.37926631 | MR29: =MQ29 -> 15.37926631 | MS29: 15.37926631 | MT29: 15.37926631 | MU29: 15.37926631 | MV29: 15.37926631 | MW29: 15.37926631 | MX29: 15.37926631 | MY29: 15.37926631 | MZ29: 15.37926631 | NE29: =Activity!AO29 -> 5.35615717 | NF29: =NE29 -> 5.35615717 | NG29: 5.35615717 | NH29: 5.35615717 | NI29: 5.35615717 | NJ29: 5.35615717 | NK29: 5.35615717 | NL29: 5.35615717 | NM29: 5.35615717 | NN29: 5.35615717 | NS29: =Activity!N29 -> 1.493865711 | NT29: =NS29 -> 1.493865711 | NU29: 1.493865711 | NV29: 1.493865711 | NW29: 1.493865711 | NX29: 1.493865711 | NY29: 1.493865711 | NZ29: 1.493865711 | OA29: 1.493865711 | OB29: 1.493865711 | OG29: =Activity!AB29 -> 15.59485163 | OH29: =OG29 -> 15.59485163 | OI29: 15.59485163 | OJ29: 15.59485163 | OK29: 15.59485163 | OL29: 15.59485163 | OM29: 15.59485163 | ON29: 15.59485163 | OO29: 15.59485163 | OP29: 15.59485163 | OU29: =Activity!AP29 -> 5.463280314 | OV29: =OU29 -> 5.463280314 | OW29: 5.463280314 | OX29: 5.463280314 | OY29: 5.463280314 | OZ29: 5.463280314 | PA29: 5.463280314 | PB29: 5.463280314 | PC29: 5.463280314 | PD29: 5.463280314
E31: =Start_year -> 2016 | F31: =E31+1 -> 2017 | G31: 2018 | H31: 2019 | I31: 2020 | J31: 2021 | K31: 2022 | L31: 2023 | M31: 2024 | N31: 2025 | S31: =Start_year -> 2016 | T31: =S31+1 -> 2017 | U31: 2018 | V31: 2019 | W31: 2020 | X31: 2021 | Y31: 2022 | Z31: 2023 | AA31: 2024 | AB31: 2025 | AG31: =Start_year+1 -> 2017 | AH31: =AG31+1 -> 2018 | AI31: =AH31+1 -> 2019 | AJ31: 2020 | AK31: 2021 | AL31: 2022 | AM31: 2023 | AN31: 2024 | AO31: 2025 | AP31: 2026 | AU31: =Start_year -> 2016 | AV31: =AU31+1 -> 2017 | AW31: =AV31+1 -> 2018 | AX31: 2019 | AY31: 2020 | AZ31: 2021 | BA31: 2022 | BB31: 2023 | BC31: 2024 | BD31: 2025 | BI31: =AU31 -> 2016 | BJ31: 2017 | BK31: 2018 | BL31: 2019 | BM31: 2020 | BN31: 2021 | BO31: 2022 | BP31: 2023 | BQ31: 2024 | BR31: 2025 | BW31: =BI31 -> 2016 | BX31: 2017 | BY31: 2018 | BZ31: 2019 | CA31: 2020 | CB31: 2021 | CC31: 2022 | CD31: 2023 | CE31: 2024 | CF31: 2025 | CK31: =Start_year -> 2016 | CL31: =CK31+1 -> 2017 | CM31: =CL31+1 -> 2018 | CN31: 2019 | CO31: 2020 | CP31: 2021 | CQ31: 2022 | CR31: 2023 | CS31: 2024 | CT31: 2025 | CY31: =CK31 -> 2016 | CZ31: 2017 | DA31: 2018 | DB31: 2019 | DC31: 2020 | DD31: 2021 | DE31: 2022 | DF31: 2023 | DG31: 2024 | DH31: 2025 | DM31: =CY31 -> 2016 | DN31: 2017 | DO31: 2018 | DP31: 2019 | DQ31: 2020 | DR31: 2021 | DS31: 2022 | DT31: 2023 | DU31: 2024 | DV31: 2025 | EA31: =Start_year -> 2016 | EB31: =EA31+1 -> 2017 | EC31: =EB31+1 -> 2018 | ED31: 2019 | EE31: 2020 | EF31: 2021 | EG31: 2022 | EH31: 2023 | EI31: 2024 | EJ31: 2025 | EO31: =EA31 -> 2016 | EP31: 2017 | EQ31: 2018 | ER31: 2019 | ES31: 2020 | ET31: 2021 | EU31: 2022 | EV31: 2023 | EW31: 2024 | EX31: 2025 | FC31: =EO31 -> 2016 | FD31: 2017 | FE31: 2018 | FF31: 2019 | FG31: 2020 | FH31: 2021 | FI31: 2022 | FJ31: 2023 | FK31: 2024 | FL31: 2025 | FQ31: =Start_year -> 2016 | FR31: =FQ31+1 -> 2017 | FS31: =FR31+1 -> 2018 | FT31: 2019 | FU31: 2020 | FV31: 2021 | FW31: 2022 | FX31: 2023 | FY31: 2024 | FZ31: 2025 | GE31: =FQ31 -> 2016 | GF31: 2017 | GG31: 2018 | GH31: 2019 | GI31: 2020 | GJ31: 2021 | GK31: 2022 | GL31: 2023 | GM31: 2024 | GN31: 2025 | GS31: =GE31 -> 2016 | GT31: 2017 | GU31: 2018 | GV31: 2019 | GW31: 2020 | GX31: 2021 | GY31: 2022 | GZ31: 2023 | HA31: 2024 | HB31: 2025 | HG31: =Start_year -> 2016 | HH31: =HG31+1 -> 2017 | HI31: =HH31+1 -> 2018 | HJ31: 2019 | HK31: 2020 | HL31: 2021 | HM31: 2022 | HN31: 2023 | HO31: 2024 | HP31: 2025 | HU31: =HG31 -> 2016 | HV31: 2017 | HW31: 2018 | HX31: 2019 | HY31: 2020 | HZ31: 2021 | IA31: 2022 | IB31: 2023 | IC31: 2024 | ID31: 2025 | II31: =HU31 -> 2016 | IJ31: 2017 | IK31: 2018 | IL31: 2019 | IM31: 2020 | IN31: 2021 | IO31: 2022 | IP31: 2023 | IQ31: 2024 | IR31: 2025 | IW31: =Start_year -> 2016 | IX31: =IW31+1 -> 2017 | IY31: =IX31+1 -> 2018 | IZ31: 2019 | JA31: 2020 | JB31: 2021 | JC31: 2022 | JD31: 2023 | JE31: 2024 | JF31: 2025 | JK31: =IW31 -> 2016 | JL31: 2017 | JM31: 2018 | JN31: 2019 | JO31: 2020 | JP31: 2021 | JQ31: 2022 | JR31: 2023 | JS31: 2024 | JT31: 2025 | JY31: =JK31 -> 2016 | JZ31: 2017 | KA31: 2018 | KB31: 2019 | KC31: 2020 | KD31: 2021 | KE31: 2022 | KF31: 2023 | KG31: 2024 | KH31: 2025 | KM31: =Start_year -> 2016 | KN31: =KM31+1 -> 2017 | KO31: =KN31+1 -> 2018 | KP31: 2019 | KQ31: 2020 | KR31: 2021 | KS31: 2022 | KT31: 2023 | KU31: 2024 | KV31: 2025 | LA31: =KM31 -> 2016 | LB31: 2017 | LC31: 2018 | LD31: 2019 | LE31: 2020 | LF31: 2021 | LG31: 2022 | LH31: 2023 | LI31: 2024 | LJ31: 2025 | LO31: =LA31 -> 2016 | LP31: 2017 | LQ31: 2018 | LR31: 2019 | LS31: 2020 | LT31: 2021 | LU31: 2022 | LV31: 2023 | LW31: 2024 | LX31: 2025 | MC31: =Start_year -> 2016 | MD31: =MC31+1 -> 2017 | ME31: =MD31+1 -> 2018 | MF31: 2019 | MG31: 2020 | MH31: 2021 | MI31: 2022 | MJ31: 2023 | MK31: 2024 | ML31: 2025 | MQ31: =MC31 -> 2016 | MR31: 2017 | MS31: 2018 | MT31: 2019 | MU31: 2020 | MV31: 2021 | MW31: 2022 | MX31: 2023 | MY31: 2024 | MZ31: 2025 | NE31: =MQ31 -> 2016 | NF31: 2017 | NG31: 2018 | NH31: 2019 | NI31: 2020 | NJ31: 2021 | NK31: 2022 | NL31: 2023 | NM31: 2024 | NN31: 2025 | NS31: =Start_year -> 2016 | NT31: =NS31+1 -> 2017 | NU31: =NT31+1 -> 2018 | NV31: 2019 | NW31: 2020 | NX31: 2021 | NY31: 2022 | NZ31: 2023 | OA31: 2024 | OB31: 2025 | OG31: =NS31 -> 2016 | OH31: 2017 | OI31: 2018 | OJ31: 2019 | OK31: 2020 | OL31: 2021 | OM31: 2022 | ON31: 2023 | OO31: 2024 | OP31: 2025 | OU31: =OG31 -> 2016 | OV31: 2017 | OW31: 2018 | OX31: 2019 | OY31: 2020 | OZ31: 2021 | PA31: 2022 | PB31: 2023 | PC31: 2024 | PD31: 2025
D32: Activity cost | E32: =E29*E12*E8 -> 5787.176122 | F32: =F29*F12*F8 -> 128.6039138 | G32: 128.6039138 | H32: 128.6039138 | I32: 64.30195691 | J32: 192.9058707 | K32: 0 | L32: 0 | M32: 0 | N32: 0 | S32: =S29*S12*S8 -> 50706.68602 | T32: =T29*T12*T8 -> 1126.815245 | U32: 1126.815245 | V32: 1126.815245 | W32: 563.4076224 | X32: 1690.222867 | Y32: 0 | Z32: 0 | AA32: 0 | AB32: 0 | AG32: =AG29*AG12*AG8 -> 16797.24589 | AH32: =AH29*AH12*AH8 -> 373.2721308 | AI32: 373.2721308 | AJ32: 373.2721308 | AK32: 186.6360654 | AL32: 559.9081962 | AM32: 0 | AN32: 0 | AO32: 0 | AP32: 0 | AU32: 0 | AV32: =AV29*AV12*AV8 -> 5902.919644 | AW32: 131.1759921 | AX32: 131.1759921 | AY32: 131.1759921 | AZ32: 65.58799605 | BA32: 196.7639881 | BB32: 0 | BC32: 0 | BD32: 0 | BI32: 0 | BJ32: =BJ29*BJ12*BJ8 -> 51382.77517 | BK32: 1141.839448 | BL32: 1141.839448 | BM32: 1141.839448 | BN32: 570.9197241 | BO32: 1712.759172 | BP32: 0 | BQ32: 0 | BR32: 0 | BW32: 0 | BX32: =BX29*BX12*BX8 -> 17133.1908 | BY32: 380.7375734 | BZ32: 380.7375734 | CA32: 380.7375734 | CB32: 190.3687867 | CC32: 571.1063601 | CD32: 0 | CE32: 0 | CF32: 0 | CK32: 0 | CL32: 0 | CM32: =CM29*CM12*CM8 -> 6020.978037 | CN32: 133.7995119 | CO32: 133.7995119 | CP32: 133.7995119 | CQ32: 66.89975597 | CR32: 200.6992679 | CS32: 0 | CT32: 0 | CY32: 0 | CZ32: 0 | DA32: =DA29*DA12*DA8 -> 52072.3861 | DB32: 1157.164135 | DC32: 1157.164135 | DD32: 1157.164135 | DE32: 578.5820677 | DF32: 1735.746203 | DG32: 0 | DH32: 0 | DM32: 0 | DN32: 0 | DO32: =DO29*DO12*DO8 -> 17475.85462 | DP32: 388.3523249 | DQ32: 388.3523249 | DR32: 388.3523249 | DS32: 194.1761624 | DT32: 582.5284873 | DU32: 0 | DV32: 0 | EA32: 0 | EB32: 0 | EC32: 0 | ED32: =ED29*ED12*ED8 -> 6141.397598 | EE32: 136.4755022 | EF32: 136.4755022 | EG32: 136.4755022 | EH32: 68.23775109 | EI32: 204.7132533 | EJ32: 0 | EO32: 0 | EP32: 0 | EQ32: 0 | ER32: =ER29*ER12*ER8 -> 52775.78925 | ES32: 1172.795317 | ET32: 1172.795317 | EU32: 1172.795317 | EV32: 586.3976583 | EW32: 1759.192975 | EX32: 0 | FC32: 0 | FD32: 0 | FE32: 0 | FF32: =FF29*FF12*FF8 -> 17825.37171 | FG32: 396.1193714 | FH32: 396.1193714 | FI32: 396.1193714 | FJ32: 198.0596857 | FK32: 594.1790571 | FL32: 0 | FQ32: 0 | FR32: 0 | FS32: 0 | FT32: 0 | FU32: =FU29*FU12*FU8 -> 6264.22555 | FV32: 139.2050122 | FW32: 139.2050122 | FX32: 139.2050122 | FY32: 69.60250611 | FZ32: 208.8075183 | GE32: 0 | GF32: 0 | GG32: 0 | GH32: 0 | GI32: =GI29*GI12*GI8 -> 53493.26046 | GJ32: 1188.739121 | GK32: 1188.739121 | GL32: 1188.739121 | GM32: 594.3695606 | GN32: 1783.108682 | GS32: 0 | GT32: 0 | GU32: 0 | GV32: 0 | GW32: =GW29*GW12*GW8 -> 18181.87915 | GX32: 404.0417588 | GY32: 404.0417588 | GZ32: 404.0417588 | HA32: 202.0208794 | HB32: 606.0626382 | HG32: 0 | HH32: 0 | HI32: 0 | HJ32: 0 | HK32: 0 | HL32: =HL29*HL12*HL8 -> 6389.510061 | HM32: =HM29*HM12*HM8 -> 141.9891125 | HN32: =HN29*HN12*HN8 -> 141.9891125 | HO32: =HO29*HO12*HO8 -> 141.9891125 | HP32: =HP29*HP12*HP8 -> 70.99455623 | HU32: 0 | HV32: 0 | HW32: 0 | HX32: 0 | HY32: 0 | HZ32: =HZ29*HZ12*HZ8 -> 54225.08109 | IA32: =IA29*IA12*IA8 -> 1205.001802 | IB32: =IB29*IB12*IB8 -> 1205.001802 | IC32: =IC29*IC12*IC8 -> 1205.001802 | ID32: =ID29*ID12*ID8 -> 602.500901 | II32: 0 | IJ32: 0 | IK32: 0 | IL32: 0 | IM32: 0 | IN32: =IN29*IN12*IN8 -> 18545.51673 | IO32: =IO29*IO12*IO8 -> 412.122594 | IP32: =IP29*IP12*IP8 -> 412.122594 | IQ32: =IQ29*IQ12*IQ8 -> 412.122594 | IR32: =IR29*IR12*IR8 -> 206.061297 | IW32: 0 | IX32: 0 | IY32: 0 | IZ32: 0 | JA32: 0 | JB32: 0 | JC32: =JC29*JC12*JC8 -> 6517.300262 | JD32: =JD29*JD12*JD8 -> 144.8288947 | JE32: =JE29*JE12*JE8 -> 144.8288947 | JF32: =JF29*JF12*JF8 -> 144.8288947 | JK32: 0 | JL32: 0 | JM32: 0 | JN32: 0 | JO32: 0 | JP32: 0 | JQ32: =JQ29*JQ12*JQ8 -> 54971.53814 | JR32: =JR29*JR12*JR8 -> 1221.589736 | JS32: =JS29*JS12*JS8 -> 1221.589736 | JT32: =JT29*JT12*JT8 -> 1221.589736 | JY32: 0 | JZ32: 0 | KA32: 0 | KB32: 0 | KC32: 0 | KD32: 0 | KE32: =KE29*KE12*KE8 -> 18916.42706 | KF32: =KF29*KF12*KF8 -> 420.3650459 | KG32: =KG29*KG12*KG8 -> 420.3650459 | KH32: =KH29*KH12*KH8 -> 420.3650459 | KM32: 0 | KN32: 0 | KO32: 0 | KP32: 0 | KQ32: 0 | KR32: 0 | KS32: 0 | KT32: =KT29*KT12*KT8 -> 6647.646267 | KU32: =KU29*KU12*KU8 -> 147.7254726 | KV32: =KV29*KV12*KV8 -> 147.7254726 | LA32: 0 | LB32: 0 | LC32: 0 | LD32: 0 | LE32: 0 | LF32: 0 | LG32: 0 | LH32: =LH29*LH12*LH8 -> 55732.92433 | LI32: =LI29*LI12*LI8 -> 1238.50943 | LJ32: =LJ29*LJ12*LJ8 -> 1238.50943 | LO32: 0 | LP32: 0 | LQ32: 0 | LR32: 0 | LS32: 0 | LT32: 0 | LU32: 0 | LV32: =LV29*LV12*LV8 -> 19294.75561 | LW32: =LW29*LW12*LW8 -> 428.7723468 | LX32: =LX29*LX12*LX8 -> 428.7723468 | MC32: 0 | MD32: 0 | ME32: 0 | MF32: 0 | MG32: 0 | MH32: 0 | MI32: 0 | MJ32: 0 | MK32: =MK29*MK12*MK8 -> 6780.599193 | ML32: =ML29*ML12*ML8 -> 150.6799821 | MQ32: 0 | MR32: 0 | MS32: 0 | MT32: 0 | MU32: 0 | MV32: 0 | MW32: 0 | MX32: 0 | MY32: =MY29*MY12*MY8 -> 56509.53824 | MZ32: =MZ29*MZ12*MZ8 -> 1255.767517 | NE32: 0 | NF32: 0 | NG32: 0 | NH32: 0 | NI32: 0 | NJ32: 0 | NK32: 0 | NL32: 0 | NM32: =NM29*NM12*NM8 -> 19680.65072 | NN32: =NN29*NN12*NN8 -> 437.3477937 | NS32: 0 | NT32: 0 | NU32: 0 | NV32: 0 | NW32: 0 | NX32: 0 | NY32: 0 | NZ32: 0 | OA32: 0 | OB32: =OB29*OB12*OB8 -> 6916.211177 | OG32: 0 | OH32: 0 | OI32: 0 | OJ32: 0 | OK32: 0 | OL32: 0 | OM32: 0 | ON32: 0 | OO32: 0 | OP32: =OP29*OP12*OP8 -> 57301.68443 | OU32: 0 | OV32: 0 | OW32: 0 | OX32: 0 | OY32: 0 | OZ32: 0 | PA32: 0 | PB32: 0 | PC32: 0 | PD32: =PD29*PD12*PD8 -> 20074.26373
D33: Recurrence cost | E33: =E13*E9*E19/10 -> 141.5911426 | F33: =F13*F9*F19/10 -> 141.5911426 | G33: 141.5911426 | H33: 141.5911426 | I33: 141.5911426 | J33: 141.5911426 | K33: 141.5911426 | L33: 141.5911426 | M33: 141.5911426 | N33: 141.5911426 | S33: =S13*S9*S19/10 -> 827.0720709 | T33: =T13*T9*T19/10 -> 827.0720709 | U33: 827.0720709 | V33: 827.0720709 | W33: 827.0720709 | X33: 827.0720709 | Y33: 827.0720709 | Z33: 827.0720709 | AA33: 827.0720709 | AB33: 827.0720709 | AG33: =AG13*AG9*AG19/10 -> 410.9674886 | AH33: =AH13*AH9*AH19/10 -> 410.9674886 | AI33: 410.9674886 | AJ33: 410.9674886 | AK33: 410.9674886 | AL33: 410.9674886 | AM33: 410.9674886 | AN33: 410.9674886 | AO33: 410.9674886 | AP33: 410.9674886 | AU33: 0 | AV33: =AV13*AV9*AV19/10 -> 144.4229654 | AW33: 144.4229654 | AX33: 144.4229654 | AY33: 144.4229654 | AZ33: 144.4229654 | BA33: 144.4229654 | BB33: 144.4229654 | BC33: 144.4229654 | BD33: 144.4229654 | BI33: 0 | BJ33: =BJ13*BJ9*BJ19/10 -> 843.6135123 | BK33: 843.6135123 | BL33: 843.6135123 | BM33: 843.6135123 | BN33: 843.6135123 | BO33: 843.6135123 | BP33: 843.6135123 | BQ33: 843.6135123 | BR33: 843.6135123 | BW33: 0 | BX33: =BX13*BX9*BX19/10 -> 419.1868384 | BY33: 419.1868384 | BZ33: 419.1868384 | CA33: 419.1868384 | CB33: 419.1868384 | CC33: 419.1868384 | CD33: 419.1868384 | CE33: 419.1868384 | CF33: 419.1868384 | CK33: 0 | CL33: 0 | CM33: =CM13*CM9*CM19/10 -> 147.3114247 | CN33: 147.3114247 | CO33: 147.3114247 | CP33: 147.3114247 | CQ33: 147.3114247 | CR33: 147.3114247 | CS33: 147.3114247 | CT33: 147.3114247 | CY33: 0 | CZ33: 0 | DA33: =DA13*DA9*DA19/10 -> 860.4857826 | DB33: 860.4857826 | DC33: 860.4857826 | DD33: 860.4857826 | DE33: 860.4857826 | DF33: 860.4857826 | DG33: 860.4857826 | DH33: 860.4857826 | DM33: 0 | DN33: 0 | DO33: =DO13*DO9*DO19/10 -> 427.5705752 | DP33: 427.5705752 | DQ33: 427.5705752 | DR33: 427.5705752 | DS33: 427.5705752 | DT33: 427.5705752 | DU33: 427.5705752 | DV33: 427.5705752 | EA33: 0 | EB33: 0 | EC33: 0 | ED33: =ED13*ED9*ED19/10 -> 150.2576532 | EE33: 150.2576532 | EF33: 150.2576532 | EG33: 150.2576532 | EH33: 150.2576532 | EI33: 150.2576532 | EJ33: 150.2576532 | EO33: 0 | EP33: 0 | EQ33: 0 | ER33: =ER13*ER9*ER19/10 -> 877.6954982 | ES33: 877.6954982 | ET33: 877.6954982 | EU33: 877.6954982 | EV33: 877.6954982 | EW33: 877.6954982 | EX33: 877.6954982 | FC33: 0 | FD33: 0 | FE33: 0 | FF33: =FF13*FF9*FF19/10 -> 436.1219867 | FG33: 436.1219867 | FH33: 436.1219867 | FI33: 436.1219867 | FJ33: 436.1219867 | FK33: 436.1219867 | FL33: 436.1219867 | FQ33: 0 | FR33: 0 | FS33: 0 | FT33: 0 | FU33: =FU13*FU9*FU19/10 -> 153.2628063 | FV33: 153.2628063 | FW33: 153.2628063 | FX33: 153.2628063 | FY33: 153.2628063 | FZ33: 153.2628063 | GE33: 0 | GF33: 0 | GG33: 0 | GH33: 0 | GI33: =GI13*GI9*GI19/10 -> 895.2494082 | GJ33: 895.2494082 | GK33: 895.2494082 | GL33: 895.2494082 | GM33: 895.2494082 | GN33: 895.2494082 | GS33: 0 | GT33: 0 | GU33: 0 | GV33: 0 | GW33: =GW13*GW9*GW19/10 -> 444.8444264 | GX33: 444.8444264 | GY33: 444.8444264 | GZ33: 444.8444264 | HA33: 444.8444264 | HB33: 444.8444264 | HG33: 0 | HH33: 0 | HI33: 0 | HJ33: 0 | HK33: 0 | HL33: =HL13*HL9*HL19/10 -> 156.3280624 | HM33: =HM13*HM9*HM19/10 -> 156.3280624 | HN33: =HN13*HN9*HN19/10 -> 156.3280624 | HO33: =HO13*HO9*HO19/10 -> 156.3280624 | HP33: =HP13*HP9*HP19/10 -> 156.3280624 | HU33: 0 | HV33: 0 | HW33: 0 | HX33: 0 | HY33: 0 | HZ33: =HZ13*HZ9*HZ19/10 -> 913.1543963 | IA33: =IA13*IA9*IA19/10 -> 913.1543963 | IB33: =IB13*IB9*IB19/10 -> 913.1543963 | IC33: =IC13*IC9*IC19/10 -> 913.1543963 | ID33: =ID13*ID9*ID19/10 -> 913.1543963 | II33: 0 | IJ33: 0 | IK33: 0 | IL33: 0 | IM33: 0 | IN33: =IN13*IN9*IN19/10 -> 453.7413149 | IO33: =IO13*IO9*IO19/10 -> 453.7413149 | IP33: =IP13*IP9*IP19/10 -> 453.7413149 | IQ33: =IQ13*IQ9*IQ19/10 -> 453.7413149 | IR33: =IR13*IR9*IR19/10 -> 453.7413149 | IW33: 0 | IX33: 0 | IY33: 0 | IZ33: 0 | JA33: 0 | JB33: 0 | JC33: =JC13*JC9*JC19/10 -> 159.4546237 | JD33: =JD13*JD9*JD19/10 -> 159.4546237 | JE33: =JE13*JE9*JE19/10 -> 159.4546237 | JF33: =JF13*JF9*JF19/10 -> 159.4546237 | JK33: 0 | JL33: 0 | JM33: 0 | JN33: 0 | JO33: 0 | JP33: 0 | JQ33: =JQ13*JQ9*JQ19/10 -> 931.4174843 | JR33: =JR13*JR9*JR19/10 -> 931.4174843 | JS33: =JS13*JS9*JS19/10 -> 931.4174843 | JT33: =JT13*JT9*JT19/10 -> 931.4174843 | JY33: 0 | JZ33: 0 | KA33: 0 | KB33: 0 | KC33: 0 | KD33: 0 | KE33: =KE13*KE9*KE19/10 -> 462.8161412 | KF33: =KF13*KF9*KF19/10 -> 462.8161412 | KG33: =KG13*KG9*KG19/10 -> 462.8161412 | KH33: =KH13*KH9*KH19/10 -> 462.8161412 | KM33: 0 | KN33: 0 | KO33: 0 | KP33: 0 | KQ33: 0 | KR33: 0 | KS33: 0 | KT33: =KT13*KT9*KT19/10 -> 162.6437161 | KU33: =KU13*KU9*KU19/10 -> 162.6437161 | KV33: =KV13*KV9*KV19/10 -> 162.6437161 | LA33: 0 | LB33: 0 | LC33: 0 | LD33: 0 | LE33: 0 | LF33: 0 | LG33: 0 | LH33: =LH13*LH9*LH19/10 -> 950.0458339 | LI33: =LI13*LI9*LI19/10 -> 950.0458339 | LJ33: =LJ13*LJ9*LJ19/10 -> 950.0458339 | LO33: 0 | LP33: 0 | LQ33: 0 | LR33: 0 | LS33: 0 | LT33: 0 | LU33: 0 | LV33: =LV13*LV9*LV19/10 -> 472.0724641 | LW33: =LW13*LW9*LW19/10 -> 472.0724641 | LX33: =LX13*LX9*LX19/10 -> 472.0724641 | MC33: 0 | MD33: 0 | ME33: 0 | MF33: 0 | MG33: 0 | MH33: 0 | MI33: 0 | MJ33: 0 | MK33: =MK13*MK9*MK19/10 -> 165.8965905 | ML33: =ML13*ML9*ML19/10 -> 165.8965905 | MQ33: 0 | MR33: 0 | MS33: 0 | MT33: 0 | MU33: 0 | MV33: 0 | MW33: 0 | MX33: 0 | MY33: =MY13*MY9*MY19/10 -> 969.0467506 | MZ33: =MZ13*MZ9*MZ19/10 -> 969.0467506 | NE33: 0 | NF33: 0 | NG33: 0 | NH33: 0 | NI33: 0 | NJ33: 0 | NK33: 0 | NL33: 0 | NM33: =NM13*NM9*NM19/10 -> 481.5139134 | NN33: =NN13*NN9*NN19/10 -> 481.5139134 | NS33: 0 | NT33: 0 | NU33: 0 | NV33: 0 | NW33: 0 | NX33: 0 | NY33: 0 | NZ33: 0 | OA33: 0 | OB33: =OB13*OB9*OB19/10 -> 169.2145223 | OG33: 0 | OH33: 0 | OI33: 0 | OJ33: 0 | OK33: 0 | OL33: 0 | OM33: 0 | ON33: 0 | OO33: 0 | OP33: =OP13*OP9*OP19/10 -> 988.4276856 | OU33: 0 | OV33: 0 | OW33: 0 | OX33: 0 | OY33: 0 | OZ33: 0 | PA33: 0 | PB33: 0 | PC33: 0 | PD33: =PD13*PD9*PD19/10 -> 491.1441916
D35: Total cost | E35: =SUM(E32:E33) -> 5928.767264 | F35: =SUM(F32:F33) -> 270.1950564 | G35: 270.1950564 | H35: 270.1950564 | I35: 205.8930995 | J35: 334.4970133 | K35: 141.5911426 | L35: 141.5911426 | M35: 141.5911426 | N35: 141.5911426 | S35: =SUM(S32:S33) -> 51533.75809 | T35: =SUM(T32:T33) -> 1953.887316 | U35: 1953.887316 | V35: 1953.887316 | W35: 1390.479693 | X35: 2517.294938 | Y35: 827.0720709 | Z35: 827.0720709 | AA35: 827.0720709 | AB35: 827.0720709 | AG35: =SUM(AG32:AG33) -> 17208.21338 | AH35: =SUM(AH32:AH33) -> 784.2396195 | AI35: 784.2396195 | AJ35: 784.2396195 | AK35: 597.603554 | AL35: 970.8756849 | AM35: 410.9674886 | AN35: 410.9674886 | AO35: 410.9674886 | AP35: 410.9674886 | AU35: =SUM(AU32:AU33) -> 0 | AV35: =SUM(AV32:AV33) -> 6047.34261 | AW35: 275.5989575 | AX35: 275.5989575 | AY35: 275.5989575 | AZ35: 210.0109615 | BA35: 341.1869536 | BB35: 144.4229654 | BC35: 144.4229654 | BD35: 144.4229654 | BI35: =SUM(BI32:BI33) -> 0 | BJ35: =SUM(BJ32:BJ33) -> 52226.38868 | BK35: 1985.45296 | BL35: 1985.45296 | BM35: 1985.45296 | BN35: 1414.533236 | BO35: 2556.372685 | BP35: 843.6135123 | BQ35: 843.6135123 | BR35: 843.6135123 | BW35: =SUM(BW32:BW33) -> 0 | BX35: =SUM(BX32:BX33) -> 17552.37764 | BY35: 799.9244118 | BZ35: 799.9244118 | CA35: 799.9244118 | CB35: 609.5556251 | CC35: 990.2931986 | CD35: 419.1868384 | CE35: 419.1868384 | CF35: 419.1868384 | CK35: =SUM(CK32:CK33) -> 0 | CL35: =SUM(CL32:CL33) -> 0 | CM35: 6168.289462 | CN35: 281.1109367 | CO35: 281.1109367 | CP35: 281.1109367 | CQ35: 214.2111807 | CR35: 348.0106926 | CS35: 147.3114247 | CT35: 147.3114247 | CY35: =SUM(CY32:CY33) -> 0 | CZ35: =SUM(CZ32:CZ33) -> 0 | DA35: 52932.87188 | DB35: 2017.649918 | DC35: 2017.649918 | DD35: 2017.649918 | DE35: 1439.06785 | DF35: 2596.231986 | DG35: 860.4857826 | DH35: 860.4857826 | DM35: =SUM(DM32:DM33) -> 0 | DN35: =SUM(DN32:DN33) -> 0 | DO35: 17903.4252 | DP35: 815.9229001 | DQ35: 815.9229001 | DR35: 815.9229001 | DS35: 621.7467376 | DT35: 1010.099063 | DU35: 427.5705752 | DV35: 427.5705752 | EA35: =SUM(EA32:EA33) -> 0 | EB35: =SUM(EB32:EB33) -> 0 | EC35: 0 | ED35: 6291.655251 | EE35: 286.7331554 | EF35: 286.7331554 | EG35: 286.7331554 | EH35: 218.4954043 | EI35: 354.9709065 | EJ35: 150.2576532 | EO35: =SUM(EO32:EO33) -> 0 | EP35: =SUM(EP32:EP33) -> 0 | EQ35: 0 | ER35: 53653.48474 | ES35: 2050.490815 | ET35: 2050.490815 | EU35: 2050.490815 | EV35: 1464.093156 | EW35: 2636.888473 | EX35: 877.6954982 | FC35: =SUM(FC32:FC33) -> 0 | FD35: =SUM(FD32:FD33) -> 0 | FE35: 0 | FF35: 18261.4937 | FG35: 832.2413581 | FH35: 832.2413581 | FI35: 832.2413581 | FJ35: 634.1816724 | FK35: 1030.301044 | FL35: 436.1219867 | FQ35: =SUM(FQ32:FQ33) -> 0 | FR35: =SUM(FR32:FR33) -> 0 | FS35: 0 | FT35: 0 | FU35: 6417.488356 | FV35: 292.4678185 | FW35: 292.4678185 | FX35: 292.4678185 | FY35: 222.8653124 | FZ35: 362.0703246 | GE35: =SUM(GE32:GE33) -> 0 | GF35: =SUM(GF32:GF33) -> 0 | GG35: 0 | GH35: 0 | GI35: 54388.50987 | GJ35: 2083.988529 | GK35: 2083.988529 | GL35: 2083.988529 | GM35: 1489.618969 | GN35: 2678.35809 | GS35: =SUM(GS32:GS33) -> 0 | GT35: =SUM(GT32:GT33) -> 0 | GU35: 0 | GV35: 0 | GW35: 18626.72357 | GX35: 848.8861852 | GY35: 848.8861852 | GZ35: 848.8861852 | HA35: 646.8653058 | HB35: 1050.907065 | HG35: =SUM(HG32:HG33) -> 0 | HH35: =SUM(HH32:HH33) -> 0 | HI35: 0 | HJ35: 0 | HK35: 0 | HL35: 6545.838123 | HM35: 298.3171749 | HN35: 298.3171749 | HO35: 298.3171749 | HP35: 227.3226186 | HU35: =SUM(HU32:HU33) -> 0 | HV35: =SUM(HV32:HV33) -> 0 | HW35: 0 | HX35: 0 | HY35: 0 | HZ35: 55138.23549 | IA35: 2118.156198 | IB35: 2118.156198 | IC35: 2118.156198 | ID35: 1515.655297 | II35: =SUM(II32:II33) -> 0 | IJ35: =SUM(IJ32:IJ33) -> 0 | IK35: 0 | IL35: 0 | IM35: 0 | IN35: 18999.25804 | IO35: 865.8639089 | IP35: 865.8639089 | IQ35: 865.8639089 | IR35: 659.8026119 | IW35: =SUM(IW32:IW33) -> 0 | IX35: =SUM(IX32:IX33) -> 0 | IY35: 0 | IZ35: 0 | JA35: 0 | JB35: 0 | JC35: 6676.754886 | JD35: 304.2835184 | JE35: 304.2835184 | JF35: 304.2835184 | JK35: =SUM(JK32:JK33) -> 0 | JL35: =SUM(JL32:JL33) -> 0 | JM35: 0 | JN35: 0 | JO35: 0 | JP35: 0 | JQ35: 55902.95563 | JR35: 2153.007221 | JS35: 2153.007221 | JT35: 2153.007221 | JY35: =SUM(JY32:JY33) -> 0 | JZ35: =SUM(JZ32:JZ33) -> 0 | KA35: 0 | KB35: 0 | KC35: 0 | KD35: 0 | KE35: 19379.24321 | KF35: 883.1811871 | KG35: 883.1811871 | KH35: 883.1811871 | KM35: =SUM(KM32:KM33) -> 0 | KN35: =SUM(KN32:KN33) -> 0 | KO35: 0 | KP35: 0 | KQ35: 0 | KR35: 0 | KS35: 0 | KT35: 6810.289983 | KU35: 310.3691887 | KV35: 310.3691887 | LA35: =SUM(LA32:LA33) -> 0 | LB35: =SUM(LB32:LB33) -> 0 | LC35: 0 | LD35: 0 | LE35: 0 | LF35: 0 | LG35: 0 | LH35: 56682.97016 | LI35: 2188.555264 | LJ35: 2188.555264 | LO35: =SUM(LO32:LO33) -> 0 | LP35: =SUM(LP32:LP33) -> 0 | LQ35: 0 | LR35: 0 | LS35: 0 | LT35: 0 | LU35: 0 | LV35: 19766.82807 | LW35: 900.8448109 | LX35: 900.8448109 | MC35: =SUM(MC32:MC33) -> 0 | MD35: =SUM(MD32:MD33) -> 0 | ME35: 0 | MF35: 0 | MG35: 0 | MH35: 0 | MI35: 0 | MJ35: 0 | MK35: 6946.495783 | ML35: 316.5765725 | MQ35: =SUM(MQ32:MQ33) -> 0 | MR35: =SUM(MR32:MR33) -> 0 | MS35: 0 | MT35: 0 | MU35: 0 | MV35: 0 | MW35: 0 | MX35: 0 | MY35: 57478.58499 | MZ35: 2224.814267 | NE35: =SUM(NE32:NE33) -> 0 | NF35: =SUM(NF32:NF33) -> 0 | NG35: 0 | NH35: 0 | NI35: 0 | NJ35: 0 | NK35: 0 | NL35: 0 | NM35: 20162.16463 | NN35: 918.8617071 | NS35: =SUM(NS32:NS33) -> 0 | NT35: =SUM(NT32:NT33) -> 0 | NU35: 0 | NV35: 0 | NW35: 0 | NX35: 0 | NY35: 0 | NZ35: 0 | OA35: 0 | OB35: 7085.425699 | OG35: =SUM(OG32:OG33) -> 0 | OH35: =SUM(OH32:OH33) -> 0 | OI35: 0 | OJ35: 0 | OK35: 0 | OL35: 0 | OM35: 0 | ON35: 0 | OO35: 0 | OP35: 58290.11212 | OU35: =SUM(OU32:OU33) -> 0 | OV35: =SUM(OV32:OV33) -> 0 | OW35: 0 | OX35: 0 | OY35: 0 | OZ35: 0 | PA35: 0 | PB35: 0 | PC35: 0 | PD35: 20565.40792
A38: Lifetime Cost | B38: ='C2. Lifetime cost adjustment'!$P$15 -> 10066.05457 | P38: ='C2. Lifetime cost adjustment'!$P$16 -> 7988.932199 | AD38: ='C2. Lifetime cost adjustment'!$P$17 -> 7988.932199 | AR38: =B38*(1+'B4. Optional variables'!$C$56) -> 10066.05457 | BF38: =P38*(1+'B4. Optional variables'!$C$56) -> 7988.932199 | BT38: =AD38*(1+'B4. Optional variables'!$C$56) -> 7988.932199 | CH38: =AR38*(1+'B4. Optional variables'!$D$56) -> 10066.05457 | CV38: =BF38*(1+'B4. Optional variables'!$D$56) -> 7988.932199 | DJ38: =BT38*(1+'B4. Optional variables'!$D$56) -> 7988.932199 | DX38: =CH38*(1+'B4. Optional variables'!$E$56) -> 10066.05457 | EL38: =CV38*(1+'B4. Optional variables'!$E$56) -> 7988.932199 | EZ38: =DJ38*(1+'B4. Optional variables'!$E$56) -> 7988.932199 | FN38: =DX38*(1+'B4. Optional variables'!$F$56) -> 10066.05457 | GB38: =EL38*(1+'B4. Optional variables'!$F$56) -> 7988.932199 | GP38: =EZ38*(1+'B4. Optional variables'!$F$56) -> 7988.932199 | HD38: =FN38*(1+'B4. Optional variables'!$G$56) -> 10066.05457 | HR38: =GB38*(1+'B4. Optional variables'!$G$56) -> 7988.932199 | IF38: =GP38*(1+'B4. Optional variables'!$G$56) -> 7988.932199 | IT38: =HD38*(1+'B4. Optional variables'!$H$56) -> 10066.05457 | JH38: =HR38*(1+'B4. Optional variables'!$H$56) -> 7988.932199 | JV38: =IF38*(1+'B4. Optional variables'!$H$56) -> 7988.932199 | KJ38: =IT38*(1+'B4. Optional variables'!$I$56) -> 10066.05457 | KX38: =JH38*(1+'B4. Optional variables'!$I$56) -> 7988.932199 | LL38: =JV38*(1+'B4. Optional variables'!$I$56) -> 7988.932199 | LZ38: =KJ38*(1+'B4. Optional variables'!$J$56) -> 10066.05457 | MN38: =KX38*(1+'B4. Optional variables'!$J$56) -> 7988.932199 | NB38: =LL38*(1+'B4. Optional variables'!$J$56) -> 7988.932199 | NP38: =LZ38*(1+'B4. Optional variables'!$K$56) -> 10066.05457 | OD38: =MN38*(1+'B4. Optional variables'!$K$56) -> 7988.932199 | OR38: =NB38*(1+'B4. Optional variables'!$K$56) -> 7988.932199
A39: Recurrence rate | B39: =Metric_calculation!DN11 -> 0.1898170162 | P39: =B39 -> 0.1898170162 | AD39: =P39 -> 0.1898170162 | AR39: =AD39 -> 0.1898170162 | BF39: =AR39 -> 0.1898170162 | BT39: =BF39 -> 0.1898170162 | CH39: =BT39 -> 0.1898170162 | CV39: =CH39 -> 0.1898170162 | DJ39: =CV39 -> 0.1898170162 | DX39: =DJ39 -> 0.1898170162 | EL39: =DX39 -> 0.1898170162 | EZ39: =EL39 -> 0.1898170162 | FN39: =EZ39 -> 0.1898170162 | GB39: =FN39 -> 0.1898170162 | GP39: =GB39 -> 0.1898170162 | HD39: =GP39 -> 0.1898170162 | HR39: =HD39 -> 0.1898170162 | IF39: =HR39 -> 0.1898170162 | IT39: =IF39 -> 0.1898170162 | JH39: =IT39 -> 0.1898170162 | JV39: =JH39 -> 0.1898170162 | KJ39: =JV39 -> 0.1898170162 | KX39: =KJ39 -> 0.1898170162 | LL39: =KX39 -> 0.1898170162 | LZ39: =LL39 -> 0.1898170162 | MN39: =LZ39 -> 0.1898170162 | NB39: =MN39 -> 0.1898170162 | NP39: =NB39 -> 0.1898170162 | OD39: =NP39 -> 0.1898170162 | OR39: =OD39 -> 0.1898170162
E41: =B38 -> 10066.05457 | F41: =E41 -> 10066.05457 | G41: =F41 -> 10066.05457 | H41: 10066.05457 | I41: 10066.05457 | J41: 10066.05457 | K41: 10066.05457 | L41: 10066.05457 | M41: 10066.05457 | N41: 10066.05457 | S41: =P38 -> 7988.932199 | T41: =S41 -> 7988.932199 | U41: =T41 -> 7988.932199 | V41: 7988.932199 | W41: 7988.932199 | X41: 7988.932199 | Y41: 7988.932199 | Z41: 7988.932199 | AA41: 7988.932199 | AB41: 7988.932199 | AG41: =AD38 -> 7988.932199 | AH41: =AG41 -> 7988.932199 | AI41: =AH41 -> 7988.932199 | AJ41: 7988.932199 | AK41: 7988.932199 | AL41: 7988.932199 | AM41: 7988.932199 | AN41: 7988.932199 | AO41: 7988.932199 | AP41: 7988.932199 | AU41: =AR38 -> 10066.05457 | AV41: =AU41 -> 10066.05457 | AW41: =AV41 -> 10066.05457 | AX41: 10066.05457 | AY41: 10066.05457 | AZ41: 10066.05457 | BA41: 10066.05457 | BB41: 10066.05457 | BC41: 10066.05457 | BD41: 10066.05457 | BI41: =BF38 -> 7988.932199 | BJ41: =BI41 -> 7988.932199 | BK41: =BJ41 -> 7988.932199 | BL41: 7988.932199 | BM41: 7988.932199 | BN41: 7988.932199 | BO41: 7988.932199 | BP41: 7988.932199 | BQ41: 7988.932199 | BR41: 7988.932199 | BW41: =BT38 -> 7988.932199 | BX41: =BW41 -> 7988.932199 | BY41: =BX41 -> 7988.932199 | BZ41: 7988.932199 | CA41: 7988.932199 | CB41: 7988.932199 | CC41: 7988.932199 | CD41: 7988.932199 | CE41: 7988.932199 | CF41: 7988.932199 | CK41: =CH38 -> 10066.05457 | CL41: =CK41 -> 10066.05457 | CM41: =CL41 -> 10066.05457 | CN41: 10066.05457 | CO41: 10066.05457 | CP41: 10066.05457 | CQ41: 10066.05457 | CR41: 10066.05457 | CS41: 10066.05457 | CT41: 10066.05457 | CY41: =CV38 -> 7988.932199 | CZ41: =CY41 -> 7988.932199 | DA41: =CZ41 -> 7988.932199 | DB41: 7988.932199 | DC41: 7988.932199 | DD41: 7988.932199 | DE41: 7988.932199 | DF41: 7988.932199 | DG41: 7988.932199 | DH41: 7988.932199 | DM41: =DJ38 -> 7988.932199 | DN41: =DM41 -> 7988.932199 | DO41: =DN41 -> 7988.932199 | DP41: 7988.932199 | DQ41: 7988.932199 | DR41: 7988.932199 | DS41: 7988.932199 | DT41: 7988.932199 | DU41: 7988.932199 | DV41: 7988.932199 | EA41: =DX38 -> 10066.05457 | EB41: =EA41 -> 10066.05457 | EC41: =EB41 -> 10066.05457 | ED41: 10066.05457 | EE41: 10066.05457 | EF41: 10066.05457 | EG41: 10066.05457 | EH41: 10066.05457 | EI41: 10066.05457 | EJ41: 10066.05457 | EO41: =EL38 -> 7988.932199 | EP41: =EO41 -> 7988.932199 | EQ41: =EP41 -> 7988.932199 | ER41: 7988.932199 | ES41: 7988.932199 | ET41: 7988.932199 | EU41: 7988.932199 | EV41: 7988.932199 | EW41: 7988.932199 | EX41: 7988.932199 | FC41: =EZ38 -> 7988.932199 | FD41: =FC41 -> 7988.932199 | FE41: =FD41 -> 7988.932199 | FF41: 7988.932199 | FG41: 7988.932199 | FH41: 7988.932199 | FI41: 7988.932199 | FJ41: 7988.932199 | FK41: 7988.932199 | FL41: 7988.932199 | FQ41: =FN38 -> 10066.05457 | FR41: =FQ41 -> 10066.05457 | FS41: =FR41 -> 10066.05457 | FT41: 10066.05457 | FU41: 10066.05457 | FV41: 10066.05457 | FW41: 10066.05457 | FX41: 10066.05457 | FY41: 10066.05457 | FZ41: 10066.05457 | GE41: =GB38 -> 7988.932199 | GF41: =GE41 -> 7988.932199 | GG41: =GF41 -> 7988.932199 | GH41: 7988.932199 | GI41: 7988.932199 | GJ41: 7988.932199 | GK41: 7988.932199 | GL41: 7988.932199 | GM41: 7988.932199 | GN41: 7988.932199 | GS41: =GP38 -> 7988.932199 | GT41: =GS41 -> 7988.932199 | GU41: =GT41 -> 7988.932199 | GV41: 7988.932199 | GW41: 7988.932199 | GX41: 7988.932199 | GY41: 7988.932199 | GZ41: 7988.932199 | HA41: 7988.932199 | HB41: 7988.932199 | HG41: =HD38 -> 10066.05457 | HH41: =HG41 -> 10066.05457 | HI41: =HH41 -> 10066.05457 | HJ41: 10066.05457 | HK41: 10066.05457 | HL41: 10066.05457 | HM41: 10066.05457 | HN41: 10066.05457 | HO41: 10066.05457 | HP41: 10066.05457 | HU41: =HR38 -> 7988.932199 | HV41: =HU41 -> 7988.932199 | HW41: =HV41 -> 7988.932199 | HX41: 7988.932199 | HY41: 7988.932199 | HZ41: 7988.932199 | IA41: 7988.932199 | IB41: 7988.932199 | IC41: 7988.932199 | ID41: 7988.932199 | II41: =IF38 -> 7988.932199 | IJ41: =II41 -> 7988.932199 | IK41: =IJ41 -> 7988.932199 | IL41: 7988.932199 | IM41: 7988.932199 | IN41: 7988.932199 | IO41: 7988.932199 | IP41: 7988.932199 | IQ41: 7988.932199 | IR41: 7988.932199 | IW41: =IT38 -> 10066.05457 | IX41: =IW41 -> 10066.05457 | IY41: =IX41 -> 10066.05457 | IZ41: 10066.05457 | JA41: 10066.05457 | JB41: 10066.05457 | JC41: 10066.05457 | JD41: 10066.05457 | JE41: 10066.05457 | JF41: 10066.05457 | JK41: =JH38 -> 7988.932199 | JL41: =JK41 -> 7988.932199 | JM41: =JL41 -> 7988.932199 | JN41: 7988.932199 | JO41: 7988.932199 | JP41: 7988.932199 | JQ41: 7988.932199 | JR41: 7988.932199 | JS41: 7988.932199 | JT41: 7988.932199 | JY41: =JV38 -> 7988.932199 | JZ41: =JY41 -> 7988.932199 | KA41: =JZ41 -> 7988.932199 | KB41: 7988.932199 | KC41: 7988.932199 | KD41: 7988.932199 | KE41: 7988.932199 | KF41: 7988.932199 | KG41: 7988.932199 | KH41: 7988.932199 | KM41: =KJ38 -> 10066.05457 | KN41: =KM41 -> 10066.05457 | KO41: =KN41 -> 10066.05457 | KP41: 10066.05457 | KQ41: 10066.05457 | KR41: 10066.05457 | KS41: 10066.05457 | KT41: 10066.05457 | KU41: 10066.05457 | KV41: 10066.05457 | LA41: =KX38 -> 7988.932199 | LB41: =LA41 -> 7988.932199 | LC41: =LB41 -> 7988.932199 | LD41: 7988.932199 | LE41: 7988.932199 | LF41: 7988.932199 | LG41: 7988.932199 | LH41: 7988.932199 | LI41: 7988.932199 | LJ41: 7988.932199 | LO41: =LL38 -> 7988.932199 | LP41: =LO41 -> 7988.932199 | LQ41: =LP41 -> 7988.932199 | LR41: 7988.932199 | LS41: 7988.932199 | LT41: 7988.932199 | LU41: 7988.932199 | LV41: 7988.932199 | LW41: 7988.932199 | LX41: 7988.932199 | MC41: =LZ38 -> 10066.05457 | MD41: =MC41 -> 10066.05457 | ME41: =MD41 -> 10066.05457 | MF41: 10066.05457 | MG41: 10066.05457 | MH41: 10066.05457 | MI41: 10066.05457 | MJ41: 10066.05457 | MK41: 10066.05457 | ML41: 10066.05457 | MQ41: =MN38 -> 7988.932199 | MR41: =MQ41 -> 7988.932199 | MS41: =MR41 -> 7988.932199 | MT41: 7988.932199 | MU41: 7988.932199 | MV41: 7988.932199 | MW41: 7988.932199 | MX41: 7988.932199 | MY41: 7988.932199 | MZ41: 7988.932199 | NE41: =NB38 -> 7988.932199 | NF41: =NE41 -> 7988.932199 | NG41: =NF41 -> 7988.932199 | NH41: 7988.932199 | NI41: 7988.932199 | NJ41: 7988.932199 | NK41: 7988.932199 | NL41: 7988.932199 | NM41: 7988.932199 | NN41: 7988.932199 | NS41: =NP38 -> 10066.05457 | NT41: =NS41 -> 10066.05457 | NU41: =NT41 -> 10066.05457 | NV41: 10066.05457 | NW41: 10066.05457 | NX41: 10066.05457 | NY41: 10066.05457 | NZ41: 10066.05457 | OA41: 10066.05457 | OB41: 10066.05457 | OG41: =OD38 -> 7988.932199 | OH41: =OG41 -> 7988.932199 | OI41: =OH41 -> 7988.932199 | OJ41: 7988.932199 | OK41: 7988.932199 | OL41: 7988.932199 | OM41: 7988.932199 | ON41: 7988.932199 | OO41: 7988.932199 | OP41: 7988.932199 | OU41: =OR38 -> 7988.932199 | OV41: =OU41 -> 7988.932199 | OW41: =OV41 -> 7988.932199 | OX41: 7988.932199 | OY41: 7988.932199 | OZ41: 7988.932199 | PA41: 7988.932199 | PB41: 7988.932199 | PC41: 7988.932199 | PD41: 7988.932199
E42: =B39 -> 0.1898170162 | F42: =E42 -> 0.1898170162 | G42: 0.1898170162 | H42: 0.1898170162 | I42: 0.1898170162 | J42: 0.1898170162 | K42: 0.1898170162 | L42: 0.1898170162 | M42: 0.1898170162 | N42: 0.1898170162 | S42: =P39 -> 0.1898170162 | T42: =S42 -> 0.1898170162 | U42: 0.1898170162 | V42: 0.1898170162 | W42: 0.1898170162 | X42: 0.1898170162 | Y42: 0.1898170162 | Z42: 0.1898170162 | AA42: 0.1898170162 | AB42: 0.1898170162 | AG42: =AD39 -> 0.1898170162 | AH42: =AG42 -> 0.1898170162 | AI42: 0.1898170162 | AJ42: 0.1898170162 | AK42: 0.1898170162 | AL42: 0.1898170162 | AM42: 0.1898170162 | AN42: 0.1898170162 | AO42: 0.1898170162 | AP42: 0.1898170162 | AU42: =AR39 -> 0.1898170162 | AV42: =AU42 -> 0.1898170162 | AW42: 0.1898170162 | AX42: 0.1898170162 | AY42: 0.1898170162 | AZ42: 0.1898170162 | BA42: 0.1898170162 | BB42: 0.1898170162 | BC42: 0.1898170162 | BD42: 0.1898170162 | BI42: =BF39 -> 0.1898170162 | BJ42: =BI42 -> 0.1898170162 | BK42: 0.1898170162 | BL42: 0.1898170162 | BM42: 0.1898170162 | BN42: 0.1898170162 | BO42: 0.1898170162 | BP42: 0.1898170162 | BQ42: 0.1898170162 | BR42: 0.1898170162 | BW42: =BT39 -> 0.1898170162 | BX42: =BW42 -> 0.1898170162 | BY42: 0.1898170162 | BZ42: 0.1898170162 | CA42: 0.1898170162 | CB42: 0.1898170162 | CC42: 0.1898170162 | CD42: 0.1898170162 | CE42: 0.1898170162 | CF42: 0.1898170162 | CK42: =CH39 -> 0.1898170162 | CL42: =CK42 -> 0.1898170162 | CM42: 0.1898170162 | CN42: 0.1898170162 | CO42: 0.1898170162 | CP42: 0.1898170162 | CQ42: 0.1898170162 | CR42: 0.1898170162 | CS42: 0.1898170162 | CT42: 0.1898170162 | CY42: =CV39 -> 0.1898170162 | CZ42: =CY42 -> 0.1898170162 | DA42: 0.1898170162 | DB42: 0.1898170162 | DC42: 0.1898170162 | DD42: 0.1898170162 | DE42: 0.1898170162 | DF42: 0.1898170162 | DG42: 0.1898170162 | DH42: 0.1898170162 | DM42: =DJ39 -> 0.1898170162 | DN42: =DM42 -> 0.1898170162 | DO42: 0.1898170162 | DP42: 0.1898170162 | DQ42: 0.1898170162 | DR42: 0.1898170162 | DS42: 0.1898170162 | DT42: 0.1898170162 | DU42: 0.1898170162 | DV42: 0.1898170162 | EA42: =DX39 -> 0.1898170162 | EB42: =EA42 -> 0.1898170162 | EC42: 0.1898170162 | ED42: 0.1898170162 | EE42: 0.1898170162 | EF42: 0.1898170162 | EG42: 0.1898170162 | EH42: 0.1898170162 | EI42: 0.1898170162 | EJ42: 0.1898170162 | EO42: =EL39 -> 0.1898170162 | EP42: =EO42 -> 0.1898170162 | EQ42: 0.1898170162 | ER42: 0.1898170162 | ES42: 0.1898170162 | ET42: 0.1898170162 | EU42: 0.1898170162 | EV42: 0.1898170162 | EW42: 0.1898170162 | EX42: 0.1898170162 | FC42: =EZ39 -> 0.1898170162 | FD42: =FC42 -> 0.1898170162 | FE42: 0.1898170162 | FF42: 0.1898170162 | FG42: 0.1898170162 | FH42: 0.1898170162 | FI42: 0.1898170162 | FJ42: 0.1898170162 | FK42: 0.1898170162 | FL42: 0.1898170162 | FQ42: =FN39 -> 0.1898170162 | FR42: =FQ42 -> 0.1898170162 | FS42: 0.1898170162 | FT42: 0.1898170162 | FU42: 0.1898170162 | FV42: 0.1898170162 | FW42: 0.1898170162 | FX42: 0.1898170162 | FY42: 0.1898170162 | FZ42: 0.1898170162 | GE42: =GB39 -> 0.1898170162 | GF42: =GE42 -> 0.1898170162 | GG42: 0.1898170162 | GH42: 0.1898170162 | GI42: 0.1898170162 | GJ42: 0.1898170162 | GK42: 0.1898170162 | GL42: 0.1898170162 | GM42: 0.1898170162 | GN42: 0.1898170162 | GS42: =GP39 -> 0.1898170162 | GT42: =GS42 -> 0.1898170162 | GU42: 0.1898170162 | GV42: 0.1898170162 | GW42: 0.1898170162 | GX42: 0.1898170162 | GY42: 0.1898170162 | GZ42: 0.1898170162 | HA42: 0.1898170162 | HB42: 0.1898170162 | HG42: =HD39 -> 0.1898170162 | HH42: =HG42 -> 0.1898170162 | HI42: 0.1898170162 | HJ42: 0.1898170162 | HK42: 0.1898170162 | HL42: 0.1898170162 | HM42: 0.1898170162 | HN42: 0.1898170162 | HO42: 0.1898170162 | HP42: 0.1898170162 | HU42: =HR39 -> 0.1898170162 | HV42: =HU42 -> 0.1898170162 | HW42: 0.1898170162 | HX42: 0.1898170162 | HY42: 0.1898170162 | HZ42: 0.1898170162 | IA42: 0.1898170162 | IB42: 0.1898170162 | IC42: 0.1898170162 | ID42: 0.1898170162 | II42: =IF39 -> 0.1898170162 | IJ42: =II42 -> 0.1898170162 | IK42: 0.1898170162 | IL42: 0.1898170162 | IM42: 0.1898170162 | IN42: 0.1898170162 | IO42: 0.1898170162 | IP42: 0.1898170162 | IQ42: 0.1898170162 | IR42: 0.1898170162 | IW42: =IT39 -> 0.1898170162 | IX42: =IW42 -> 0.1898170162 | IY42: 0.1898170162 | IZ42: 0.1898170162 | JA42: 0.1898170162 | JB42: 0.1898170162 | JC42: 0.1898170162 | JD42: 0.1898170162 | JE42: 0.1898170162 | JF42: 0.1898170162 | JK42: =JH39 -> 0.1898170162 | JL42: =JK42 -> 0.1898170162 | JM42: 0.1898170162 | JN42: 0.1898170162 | JO42: 0.1898170162 | JP42: 0.1898170162 | JQ42: 0.1898170162 | JR42: 0.1898170162 | JS42: 0.1898170162 | JT42: 0.1898170162 | JY42: =JV39 -> 0.1898170162 | JZ42: =JY42 -> 0.1898170162 | KA42: 0.1898170162 | KB42: 0.1898170162 | KC42: 0.1898170162 | KD42: 0.1898170162 | KE42: 0.1898170162 | KF42: 0.1898170162 | KG42: 0.1898170162 | KH42: 0.1898170162 | KM42: =KJ39 -> 0.1898170162 | KN42: =KM42 -> 0.1898170162 | KO42: 0.1898170162 | KP42: 0.1898170162 | KQ42: 0.1898170162 | KR42: 0.1898170162 | KS42: 0.1898170162 | KT42: 0.1898170162 | KU42: 0.1898170162 | KV42: 0.1898170162 | LA42: =KX39 -> 0.1898170162 | LB42: =LA42 -> 0.1898170162 | LC42: 0.1898170162 | LD42: 0.1898170162 | LE42: 0.1898170162 | LF42: 0.1898170162 | LG42: 0.1898170162 | LH42: 0.1898170162 | LI42: 0.1898170162 | LJ42: 0.1898170162 | LO42: =LL39 -> 0.1898170162 | LP42: =LO42 -> 0.1898170162 | LQ42: 0.1898170162 | LR42: 0.1898170162 | LS42: 0.1898170162 | LT42: 0.1898170162 | LU42: 0.1898170162 | LV42: 0.1898170162 | LW42: 0.1898170162 | LX42: 0.1898170162 | MC42: =LZ39 -> 0.1898170162 | MD42: =MC42 -> 0.1898170162 | ME42: 0.1898170162 | MF42: 0.1898170162 | MG42: 0.1898170162 | MH42: 0.1898170162 | MI42: 0.1898170162 | MJ42: 0.1898170162 | MK42: 0.1898170162 | ML42: 0.1898170162 | MQ42: =MN39 -> 0.1898170162 | MR42: =MQ42 -> 0.1898170162 | MS42: 0.1898170162 | MT42: 0.1898170162 | MU42: 0.1898170162 | MV42: 0.1898170162 | MW42: 0.1898170162 | MX42: 0.1898170162 | MY42: 0.1898170162 | MZ42: 0.1898170162 | NE42: =NB39 -> 0.1898170162 | NF42: =NE42 -> 0.1898170162 | NG42: 0.1898170162 | NH42: 0.1898170162 | NI42: 0.1898170162 | NJ42: 0.1898170162 | NK42: 0.1898170162 | NL42: 0.1898170162 | NM42: 0.1898170162 | NN42: 0.1898170162 | NS42: =NP39 -> 0.1898170162 | NT42: =NS42 -> 0.1898170162 | NU42: 0.1898170162 | NV42: 0.1898170162 | NW42: 0.1898170162 | NX42: 0.1898170162 | NY42: 0.1898170162 | NZ42: 0.1898170162 | OA42: 0.1898170162 | OB42: 0.1898170162 | OG42: =OD39 -> 0.1898170162 | OH42: =OG42 -> 0.1898170162 | OI42: 0.1898170162 | OJ42: 0.1898170162 | OK42: 0.1898170162 | OL42: 0.1898170162 | OM42: 0.1898170162 | ON42: 0.1898170162 | OO42: 0.1898170162 | OP42: 0.1898170162 | OU42: =OR39 -> 0.1898170162 | OV42: =OU42 -> 0.1898170162 | OW42: 0.1898170162 | OX42: 0.1898170162 | OY42: 0.1898170162 | OZ42: 0.1898170162 | PA42: 0.1898170162 | PB42: 0.1898170162 | PC42: 0.1898170162 | PD42: 0.1898170162
E43: Emergency | S43: Elective | AG43: Screening | AU43: Emergency | BI43: Elective | BW43: Screening | CK43: Emergency | CY43: Elective | DM43: Screening | EA43: Emergency | EO43: Elective | FC43: Screening | FQ43: Emergency | GE43: Elective | GS43: Screening | HG43: Emergency | HU43: Elective | II43: Screening | IW43: Emergency | JK43: Elective | JY43: Screening | KM43: Emergency | LA43: Elective | LO43: Screening | MC43: Emergency | MQ43: Elective | NE43: Screening | NS43: Emergency | OG43: Elective | OU43: Screening
E44: =Start_year -> 2016 | F44: =E44+1 -> 2017 | G44: 2018 | H44: 2019 | I44: 2020 | J44: 2021 | K44: 2022 | L44: 2023 | M44: 2024 | N44: 2025 | S44: =Start_year -> 2016 | T44: =S44+1 -> 2017 | U44: 2018 | V44: 2019 | W44: 2020 | X44: 2021 | Y44: 2022 | Z44: 2023 | AA44: 2024 | AB44: 2025 | AG44: =Start_year+1 -> 2017 | AH44: =AG44+1 -> 2018 | AI44: =AH44+1 -> 2019 | AJ44: 2020 | AK44: 2021 | AL44: 2022 | AM44: 2023 | AN44: 2024 | AO44: 2025 | AP44: 2026 | AU44: =Start_year -> 2016 | AV44: =AU44+1 -> 2017 | AW44: =AV44+1 -> 2018 | AX44: 2019 | AY44: 2020 | AZ44: 2021 | BA44: 2022 | BB44: 2023 | BC44: 2024 | BD44: 2025 | BI44: =AU44 -> 2016 | BJ44: 2017 | BK44: 2018 | BL44: 2019 | BM44: 2020 | BN44: 2021 | BO44: 2022 | BP44: 2023 | BQ44: 2024 | BR44: 2025 | BW44: =BI44 -> 2016 | BX44: 2017 | BY44: 2018 | BZ44: 2019 | CA44: 2020 | CB44: 2021 | CC44: 2022 | CD44: 2023 | CE44: 2024 | CF44: 2025 | CK44: =Start_year -> 2016 | CL44: =CK44+1 -> 2017 | CM44: =CL44+1 -> 2018 | CN44: 2019 | CO44: 2020 | CP44: 2021 | CQ44: 2022 | CR44: 2023 | CS44: 2024 | CT44: 2025 | CY44: =CK44 -> 2016 | CZ44: 2017 | DA44: 2018 | DB44: 2019 | DC44: 2020 | DD44: 2021 | DE44: 2022 | DF44: 2023 | DG44: 2024 | DH44: 2025 | DM44: =CY44 -> 2016 | DN44: 2017 | DO44: 2018 | DP44: 2019 | DQ44: 2020 | DR44: 2021 | DS44: 2022 | DT44: 2023 | DU44: 2024 | DV44: 2025 | EA44: =Start_year -> 2016 | EB44: =EA44+1 -> 2017 | EC44: =EB44+1 -> 2018 | ED44: 2019 | EE44: 2020 | EF44: 2021 | EG44: 2022 | EH44: 2023 | EI44: 2024 | EJ44: 2025 | EO44: =EA44 -> 2016 | EP44: 2017 | EQ44: 2018 | ER44: 2019 | ES44: 2020 | ET44: 2021 | EU44: 2022 | EV44: 2023 | EW44: 2024 | EX44: 2025 | FC44: =EO44 -> 2016 | FD44: 2017 | FE44: 2018 | FF44: 2019 | FG44: 2020 | FH44: 2021 | FI44: 2022 | FJ44: 2023 | FK44: 2024 | FL44: 2025 | FQ44: =Start_year -> 2016 | FR44: =FQ44+1 -> 2017 | FS44: =FR44+1 -> 2018 | FT44: 2019 | FU44: 2020 | FV44: 2021 | FW44: 2022 | FX44: 2023 | FY44: 2024 | FZ44: 2025 | GE44: =FQ44 -> 2016 | GF44: 2017 | GG44: 2018 | GH44: 2019 | GI44: 2020 | GJ44: 2021 | GK44: 2022 | GL44: 2023 | GM44: 2024 | GN44: 2025 | GS44: =GE44 -> 2016 | GT44: 2017 | GU44: 2018 | GV44: 2019 | GW44: 2020 | GX44: 2021 | GY44: 2022 | GZ44: 2023 | HA44: 2024 | HB44: 2025 | HG44: =Start_year -> 2016 | HH44: =HG44+1 -> 2017 | HI44: =HH44+1 -> 2018 | HJ44: 2019 | HK44: 2020 | HL44: 2021 | HM44: 2022 | HN44: 2023 | HO44: 2024 | HP44: 2025 | HU44: =HG44 -> 2016 | HV44: 2017 | HW44: 2018 | HX44: 2019 | HY44: 2020 | HZ44: 2021 | IA44: 2022 | IB44: 2023 | IC44: 2024 | ID44: 2025 | II44: =HU44 -> 2016 | IJ44: 2017 | IK44: 2018 | IL44: 2019 | IM44: 2020 | IN44: 2021 | IO44: 2022 | IP44: 2023 | IQ44: 2024 | IR44: 2025 | IW44: =Start_year -> 2016 | IX44: =IW44+1 -> 2017 | IY44: =IX44+1 -> 2018 | IZ44: 2019 | JA44: 2020 | JB44: 2021 | JC44: 2022 | JD44: 2023 | JE44: 2024 | JF44: 2025 | JK44: =IW44 -> 2016 | JL44: 2017 | JM44: 2018 | JN44: 2019 | JO44: 2020 | JP44: 2021 | JQ44: 2022 | JR44: 2023 | JS44: 2024 | JT44: 2025 | JY44: =JK44 -> 2016 | JZ44: 2017 | KA44: 2018 | KB44: 2019 | KC44: 2020 | KD44: 2021 | KE44: 2022 | KF44: 2023 | KG44: 2024 | KH44: 2025 | KM44: =Start_year -> 2016 | KN44: =KM44+1 -> 2017 | KO44: =KN44+1 -> 2018 | KP44: 2019 | KQ44: 2020 | KR44: 2021 | KS44: 2022 | KT44: 2023 | KU44: 2024 | KV44: 2025 | LA44: =KM44 -> 2016 | LB44: 2017 | LC44: 2018 | LD44: 2019 | LE44: 2020 | LF44: 2021 | LG44: 2022 | LH44: 2023 | LI44: 2024 | LJ44: 2025 | LO44: =LA44 -> 2016 | LP44: 2017 | LQ44: 2018 | LR44: 2019 | LS44: 2020 | LT44: 2021 | LU44: 2022 | LV44: 2023 | LW44: 2024 | LX44: 2025 | MC44: =Start_year -> 2016 | MD44: =MC44+1 -> 2017 | ME44: =MD44+1 -> 2018 | MF44: 2019 | MG44: 2020 | MH44: 2021 | MI44: 2022 | MJ44: 2023 | MK44: 2024 | ML44: 2025 | MQ44: =MC44 -> 2016 | MR44: 2017 | MS44: 2018 | MT44: 2019 | MU44: 2020 | MV44: 2021 | MW44: 2022 | MX44: 2023 | MY44: 2024 | MZ44: 2025 | NE44: =MQ44 -> 2016 | NF44: 2017 | NG44: 2018 | NH44: 2019 | NI44: 2020 | NJ44: 2021 | NK44: 2022 | NL44: 2023 | NM44: 2024 | NN44: 2025 | NS44: =Start_year -> 2016 | NT44: =NS44+1 -> 2017 | NU44: =NT44+1 -> 2018 | NV44: 2019 | NW44: 2020 | NX44: 2021 | NY44: 2022 | NZ44: 2023 | OA44: 2024 | OB44: 2025 | OG44: =NS44 -> 2016 | OH44: 2017 | OI44: 2018 | OJ44: 2019 | OK44: 2020 | OL44: 2021 | OM44: 2022 | ON44: 2023 | OO44: 2024 | OP44: 2025 | OU44: =OG44 -> 2016 | OV44: 2017 | OW44: 2018 | OX44: 2019 | OY44: 2020 | OZ44: 2021 | PA44: 2022 | PB44: 2023 | PC44: 2024 | PD44: 2025
D45: Patinet cost profile | E45: ='B4. Optional variables'!C38 -> 0.9 | F45: ='B4. Optional variables'!D38 -> 0.02 | G45: ='B4. Optional variables'!E38 -> 0.02 | H45: ='B4. Optional variables'!F38 -> 0.02 | I45: ='B4. Optional variables'!G38 -> 0.01 | J45: ='B4. Optional variables'!H38 -> 0.03 | K45: ='B4. Optional variables'!I38 -> 0 | L45: ='B4. Optional variables'!J38 -> 0 | M45: ='B4. Optional variables'!K38 -> 0 | N45: ='B4. Optional variables'!L38 -> 0 | S45: ='B4. Optional variables'!C39 -> 0.9 | T45: ='B4. Optional variables'!D39 -> 0.02 | U45: ='B4. Optional variables'!E39 -> 0.02 | V45: ='B4. Optional variables'!F39 -> 0.02 | W45: ='B4. Optional variables'!G39 -> 0.01 | X45: ='B4. Optional variables'!H39 -> 0.03 | Y45: ='B4. Optional variables'!I39 -> 0 | Z45: ='B4. Optional variables'!J39 -> 0 | AA45: ='B4. Optional variables'!K39 -> 0 | AB45: ='B4. Optional variables'!L39 -> 0 | AG45: ='B4. Optional variables'!C40 -> 0.9 | AH45: ='B4. Optional variables'!D40 -> 0.02 | AI45: ='B4. Optional variables'!E40 -> 0.02 | AJ45: ='B4. Optional variables'!F40 -> 0.02 | AK45: ='B4. Optional variables'!G40 -> 0.01 | AL45: ='B4. Optional variables'!H40 -> 0.03 | AM45: ='B4. Optional variables'!I40 -> 0 | AN45: ='B4. Optional variables'!J40 -> 0 | AO45: ='B4. Optional variables'!K40 -> 0 | AP45: ='B4. Optional variables'!L40 -> 0 | AU45: 0 | AV45: =E45 -> 0.9 | AW45: 0.02 | AX45: 0.02 | AY45: 0.02 | AZ45: 0.01 | BA45: 0.03 | BB45: 0 | BC45: 0 | BD45: 0 | BI45: 0 | BJ45: =S45 -> 0.9 | BK45: 0.02 | BL45: 0.02 | BM45: 0.02 | BN45: 0.01 | BO45: 0.03 | BP45: 0 | BQ45: 0 | BR45: 0 | BW45: 0 | BX45: =AG45 -> 0.9 | BY45: 0.02 | BZ45: 0.02 | CA45: 0.02 | CB45: 0.01 | CC45: 0.03 | CD45: 0 | CE45: 0 | CF45: 0 | CK45: 0 | CL45: 0 | CM45: =E45 -> 0.9 | CN45: 0.02 | CO45: 0.02 | CP45: 0.02 | CQ45: 0.01 | CR45: 0.03 | CS45: 0 | CT45: 0 | CY45: 0 | CZ45: 0 | DA45: =S45 -> 0.9 | DB45: 0.02 | DC45: 0.02 | DD45: 0.02 | DE45: 0.01 | DF45: 0.03 | DG45: 0 | DH45: 0 | DM45: 0 | DN45: 0 | DO45: =AG45 -> 0.9 | DP45: 0.02 | DQ45: 0.02 | DR45: 0.02 | DS45: 0.01 | DT45: 0.03 | DU45: 0 | DV45: 0 | EA45: 0 | EB45: 0 | EC45: 0 | ED45: =E45 -> 0.9 | EE45: 0.02 | EF45: 0.02 | EG45: 0.02 | EH45: 0.01 | EI45: 0.03 | EJ45: 0 | EO45: 0 | EP45: 0 | EQ45: 0 | ER45: =S45 -> 0.9 | ES45: 0.02 | ET45: 0.02 | EU45: 0.02 | EV45: 0.01 | EW45: 0.03 | EX45: 0 | FC45: 0 | FD45: 0 | FE45: 0 | FF45: =AG45 -> 0.9 | FG45: 0.02 | FH45: 0.02 | FI45: 0.02 | FJ45: 0.01 | FK45: 0.03 | FL45: 0 | FQ45: 0 | FR45: 0 | FS45: 0 | FT45: 0 | FU45: =E45 -> 0.9 | FV45: 0.02 | FW45: 0.02 | FX45: 0.02 | FY45: 0.01 | FZ45: 0.03 | GE45: 0 | GF45: 0 | GG45: 0 | GH45: 0 | GI45: =S45 -> 0.9 | GJ45: 0.02 | GK45: 0.02 | GL45: 0.02 | GM45: 0.01 | GN45: 0.03 | GS45: 0 | GT45: 0 | GU45: 0 | GV45: 0 | GW45: =AG45 -> 0.9 | GX45: 0.02 | GY45: 0.02 | GZ45: 0.02 | HA45: 0.01 | HB45: 0.03 | HG45: 0 | HH45: 0 | HI45: 0 | HJ45: 0 | HK45: 0 | HL45: =E45 -> 0.9 | HM45: =F45 -> 0.02 | HN45: =G45 -> 0.02 | HO45: =H45 -> 0.02 | HP45: =I45 -> 0.01 | HU45: 0 | HV45: 0 | HW45: 0 | HX45: 0 | HY45: 0 | HZ45: =S45 -> 0.9 | IA45: =T45 -> 0.02 | IB45: =U45 -> 0.02 | IC45: =V45 -> 0.02 | ID45: =W45 -> 0.01 | II45: 0 | IJ45: 0 | IK45: 0 | IL45: 0 | IM45: 0 | IN45: =AG45 -> 0.9 | IO45: =AH45 -> 0.02 | IP45: =AI45 -> 0.02 | IQ45: =AJ45 -> 0.02 | IR45: =AK45 -> 0.01 | IW45: 0 | IX45: 0 | IY45: 0 | IZ45: 0 | JA45: 0 | JB45: 0 | JC45: =E45 -> 0.9 | JD45: =F45 -> 0.02 | JE45: =G45 -> 0.02 | JF45: =H45 -> 0.02 | JK45: 0 | JL45: 0 | JM45: 0 | JN45: 0 | JO45: 0 | JP45: 0 | JQ45: =S45 -> 0.9 | JR45: =T45 -> 0.02 | JS45: =U45 -> 0.02 | JT45: =V45 -> 0.02 | JY45: 0 | JZ45: 0 | KA45: 0 | KB45: 0 | KC45: 0 | KD45: 0 | KE45: =AG45 -> 0.9 | KF45: =AH45 -> 0.02 | KG45: =AI45 -> 0.02 | KH45: =AJ45 -> 0.02 | KM45: 0 | KN45: 0 | KO45: 0 | KP45: 0 | KQ45: 0 | KR45: 0 | KS45: 0 | KT45: =E45 -> 0.9 | KU45: =F45 -> 0.02 | KV45: =G45 -> 0.02 | LA45: 0 | LB45: 0 | LC45: 0 | LD45: 0 | LE45: 0 | LF45: 0 | LG45: 0 | LH45: =S45 -> 0.9 | LI45: =T45 -> 0.02 | LJ45: =U45 -> 0.02 | LO45: 0 | LP45: 0 | LQ45: 0 | LR45: 0 | LS45: 0 | LT45: 0 | LU45: 0 | LV45: =AG45 -> 0.9 | LW45: =AH45 -> 0.02 | LX45: =AI45 -> 0.02 | MC45: 0 | MD45: 0 | ME45: 0 | MF45: 0 | MG45: 0 | MH45: 0 | MI45: 0 | MJ45: 0 | MK45: =E45 -> 0.9 | ML45: =F45 -> 0.02 | MQ45: 0 | MR45: 0 | MS45: 0 | MT45: 0 | MU45: 0 | MV45: 0 | MW45: 0 | MX45: 0 | MY45: =S45 -> 0.9 | MZ45: =T45 -> 0.02 | NE45: 0 | NF45: 0 | NG45: 0 | NH45: 0 | NI45: 0 | NJ45: 0 | NK45: 0 | NL45: 0 | NM45: =AG45 -> 0.9 | NN45: =AH45 -> 0.02 | NS45: 0 | NT45: 0 | NU45: 0 | NV45: 0 | NW45: 0 | NX45: 0 | NY45: 0 | NZ45: 0 | OA45: 0 | OB45: =E45 -> 0.9 | OG45: 0 | OH45: 0 | OI45: 0 | OJ45: 0 | OK45: 0 | OL45: 0 | OM45: 0 | ON45: 0 | OO45: 0 | OP45: =S45 -> 0.9 | OU45: 0 | OV45: 0 | OW45: 0 | OX45: 0 | OY45: 0 | OZ45: 0 | PA45: 0 | PB45: 0 | PC45: 0 | PD45: =AG45 -> 0.9
D46: Activity | E46: =Activity!E46 -> 3.75 | F46: =E46 -> 3.75 | G46: =F46 -> 3.75 | H46: 3.75 | I46: 3.75 | J46: 3.75 | K46: 3.75 | L46: 3.75 | M46: 3.75 | N46: 3.75 | S46: =Activity!S46 -> 13.28888889 | T46: =S46 -> 13.28888889 | U46: =T46 -> 13.28888889 | V46: 13.28888889 | W46: 13.28888889 | X46: 13.28888889 | Y46: 13.28888889 | Z46: 13.28888889 | AA46: 13.28888889 | AB46: 13.28888889 | AG46: =Activity!AG46 -> 0 | AH46: =AG46 -> 0 | AI46: =AH46 -> 0 | AJ46: 0 | AK46: 0 | AL46: 0 | AM46: 0 | AN46: 0 | AO46: 0 | AP46: 0 | AU46: =Activity!F46 -> 3.825 | AV46: =AU46 -> 3.825 | AW46: =AV46 -> 3.825 | AX46: 3.825 | AY46: 3.825 | AZ46: 3.825 | BA46: 3.825 | BB46: 3.825 | BC46: 3.825 | BD46: 3.825 | BI46: =Activity!T46 -> 13.55466667 | BJ46: =BI46 -> 13.55466667 | BK46: =BJ46 -> 13.55466667 | BL46: 13.55466667 | BM46: 13.55466667 | BN46: 13.55466667 | BO46: 13.55466667 | BP46: 13.55466667 | BQ46: 13.55466667 | BR46: 13.55466667 | BW46: =Activity!AH46 -> 0 | BX46: =BW46 -> 0 | BY46: =BX46 -> 0 | BZ46: 0 | CA46: 0 | CB46: 0 | CC46: 0 | CD46: 0 | CE46: 0 | CF46: 0 | CK46: =Activity!G46 -> 3.9015 | CL46: =CK46 -> 3.9015 | CM46: 3.9015 | CN46: 3.9015 | CO46: 3.9015 | CP46: 3.9015 | CQ46: 3.9015 | CR46: 3.9015 | CS46: 3.9015 | CT46: 3.9015 | CY46: =Activity!U46 -> 13.82576 | CZ46: =CY46 -> 13.82576 | DA46: 13.82576 | DB46: 13.82576 | DC46: 13.82576 | DD46: 13.82576 | DE46: 13.82576 | DF46: 13.82576 | DG46: 13.82576 | DH46: 13.82576 | DM46: =Activity!AI46 -> 0 | DN46: =DM46 -> 0 | DO46: 0 | DP46: 0 | DQ46: 0 | DR46: 0 | DS46: 0 | DT46: 0 | DU46: 0 | DV46: 0 | EA46: =Activity!H46 -> 3.97953 | EB46: =EA46 -> 3.97953 | EC46: 3.97953 | ED46: 3.97953 | EE46: 3.97953 | EF46: 3.97953 | EG46: 3.97953 | EH46: 3.97953 | EI46: 3.97953 | EJ46: 3.97953 | EO46: =Activity!V46 -> 14.1022752 | EP46: =EO46 -> 14.1022752 | EQ46: 14.1022752 | ER46: 14.1022752 | ES46: 14.1022752 | ET46: 14.1022752 | EU46: 14.1022752 | EV46: 14.1022752 | EW46: 14.1022752 | EX46: 14.1022752 | FC46: =Activity!AJ46 -> 0 | FD46: =FC46 -> 0 | FE46: 0 | FF46: 0 | FG46: 0 | FH46: 0 | FI46: 0 | FJ46: 0 | FK46: 0 | FL46: 0 | FQ46: =Activity!I46 -> 4.0591206 | FR46: =FQ46 -> 4.0591206 | FS46: 4.0591206 | FT46: 4.0591206 | FU46: 4.0591206 | FV46: 4.0591206 | FW46: 4.0591206 | FX46: 4.0591206 | FY46: 4.0591206 | FZ46: 4.0591206 | GE46: =Activity!W46 -> 14.3843207 | GF46: =GE46 -> 14.3843207 | GG46: 14.3843207 | GH46: 14.3843207 | GI46: 14.3843207 | GJ46: 14.3843207 | GK46: 14.3843207 | GL46: 14.3843207 | GM46: 14.3843207 | GN46: 14.3843207 | GS46: =Activity!AK46 -> 0 | GT46: =GS46 -> 0 | GU46: 0 | GV46: 0 | GW46: 0 | GX46: 0 | GY46: 0 | GZ46: 0 | HA46: 0 | HB46: 0 | HG46: =Activity!J46 -> 4.140303012 | HH46: =HG46 -> 4.140303012 | HI46: 4.140303012 | HJ46: 4.140303012 | HK46: 4.140303012 | HL46: 4.140303012 | HM46: 4.140303012 | HN46: 4.140303012 | HO46: 4.140303012 | HP46: 4.140303012 | HU46: =Activity!X46 -> 14.67200712 | HV46: =HU46 -> 14.67200712 | HW46: 14.67200712 | HX46: 14.67200712 | HY46: 14.67200712 | HZ46: 14.67200712 | IA46: 14.67200712 | IB46: 14.67200712 | IC46: 14.67200712 | ID46: 14.67200712 | II46: =Activity!AL46 -> 0 | IJ46: =II46 -> 0 | IK46: 0 | IL46: 0 | IM46: 0 | IN46: 0 | IO46: 0 | IP46: 0 | IQ46: 0 | IR46: 0 | IW46: =Activity!K46 -> 4.223109072 | IX46: =IW46 -> 4.223109072 | IY46: 4.223109072 | IZ46: 4.223109072 | JA46: 4.223109072 | JB46: 4.223109072 | JC46: 4.223109072 | JD46: 4.223109072 | JE46: 4.223109072 | JF46: 4.223109072 | JK46: =Activity!Y46 -> 14.96544726 | JL46: =JK46 -> 14.96544726 | JM46: 14.96544726 | JN46: 14.96544726 | JO46: 14.96544726 | JP46: 14.96544726 | JQ46: 14.96544726 | JR46: 14.96544726 | JS46: 14.96544726 | JT46: 14.96544726 | JY46: =Activity!AM46 -> 0 | JZ46: =JY46 -> 0 | KA46: 0 | KB46: 0 | KC46: 0 | KD46: 0 | KE46: 0 | KF46: 0 | KG46: 0 | KH46: 0 | KM46: =Activity!L46 -> 4.307571254 | KN46: =KM46 -> 4.307571254 | KO46: 4.307571254 | KP46: 4.307571254 | KQ46: 4.307571254 | KR46: 4.307571254 | KS46: 4.307571254 | KT46: 4.307571254 | KU46: 4.307571254 | KV46: 4.307571254 | LA46: =Activity!Z46 -> 15.26475621 | LB46: =LA46 -> 15.26475621 | LC46: 15.26475621 | LD46: 15.26475621 | LE46: 15.26475621 | LF46: 15.26475621 | LG46: 15.26475621 | LH46: 15.26475621 | LI46: 15.26475621 | LJ46: 15.26475621 | LO46: =Activity!AN46 -> 0 | LP46: =LO46 -> 0 | LQ46: 0 | LR46: 0 | LS46: 0 | LT46: 0 | LU46: 0 | LV46: 0 | LW46: 0 | LX46: 0 | MC46: =Activity!M46 -> 4.393722679 | MD46: =MC46 -> 4.393722679 | ME46: 4.393722679 | MF46: 4.393722679 | MG46: 4.393722679 | MH46: 4.393722679 | MI46: 4.393722679 | MJ46: 4.393722679 | MK46: 4.393722679 | ML46: 4.393722679 | MQ46: =Activity!AA46 -> 15.57005133 | MR46: =MQ46 -> 15.57005133 | MS46: 15.57005133 | MT46: 15.57005133 | MU46: 15.57005133 | MV46: 15.57005133 | MW46: 15.57005133 | MX46: 15.57005133 | MY46: 15.57005133 | MZ46: 15.57005133 | NE46: =Activity!AO46 -> 0 | NF46: =NE46 -> 0 | NG46: 0 | NH46: 0 | NI46: 0 | NJ46: 0 | NK46: 0 | NL46: 0 | NM46: 0 | NN46: 0 | NS46: =Activity!N46 -> 4.481597132 | NT46: =NS46 -> 4.481597132 | NU46: 4.481597132 | NV46: 4.481597132 | NW46: 4.481597132 | NX46: 4.481597132 | NY46: 4.481597132 | NZ46: 4.481597132 | OA46: 4.481597132 | OB46: 4.481597132 | OG46: =Activity!AB46 -> 15.88145236 | OH46: =OG46 -> 15.88145236 | OI46: 15.88145236 | OJ46: 15.88145236 | OK46: 15.88145236 | OL46: 15.88145236 | OM46: 15.88145236 | ON46: 15.88145236 | OO46: 15.88145236 | OP46: 15.88145236 | OU46: =Activity!AP46 -> 0 | OV46: =OU46 -> 0 | OW46: 0 | OX46: 0 | OY46: 0 | OZ46: 0 | PA46: 0 | PB46: 0 | PC46: 0 | PD46: 0
A48: Stage - 2 Do nothing scenario | D48: Do nothing scenario
D50: Year 1 patients | AU50: Year 2 patients | CK50: Year 3 patients | EA50: Year 4 patients | FQ50: Year 5 patients | HG50: Year 6 patients | IW50: Year 7 patients | KM50: Year 8 patients | MC50: Year 9 patients | NS50: Year 10 patients
E52: =E19 -> 16405.20366 | F52: =F19 -> 16405.20366 | G52: 16405.20366 | H52: 16405.20366 | I52: 16405.20366 | J52: 16405.20366 | K52: 16405.20366 | L52: 16405.20366 | M52: 16405.20366 | N52: 16405.20366 | S52: =S19 -> 13020.00291 | T52: =T19 -> 13020.00291 | U52: 13020.00291 | V52: 13020.00291 | W52: 13020.00291 | X52: 13020.00291 | Y52: 13020.00291 | Z52: 13020.00291 | AA52: 13020.00291 | AB52: 13020.00291 | AG52: =AG19 -> 13020.00291 | AH52: =AH19 -> 13020.00291 | AI52: 13020.00291 | AJ52: 13020.00291 | AK52: 13020.00291 | AL52: 13020.00291 | AM52: 13020.00291 | AN52: 13020.00291 | AO52: 13020.00291 | AP52: 13020.00291 | AU52: =AU19 -> 16405.20366 | AV52: =AV19 -> 16405.20366 | AW52: 16405.20366 | AX52: 16405.20366 | AY52: 16405.20366 | AZ52: 16405.20366 | BA52: 16405.20366 | BB52: 16405.20366 | BC52: 16405.20366 | BD52: 16405.20366 | BI52: =BI19 -> 13020.00291 | BJ52: =BJ19 -> 13020.00291 | BK52: 13020.00291 | BL52: 13020.00291 | BM52: 13020.00291 | BN52: 13020.00291 | BO52: 13020.00291 | BP52: 13020.00291 | BQ52: 13020.00291 | BR52: 13020.00291 | BW52: =BW19 -> 13020.00291 | BX52: =BX19 -> 13020.00291 | BY52: 13020.00291 | BZ52: 13020.00291 | CA52: 13020.00291 | CB52: 13020.00291 | CC52: 13020.00291 | CD52: 13020.00291 | CE52: 13020.00291 | CF52: 13020.00291 | CK52: =CK19 -> 16405.20366 | CL52: =CL19 -> 16405.20366 | CM52: 16405.20366 | CN52: 16405.20366 | CO52: 16405.20366 | CP52: 16405.20366 | CQ52: 16405.20366 | CR52: 16405.20366 | CS52: 16405.20366 | CT52: 16405.20366 | CY52: =CY19 -> 13020.00291 | CZ52: =CZ19 -> 13020.00291 | DA52: 13020.00291 | DB52: 13020.00291 | DC52: 13020.00291 | DD52: 13020.00291 | DE52: 13020.00291 | DF52: 13020.00291 | DG52: 13020.00291 | DH52: 13020.00291 | DM52: =DM19 -> 13020.00291 | DN52: =DN19 -> 13020.00291 | DO52: 13020.00291 | DP52: 13020.00291 | DQ52: 13020.00291 | DR52: 13020.00291 | DS52: 13020.00291 | DT52: 13020.00291 | DU52: 13020.00291 | DV52: 13020.00291 | EA52: =EA19 -> 16405.20366 | EB52: =EB19 -> 16405.20366 | EC52: 16405.20366 | ED52: 16405.20366 | EE52: 16405.20366 | EF52: 16405.20366 | EG52: 16405.20366 | EH52: 16405.20366 | EI52: 16405.20366 | EJ52: 16405.20366 | EO52: =EO19 -> 13020.00291 | EP52: =EP19 -> 13020.00291 | EQ52: 13020.00291 | ER52: 13020.00291 | ES52: 13020.00291 | ET52: 13020.00291 | EU52: 13020.00291 | EV52: 13020.00291 | EW52: 13020.00291 | EX52: 13020.00291 | FC52: =FC19 -> 13020.00291 | FD52: =FD19 -> 13020.00291 | FE52: 13020.00291 | FF52: 13020.00291 | FG52: 13020.00291 | FH52: 13020.00291 | FI52: 13020.00291 | FJ52: 13020.00291 | FK52: 13020.00291 | FL52: 13020.00291 | FQ52: =FQ19 -> 16405.20366 | FR52: =FR19 -> 16405.20366 | FS52: 16405.20366 | FT52: 16405.20366 | FU52: 16405.20366 | FV52: 16405.20366 | FW52: 16405.20366 | FX52: 16405.20366 | FY52: 16405.20366 | FZ52: 16405.20366 | GE52: =GE19 -> 13020.00291 | GF52: =GF19 -> 13020.00291 | GG52: 13020.00291 | GH52: 13020.00291 | GI52: 13020.00291 | GJ52: 13020.00291 | GK52: 13020.00291 | GL52: 13020.00291 | GM52: 13020.00291 | GN52: 13020.00291 | GS52: =GS19 -> 13020.00291 | GT52: =GT19 -> 13020.00291 | GU52: 13020.00291 | GV52: 13020.00291 | GW52: 13020.00291 | GX52: 13020.00291 | GY52: 13020.00291 | GZ52: 13020.00291 | HA52: 13020.00291 | HB52: 13020.00291 | HG52: =HG19 -> 16405.20366 | HH52: =HH19 -> 16405.20366 | HI52: 16405.20366 | HJ52: 16405.20366 | HK52: 16405.20366 | HL52: 16405.20366 | HM52: 16405.20366 | HN52: 16405.20366 | HO52: 16405.20366 | HP52: 16405.20366 | HU52: =HU19 -> 13020.00291 | HV52: =HV19 -> 13020.00291 | HW52: 13020.00291 | HX52: 13020.00291 | HY52: 13020.00291 | HZ52: 13020.00291 | IA52: 13020.00291 | IB52: 13020.00291 | IC52: 13020.00291 | ID52: 13020.00291 | II52: =II19 -> 13020.00291 | IJ52: =IJ19 -> 13020.00291 | IK52: 13020.00291 | IL52: 13020.00291 | IM52: 13020.00291 | IN52: 13020.00291 | IO52: 13020.00291 | IP52: 13020.00291 | IQ52: 13020.00291 | IR52: 13020.00291 | IW52: =IW19 -> 16405.20366 | IX52: =IX19 -> 16405.20366 | IY52: 16405.20366 | IZ52: 16405.20366 | JA52: 16405.20366 | JB52: 16405.20366 | JC52: 16405.20366 | JD52: 16405.20366 | JE52: 16405.20366 | JF52: 16405.20366 | JK52: =JK19 -> 13020.00291 | JL52: =JL19 -> 13020.00291 | JM52: 13020.00291 | JN52: 13020.00291 | JO52: 13020.00291 | JP52: 13020.00291 | JQ52: 13020.00291 | JR52: 13020.00291 | JS52: 13020.00291 | JT52: 13020.00291 | JY52: =JY19 -> 13020.00291 | JZ52: =JZ19 -> 13020.00291 | KA52: 13020.00291 | KB52: 13020.00291 | KC52: 13020.00291 | KD52: 13020.00291 | KE52: 13020.00291 | KF52: 13020.00291 | KG52: 13020.00291 | KH52: 13020.00291 | KM52: =KM19 -> 16405.20366 | KN52: =KN19 -> 16405.20366 | KO52: 16405.20366 | KP52: 16405.20366 | KQ52: 16405.20366 | KR52: 16405.20366 | KS52: 16405.20366 | KT52: 16405.20366 | KU52: 16405.20366 | KV52: 16405.20366 | LA52: =LA19 -> 13020.00291 | LB52: =LB19 -> 13020.00291 | LC52: 13020.00291 | LD52: 13020.00291 | LE52: 13020.00291 | LF52: 13020.00291 | LG52: 13020.00291 | LH52: 13020.00291 | LI52: 13020.00291 | LJ52: 13020.00291 | LO52: =LO19 -> 13020.00291 | LP52: =LP19 -> 13020.00291 | LQ52: 13020.00291 | LR52: 13020.00291 | LS52: 13020.00291 | LT52: 13020.00291 | LU52: 13020.00291 | LV52: 13020.00291 | LW52: 13020.00291 | LX52: 13020.00291 | MC52: =MC19 -> 16405.20366 | MD52: =MD19 -> 16405.20366 | ME52: 16405.20366 | MF52: 16405.20366 | MG52: 16405.20366 | MH52: 16405.20366 | MI52: 16405.20366 | MJ52: 16405.20366 | MK52: 16405.20366 | ML52: 16405.20366 | MQ52: =MQ19 -> 13020.00291 | MR52: =MR19 -> 13020.00291 | MS52: 13020.00291 | MT52: 13020.00291 | MU52: 13020.00291 | MV52: 13020.00291 | MW52: 13020.00291 | MX52: 13020.00291 | MY52: 13020.00291 | MZ52: 13020.00291 | NE52: =NE19 -> 13020.00291 | NF52: =NF19 -> 13020.00291 | NG52: 13020.00291 | NH52: 13020.00291 | NI52: 13020.00291 | NJ52: 13020.00291 | NK52: 13020.00291 | NL52: 13020.00291 | NM52: 13020.00291 | NN52: 13020.00291 | NS52: =NS19 -> 16405.20366 | NT52: =NT19 -> 16405.20366 | NU52: 16405.20366 | NV52: 16405.20366 | NW52: 16405.20366 | NX52: 16405.20366 | NY52: 16405.20366 | NZ52: 16405.20366 | OA52: 16405.20366 | OB52: 16405.20366 | OG52: =OG19 -> 13020.00291 | OH52: =OH19 -> 13020.00291 | OI52: 13020.00291 | OJ52: 13020.00291 | OK52: 13020.00291 | OL52: 13020.00291 | OM52: 13020.00291 | ON52: 13020.00291 | OO52: 13020.00291 | OP52: 13020.00291 | OU52: =OU19 -> 13020.00291 | OV52: =OV19 -> 13020.00291 | OW52: 13020.00291 | OX52: 13020.00291 | OY52: 13020.00291 | OZ52: 13020.00291 | PA52: 13020.00291 | PB52: 13020.00291 | PC52: 13020.00291 | PD52: 13020.00291
E53: =Start_year -> 2016 | F53: =E53+1 -> 2017 | G53: 2018 | H53: 2019 | I53: 2020 | J53: 2021 | K53: 2022 | L53: 2023 | M53: 2024 | N53: 2025 | S53: =Start_year -> 2016 | T53: =S53+1 -> 2017 | U53: 2018 | V53: 2019 | W53: 2020 | X53: 2021 | Y53: 2022 | Z53: 2023 | AA53: 2024 | AB53: 2025 | AG53: =Start_year+1 -> 2017 | AH53: =AG53+1 -> 2018 | AI53: =AH53+1 -> 2019 | AJ53: 2020 | AK53: 2021 | AL53: 2022 | AM53: 2023 | AN53: 2024 | AO53: 2025 | AP53: 2026 | AU53: =Start_year -> 2016 | AV53: =AU53+1 -> 2017 | AW53: =AV53+1 -> 2018 | AX53: 2019 | AY53: 2020 | AZ53: 2021 | BA53: 2022 | BB53: 2023 | BC53: 2024 | BD53: 2025 | BI53: =AU53 -> 2016 | BJ53: 2017 | BK53: 2018 | BL53: 2019 | BM53: 2020 | BN53: 2021 | BO53: 2022 | BP53: 2023 | BQ53: 2024 | BR53: 2025 | BW53: =BI53 -> 2016 | BX53: 2017 | BY53: 2018 | BZ53: 2019 | CA53: 2020 | CB53: 2021 | CC53: 2022 | CD53: 2023 | CE53: 2024 | CF53: 2025 | CK53: =Start_year -> 2016 | CL53: =CK53+1 -> 2017 | CM53: =CL53+1 -> 2018 | CN53: 2019 | CO53: 2020 | CP53: 2021 | CQ53: 2022 | CR53: 2023 | CS53: 2024 | CT53: 2025 | CY53: =CK53 -> 2016 | CZ53: 2017 | DA53: 2018 | DB53: 2019 | DC53: 2020 | DD53: 2021 | DE53: 2022 | DF53: 2023 | DG53: 2024 | DH53: 2025 | DM53: =CY53 -> 2016 | DN53: 2017 | DO53: 2018 | DP53: 2019 | DQ53: 2020 | DR53: 2021 | DS53: 2022 | DT53: 2023 | DU53: 2024 | DV53: 2025 | EA53: =Start_year -> 2016 | EB53: =EA53+1 -> 2017 | EC53: =EB53+1 -> 2018 | ED53: 2019 | EE53: 2020 | EF53: 2021 | EG53: 2022 | EH53: 2023 | EI53: 2024 | EJ53: 2025 | EO53: =EA53 -> 2016 | EP53: 2017 | EQ53: 2018 | ER53: 2019 | ES53: 2020 | ET53: 2021 | EU53: 2022 | EV53: 2023 | EW53: 2024 | EX53: 2025 | FC53: =EO53 -> 2016 | FD53: 2017 | FE53: 2018 | FF53: 2019 | FG53: 2020 | FH53: 2021 | FI53: 2022 | FJ53: 2023 | FK53: 2024 | FL53: 2025 | FQ53: =Start_year -> 2016 | FR53: =FQ53+1 -> 2017 | FS53: =FR53+1 -> 2018 | FT53: 2019 | FU53: 2020 | FV53: 2021 | FW53: 2022 | FX53: 2023 | FY53: 2024 | FZ53: 2025 | GE53: =FQ53 -> 2016 | GF53: 2017 | GG53: 2018 | GH53: 2019 | GI53: 2020 | GJ53: 2021 | GK53: 2022 | GL53: 2023 | GM53: 2024 | GN53: 2025 | GS53: =GE53 -> 2016 | GT53: 2017 | GU53: 2018 | GV53: 2019 | GW53: 2020 | GX53: 2021 | GY53: 2022 | GZ53: 2023 | HA53: 2024 | HB53: 2025 | HG53: =Start_year -> 2016 | HH53: =HG53+1 -> 2017 | HI53: =HH53+1 -> 2018 | HJ53: 2019 | HK53: 2020 | HL53: 2021 | HM53: 2022 | HN53: 2023 | HO53: 2024 | HP53: 2025 | HU53: =HG53 -> 2016 | HV53: 2017 | HW53: 2018 | HX53: 2019 | HY53: 2020 | HZ53: 2021 | IA53: 2022 | IB53: 2023 | IC53: 2024 | ID53: 2025 | II53: =HU53 -> 2016 | IJ53: 2017 | IK53: 2018 | IL53: 2019 | IM53: 2020 | IN53: 2021 | IO53: 2022 | IP53: 2023 | IQ53: 2024 | IR53: 2025 | IW53: =Start_year -> 2016 | IX53: =IW53+1 -> 2017 | IY53: =IX53+1 -> 2018 | IZ53: 2019 | JA53: 2020 | JB53: 2021 | JC53: 2022 | JD53: 2023 | JE53: 2024 | JF53: 2025 | JK53: =IW53 -> 2016 | JL53: 2017 | JM53: 2018 | JN53: 2019 | JO53: 2020 | JP53: 2021 | JQ53: 2022 | JR53: 2023 | JS53: 2024 | JT53: 2025 | JY53: =JK53 -> 2016 | JZ53: 2017 | KA53: 2018 | KB53: 2019 | KC53: 2020 | KD53: 2021 | KE53: 2022 | KF53: 2023 | KG53: 2024 | KH53: 2025 | KM53: =Start_year -> 2016 | KN53: =KM53+1 -> 2017 | KO53: =KN53+1 -> 2018 | KP53: 2019 | KQ53: 2020 | KR53: 2021 | KS53: 2022 | KT53: 2023 | KU53: 2024 | KV53: 2025 | LA53: =KM53 -> 2016 | LB53: 2017 | LC53: 2018 | LD53: 2019 | LE53: 2020 | LF53: 2021 | LG53: 2022 | LH53: 2023 | LI53: 2024 | LJ53: 2025 | LO53: =LA53 -> 2016 | LP53: 2017 | LQ53: 2018 | LR53: 2019 | LS53: 2020 | LT53: 2021 | LU53: 2022 | LV53: 2023 | LW53: 2024 | LX53: 2025 | MC53: =Start_year -> 2016 | MD53: =MC53+1 -> 2017 | ME53: =MD53+1 -> 2018 | MF53: 2019 | MG53: 2020 | MH53: 2021 | MI53: 2022 | MJ53: 2023 | MK53: 2024 | ML53: 2025 | MQ53: =MC53 -> 2016 | MR53: 2017 | MS53: 2018 | MT53: 2019 | MU53: 2020 | MV53: 2021 | MW53: 2022 | MX53: 2023 | MY53: 2024 | MZ53: 2025 | NE53: =MQ53 -> 2016 | NF53: 2017 | NG53: 2018 | NH53: 2019 | NI53: 2020 | NJ53: 2021 | NK53: 2022 | NL53: 2023 | NM53: 2024 | NN53: 2025 | NS53: =Start_year -> 2016 | NT53: =NS53+1 -> 2017 | NU53: =NT53+1 -> 2018 | NV53: 2019 | NW53: 2020 | NX53: 2021 | NY53: 2022 | NZ53: 2023 | OA53: 2024 | OB53: 2025 | OG53: =NS53 -> 2016 | OH53: 2017 | OI53: 2018 | OJ53: 2019 | OK53: 2020 | OL53: 2021 | OM53: 2022 | ON53: 2023 | OO53: 2024 | OP53: 2025 | OU53: =OG53 -> 2016 | OV53: 2017 | OW53: 2018 | OX53: 2019 | OY53: 2020 | OZ53: 2021 | PA53: 2022 | PB53: 2023 | PC53: 2024 | PD53: 2025
D54: Activity cost | E54: =E46*E45*E41 -> 33972.93418 | F54: =F46*F45*F41 -> 754.9540928 | G54: 754.9540928 | H54: 754.9540928 | I54: 377.4770464 | J54: 1132.431139 | K54: 0 | L54: 0 | M54: 0 | N54: 0 | S54: =S46*S45*S41 -> 95547.62911 | T54: =T46*T45*T41 -> 2123.280647 | U54: 2123.280647 | V54: 2123.280647 | W54: 1061.640323 | X54: 3184.92097 | Y54: 0 | Z54: 0 | AA54: 0 | AB54: 0 | AG54: =AG46*AG45*AG41 -> 0 | AH54: =AH46*AH45*AH41 -> 0 | AI54: 0 | AJ54: 0 | AK54: 0 | AL54: 0 | AM54: 0 | AN54: 0 | AO54: 0 | AP54: 0 | AU54: 0 | AV54: =AV46*AV45*AV41 -> 34652.39286 | AW54: 770.0531747 | AX54: 770.0531747 | AY54: 770.0531747 | AZ54: 385.0265874 | BA54: 1155.079762 | BB54: 0 | BC54: 0 | BD54: 0 | BI54: 0 | BJ54: =BJ46*BJ45*BJ41 -> 97458.58169 | BK54: 2165.74626 | BL54: 2165.74626 | BM54: 2165.74626 | BN54: 1082.87313 | BO54: 3248.61939 | BP54: 0 | BQ54: 0 | BR54: 0 | BW54: 0 | BX54: =BX46*BX45*BX41 -> 0 | BY54: 0 | BZ54: 0 | CA54: 0 | CB54: 0 | CC54: 0 | CD54: 0 | CE54: 0 | CF54: 0 | CK54: 0 | CL54: 0 | CM54: =CM46*CM45*CM41 -> 35345.44072 | CN54: 785.4542382 | CO54: 785.4542382 | CP54: 785.4542382 | CQ54: 392.7271191 | CR54: 1178.181357 | CS54: 0 | CT54: 0 | CY54: 0 | CZ54: 0 | DA54: =DA46*DA45*DA41 -> 99407.75332 | DB54: =DB46*DB45*DB41 -> 2209.061185 | DC54: 2209.061185 | DD54: 2209.061185 | DE54: 1104.530592 | DF54: 3313.591777 | DG54: 0 | DH54: 0 | DM54: 0 | DN54: 0 | DO54: =DO46*DO45*DO41 -> 0 | DP54: =DP46*DP45*DP41 -> 0 | DQ54: 0 | DR54: 0 | DS54: 0 | DT54: 0 | DU54: 0 | DV54: 0 | EA54: 0 | EB54: 0 | EC54: 0 | ED54: =ED46*ED45*ED41 -> 36052.34953 | EE54: 801.163323 | EF54: 801.163323 | EG54: 801.163323 | EH54: 400.5816615 | EI54: 1201.744984 | EJ54: 0 | EO54: 0 | EP54: 0 | EQ54: 0 | ER54: =ER46*ER45*ER41 -> 101395.9084 | ES54: 2253.242409 | ET54: 2253.242409 | EU54: 2253.242409 | EV54: 1126.621204 | EW54: 3379.863613 | EX54: 0 | FC54: 0 | FD54: 0 | FE54: 0 | FF54: =FF46*FF45*FF41 -> 0 | FG54: 0 | FH54: 0 | FI54: 0 | FJ54: 0 | FK54: 0 | FL54: 0 | FQ54: 0 | FR54: 0 | FS54: 0 | FT54: 0 | FU54: =FU46*FU45*FU41 -> 36773.39652 | FV54: 817.1865894 | FW54: 817.1865894 | FX54: 817.1865894 | FY54: 408.5932947 | FZ54: 1225.779884 | GE54: 0 | GF54: 0 | GG54: 0 | GH54: 0 | GI54: =GI46*GI45*GI41 -> 103423.8266 | GJ54: 2298.307257 | GK54: 2298.307257 | GL54: 2298.307257 | GM54: 1149.153628 | GN54: 3447.460885 | GS54: 0 | GT54: 0 | GU54: 0 | GV54: 0 | GW54: =GW46*GW45*GW41 -> 0 | GX54: 0 | GY54: 0 | GZ54: 0 | HA54: 0 | HB54: 0 | HG54: 0 | HH54: 0 | HI54: 0 | HJ54: 0 | HK54: 0 | HL54: =HL46*HL45*HL41 -> 37508.86445 | HM54: =HM46*HM45*HM41 -> 833.5303212 | HN54: =HN46*HN45*HN41 -> 833.5303212 | HO54: =HO46*HO45*HO41 -> 833.5303212 | HP54: =HP46*HP45*HP41 -> 416.7651606 | HU54: 0 | HV54: 0 | HW54: 0 | HX54: 0 | HY54: 0 | HZ54: =HZ46*HZ45*HZ41 -> 105492.3031 | IA54: =IA46*IA45*IA41 -> 2344.273402 | IB54: =IB46*IB45*IB41 -> 2344.273402 | IC54: =IC46*IC45*IC41 -> 2344.273402 | ID54: =ID46*ID45*ID41 -> 1172.136701 | II54: 0 | IJ54: 0 | IK54: 0 | IL54: 0 | IM54: 0 | IN54: =IN46*IN45*IN41 -> 0 | IO54: =IO46*IO45*IO41 -> 0 | IP54: =IP46*IP45*IP41 -> 0 | IQ54: =IQ46*IQ45*IQ41 -> 0 | IR54: =IR46*IR45*IR41 -> 0 | IW54: 0 | IX54: 0 | IY54: 0 | IZ54: 0 | JA54: 0 | JB54: 0 | JC54: =JC46*JC45*JC41 -> 38259.04174 | JD54: =JD46*JD45*JD41 -> 850.2009276 | JE54: =JE46*JE45*JE41 -> 850.2009276 | JF54: =JF46*JF45*JF41 -> 850.2009276 | JK54: 0 | JL54: 0 | JM54: 0 | JN54: 0 | JO54: 0 | JP54: 0 | JQ54: =JQ46*JQ45*JQ41 -> 107602.1491 | JR54: =JR46*JR45*JR41 -> 2391.15887 | JS54: =JS46*JS45*JS41 -> 2391.15887 | JT54: =JT46*JT45*JT41 -> 2391.15887 | JY54: 0 | JZ54: 0 | KA54: 0 | KB54: 0 | KC54: 0 | KD54: 0 | KE54: =KE46*KE45*KE41 -> 0 | KF54: =KF46*KF45*KF41 -> 0 | KG54: =KG46*KG45*KG41 -> 0 | KH54: =KH46*KH45*KH41 -> 0 | KM54: 0 | KN54: 0 | KO54: 0 | KP54: 0 | KQ54: 0 | KR54: 0 | KS54: 0 | KT54: =KT46*KT45*KT41 -> 39024.22258 | KU54: =KU46*KU45*KU41 -> 867.2049462 | KV54: =KV46*KV45*KV41 -> 867.2049462 | LA54: 0 | LB54: 0 | LC54: 0 | LD54: 0 | LE54: 0 | LF54: 0 | LG54: 0 | LH54: =LH46*LH45*LH41 -> 109754.1921 | LI54: =LI46*LI45*LI41 -> 2438.982047 | LJ54: =LJ46*LJ45*LJ41 -> 2438.982047 | LO54: 0 | LP54: 0 | LQ54: 0 | LR54: 0 | LS54: 0 | LT54: 0 | LU54: 0 | LV54: =LV46*LV45*LV41 -> 0 | LW54: =LW46*LW45*LW41 -> 0 | LX54: =LX46*LX45*LX41 -> 0 | MC54: 0 | MD54: 0 | ME54: 0 | MF54: 0 | MG54: 0 | MH54: 0 | MI54: 0 | MJ54: 0 | MK54: =MK46*MK45*MK41 -> 39804.70703 | ML54: =ML46*ML45*ML41 -> 884.5490451 | MQ54: 0 | MR54: 0 | MS54: 0 | MT54: 0 | MU54: 0 | MV54: 0 | MW54: 0 | MX54: 0 | MY54: =MY46*MY45*MY41 -> 111949.276 | MZ54: =MZ46*MZ45*MZ41 -> 2487.761688 | NE54: 0 | NF54: 0 | NG54: 0 | NH54: 0 | NI54: 0 | NJ54: 0 | NK54: 0 | NL54: 0 | NM54: =NM46*NM45*NM41 -> 0 | NN54: =NN46*NN45*NN41 -> 0 | NS54: 0 | NT54: 0 | NU54: 0 | NV54: 0 | NW54: 0 | NX54: 0 | NY54: 0 | NZ54: 0 | OA54: 0 | OB54: =OB46*OB45*OB41 -> 40600.80117 | OG54: 0 | OH54: 0 | OI54: 0 | OJ54: 0 | OK54: 0 | OL54: 0 | OM54: 0 | ON54: 0 | OO54: 0 | OP54: =OP46*OP45*OP41 -> 114188.2615 | OU54: 0 | OV54: 0 | OW54: 0 | OX54: 0 | OY54: 0 | OZ54: 0 | PA54: 0 | PB54: 0 | PC54: 0 | PD54: =PD46*PD45*PD41 -> 0
D55: Recurrence cost | E55: =E46*E42*E52/10 -> 1167.745053 | F55: =F46*F42*F52/10 -> 1167.745053 | G55: 1167.745053 | H55: 1167.745053 | I55: 1167.745053 | J55: 1167.745053 | K55: 1167.745053 | L55: 1167.745053 | M55: 1167.745053 | N55: 1167.745053 | S55: =S46*S42*S52/10 -> 3284.240056 | T55: =T46*T42*T52/10 -> 3284.240056 | U55: 3284.240056 | V55: 3284.240056 | W55: 3284.240056 | X55: 3284.240056 | Y55: 3284.240056 | Z55: 3284.240056 | AA55: 3284.240056 | AB55: 3284.240056 | AG55: =AG46*AG42*AG52/10 -> 0 | AH55: =AH46*AH42*AH52/10 -> 0 | AI55: 0 | AJ55: 0 | AK55: 0 | AL55: 0 | AM55: 0 | AN55: 0 | AO55: 0 | AP55: 0 | AU55: 0 | AV55: =AV46*AV42*AV52/10 -> 1191.099954 | AW55: 1191.099954 | AX55: 1191.099954 | AY55: 1191.099954 | AZ55: 1191.099954 | BA55: 1191.099954 | BB55: 1191.099954 | BC55: 1191.099954 | BD55: 1191.099954 | BI55: 0 | BJ55: =BJ46*BJ42*BJ52/10 -> 3349.924857 | BK55: 3349.924857 | BL55: 3349.924857 | BM55: 3349.924857 | BN55: 3349.924857 | BO55: 3349.924857 | BP55: 3349.924857 | BQ55: 3349.924857 | BR55: 3349.924857 | BW55: 0 | BX55: =BX46*BX42*BX52/10 -> 0 | BY55: 0 | BZ55: 0 | CA55: 0 | CB55: 0 | CC55: 0 | CD55: 0 | CE55: 0 | CF55: 0 | CK55: 0 | CL55: 0 | CM55: =CM46*CM42*CM52/10 -> 1214.921953 | CN55: 1214.921953 | CO55: 1214.921953 | CP55: 1214.921953 | CQ55: 1214.921953 | CR55: 1214.921953 | CS55: 1214.921953 | CT55: 1214.921953 | CY55: 0 | CZ55: 0 | DA55: =DA46*DA42*DA52/10 -> 3416.923354 | DB55: 3416.923354 | DC55: 3416.923354 | DD55: 3416.923354 | DE55: 3416.923354 | DF55: 3416.923354 | DG55: 3416.923354 | DH55: 3416.923354 | DM55: 0 | DN55: 0 | DO55: =DO46*DO42*DO52/10 -> 0 | DP55: 0 | DQ55: 0 | DR55: 0 | DS55: 0 | DT55: 0 | DU55: 0 | DV55: 0 | EA55: 0 | EB55: 0 | EC55: 0 | ED55: =ED46*ED42*ED52/10 -> 1239.220393 | EE55: 1239.220393 | EF55: 1239.220393 | EG55: 1239.220393 | EH55: 1239.220393 | EI55: 1239.220393 | EJ55: 1239.220393 | EO55: 0 | EP55: 0 | EQ55: 0 | ER55: =ER46*ER42*ER52/10 -> 3485.261821 | ES55: 3485.261821 | ET55: 3485.261821 | EU55: 3485.261821 | EV55: 3485.261821 | EW55: 3485.261821 | EX55: 3485.261821 | FC55: 0 | FD55: 0 | FE55: 0 | FF55: =FF46*FF42*FF52/10 -> 0 | FG55: 0 | FH55: 0 | FI55: 0 | FJ55: 0 | FK55: 0 | FL55: 0 | FQ55: 0 | FR55: 0 | FS55: 0 | FT55: 0 | FU55: =FU46*FU42*FU52/10 -> 1264.0048 | FV55: 1264.0048 | FW55: 1264.0048 | FX55: 1264.0048 | FY55: 1264.0048 | FZ55: 1264.0048 | GE55: 0 | GF55: 0 | GG55: 0 | GH55: 0 | GI55: =GI46*GI42*GI52/10 -> 3554.967058 | GJ55: 3554.967058 | GK55: 3554.967058 | GL55: 3554.967058 | GM55: 3554.967058 | GN55: 3554.967058 | GS55: 0 | GT55: 0 | GU55: 0 | GV55: 0 | GW55: =GW46*GW42*GW52/10 -> 0 | GX55: 0 | GY55: 0 | GZ55: 0 | HA55: 0 | HB55: 0 | HG55: 0 | HH55: 0 | HI55: 0 | HJ55: 0 | HK55: 0 | HL55: =HL46*HL42*HL52/10 -> 1289.284896 | HM55: =HM46*HM42*HM52/10 -> 1289.284896 | HN55: =HN46*HN42*HN52/10 -> 1289.284896 | HO55: =HO46*HO42*HO52/10 -> 1289.284896 | HP55: =HP46*HP42*HP52/10 -> 1289.284896 | HU55: 0 | HV55: 0 | HW55: 0 | HX55: 0 | HY55: 0 | HZ55: =HZ46*HZ42*HZ52/10 -> 3626.066399 | IA55: =IA46*IA42*IA52/10 -> 3626.066399 | IB55: =IB46*IB42*IB52/10 -> 3626.066399 | IC55: =IC46*IC42*IC52/10 -> 3626.066399 | ID55: =ID46*ID42*ID52/10 -> 3626.066399 | II55: 0 | IJ55: 0 | IK55: 0 | IL55: 0 | IM55: 0 | IN55: =IN46*IN42*IN52/10 -> 0 | IO55: =IO46*IO42*IO52/10 -> 0 | IP55: =IP46*IP42*IP52/10 -> 0 | IQ55: =IQ46*IQ42*IQ52/10 -> 0 | IR55: =IR46*IR42*IR52/10 -> 0 | IW55: 0 | IX55: 0 | IY55: 0 | IZ55: 0 | JA55: 0 | JB55: 0 | JC55: =JC46*JC42*JC52/10 -> 1315.070594 | JD55: =JD46*JD42*JD52/10 -> 1315.070594 | JE55: =JE46*JE42*JE52/10 -> 1315.070594 | JF55: =JF46*JF42*JF52/10 -> 1315.070594 | JK55: 0 | JL55: 0 | JM55: 0 | JN55: 0 | JO55: 0 | JP55: 0 | JQ55: =JQ46*JQ42*JQ52/10 -> 3698.587727 | JR55: =JR46*JR42*JR52/10 -> 3698.587727 | JS55: =JS46*JS42*JS52/10 -> 3698.587727 | JT55: =JT46*JT42*JT52/10 -> 3698.587727 | JY55: 0 | JZ55: 0 | KA55: 0 | KB55: 0 | KC55: 0 | KD55: 0 | KE55: =KE46*KE42*KE52/10 -> 0 | KF55: =KF46*KF42*KF52/10 -> 0 | KG55: =KG46*KG42*KG52/10 -> 0 | KH55: =KH46*KH42*KH52/10 -> 0 | KM55: 0 | KN55: 0 | KO55: 0 | KP55: 0 | KQ55: 0 | KR55: 0 | KS55: 0 | KT55: =KT46*KT42*KT52/10 -> 1341.372006 | KU55: =KU46*KU42*KU52/10 -> 1341.372006 | KV55: =KV46*KV42*KV52/10 -> 1341.372006 | LA55: 0 | LB55: 0 | LC55: 0 | LD55: 0 | LE55: 0 | LF55: 0 | LG55: 0 | LH55: =LH46*LH42*LH52/10 -> 3772.559481 | LI55: =LI46*LI42*LI52/10 -> 3772.559481 | LJ55: =LJ46*LJ42*LJ52/10 -> 3772.559481 | LO55: 0 | LP55: 0 | LQ55: 0 | LR55: 0 | LS55: 0 | LT55: 0 | LU55: 0 | LV55: =LV46*LV42*LV52/10 -> 0 | LW55: =LW46*LW42*LW52/10 -> 0 | LX55: =LX46*LX42*LX52/10 -> 0 | MC55: 0 | MD55: 0 | ME55: 0 | MF55: 0 | MG55: 0 | MH55: 0 | MI55: 0 | MJ55: 0 | MK55: =MK46*MK42*MK52/10 -> 1368.199446 | ML55: =ML46*ML42*ML52/10 -> 1368.199446 | MQ55: 0 | MR55: 0 | MS55: 0 | MT55: 0 | MU55: 0 | MV55: 0 | MW55: 0 | MX55: 0 | MY55: =MY46*MY42*MY52/10 -> 3848.010671 | MZ55: =MZ46*MZ42*MZ52/10 -> 3848.010671 | NE55: 0 | NF55: 0 | NG55: 0 | NH55: 0 | NI55: 0 | NJ55: 0 | NK55: 0 | NL55: 0 | NM55: =NM46*NM42*NM52/10 -> 0 | NN55: =NN46*NN42*NN52/10 -> 0 | NS55: 0 | NT55: 0 | NU55: 0 | NV55: 0 | NW55: 0 | NX55: 0 | NY55: 0 | NZ55: 0 | OA55: 0 | OB55: =OB46*OB42*OB52/10 -> 1395.563435 | OG55: 0 | OH55: 0 | OI55: 0 | OJ55: 0 | OK55: 0 | OL55: 0 | OM55: 0 | ON55: 0 | OO55: 0 | OP55: =OP46*OP42*OP52/10 -> 3924.970884 | OU55: 0 | OV55: 0 | OW55: 0 | OX55: 0 | OY55: 0 | OZ55: 0 | PA55: 0 | PB55: 0 | PC55: 0 | PD55: =PD46*PD42*PD52/10 -> 0
D57: Total cost | E57: =SUM(E54:E55) -> 35140.67923 | F57: =SUM(F54:F55) -> 1922.699146 | G57: 1922.699146 | H57: 1922.699146 | I57: 1545.2221 | J57: 2300.176193 | K57: 1167.745053 | L57: 1167.745053 | M57: 1167.745053 | N57: 1167.745053 | S57: =SUM(S54:S55) -> 98831.86916 | T57: =SUM(T54:T55) -> 5407.520703 | U57: 5407.520703 | V57: 5407.520703 | W57: 4345.880379 | X57: 6469.161026 | Y57: 3284.240056 | Z57: 3284.240056 | AA57: 3284.240056 | AB57: 3284.240056 | AG57: =SUM(AG54:AG55) -> 0 | AH57: =SUM(AH54:AH55) -> 0 | AI57: 0 | AJ57: 0 | AK57: 0 | AL57: 0 | AM57: 0 | AN57: 0 | AO57: 0 | AP57: 0 | AU57: =SUM(AU54:AU55) -> 0 | AV57: =SUM(AV54:AV55) -> 35843.49282 | AW57: 1961.153129 | AX57: 1961.153129 | AY57: 1961.153129 | AZ57: 1576.126542 | BA57: 2346.179716 | BB57: 1191.099954 | BC57: 1191.099954 | BD57: 1191.099954 | BI57: =SUM(BI54:BI55) -> 0 | BJ57: =SUM(BJ54:BJ55) -> 100808.5065 | BK57: 5515.671117 | BL57: 5515.671117 | BM57: 5515.671117 | BN57: 4432.797987 | BO57: 6598.544247 | BP57: 3349.924857 | BQ57: 3349.924857 | BR57: 3349.924857 | BW57: =SUM(BW54:BW55) -> 0 | BX57: =SUM(BX54:BX55) -> 0 | BY57: 0 | BZ57: 0 | CA57: 0 | CB57: 0 | CC57: 0 | CD57: 0 | CE57: 0 | CF57: 0 | CK57: =SUM(CK54:CK55) -> 0 | CL57: =SUM(CL54:CL55) -> 0 | CM57: 36560.36267 | CN57: 2000.376192 | CO57: 2000.376192 | CP57: 2000.376192 | CQ57: 1607.649073 | CR57: 2393.103311 | CS57: 1214.921953 | CT57: 1214.921953 | CY57: =SUM(CY54:CY55) -> 0 | CZ57: =SUM(CZ54:CZ55) -> 0 | DA57: 102824.6767 | DB57: 5625.984539 | DC57: 5625.984539 | DD57: 5625.984539 | DE57: 4521.453947 | DF57: 6730.515132 | DG57: 3416.923354 | DH57: 3416.923354 | DM57: =SUM(DM54:DM55) -> 0 | DN57: =SUM(DN54:DN55) -> 0 | DO57: 0 | DP57: 0 | DQ57: 0 | DR57: 0 | DS57: 0 | DT57: 0 | DU57: 0 | DV57: 0 | EA57: =SUM(EA54:EA55) -> 0 | EB57: =SUM(EB54:EB55) -> 0 | EC57: 0 | ED57: 37291.56993 | EE57: 2040.383716 | EF57: 2040.383716 | EG57: 2040.383716 | EH57: 1639.802054 | EI57: 2440.965377 | EJ57: 1239.220393 | EO57: =SUM(EO54:EO55) -> 0 | EP57: =SUM(EP54:EP55) -> 0 | EQ57: 0 | ER57: 104881.1702 | ES57: 5738.50423 | ET57: 5738.50423 | EU57: 5738.50423 | EV57: 4611.883026 | EW57: 6865.125434 | EX57: 3485.261821 | FC57: =SUM(FC54:FC55) -> 0 | FD57: =SUM(FD54:FD55) -> 0 | FE57: 0 | FF57: 0 | FG57: 0 | FH57: 0 | FI57: 0 | FJ57: 0 | FK57: 0 | FL57: 0 | FQ57: =SUM(FQ54:FQ55) -> 0 | FR57: =SUM(FR54:FR55) -> 0 | FS57: 0 | FT57: 0 | FU57: 38037.40132 | FV57: 2081.19139 | FW57: 2081.19139 | FX57: 2081.19139 | FY57: 1672.598095 | FZ57: 2489.784685 | GE57: =SUM(GE54:GE55) -> 0 | GF57: =SUM(GF54:GF55) -> 0 | GG57: 0 | GH57: 0 | GI57: 106978.7936 | GJ57: 5853.274314 | GK57: 5853.274314 | GL57: 5853.274314 | GM57: 4704.120686 | GN57: 7002.427943 | GS57: =SUM(GS54:GS55) -> 0 | GT57: =SUM(GT54:GT55) -> 0 | GU57: 0 | GV57: 0 | GW57: 0 | GX57: 0 | GY57: 0 | GZ57: 0 | HA57: 0 | HB57: 0 | HG57: =SUM(HG54:HG55) -> 0 | HH57: =SUM(HH54:HH55) -> 0 | HI57: 0 | HJ57: 0 | HK57: 0 | HL57: 38798.14935 | HM57: 2122.815218 | HN57: 2122.815218 | HO57: 2122.815218 | HP57: 1706.050057 | HU57: =SUM(HU54:HU55) -> 0 | HV57: =SUM(HV54:HV55) -> 0 | HW57: 0 | HX57: 0 | HY57: 0 | HZ57: 109118.3695 | IA57: 5970.339801 | IB57: 5970.339801 | IC57: 5970.339801 | ID57: 4798.2031 | II57: =SUM(II54:II55) -> 0 | IJ57: =SUM(IJ54:IJ55) -> 0 | IK57: 0 | IL57: 0 | IM57: 0 | IN57: 0 | IO57: 0 | IP57: 0 | IQ57: 0 | IR57: 0 | IW57: =SUM(IW54:IW55) -> 0 | IX57: =SUM(IX54:IX55) -> 0 | IY57: 0 | IZ57: 0 | JA57: 0 | JB57: 0 | JC57: 39574.11234 | JD57: 2165.271522 | JE57: 2165.271522 | JF57: 2165.271522 | JK57: =SUM(JK54:JK55) -> 0 | JL57: =SUM(JL54:JL55) -> 0 | JM57: 0 | JN57: 0 | JO57: 0 | JP57: 0 | JQ57: 111300.7369 | JR57: 6089.746597 | JS57: 6089.746597 | JT57: 6089.746597 | JY57: =SUM(JY54:JY55) -> 0 | JZ57: =SUM(JZ54:JZ55) -> 0 | KA57: 0 | KB57: 0 | KC57: 0 | KD57: 0 | KE57: 0 | KF57: 0 | KG57: 0 | KH57: 0 | KM57: =SUM(KM54:KM55) -> 0 | KN57: =SUM(KN54:KN55) -> 0 | KO57: 0 | KP57: 0 | KQ57: 0 | KR57: 0 | KS57: 0 | KT57: 40365.59458 | KU57: 2208.576952 | KV57: 2208.576952 | LA57: =SUM(LA54:LA55) -> 0 | LB57: =SUM(LB54:LB55) -> 0 | LC57: 0 | LD57: 0 | LE57: 0 | LF57: 0 | LG57: 0 | LH57: 113526.7516 | LI57: 6211.541529 | LJ57: 6211.541529 | LO57: =SUM(LO54:LO55) -> 0 | LP57: =SUM(LP54:LP55) -> 0 | LQ57: 0 | LR57: 0 | LS57: 0 | LT57: 0 | LU57: 0 | LV57: 0 | LW57: 0 | LX57: 0 | MC57: =SUM(MC54:MC55) -> 0 | MD57: =SUM(MD54:MD55) -> 0 | ME57: 0 | MF57: 0 | MG57: 0 | MH57: 0 | MI57: 0 | MJ57: 0 | MK57: 41172.90648 | ML57: 2252.748491 | MQ57: =SUM(MQ54:MQ55) -> 0 | MR57: =SUM(MR54:MR55) -> 0 | MS57: 0 | MT57: 0 | MU57: 0 | MV57: 0 | MW57: 0 | MX57: 0 | MY57: 115797.2866 | MZ57: 6335.772359 | NE57: =SUM(NE54:NE55) -> 0 | NF57: =SUM(NF54:NF55) -> 0 | NG57: 0 | NH57: 0 | NI57: 0 | NJ57: 0 | NK57: 0 | NL57: 0 | NM57: 0 | NN57: 0 | NS57: =SUM(NS54:NS55) -> 0 | NT57: =SUM(NT54:NT55) -> 0 | NU57: 0 | NV57: 0 | NW57: 0 | NX57: 0 | NY57: 0 | NZ57: 0 | OA57: 0 | OB57: 41996.36461 | OG57: =SUM(OG54:OG55) -> 0 | OH57: =SUM(OH54:OH55) -> 0 | OI57: 0 | OJ57: 0 | OK57: 0 | OL57: 0 | OM57: 0 | ON57: 0 | OO57: 0 | OP57: 118113.2324 | OU57: =SUM(OU54:OU55) -> 0 | OV57: =SUM(OV54:OV55) -> 0 | OW57: 0 | OX57: 0 | OY57: 0 | OZ57: 0 | PA57: 0 | PB57: 0 | PC57: 0 | PD57: 0
A59: Stage - 2 Do something scenario | D59: Do something scenario
D60: Emergency | S60: Elective | AG60: Screening | BI60: Elective | BW60: Screening | CY60: Elective | DM60: Screening | EO60: Elective | FC60: Screening | GE60: Elective | GS60: Screening | HU60: Elective | II60: Screening | JK60: Elective | JY60: Screening | LA60: Elective | LO60: Screening | MQ60: Elective | NE60: Screening | OG60: Elective | OU60: Screening
D62: Activity | E62: =Activity!E62 -> 3.75 | F62: =E62 -> 3.75 | G62: =F62 -> 3.75 | H62: 3.75 | I62: 3.75 | J62: 3.75 | K62: 3.75 | L62: 3.75 | M62: 3.75 | N62: 3.75 | S62: =Activity!S62 -> 13.28888889 | T62: =S62 -> 13.28888889 | U62: =T62 -> 13.28888889 | V62: 13.28888889 | W62: 13.28888889 | X62: 13.28888889 | Y62: 13.28888889 | Z62: 13.28888889 | AA62: 13.28888889 | AB62: 13.28888889 | AG62: =Activity!AG62 -> 0 | AH62: =AG62 -> 0 | AI62: =AH62 -> 0 | AJ62: 0 | AK62: 0 | AL62: 0 | AM62: 0 | AN62: 0 | AO62: 0 | AP62: 0 | AU62: =Activity!F62 -> 3.825 | AV62: =AU62 -> 3.825 | AW62: =AV62 -> 3.825 | AX62: 3.825 | AY62: 3.825 | AZ62: 3.825 | BA62: 3.825 | BB62: 3.825 | BC62: 3.825 | BD62: 3.825 | BI62: =Activity!T62 -> 13.55466667 | BJ62: =BI62 -> 13.55466667 | BK62: =BJ62 -> 13.55466667 | BL62: 13.55466667 | BM62: 13.55466667 | BN62: 13.55466667 | BO62: 13.55466667 | BP62: 13.55466667 | BQ62: 13.55466667 | BR62: 13.55466667 | BW62: =Activity!AH62 -> 0 | BX62: =BW62 -> 0 | BY62: =BX62 -> 0 | BZ62: 0 | CA62: 0 | CB62: 0 | CC62: 0 | CD62: 0 | CE62: 0 | CF62: 0 | CK62: =Activity!G62 -> 3.765203704 | CL62: =CK62 -> 3.765203704 | CM62: 3.765203704 | CN62: 3.765203704 | CO62: 3.765203704 | CP62: 3.765203704 | CQ62: 3.765203704 | CR62: 3.765203704 | CS62: 3.765203704 | CT62: 3.765203704 | CY62: =Activity!U62 -> 12.59909333 | CZ62: =CY62 -> 12.59909333 | DA62: 12.59909333 | DB62: 12.59909333 | DC62: 12.59909333 | DD62: 12.59909333 | DE62: 12.59909333 | DF62: 12.59909333 | DG62: 12.59909333 | DH62: 12.59909333 | DM62: =Activity!AI62 -> 0 | DN62: =DM62 -> 0 | DO62: 0 | DP62: 0 | DQ62: 0 | DR62: 0 | DS62: 0 | DT62: 0 | DU62: 0 | DV62: 0 | EA62: =Activity!H62 -> 3.843233704 | EB62: =EA62 -> 3.843233704 | EC62: 3.843233704 | ED62: 3.843233704 | EE62: 3.843233704 | EF62: 3.843233704 | EG62: 3.843233704 | EH62: 3.843233704 | EI62: 3.843233704 | EJ62: 3.843233704 | EO62: =Activity!V62 -> 12.87560853 | EP62: =EO62 -> 12.87560853 | EQ62: 12.87560853 | ER62: 12.87560853 | ES62: 12.87560853 | ET62: 12.87560853 | EU62: 12.87560853 | EV62: 12.87560853 | EW62: 12.87560853 | EX62: 12.87560853 | FC62: =Activity!AJ62 -> 0 | FD62: =FC62 -> 0 | FE62: 0 | FF62: 0 | FG62: 0 | FH62: 0 | FI62: 0 | FJ62: 0 | FK62: 0 | FL62: 0 | FQ62: =Activity!I62 -> 3.922824304 | FR62: =FQ62 -> 3.922824304 | FS62: 3.922824304 | FT62: 3.922824304 | FU62: 3.922824304 | FV62: 3.922824304 | FW62: 3.922824304 | FX62: 3.922824304 | FY62: 3.922824304 | FZ62: 3.922824304 | GE62: =Activity!W62 -> 13.15765404 | GF62: =GE62 -> 13.15765404 | GG62: 13.15765404 | GH62: 13.15765404 | GI62: 13.15765404 | GJ62: 13.15765404 | GK62: 13.15765404 | GL62: 13.15765404 | GM62: 13.15765404 | GN62: 13.15765404 | GS62: =Activity!AK62 -> 0 | GT62: =GS62 -> 0 | GU62: 0 | GV62: 0 | GW62: 0 | GX62: 0 | GY62: 0 | GZ62: 0 | HA62: 0 | HB62: 0 | HG62: =Activity!J62 -> 4.004006716 | HH62: =HG62 -> 4.004006716 | HI62: 4.004006716 | HJ62: 4.004006716 | HK62: 4.004006716 | HL62: 4.004006716 | HM62: 4.004006716 | HN62: 4.004006716 | HO62: 4.004006716 | HP62: 4.004006716 | HU62: =Activity!X62 -> 13.44534045 | HV62: =HU62 -> 13.44534045 | HW62: 13.44534045 | HX62: 13.44534045 | HY62: 13.44534045 | HZ62: 13.44534045 | IA62: 13.44534045 | IB62: 13.44534045 | IC62: 13.44534045 | ID62: 13.44534045 | II62: =Activity!AL62 -> 0 | IJ62: =II62 -> 0 | IK62: 0 | IL62: 0 | IM62: 0 | IN62: 0 | IO62: 0 | IP62: 0 | IQ62: 0 | IR62: 0 | IW62: =Activity!K62 -> 4.086812776 | IX62: =IW62 -> 4.086812776 | IY62: 4.086812776 | IZ62: 4.086812776 | JA62: 4.086812776 | JB62: 4.086812776 | JC62: 4.086812776 | JD62: 4.086812776 | JE62: 4.086812776 | JF62: 4.086812776 | JK62: =Activity!Y62 -> 13.73878059 | JL62: =JK62 -> 13.73878059 | JM62: 13.73878059 | JN62: 13.73878059 | JO62: 13.73878059 | JP62: 13.73878059 | JQ62: 13.73878059 | JR62: 13.73878059 | JS62: 13.73878059 | JT62: 13.73878059 | JY62: =Activity!AM62 -> 0 | JZ62: =JY62 -> 0 | KA62: 0 | KB62: 0 | KC62: 0 | KD62: 0 | KE62: 0 | KF62: 0 | KG62: 0 | KH62: 0 | KM62: =Activity!L62 -> 4.171274957 | KN62: =KM62 -> 4.171274957 | KO62: 4.171274957 | KP62: 4.171274957 | KQ62: 4.171274957 | KR62: 4.171274957 | KS62: 4.171274957 | KT62: 4.171274957 | KU62: 4.171274957 | KV62: 4.171274957 | LA62: =Activity!Z62 -> 14.03808954 | LB62: =LA62 -> 14.03808954 | LC62: 14.03808954 | LD62: 14.03808954 | LE62: 14.03808954 | LF62: 14.03808954 | LG62: 14.03808954 | LH62: 14.03808954 | LI62: 14.03808954 | LJ62: 14.03808954 | LO62: =Activity!AN62 -> 0 | LP62: =LO62 -> 0 | LQ62: 0 | LR62: 0 | LS62: 0 | LT62: 0 | LU62: 0 | LV62: 0 | LW62: 0 | LX62: 0 | MC62: =Activity!M62 -> 4.257426382 | MD62: =MC62 -> 4.257426382 | ME62: 4.257426382 | MF62: 4.257426382 | MG62: 4.257426382 | MH62: 4.257426382 | MI62: 4.257426382 | MJ62: 4.257426382 | MK62: 4.257426382 | ML62: 4.257426382 | MQ62: =Activity!AA62 -> 14.34338466 | MR62: =MQ62 -> 14.34338466 | MS62: 14.34338466 | MT62: 14.34338466 | MU62: 14.34338466 | MV62: 14.34338466 | MW62: 14.34338466 | MX62: 14.34338466 | MY62: 14.34338466 | MZ62: 14.34338466 | NE62: =Activity!AO62 -> 0 | NF62: =NE62 -> 0 | NG62: 0 | NH62: 0 | NI62: 0 | NJ62: 0 | NK62: 0 | NL62: 0 | NM62: 0 | NN62: 0 | NS62: =Activity!N62 -> 4.345300836 | NT62: =NS62 -> 4.345300836 | NU62: 4.345300836 | NV62: 4.345300836 | NW62: 4.345300836 | NX62: 4.345300836 | NY62: 4.345300836 | NZ62: 4.345300836 | OA62: 4.345300836 | OB62: 4.345300836 | OG62: =Activity!AB62 -> 14.65478569 | OH62: =OG62 -> 14.65478569 | OI62: 14.65478569 | OJ62: 14.65478569 | OK62: 14.65478569 | OL62: 14.65478569 | OM62: 14.65478569 | ON62: 14.65478569 | OO62: 14.65478569 | OP62: 14.65478569 | OU62: =Activity!AP62 -> 0 | OV62: =OU62 -> 0 | OW62: 0 | OX62: 0 | OY62: 0 | OZ62: 0 | PA62: 0 | PB62: 0 | PC62: 0 | PD62: 0
E64: =Start_year -> 2016 | F64: =E64+1 -> 2017 | G64: 2018 | H64: 2019 | I64: 2020 | J64: 2021 | K64: 2022 | L64: 2023 | M64: 2024 | N64: 2025 | S64: =Start_year -> 2016 | T64: =S64+1 -> 2017 | U64: 2018 | V64: 2019 | W64: 2020 | X64: 2021 | Y64: 2022 | Z64: 2023 | AA64: 2024 | AB64: 2025 | AG64: =Start_year+1 -> 2017 | AH64: =AG64+1 -> 2018 | AI64: =AH64+1 -> 2019 | AJ64: 2020 | AK64: 2021 | AL64: 2022 | AM64: 2023 | AN64: 2024 | AO64: 2025 | AP64: 2026 | AU64: =Start_year -> 2016 | AV64: =AU64+1 -> 2017 | AW64: =AV64+1 -> 2018 | AX64: 2019 | AY64: 2020 | AZ64: 2021 | BA64: 2022 | BB64: 2023 | BC64: 2024 | BD64: 2025 | BI64: =AU64 -> 2016 | BJ64: 2017 | BK64: 2018 | BL64: 2019 | BM64: 2020 | BN64: 2021 | BO64: 2022 | BP64: 2023 | BQ64: 2024 | BR64: 2025 | BW64: =BI64 -> 2016 | BX64: 2017 | BY64: 2018 | BZ64: 2019 | CA64: 2020 | CB64: 2021 | CC64: 2022 | CD64: 2023 | CE64: 2024 | CF64: 2025 | CK64: =Start_year -> 2016 | CL64: =CK64+1 -> 2017 | CM64: =CL64+1 -> 2018 | CN64: 2019 | CO64: 2020 | CP64: 2021 | CQ64: 2022 | CR64: 2023 | CS64: 2024 | CT64: 2025 | CY64: =CK64 -> 2016 | CZ64: 2017 | DA64: 2018 | DB64: 2019 | DC64: 2020 | DD64: 2021 | DE64: 2022 | DF64: 2023 | DG64: 2024 | DH64: 2025 | DM64: =CY64 -> 2016 | DN64: 2017 | DO64: 2018 | DP64: 2019 | DQ64: 2020 | DR64: 2021 | DS64: 2022 | DT64: 2023 | DU64: 2024 | DV64: 2025 | EA64: =Start_year -> 2016 | EB64: =EA64+1 -> 2017 | EC64: =EB64+1 -> 2018 | ED64: 2019 | EE64: 2020 | EF64: 2021 | EG64: 2022 | EH64: 2023 | EI64: 2024 | EJ64: 2025 | EO64: =EA64 -> 2016 | EP64: 2017 | EQ64: 2018 | ER64: 2019 | ES64: 2020 | ET64: 2021 | EU64: 2022 | EV64: 2023 | EW64: 2024 | EX64: 2025 | FC64: =EO64 -> 2016 | FD64: 2017 | FE64: 2018 | FF64: 2019 | FG64: 2020 | FH64: 2021 | FI64: 2022 | FJ64: 2023 | FK64: 2024 | FL64: 2025 | FQ64: =Start_year -> 2016 | FR64: =FQ64+1 -> 2017 | FS64: =FR64+1 -> 2018 | FT64: 2019 | FU64: 2020 | FV64: 2021 | FW64: 2022 | FX64: 2023 | FY64: 2024 | FZ64: 2025 | GE64: =FQ64 -> 2016 | GF64: 2017 | GG64: 2018 | GH64: 2019 | GI64: 2020 | GJ64: 2021 | GK64: 2022 | GL64: 2023 | GM64: 2024 | GN64: 2025 | GS64: =GE64 -> 2016 | GT64: 2017 | GU64: 2018 | GV64: 2019 | GW64: 2020 | GX64: 2021 | GY64: 2022 | GZ64: 2023 | HA64: 2024 | HB64: 2025 | HG64: =Start_year -> 2016 | HH64: =HG64+1 -> 2017 | HI64: =HH64+1 -> 2018 | HJ64: 2019 | HK64: 2020 | HL64: 2021 | HM64: 2022 | HN64: 2023 | HO64: 2024 | HP64: 2025 | HU64: =HG64 -> 2016 | HV64: 2017 | HW64: 2018 | HX64: 2019 | HY64: 2020 | HZ64: 2021 | IA64: 2022 | IB64: 2023 | IC64: 2024 | ID64: 2025 | II64: =HU64 -> 2016 | IJ64: 2017 | IK64: 2018 | IL64: 2019 | IM64: 2020 | IN64: 2021 | IO64: 2022 | IP64: 2023 | IQ64: 2024 | IR64: 2025 | IW64: =Start_year -> 2016 | IX64: =IW64+1 -> 2017 | IY64: =IX64+1 -> 2018 | IZ64: 2019 | JA64: 2020 | JB64: 2021 | JC64: 2022 | JD64: 2023 | JE64: 2024 | JF64: 2025 | JK64: =IW64 -> 2016 | JL64: 2017 | JM64: 2018 | JN64: 2019 | JO64: 2020 | JP64: 2021 | JQ64: 2022 | JR64: 2023 | JS64: 2024 | JT64: 2025 | JY64: =JK64 -> 2016 | JZ64: 2017 | KA64: 2018 | KB64: 2019 | KC64: 2020 | KD64: 2021 | KE64: 2022 | KF64: 2023 | KG64: 2024 | KH64: 2025 | KM64: =Start_year -> 2016 | KN64: =KM64+1 -> 2017 | KO64: =KN64+1 -> 2018 | KP64: 2019 | KQ64: 2020 | KR64: 2021 | KS64: 2022 | KT64: 2023 | KU64: 2024 | KV64: 2025 | LA64: =KM64 -> 2016 | LB64: 2017 | LC64: 2018 | LD64: 2019 | LE64: 2020 | LF64: 2021 | LG64: 2022 | LH64: 2023 | LI64: 2024 | LJ64: 2025 | LO64: =LA64 -> 2016 | LP64: 2017 | LQ64: 2018 | LR64: 2019 | LS64: 2020 | LT64: 2021 | LU64: 2022 | LV64: 2023 | LW64: 2024 | LX64: 2025 | MC64: =Start_year -> 2016 | MD64: =MC64+1 -> 2017 | ME64: =MD64+1 -> 2018 | MF64: 2019 | MG64: 2020 | MH64: 2021 | MI64: 2022 | MJ64: 2023 | MK64: 2024 | ML64: 2025 | MQ64: =MC64 -> 2016 | MR64: 2017 | MS64: 2018 | MT64: 2019 | MU64: 2020 | MV64: 2021 | MW64: 2022 | MX64: 2023 | MY64: 2024 | MZ64: 2025 | NE64: =MQ64 -> 2016 | NF64: 2017 | NG64: 2018 | NH64: 2019 | NI64: 2020 | NJ64: 2021 | NK64: 2022 | NL64: 2023 | NM64: 2024 | NN64: 2025 | NS64: =Start_year -> 2016 | NT64: =NS64+1 -> 2017 | NU64: =NT64+1 -> 2018 | NV64: 2019 | NW64: 2020 | NX64: 2021 | NY64: 2022 | NZ64: 2023 | OA64: 2024 | OB64: 2025 | OG64: =NS64 -> 2016 | OH64: 2017 | OI64: 2018 | OJ64: 2019 | OK64: 2020 | OL64: 2021 | OM64: 2022 | ON64: 2023 | OO64: 2024 | OP64: 2025 | OU64: =OG64 -> 2016 | OV64: 2017 | OW64: 2018 | OX64: 2019 | OY64: 2020 | OZ64: 2021 | PA64: 2022 | PB64: 2023 | PC64: 2024 | PD64: 2025
D65: Activity cost | E65: =E62*E45*E41 -> 33972.93418 | F65: =F62*F45*F41 -> 754.9540928 | G65: 754.9540928 | H65: 754.9540928 | I65: 377.4770464 | J65: 1132.431139 | K65: 0 | L65: 0 | M65: 0 | N65: 0 | S65: =S62*S45*S41 -> 95547.62911 | T65: =T62*T45*T41 -> 2123.280647 | U65: 2123.280647 | V65: 2123.280647 | W65: 1061.640323 | X65: 3184.92097 | Y65: 0 | Z65: 0 | AA65: 0 | AB65: 0 | AG65: =AG62*AG45*AG41 -> 0 | AH65: =AH62*AH45*AH41 -> 0 | AI65: 0 | AJ65: 0 | AK65: 0 | AL65: 0 | AM65: 0 | AN65: 0 | AO65: 0 | AP65: 0 | AU65: 0 | AV65: =AV62*AV45*AV41 -> 34652.39286 | AW65: 770.0531747 | AX65: 770.0531747 | AY65: 770.0531747 | AZ65: 385.0265874 | BA65: 1155.079762 | BB65: 0 | BC65: 0 | BD65: 0 | BI65: 0 | BJ65: =BJ62*BJ45*BJ41 -> 97458.58169 | BK65: 2165.74626 | BL65: 2165.74626 | BM65: 2165.74626 | BN65: 1082.87313 | BO65: 3248.61939 | BP65: 0 | BQ65: 0 | BR65: 0 | BW65: 0 | BX65: =BX62*BX45*BX41 -> 0 | BY65: 0 | BZ65: 0 | CA65: 0 | CB65: 0 | CC65: 0 | CD65: 0 | CE65: 0 | CF65: 0 | CK65: 0 | CL65: 0 | CM65: =CM62*CM45*CM41 -> 34110.67136 | CN65: 758.0149191 | CO65: 758.0149191 | CP65: 758.0149191 | CQ65: 379.0074595 | CR65: 1137.022379 | CS65: 0 | CT65: 0 | CY65: 0 | CZ65: 0 | DA65: =DA62*DA45*DA41 -> 90587.97217 | DB65: 2013.066048 | DC65: 2013.066048 | DD65: 2013.066048 | DE65: 1006.533024 | DF65: 3019.599072 | DG65: 0 | DH65: 0 | DM65: 0 | DN65: 0 | DO65: =DO62*DO45*DO41 -> 0 | DP65: 0 | DQ65: 0 | DR65: 0 | DS65: 0 | DT65: 0 | DU65: 0 | DV65: 0 | EA65: 0 | EB65: 0 | EC65: 0 | ED65: =ED62*ED45*ED41 -> 34817.58017 | EE65: 773.7240038 | EF65: 773.7240038 | EG65: 773.7240038 | EH65: 386.8620019 | EI65: 1160.586006 | EJ65: 0 | EO65: 0 | EP65: 0 | EQ65: 0 | ER65: =ER62*ER45*ER41 -> 92576.12724 | ES65: 2057.247272 | ET65: 2057.247272 | EU65: 2057.247272 | EV65: 1028.623636 | EW65: 3085.870908 | EX65: 0 | FC65: 0 | FD65: 0 | FE65: 0 | FF65: =FF62*FF45*FF41 -> 0 | FG65: 0 | FH65: 0 | FI65: 0 | FJ65: 0 | FK65: 0 | FL65: 0 | FQ65: 0 | FR65: 0 | FS65: 0 | FT65: 0 | FU65: =FU62*FU45*FU41 -> 35538.62716 | FV65: 789.7472703 | FW65: 789.7472703 | FX65: 789.7472703 | FY65: 394.8736351 | FZ65: 1184.620905 | GE65: 0 | GF65: 0 | GG65: 0 | GH65: 0 | GI65: =GI62*GI45*GI41 -> 94604.04541 | GJ65: 2102.31212 | GK65: 2102.31212 | GL65: 2102.31212 | GM65: 1051.15606 | GN65: 3153.46818 | GS65: 0 | GT65: 0 | GU65: 0 | GV65: 0 | GW65: =GW62*GW45*GW41 -> 0 | GX65: 0 | GY65: 0 | GZ65: 0 | HA65: 0 | HB65: 0 | HG65: 0 | HH65: 0 | HI65: 0 | HJ65: 0 | HK65: 0 | HL65: =HL62*HL45*HL41 -> 36274.09509 | HM65: =HM62*HM45*HM41 -> 806.0910021 | HN65: =HN62*HN45*HN41 -> 806.0910021 | HO65: =HO62*HO45*HO41 -> 806.0910021 | HP65: =HP62*HP45*HP41 -> 403.045501 | HU65: 0 | HV65: 0 | HW65: 0 | HX65: 0 | HY65: 0 | HZ65: =HZ62*HZ45*HZ41 -> 96672.52194 | IA65: =IA62*IA45*IA41 -> 2148.278265 | IB65: =IB62*IB45*IB41 -> 2148.278265 | IC65: =IC62*IC45*IC41 -> 2148.278265 | ID65: =ID62*ID45*ID41 -> 1074.139133 | II65: 0 | IJ65: 0 | IK65: 0 | IL65: 0 | IM65: 0 | IN65: =IN62*IN45*IN41 -> 0 | IO65: =IO62*IO45*IO41 -> 0 | IP65: =IP62*IP45*IP41 -> 0 | IQ65: =IQ62*IQ45*IQ41 -> 0 | IR65: =IR62*IR45*IR41 -> 0 | IW65: 0 | IX65: 0 | IY65: 0 | IZ65: 0 | JA65: 0 | JB65: 0 | JC65: =JC62*JC45*JC41 -> 37024.27238 | JD65: =JD62*JD45*JD41 -> 822.7616085 | JE65: =JE62*JE45*JE41 -> 822.7616085 | JF65: =JF62*JF45*JF41 -> 822.7616085 | JK65: 0 | JL65: 0 | JM65: 0 | JN65: 0 | JO65: 0 | JP65: 0 | JQ65: =JQ62*JQ45*JQ41 -> 98782.368 | JR65: =JR62*JR45*JR41 -> 2195.163733 | JS65: =JS62*JS45*JS41 -> 2195.163733 | JT65: =JT62*JT45*JT41 -> 2195.163733 | JY65: 0 | JZ65: 0 | KA65: 0 | KB65: 0 | KC65: 0 | KD65: 0 | KE65: =KE62*KE45*KE41 -> 0 | KF65: =KF62*KF45*KF41 -> 0 | KG65: =KG62*KG45*KG41 -> 0 | KH65: =KH62*KH45*KH41 -> 0 | KM65: 0 | KN65: 0 | KO65: 0 | KP65: 0 | KQ65: 0 | KR65: 0 | KS65: 0 | KT65: =KT62*KT45*KT41 -> 37789.45322 | KU65: =KU62*KU45*KU41 -> 839.7656271 | KV65: =KV62*KV45*KV41 -> 839.7656271 | LA65: 0 | LB65: 0 | LC65: 0 | LD65: 0 | LE65: 0 | LF65: 0 | LG65: 0 | LH65: =LH62*LH45*LH41 -> 100934.411 | LI65: =LI62*LI45*LI41 -> 2242.986911 | LJ65: =LJ62*LJ45*LJ41 -> 2242.986911 | LO65: 0 | LP65: 0 | LQ65: 0 | LR65: 0 | LS65: 0 | LT65: 0 | LU65: 0 | LV65: =LV62*LV45*LV41 -> 0 | LW65: =LW62*LW45*LW41 -> 0 | LX65: =LX62*LX45*LX41 -> 0 | MC65: 0 | MD65: 0 | ME65: 0 | MF65: 0 | MG65: 0 | MH65: 0 | MI65: 0 | MJ65: 0 | MK65: =MK62*MK45*MK41 -> 38569.93767 | ML65: =ML62*ML45*ML41 -> 857.109726 | MQ65: 0 | MR65: 0 | MS65: 0 | MT65: 0 | MU65: 0 | MV65: 0 | MW65: 0 | MX65: 0 | MY65: =MY62*MY45*MY41 -> 103129.4948 | MZ65: =MZ62*MZ45*MZ41 -> 2291.766552 | NE65: 0 | NF65: 0 | NG65: 0 | NH65: 0 | NI65: 0 | NJ65: 0 | NK65: 0 | NL65: 0 | NM65: =NM62*NM45*NM41 -> 0 | NN65: =NN62*NN45*NN41 -> 0 | NS65: 0 | NT65: 0 | NU65: 0 | NV65: 0 | NW65: 0 | NX65: 0 | NY65: 0 | NZ65: 0 | OA65: 0 | OB65: =OB62*OB45*OB41 -> 39366.03181 | OG65: 0 | OH65: 0 | OI65: 0 | OJ65: 0 | OK65: 0 | OL65: 0 | OM65: 0 | ON65: 0 | OO65: 0 | OP65: =OP62*OP45*OP41 -> 105368.4803 | OU65: 0 | OV65: 0 | OW65: 0 | OX65: 0 | OY65: 0 | OZ65: 0 | PA65: 0 | PB65: 0 | PC65: 0 | PD65: =PD62*PD45*PD41 -> 0
D66: Recurrence cost | E66: =E46*E42*E52/10 -> 1167.745053 | F66: =F46*F42*F52/10 -> 1167.745053 | G66: 1167.745053 | H66: 1167.745053 | I66: 1167.745053 | J66: 1167.745053 | K66: 1167.745053 | L66: 1167.745053 | M66: 1167.745053 | N66: 1167.745053 | S66: =S46*S42*S52/10 -> 3284.240056 | T66: =T46*T42*T52/10 -> 3284.240056 | U66: 3284.240056 | V66: 3284.240056 | W66: 3284.240056 | X66: 3284.240056 | Y66: 3284.240056 | Z66: 3284.240056 | AA66: 3284.240056 | AB66: 3284.240056 | AG66: =AG46*AG42*AG52/10 -> 0 | AH66: =AH46*AH42*AH52/10 -> 0 | AI66: 0 | AJ66: 0 | AK66: 0 | AL66: 0 | AM66: 0 | AN66: 0 | AO66: 0 | AP66: 0 | AU66: 0 | AV66: =AV46*AV42*AV52/10 -> 1191.099954 | AW66: 1191.099954 | AX66: 1191.099954 | AY66: 1191.099954 | AZ66: 1191.099954 | BA66: 1191.099954 | BB66: 1191.099954 | BC66: 1191.099954 | BD66: 1191.099954 | BI66: 0 | BJ66: =BJ46*BJ42*BJ52/10 -> 3349.924857 | BK66: 3349.924857 | BL66: 3349.924857 | BM66: 3349.924857 | BN66: 3349.924857 | BO66: 3349.924857 | BP66: 3349.924857 | BQ66: 3349.924857 | BR66: 3349.924857 | BW66: 0 | BX66: =BX46*BX42*BX52/10 -> 0 | BY66: 0 | BZ66: 0 | CA66: 0 | CB66: 0 | CC66: 0 | CD66: 0 | CE66: 0 | CF66: 0 | CK66: 0 | CL66: 0 | CM66: =CM46*CM42*CM52/10 -> 1214.921953 | CN66: 1214.921953 | CO66: 1214.921953 | CP66: 1214.921953 | CQ66: 1214.921953 | CR66: 1214.921953 | CS66: 1214.921953 | CT66: 1214.921953 | CY66: 0 | CZ66: 0 | DA66: =DA46*DA42*DA52/10 -> 3416.923354 | DB66: 3416.923354 | DC66: 3416.923354 | DD66: 3416.923354 | DE66: 3416.923354 | DF66: 3416.923354 | DG66: 3416.923354 | DH66: 3416.923354 | DM66: 0 | DN66: 0 | DO66: =DO46*DO42*DO52/10 -> 0 | DP66: 0 | DQ66: 0 | DR66: 0 | DS66: 0 | DT66: 0 | DU66: 0 | DV66: 0 | EA66: 0 | EB66: 0 | EC66: 0 | ED66: =ED46*ED42*ED52/10 -> 1239.220393 | EE66: 1239.220393 | EF66: 1239.220393 | EG66: 1239.220393 | EH66: 1239.220393 | EI66: 1239.220393 | EJ66: 1239.220393 | EO66: 0 | EP66: 0 | EQ66: 0 | ER66: =ER46*ER42*ER52/10 -> 3485.261821 | ES66: 3485.261821 | ET66: 3485.261821 | EU66: 3485.261821 | EV66: 3485.261821 | EW66: 3485.261821 | EX66: 3485.261821 | FC66: 0 | FD66: 0 | FE66: 0 | FF66: =FF46*FF42*FF52/10 -> 0 | FG66: 0 | FH66: 0 | FI66: 0 | FJ66: 0 | FK66: 0 | FL66: 0 | FQ66: 0 | FR66: 0 | FS66: 0 | FT66: 0 | FU66: =FU46*FU42*FU52/10 -> 1264.0048 | FV66: 1264.0048 | FW66: 1264.0048 | FX66: 1264.0048 | FY66: 1264.0048 | FZ66: 1264.0048 | GE66: 0 | GF66: 0 | GG66: 0 | GH66: 0 | GI66: =GI46*GI42*GI52/10 -> 3554.967058 | GJ66: 3554.967058 | GK66: 3554.967058 | GL66: 3554.967058 | GM66: 3554.967058 | GN66: 3554.967058 | GS66: 0 | GT66: 0 | GU66: 0 | GV66: 0 | GW66: =GW46*GW42*GW52/10 -> 0 | GX66: 0 | GY66: 0 | GZ66: 0 | HA66: 0 | HB66: 0 | HG66: 0 | HH66: 0 | HI66: 0 | HJ66: 0 | HK66: 0 | HL66: =HL46*HL42*HL52/10 -> 1289.284896 | HM66: =HM46*HM42*HM52/10 -> 1289.284896 | HN66: =HN46*HN42*HN52/10 -> 1289.284896 | HO66: =HO46*HO42*HO52/10 -> 1289.284896 | HP66: =HP46*HP42*HP52/10 -> 1289.284896 | HU66: 0 | HV66: 0 | HW66: 0 | HX66: 0 | HY66: 0 | HZ66: =HZ46*HZ42*HZ52/10 -> 3626.066399 | IA66: =IA46*IA42*IA52/10 -> 3626.066399 | IB66: =IB46*IB42*IB52/10 -> 3626.066399 | IC66: =IC46*IC42*IC52/10 -> 3626.066399 | ID66: =ID46*ID42*ID52/10 -> 3626.066399 | II66: 0 | IJ66: 0 | IK66: 0 | IL66: 0 | IM66: 0 | IN66: =IN46*IN42*IN52/10 -> 0 | IO66: =IO46*IO42*IO52/10 -> 0 | IP66: =IP46*IP42*IP52/10 -> 0 | IQ66: =IQ46*IQ42*IQ52/10 -> 0 | IR66: =IR46*IR42*IR52/10 -> 0 | IW66: 0 | IX66: 0 | IY66: 0 | IZ66: 0 | JA66: 0 | JB66: 0 | JC66: =JC46*JC42*JC52/10 -> 1315.070594 | JD66: =JD46*JD42*JD52/10 -> 1315.070594 | JE66: =JE46*JE42*JE52/10 -> 1315.070594 | JF66: =JF46*JF42*JF52/10 -> 1315.070594 | JK66: 0 | JL66: 0 | JM66: 0 | JN66: 0 | JO66: 0 | JP66: 0 | JQ66: =JQ46*JQ42*JQ52/10 -> 3698.587727 | JR66: =JR46*JR42*JR52/10 -> 3698.587727 | JS66: =JS46*JS42*JS52/10 -> 3698.587727 | JT66: =JT46*JT42*JT52/10 -> 3698.587727 | JY66: 0 | JZ66: 0 | KA66: 0 | KB66: 0 | KC66: 0 | KD66: 0 | KE66: =KE46*KE42*KE52/10 -> 0 | KF66: =KF46*KF42*KF52/10 -> 0 | KG66: =KG46*KG42*KG52/10 -> 0 | KH66: =KH46*KH42*KH52/10 -> 0 | KM66: 0 | KN66: 0 | KO66: 0 | KP66: 0 | KQ66: 0 | KR66: 0 | KS66: 0 | KT66: =KT46*KT42*KT52/10 -> 1341.372006 | KU66: =KU46*KU42*KU52/10 -> 1341.372006 | KV66: =KV46*KV42*KV52/10 -> 1341.372006 | LA66: 0 | LB66: 0 | LC66: 0 | LD66: 0 | LE66: 0 | LF66: 0 | LG66: 0 | LH66: =LH46*LH42*LH52/10 -> 3772.559481 | LI66: =LI46*LI42*LI52/10 -> 3772.559481 | LJ66: =LJ46*LJ42*LJ52/10 -> 3772.559481 | LO66: 0 | LP66: 0 | LQ66: 0 | LR66: 0 | LS66: 0 | LT66: 0 | LU66: 0 | LV66: =LV46*LV42*LV52/10 -> 0 | LW66: =LW46*LW42*LW52/10 -> 0 | LX66: =LX46*LX42*LX52/10 -> 0 | MC66: 0 | MD66: 0 | ME66: 0 | MF66: 0 | MG66: 0 | MH66: 0 | MI66: 0 | MJ66: 0 | MK66: =MK46*MK42*MK52/10 -> 1368.199446 | ML66: =ML46*ML42*ML52/10 -> 1368.199446 | MQ66: 0 | MR66: 0 | MS66: 0 | MT66: 0 | MU66: 0 | MV66: 0 | MW66: 0 | MX66: 0 | MY66: =MY46*MY42*MY52/10 -> 3848.010671 | MZ66: =MZ46*MZ42*MZ52/10 -> 3848.010671 | NE66: 0 | NF66: 0 | NG66: 0 | NH66: 0 | NI66: 0 | NJ66: 0 | NK66: 0 | NL66: 0 | NM66: =NM46*NM42*NM52/10 -> 0 | NN66: =NN46*NN42*NN52/10 -> 0 | NS66: 0 | NT66: 0 | NU66: 0 | NV66: 0 | NW66: 0 | NX66: 0 | NY66: 0 | NZ66: 0 | OA66: 0 | OB66: =OB46*OB42*OB52/10 -> 1395.563435 | OG66: 0 | OH66: 0 | OI66: 0 | OJ66: 0 | OK66: 0 | OL66: 0 | OM66: 0 | ON66: 0 | OO66: 0 | OP66: =OP46*OP42*OP52/10 -> 3924.970884 | OU66: 0 | OV66: 0 | OW66: 0 | OX66: 0 | OY66: 0 | OZ66: 0 | PA66: 0 | PB66: 0 | PC66: 0 | PD66: =PD46*PD42*PD52/10 -> 0
D68: Total cost | E68: =SUM(E65:E66) -> 35140.67923 | F68: =SUM(F65:F66) -> 1922.699146 | G68: 1922.699146 | H68: 1922.699146 | I68: 1545.2221 | J68: 2300.176193 | K68: 1167.745053 | L68: 1167.745053 | M68: 1167.745053 | N68: 1167.745053 | S68: =SUM(S65:S66) -> 98831.86916 | T68: =SUM(T65:T66) -> 5407.520703 | U68: 5407.520703 | V68: 5407.520703 | W68: 4345.880379 | X68: 6469.161026 | Y68: 3284.240056 | Z68: 3284.240056 | AA68: 3284.240056 | AB68: 3284.240056 | AG68: =SUM(AG65:AG66) -> 0 | AH68: =SUM(AH65:AH66) -> 0 | AI68: 0 | AJ68: 0 | AK68: 0 | AL68: 0 | AM68: 0 | AN68: 0 | AO68: 0 | AP68: 0 | AU68: =SUM(AU65:AU66) -> 0 | AV68: =SUM(AV65:AV66) -> 35843.49282 | AW68: 1961.153129 | AX68: 1961.153129 | AY68: 1961.153129 | AZ68: 1576.126542 | BA68: 2346.179716 | BB68: 1191.099954 | BC68: 1191.099954 | BD68: 1191.099954 | BI68: =SUM(BI65:BI66) -> 0 | BJ68: =SUM(BJ65:BJ66) -> 100808.5065 | BK68: 5515.671117 | BL68: 5515.671117 | BM68: 5515.671117 | BN68: 4432.797987 | BO68: 6598.544247 | BP68: 3349.924857 | BQ68: 3349.924857 | BR68: 3349.924857 | BW68: =SUM(BW65:BW66) -> 0 | BX68: =SUM(BX65:BX66) -> 0 | BY68: 0 | BZ68: 0 | CA68: 0 | CB68: 0 | CC68: 0 | CD68: 0 | CE68: 0 | CF68: 0 | CK68: =SUM(CK65:CK66) -> 0 | CL68: =SUM(CL65:CL66) -> 0 | CM68: 35325.59331 | CN68: 1972.936873 | CO68: 1972.936873 | CP68: 1972.936873 | CQ68: 1593.929413 | CR68: 2351.944332 | CS68: 1214.921953 | CT68: 1214.921953 | CY68: =SUM(CY65:CY66) -> 0 | CZ68: =SUM(CZ65:CZ66) -> 0 | DA68: 94004.89553 | DB68: 5429.989402 | DC68: 5429.989402 | DD68: 5429.989402 | DE68: 4423.456378 | DF68: 6436.522427 | DG68: 3416.923354 | DH68: 3416.923354 | DM68: =SUM(DM65:DM66) -> 0 | DN68: =SUM(DN65:DN66) -> 0 | DO68: 0 | DP68: 0 | DQ68: 0 | DR68: 0 | DS68: 0 | DT68: 0 | DU68: 0 | DV68: 0 | EA68: =SUM(EA65:EA66) -> 0 | EB68: =SUM(EB65:EB66) -> 0 | EC68: 0 | ED68: 36056.80057 | EE68: 2012.944396 | EF68: 2012.944396 | EG68: 2012.944396 | EH68: 1626.082394 | EI68: 2399.806398 | EJ68: 1239.220393 | EO68: =SUM(EO65:EO66) -> 0 | EP68: =SUM(EP65:EP66) -> 0 | EQ68: 0 | ER68: 96061.38906 | ES68: 5542.509093 | ET68: 5542.509093 | EU68: 5542.509093 | EV68: 4513.885457 | EW68: 6571.132729 | EX68: 3485.261821 | FC68: =SUM(FC65:FC66) -> 0 | FD68: =SUM(FD65:FD66) -> 0 | FE68: 0 | FF68: 0 | FG68: 0 | FH68: 0 | FI68: 0 | FJ68: 0 | FK68: 0 | FL68: 0 | FQ68: =SUM(FQ65:FQ66) -> 0 | FR68: =SUM(FR65:FR66) -> 0 | FS68: 0 | FT68: 0 | FU68: 36802.63196 | FV68: 2053.752071 | FW68: 2053.752071 | FX68: 2053.752071 | FY68: 1658.878436 | FZ68: 2448.625706 | GE68: =SUM(GE65:GE66) -> 0 | GF68: =SUM(GF65:GF66) -> 0 | GG68: 0 | GH68: 0 | GI68: 98159.01247 | GJ68: 5657.279178 | GK68: 5657.279178 | GL68: 5657.279178 | GM68: 4606.123118 | GN68: 6708.435238 | GS68: =SUM(GS65:GS66) -> 0 | GT68: =SUM(GT65:GT66) -> 0 | GU68: 0 | GV68: 0 | GW68: 0 | GX68: 0 | GY68: 0 | GZ68: 0 | HA68: 0 | HB68: 0 | HG68: =SUM(HG65:HG66) -> 0 | HH68: =SUM(HH65:HH66) -> 0 | HI68: 0 | HJ68: 0 | HK68: 0 | HL68: 37563.37999 | HM68: 2095.375898 | HN68: 2095.375898 | HO68: 2095.375898 | HP68: 1692.330397 | HU68: =SUM(HU65:HU66) -> 0 | HV68: =SUM(HV65:HV66) -> 0 | HW68: 0 | HX68: 0 | HY68: 0 | HZ68: 100298.5883 | IA68: 5774.344664 | IB68: 5774.344664 | IC68: 5774.344664 | ID68: 4700.205532 | II68: =SUM(II65:II66) -> 0 | IJ68: =SUM(IJ65:IJ66) -> 0 | IK68: 0 | IL68: 0 | IM68: 0 | IN68: 0 | IO68: 0 | IP68: 0 | IQ68: 0 | IR68: 0 | IW68: =SUM(IW65:IW66) -> 0 | IX68: =SUM(IX65:IX66) -> 0 | IY68: 0 | IZ68: 0 | JA68: 0 | JB68: 0 | JC68: 38339.34298 | JD68: 2137.832203 | JE68: 2137.832203 | JF68: 2137.832203 | JK68: =SUM(JK65:JK66) -> 0 | JL68: =SUM(JL65:JL66) -> 0 | JM68: 0 | JN68: 0 | JO68: 0 | JP68: 0 | JQ68: 102480.9557 | JR68: 5893.75146 | JS68: 5893.75146 | JT68: 5893.75146 | JY68: =SUM(JY65:JY66) -> 0 | JZ68: =SUM(JZ65:JZ66) -> 0 | KA68: 0 | KB68: 0 | KC68: 0 | KD68: 0 | KE68: 0 | KF68: 0 | KG68: 0 | KH68: 0 | KM68: =SUM(KM65:KM66) -> 0 | KN68: =SUM(KN65:KN66) -> 0 | KO68: 0 | KP68: 0 | KQ68: 0 | KR68: 0 | KS68: 0 | KT68: 39130.82522 | KU68: 2181.137633 | KV68: 2181.137633 | LA68: =SUM(LA65:LA66) -> 0 | LB68: =SUM(LB65:LB66) -> 0 | LC68: 0 | LD68: 0 | LE68: 0 | LF68: 0 | LG68: 0 | LH68: 104706.9705 | LI68: 6015.546392 | LJ68: 6015.546392 | LO68: =SUM(LO65:LO66) -> 0 | LP68: =SUM(LP65:LP66) -> 0 | LQ68: 0 | LR68: 0 | LS68: 0 | LT68: 0 | LU68: 0 | LV68: 0 | LW68: 0 | LX68: 0 | MC68: =SUM(MC65:MC66) -> 0 | MD68: =SUM(MD65:MD66) -> 0 | ME68: 0 | MF68: 0 | MG68: 0 | MH68: 0 | MI68: 0 | MJ68: 0 | MK68: 39938.13712 | ML68: 2225.309172 | MQ68: =SUM(MQ65:MQ66) -> 0 | MR68: =SUM(MR65:MR66) -> 0 | MS68: 0 | MT68: 0 | MU68: 0 | MV68: 0 | MW68: 0 | MX68: 0 | MY68: 106977.5055 | MZ68: 6139.777223 | NE68: =SUM(NE65:NE66) -> 0 | NF68: =SUM(NF65:NF66) -> 0 | NG68: 0 | NH68: 0 | NI68: 0 | NJ68: 0 | NK68: 0 | NL68: 0 | NM68: 0 | NN68: 0 | NS68: =SUM(NS65:NS66) -> 0 | NT68: =SUM(NT65:NT66) -> 0 | NU68: 0 | NV68: 0 | NW68: 0 | NX68: 0 | NY68: 0 | NZ68: 0 | OA68: 0 | OB68: 40761.59525 | OG68: =SUM(OG65:OG66) -> 0 | OH68: =SUM(OH65:OH66) -> 0 | OI68: 0 | OJ68: 0 | OK68: 0 | OL68: 0 | OM68: 0 | ON68: 0 | OO68: 0 | OP68: 109293.4512 | OU68: =SUM(OU65:OU66) -> 0 | OV68: =SUM(OV65:OV66) -> 0 | OW68: 0 | OX68: 0 | OY68: 0 | OZ68: 0 | PA68: 0 | PB68: 0 | PC68: 0 | PD68: 0
A71: Lifetime Cost | B71: ='C2. Lifetime cost adjustment'!$P$22 -> 13057.90552 | P71: ='C2. Lifetime cost adjustment'!$P$23 -> 10363.41708 | AD71: ='C2. Lifetime cost adjustment'!$P$24 -> 10363.41708 | AR71: =B71*(1+'B4. Optional variables'!$C$56) -> 13057.90552 | BF71: =P71*(1+'B4. Optional variables'!$C$56) -> 10363.41708 | BT71: =AD71*(1+'B4. Optional variables'!$C$56) -> 10363.41708 | CH71: =AR71*(1+'B4. Optional variables'!$D$56) -> 13057.90552 | CV71: =BF71*(1+'B4. Optional variables'!$D$56) -> 10363.41708 | DJ71: =BT71*(1+'B4. Optional variables'!$D$56) -> 10363.41708 | DX71: =CH71*(1+'B4. Optional variables'!$E$56) -> 13057.90552 | EL71: =CV71*(1+'B4. Optional variables'!$E$56) -> 10363.41708 | EZ71: =DJ71*(1+'B4. Optional variables'!$E$56) -> 10363.41708 | FN71: =DX71*(1+'B4. Optional variables'!$F$56) -> 13057.90552 | GB71: =EL71*(1+'B4. Optional variables'!$F$56) -> 10363.41708 | GP71: =EZ71*(1+'B4. Optional variables'!$F$56) -> 10363.41708 | HD71: =FN71*(1+'B4. Optional variables'!$G$56) -> 13057.90552 | HR71: =GB71*(1+'B4. Optional variables'!$G$56) -> 10363.41708 | IF71: =GP71*(1+'B4. Optional variables'!$G$56) -> 10363.41708 | IT71: =HD71*(1+'B4. Optional variables'!$H$56) -> 13057.90552 | JH71: =HR71*(1+'B4. Optional variables'!$H$56) -> 10363.41708 | JV71: =IF71*(1+'B4. Optional variables'!$H$56) -> 10363.41708 | KJ71: =IT71*(1+'B4. Optional variables'!$I$56) -> 13057.90552 | KX71: =JH71*(1+'B4. Optional variables'!$I$56) -> 10363.41708 | LL71: =JV71*(1+'B4. Optional variables'!$I$56) -> 10363.41708 | LZ71: =KJ71*(1+'B4. Optional variables'!$J$56) -> 13057.90552 | MN71: =KX71*(1+'B4. Optional variables'!$J$56) -> 10363.41708 | NB71: =LL71*(1+'B4. Optional variables'!$J$56) -> 10363.41708 | NP71: =LZ71*(1+'B4. Optional variables'!$K$56) -> 13057.90552 | OD71: =MN71*(1+'B4. Optional variables'!$K$56) -> 10363.41708 | OR71: =NB71*(1+'B4. Optional variables'!$K$56) -> 10363.41708
A72: Recurrence rate | B72: =Metric_calculation!DN12 -> 0.3157670632 | P72: =B72 -> 0.3157670632 | AD72: =P72 -> 0.3157670632 | AR72: =AD72 -> 0.3157670632 | BF72: =AR72 -> 0.3157670632 | BT72: =BF72 -> 0.3157670632 | CH72: =BT72 -> 0.3157670632 | CV72: =CH72 -> 0.3157670632 | DJ72: =CV72 -> 0.3157670632 | DX72: =DJ72 -> 0.3157670632 | EL72: =DX72 -> 0.3157670632 | EZ72: =EL72 -> 0.3157670632 | FN72: =EZ72 -> 0.3157670632 | GB72: =FN72 -> 0.3157670632 | GP72: =GB72 -> 0.3157670632 | HD72: =GP72 -> 0.3157670632 | HR72: =HD72 -> 0.3157670632 | IF72: =HR72 -> 0.3157670632 | IT72: =IF72 -> 0.3157670632 | JH72: =IT72 -> 0.3157670632 | JV72: =JH72 -> 0.3157670632 | KJ72: =JV72 -> 0.3157670632 | KX72: =KJ72 -> 0.3157670632 | LL72: =KX72 -> 0.3157670632 | LZ72: =LL72 -> 0.3157670632 | MN72: =LZ72 -> 0.3157670632 | NB72: =MN72 -> 0.3157670632 | NP72: =NB72 -> 0.3157670632 | OD72: =NP72 -> 0.3157670632 | OR72: =OD72 -> 0.3157670632
E74: =B71 -> 13057.90552 | F74: =E74 -> 13057.90552 | G74: =F74 -> 13057.90552 | H74: 13057.90552 | I74: 13057.90552 | J74: 13057.90552 | K74: 13057.90552 | L74: 13057.90552 | M74: 13057.90552 | N74: 13057.90552 | S74: =P71 -> 10363.41708 | T74: =S74 -> 10363.41708 | U74: =T74 -> 10363.41708 | V74: 10363.41708 | W74: 10363.41708 | X74: 10363.41708 | Y74: 10363.41708 | Z74: 10363.41708 | AA74: 10363.41708 | AB74: 10363.41708 | AG74: =AD71 -> 10363.41708 | AH74: =AG74 -> 10363.41708 | AI74: =AH74 -> 10363.41708 | AJ74: 10363.41708 | AK74: 10363.41708 | AL74: 10363.41708 | AM74: 10363.41708 | AN74: 10363.41708 | AO74: 10363.41708 | AP74: 10363.41708 | AU74: =AR71 -> 13057.90552 | AV74: =AU74 -> 13057.90552 | AW74: =AV74 -> 13057.90552 | AX74: 13057.90552 | AY74: 13057.90552 | AZ74: 13057.90552 | BA74: 13057.90552 | BB74: 13057.90552 | BC74: 13057.90552 | BD74: 13057.90552 | BI74: =BF71 -> 10363.41708 | BJ74: =BI74 -> 10363.41708 | BK74: =BJ74 -> 10363.41708 | BL74: 10363.41708 | BM74: 10363.41708 | BN74: 10363.41708 | BO74: 10363.41708 | BP74: 10363.41708 | BQ74: 10363.41708 | BR74: 10363.41708 | BW74: =BT71 -> 10363.41708 | BX74: =BW74 -> 10363.41708 | BY74: =BX74 -> 10363.41708 | BZ74: 10363.41708 | CA74: 10363.41708 | CB74: 10363.41708 | CC74: 10363.41708 | CD74: 10363.41708 | CE74: 10363.41708 | CF74: 10363.41708 | CK74: =CH71 -> 13057.90552 | CL74: =CK74 -> 13057.90552 | CM74: =CL74 -> 13057.90552 | CN74: 13057.90552 | CO74: 13057.90552 | CP74: 13057.90552 | CQ74: 13057.90552 | CR74: 13057.90552 | CS74: 13057.90552 | CT74: 13057.90552 | CY74: =CV71 -> 10363.41708 | CZ74: =CY74 -> 10363.41708 | DA74: =CZ74 -> 10363.41708 | DB74: 10363.41708 | DC74: 10363.41708 | DD74: 10363.41708 | DE74: 10363.41708 | DF74: 10363.41708 | DG74: 10363.41708 | DH74: 10363.41708 | DM74: =DJ71 -> 10363.41708 | DN74: =DM74 -> 10363.41708 | DO74: =DN74 -> 10363.41708 | DP74: 10363.41708 | DQ74: 10363.41708 | DR74: 10363.41708 | DS74: 10363.41708 | DT74: 10363.41708 | DU74: 10363.41708 | DV74: 10363.41708 | EA74: =DX71 -> 13057.90552 | EB74: =EA74 -> 13057.90552 | EC74: =EB74 -> 13057.90552 | ED74: 13057.90552 | EE74: 13057.90552 | EF74: 13057.90552 | EG74: 13057.90552 | EH74: 13057.90552 | EI74: 13057.90552 | EJ74: 13057.90552 | EO74: =EL71 -> 10363.41708 | EP74: =EO74 -> 10363.41708 | EQ74: =EP74 -> 10363.41708 | ER74: 10363.41708 | ES74: 10363.41708 | ET74: 10363.41708 | EU74: 10363.41708 | EV74: 10363.41708 | EW74: 10363.41708 | EX74: 10363.41708 | FC74: =EZ71 -> 10363.41708 | FD74: =FC74 -> 10363.41708 | FE74: =FD74 -> 10363.41708 | FF74: 10363.41708 | FG74: 10363.41708 | FH74: 10363.41708 | FI74: 10363.41708 | FJ74: 10363.41708 | FK74: 10363.41708 | FL74: 10363.41708 | FQ74: =FN71 -> 13057.90552 | FR74: =FQ74 -> 13057.90552 | FS74: =FR74 -> 13057.90552 | FT74: 13057.90552 | FU74: 13057.90552 | FV74: 13057.90552 | FW74: 13057.90552 | FX74: 13057.90552 | FY74: 13057.90552 | FZ74: 13057.90552 | GE74: =GB71 -> 10363.41708 | GF74: =GE74 -> 10363.41708 | GG74: =GF74 -> 10363.41708 | GH74: 10363.41708 | GI74: 10363.41708 | GJ74: 10363.41708 | GK74: 10363.41708 | GL74: 10363.41708 | GM74: 10363.41708 | GN74: 10363.41708 | GS74: =GP71 -> 10363.41708 | GT74: =GS74 -> 10363.41708 | GU74: =GT74 -> 10363.41708 | GV74: 10363.41708 | GW74: 10363.41708 | GX74: 10363.41708 | GY74: 10363.41708 | GZ74: 10363.41708 | HA74: 10363.41708 | HB74: 10363.41708 | HG74: =HD71 -> 13057.90552 | HH74: =HG74 -> 13057.90552 | HI74: =HH74 -> 13057.90552 | HJ74: 13057.90552 | HK74: 13057.90552 | HL74: 13057.90552 | HM74: 13057.90552 | HN74: 13057.90552 | HO74: 13057.90552 | HP74: 13057.90552 | HU74: =HR71 -> 10363.41708 | HV74: =HU74 -> 10363.41708 | HW74: =HV74 -> 10363.41708 | HX74: 10363.41708 | HY74: 10363.41708 | HZ74: 10363.41708 | IA74: 10363.41708 | IB74: 10363.41708 | IC74: 10363.41708 | ID74: 10363.41708 | II74: =IF71 -> 10363.41708 | IJ74: =II74 -> 10363.41708 | IK74: =IJ74 -> 10363.41708 | IL74: 10363.41708 | IM74: 10363.41708 | IN74: 10363.41708 | IO74: 10363.41708 | IP74: 10363.41708 | IQ74: 10363.41708 | IR74: 10363.41708 | IW74: =IT71 -> 13057.90552 | IX74: =IW74 -> 13057.90552 | IY74: =IX74 -> 13057.90552 | IZ74: 13057.90552 | JA74: 13057.90552 | JB74: 13057.90552 | JC74: 13057.90552 | JD74: 13057.90552 | JE74: 13057.90552 | JF74: 13057.90552 | JK74: =JH71 -> 10363.41708 | JL74: =JK74 -> 10363.41708 | JM74: =JL74 -> 10363.41708 | JN74: 10363.41708 | JO74: 10363.41708 | JP74: 10363.41708 | JQ74: 10363.41708 | JR74: 10363.41708 | JS74: 10363.41708 | JT74: 10363.41708 | JY74: =JV71 -> 10363.41708 | JZ74: =JY74 -> 10363.41708 | KA74: =JZ74 -> 10363.41708 | KB74: 10363.41708 | KC74: 10363.41708 | KD74: 10363.41708 | KE74: 10363.41708 | KF74: 10363.41708 | KG74: 10363.41708 | KH74: 10363.41708 | KM74: =KJ71 -> 13057.90552 | KN74: =KM74 -> 13057.90552 | KO74: =KN74 -> 13057.90552 | KP74: 13057.90552 | KQ74: 13057.90552 | KR74: 13057.90552 | KS74: 13057.90552 | KT74: 13057.90552 | KU74: 13057.90552 | KV74: 13057.90552 | LA74: =KX71 -> 10363.41708 | LB74: =LA74 -> 10363.41708 | LC74: =LB74 -> 10363.41708 | LD74: 10363.41708 | LE74: 10363.41708 | LF74: 10363.41708 | LG74: 10363.41708 | LH74: 10363.41708 | LI74: 10363.41708 | LJ74: 10363.41708 | LO74: =LL71 -> 10363.41708 | LP74: =LO74 -> 10363.41708 | LQ74: =LP74 -> 10363.41708 | LR74: 10363.41708 | LS74: 10363.41708 | LT74: 10363.41708 | LU74: 10363.41708 | LV74: 10363.41708 | LW74: 10363.41708 | LX74: 10363.41708 | MC74: =LZ71 -> 13057.90552 | MD74: =MC74 -> 13057.90552 | ME74: =MD74 -> 13057.90552 | MF74: 13057.90552 | MG74: 13057.90552 | MH74: 13057.90552 | MI74: 13057.90552 | MJ74: 13057.90552 | MK74: 13057.90552 | ML74: 13057.90552 | MQ74: =MN71 -> 10363.41708 | MR74: =MQ74 -> 10363.41708 | MS74: =MR74 -> 10363.41708 | MT74: 10363.41708 | MU74: 10363.41708 | MV74: 10363.41708 | MW74: 10363.41708 | MX74: 10363.41708 | MY74: 10363.41708 | MZ74: 10363.41708 | NE74: =NB71 -> 10363.41708 | NF74: =NE74 -> 10363.41708 | NG74: =NF74 -> 10363.41708 | NH74: 10363.41708 | NI74: 10363.41708 | NJ74: 10363.41708 | NK74: 10363.41708 | NL74: 10363.41708 | NM74: 10363.41708 | NN74: 10363.41708 | NS74: =NP71 -> 13057.90552 | NT74: =NS74 -> 13057.90552 | NU74: =NT74 -> 13057.90552 | NV74: 13057.90552 | NW74: 13057.90552 | NX74: 13057.90552 | NY74: 13057.90552 | NZ74: 13057.90552 | OA74: 13057.90552 | OB74: 13057.90552 | OG74: =OD71 -> 10363.41708 | OH74: =OG74 -> 10363.41708 | OI74: =OH74 -> 10363.41708 | OJ74: 10363.41708 | OK74: 10363.41708 | OL74: 10363.41708 | OM74: 10363.41708 | ON74: 10363.41708 | OO74: 10363.41708 | OP74: 10363.41708 | OU74: =OR71 -> 10363.41708 | OV74: =OU74 -> 10363.41708 | OW74: =OV74 -> 10363.41708 | OX74: 10363.41708 | OY74: 10363.41708 | OZ74: 10363.41708 | PA74: 10363.41708 | PB74: 10363.41708 | PC74: 10363.41708 | PD74: 10363.41708
E75: =B72 -> 0.3157670632 | F75: =E75 -> 0.3157670632 | G75: 0.3157670632 | H75: 0.3157670632 | I75: 0.3157670632 | J75: 0.3157670632 | K75: 0.3157670632 | L75: 0.3157670632 | M75: 0.3157670632 | N75: 0.3157670632 | S75: =P72 -> 0.3157670632 | T75: =S75 -> 0.3157670632 | U75: 0.3157670632 | V75: 0.3157670632 | W75: 0.3157670632 | X75: 0.3157670632 | Y75: 0.3157670632 | Z75: 0.3157670632 | AA75: 0.3157670632 | AB75: 0.3157670632 | AG75: =AD72 -> 0.3157670632 | AH75: =AG75 -> 0.3157670632 | AI75: 0.3157670632 | AJ75: 0.3157670632 | AK75: 0.3157670632 | AL75: 0.3157670632 | AM75: 0.3157670632 | AN75: 0.3157670632 | AO75: 0.3157670632 | AP75: 0.3157670632 | AU75: =AR72 -> 0.3157670632 | AV75: =AU75 -> 0.3157670632 | AW75: 0.3157670632 | AX75: 0.3157670632 | AY75: 0.3157670632 | AZ75: 0.3157670632 | BA75: 0.3157670632 | BB75: 0.3157670632 | BC75: 0.3157670632 | BD75: 0.3157670632 | BI75: =BF72 -> 0.3157670632 | BJ75: =BI75 -> 0.3157670632 | BK75: 0.3157670632 | BL75: 0.3157670632 | BM75: 0.3157670632 | BN75: 0.3157670632 | BO75: 0.3157670632 | BP75: 0.3157670632 | BQ75: 0.3157670632 | BR75: 0.3157670632 | BW75: =BT72 -> 0.3157670632 | BX75: =BW75 -> 0.3157670632 | BY75: 0.3157670632 | BZ75: 0.3157670632 | CA75: 0.3157670632 | CB75: 0.3157670632 | CC75: 0.3157670632 | CD75: 0.3157670632 | CE75: 0.3157670632 | CF75: 0.3157670632 | CK75: =CH72 -> 0.3157670632 | CL75: =CK75 -> 0.3157670632 | CM75: 0.3157670632 | CN75: 0.3157670632 | CO75: 0.3157670632 | CP75: 0.3157670632 | CQ75: 0.3157670632 | CR75: 0.3157670632 | CS75: 0.3157670632 | CT75: 0.3157670632 | CY75: =CV72 -> 0.3157670632 | CZ75: =CY75 -> 0.3157670632 | DA75: 0.3157670632 | DB75: 0.3157670632 | DC75: 0.3157670632 | DD75: 0.3157670632 | DE75: 0.3157670632 | DF75: 0.3157670632 | DG75: 0.3157670632 | DH75: 0.3157670632 | DM75: =DJ72 -> 0.3157670632 | DN75: =DM75 -> 0.3157670632 | DO75: 0.3157670632 | DP75: 0.3157670632 | DQ75: 0.3157670632 | DR75: 0.3157670632 | DS75: 0.3157670632 | DT75: 0.3157670632 | DU75: 0.3157670632 | DV75: 0.3157670632 | EA75: =DX72 -> 0.3157670632 | EB75: =EA75 -> 0.3157670632 | EC75: 0.3157670632 | ED75: 0.3157670632 | EE75: 0.3157670632 | EF75: 0.3157670632 | EG75: 0.3157670632 | EH75: 0.3157670632 | EI75: 0.3157670632 | EJ75: 0.3157670632 | EO75: =EL72 -> 0.3157670632 | EP75: =EO75 -> 0.3157670632 | EQ75: 0.3157670632 | ER75: 0.3157670632 | ES75: 0.3157670632 | ET75: 0.3157670632 | EU75: 0.3157670632 | EV75: 0.3157670632 | EW75: 0.3157670632 | EX75: 0.3157670632 | FC75: =EZ72 -> 0.3157670632 | FD75: =FC75 -> 0.3157670632 | FE75: 0.3157670632 | FF75: 0.3157670632 | FG75: 0.3157670632 | FH75: 0.3157670632 | FI75: 0.3157670632 | FJ75: 0.3157670632 | FK75: 0.3157670632 | FL75: 0.3157670632 | FQ75: =FN72 -> 0.3157670632 | FR75: =FQ75 -> 0.3157670632 | FS75: 0.3157670632 | FT75: 0.3157670632 | FU75: 0.3157670632 | FV75: 0.3157670632 | FW75: 0.3157670632 | FX75: 0.3157670632 | FY75: 0.3157670632 | FZ75: 0.3157670632 | GE75: =GB72 -> 0.3157670632 | GF75: =GE75 -> 0.3157670632 | GG75: 0.3157670632 | GH75: 0.3157670632 | GI75: 0.3157670632 | GJ75: 0.3157670632 | GK75: 0.3157670632 | GL75: 0.3157670632 | GM75: 0.3157670632 | GN75: 0.3157670632 | GS75: =GP72 -> 0.3157670632 | GT75: =GS75 -> 0.3157670632 | GU75: 0.3157670632 | GV75: 0.3157670632 | GW75: 0.3157670632 | GX75: 0.3157670632 | GY75: 0.3157670632 | GZ75: 0.3157670632 | HA75: 0.3157670632 | HB75: 0.3157670632 | HG75: =HD72 -> 0.3157670632 | HH75: =HG75 -> 0.3157670632 | HI75: 0.3157670632 | HJ75: 0.3157670632 | HK75: 0.3157670632 | HL75: 0.3157670632 | HM75: 0.3157670632 | HN75: 0.3157670632 | HO75: 0.3157670632 | HP75: 0.3157670632 | HU75: =HR72 -> 0.3157670632 | HV75: =HU75 -> 0.3157670632 | HW75: 0.3157670632 | HX75: 0.3157670632 | HY75: 0.3157670632 | HZ75: 0.3157670632 | IA75: 0.3157670632 | IB75: 0.3157670632 | IC75: 0.3157670632 | ID75: 0.3157670632 | II75: =IF72 -> 0.3157670632 | IJ75: =II75 -> 0.3157670632 | IK75: 0.3157670632 | IL75: 0.3157670632 | IM75: 0.3157670632 | IN75: 0.3157670632 | IO75: 0.3157670632 | IP75: 0.3157670632 | IQ75: 0.3157670632 | IR75: 0.3157670632 | IW75: =IT72 -> 0.3157670632 | IX75: =IW75 -> 0.3157670632 | IY75: 0.3157670632 | IZ75: 0.3157670632 | JA75: 0.3157670632 | JB75: 0.3157670632 | JC75: 0.3157670632 | JD75: 0.3157670632 | JE75: 0.3157670632 | JF75: 0.3157670632 | JK75: =JH72 -> 0.3157670632 | JL75: =JK75 -> 0.3157670632 | JM75: 0.3157670632 | JN75: 0.3157670632 | JO75: 0.3157670632 | JP75: 0.3157670632 | JQ75: 0.3157670632 | JR75: 0.3157670632 | JS75: 0.3157670632 | JT75: 0.3157670632 | JY75: =JV72 -> 0.3157670632 | JZ75: =JY75 -> 0.3157670632 | KA75: 0.3157670632 | KB75: 0.3157670632 | KC75: 0.3157670632 | KD75: 0.3157670632 | KE75: 0.3157670632 | KF75: 0.3157670632 | KG75: 0.3157670632 | KH75: 0.3157670632 | KM75: =KJ72 -> 0.3157670632 | KN75: =KM75 -> 0.3157670632 | KO75: 0.3157670632 | KP75: 0.3157670632 | KQ75: 0.3157670632 | KR75: 0.3157670632 | KS75: 0.3157670632 | KT75: 0.3157670632 | KU75: 0.3157670632 | KV75: 0.3157670632 | LA75: =KX72 -> 0.3157670632 | LB75: =LA75 -> 0.3157670632 | LC75: 0.3157670632 | LD75: 0.3157670632 | LE75: 0.3157670632 | LF75: 0.3157670632 | LG75: 0.3157670632 | LH75: 0.3157670632 | LI75: 0.3157670632 | LJ75: 0.3157670632 | LO75: =LL72 -> 0.3157670632 | LP75: =LO75 -> 0.3157670632 | LQ75: 0.3157670632 | LR75: 0.3157670632 | LS75: 0.3157670632 | LT75: 0.3157670632 | LU75: 0.3157670632 | LV75: 0.3157670632 | LW75: 0.3157670632 | LX75: 0.3157670632 | MC75: =LZ72 -> 0.3157670632 | MD75: =MC75 -> 0.3157670632 | ME75: 0.3157670632 | MF75: 0.3157670632 | MG75: 0.3157670632 | MH75: 0.3157670632 | MI75: 0.3157670632 | MJ75: 0.3157670632 | MK75: 0.3157670632 | ML75: 0.3157670632 | MQ75: =MN72 -> 0.3157670632 | MR75: =MQ75 -> 0.3157670632 | MS75: 0.3157670632 | MT75: 0.3157670632 | MU75: 0.3157670632 | MV75: 0.3157670632 | MW75: 0.3157670632 | MX75: 0.3157670632 | MY75: 0.3157670632 | MZ75: 0.3157670632 | NE75: =NB72 -> 0.3157670632 | NF75: =NE75 -> 0.3157670632 | NG75: 0.3157670632 | NH75: 0.3157670632 | NI75: 0.3157670632 | NJ75: 0.3157670632 | NK75: 0.3157670632 | NL75: 0.3157670632 | NM75: 0.3157670632 | NN75: 0.3157670632 | NS75: =NP72 -> 0.3157670632 | NT75: =NS75 -> 0.3157670632 | NU75: 0.3157670632 | NV75: 0.3157670632 | NW75: 0.3157670632 | NX75: 0.3157670632 | NY75: 0.3157670632 | NZ75: 0.3157670632 | OA75: 0.3157670632 | OB75: 0.3157670632 | OG75: =OD72 -> 0.3157670632 | OH75: =OG75 -> 0.3157670632 | OI75: 0.3157670632 | OJ75: 0.3157670632 | OK75: 0.3157670632 | OL75: 0.3157670632 | OM75: 0.3157670632 | ON75: 0.3157670632 | OO75: 0.3157670632 | OP75: 0.3157670632 | OU75: =OR72 -> 0.3157670632 | OV75: =OU75 -> 0.3157670632 | OW75: 0.3157670632 | OX75: 0.3157670632 | OY75: 0.3157670632 | OZ75: 0.3157670632 | PA75: 0.3157670632 | PB75: 0.3157670632 | PC75: 0.3157670632 | PD75: 0.3157670632
E76: Emergency | S76: Elective | AG76: Screening | AU76: Emergency | BI76: Elective | BW76: Screening | CK76: Emergency | CY76: Elective | DM76: Screening | EA76: Emergency | EO76: Elective | FC76: Screening | FQ76: Emergency | GE76: Elective | GS76: Screening | HG76: Emergency | HU76: Elective | II76: Screening | IW76: Emergency | JK76: Elective | JY76: Screening | KM76: Emergency | LA76: Elective | LO76: Screening | MC76: Emergency | MQ76: Elective | NE76: Screening | NS76: Emergency | OG76: Elective | OU76: Screening
E77: =Start_year -> 2016 | F77: =E77+1 -> 2017 | G77: 2018 | H77: 2019 | I77: 2020 | J77: 2021 | K77: 2022 | L77: 2023 | M77: 2024 | N77: 2025 | S77: =Start_year -> 2016 | T77: =S77+1 -> 2017 | U77: 2018 | V77: 2019 | W77: 2020 | X77: 2021 | Y77: 2022 | Z77: 2023 | AA77: 2024 | AB77: 2025 | AG77: =Start_year+1 -> 2017 | AH77: =AG77+1 -> 2018 | AI77: =AH77+1 -> 2019 | AJ77: 2020 | AK77: 2021 | AL77: 2022 | AM77: 2023 | AN77: 2024 | AO77: 2025 | AP77: 2026 | AU77: =Start_year -> 2016 | AV77: =AU77+1 -> 2017 | AW77: =AV77+1 -> 2018 | AX77: 2019 | AY77: 2020 | AZ77: 2021 | BA77: 2022 | BB77: 2023 | BC77: 2024 | BD77: 2025 | BI77: =AU77 -> 2016 | BJ77: 2017 | BK77: 2018 | BL77: 2019 | BM77: 2020 | BN77: 2021 | BO77: 2022 | BP77: 2023 | BQ77: 2024 | BR77: 2025 | BW77: =BI77 -> 2016 | BX77: 2017 | BY77: 2018 | BZ77: 2019 | CA77: 2020 | CB77: 2021 | CC77: 2022 | CD77: 2023 | CE77: 2024 | CF77: 2025 | CK77: =Start_year -> 2016 | CL77: =CK77+1 -> 2017 | CM77: =CL77+1 -> 2018 | CN77: 2019 | CO77: 2020 | CP77: 2021 | CQ77: 2022 | CR77: 2023 | CS77: 2024 | CT77: 2025 | CY77: =CK77 -> 2016 | CZ77: 2017 | DA77: 2018 | DB77: 2019 | DC77: 2020 | DD77: 2021 | DE77: 2022 | DF77: 2023 | DG77: 2024 | DH77: 2025 | DM77: =CY77 -> 2016 | DN77: 2017 | DO77: 2018 | DP77: 2019 | DQ77: 2020 | DR77: 2021 | DS77: 2022 | DT77: 2023 | DU77: 2024 | DV77: 2025 | EA77: =Start_year -> 2016 | EB77: =EA77+1 -> 2017 | EC77: =EB77+1 -> 2018 | ED77: 2019 | EE77: 2020 | EF77: 2021 | EG77: 2022 | EH77: 2023 | EI77: 2024 | EJ77: 2025 | EO77: =EA77 -> 2016 | EP77: 2017 | EQ77: 2018 | ER77: 2019 | ES77: 2020 | ET77: 2021 | EU77: 2022 | EV77: 2023 | EW77: 2024 | EX77: 2025 | FC77: =EO77 -> 2016 | FD77: 2017 | FE77: 2018 | FF77: 2019 | FG77: 2020 | FH77: 2021 | FI77: 2022 | FJ77: 2023 | FK77: 2024 | FL77: 2025 | FQ77: =Start_year -> 2016 | FR77: =FQ77+1 -> 2017 | FS77: =FR77+1 -> 2018 | FT77: 2019 | FU77: 2020 | FV77: 2021 | FW77: 2022 | FX77: 2023 | FY77: 2024 | FZ77: 2025 | GE77: =FQ77 -> 2016 | GF77: 2017 | GG77: 2018 | GH77: 2019 | GI77: 2020 | GJ77: 2021 | GK77: 2022 | GL77: 2023 | GM77: 2024 | GN77: 2025 | GS77: =GE77 -> 2016 | GT77: 2017 | GU77: 2018 | GV77: 2019 | GW77: 2020 | GX77: 2021 | GY77: 2022 | GZ77: 2023 | HA77: 2024 | HB77: 2025 | HG77: =Start_year -> 2016 | HH77: =HG77+1 -> 2017 | HI77: =HH77+1 -> 2018 | HJ77: 2019 | HK77: 2020 | HL77: 2021 | HM77: 2022 | HN77: 2023 | HO77: 2024 | HP77: 2025 | HU77: =HG77 -> 2016 | HV77: 2017 | HW77: 2018 | HX77: 2019 | HY77: 2020 | HZ77: 2021 | IA77: 2022 | IB77: 2023 | IC77: 2024 | ID77: 2025 | II77: =HU77 -> 2016 | IJ77: 2017 | IK77: 2018 | IL77: 2019 | IM77: 2020 | IN77: 2021 | IO77: 2022 | IP77: 2023 | IQ77: 2024 | IR77: 2025 | IW77: =Start_year -> 2016 | IX77: =IW77+1 -> 2017 | IY77: =IX77+1 -> 2018 | IZ77: 2019 | JA77: 2020 | JB77: 2021 | JC77: 2022 | JD77: 2023 | JE77: 2024 | JF77: 2025 | JK77: =IW77 -> 2016 | JL77: 2017 | JM77: 2018 | JN77: 2019 | JO77: 2020 | JP77: 2021 | JQ77: 2022 | JR77: 2023 | JS77: 2024 | JT77: 2025 | JY77: =JK77 -> 2016 | JZ77: 2017 | KA77: 2018 | KB77: 2019 | KC77: 2020 | KD77: 2021 | KE77: 2022 | KF77: 2023 | KG77: 2024 | KH77: 2025 | KM77: =Start_year -> 2016 | KN77: =KM77+1 -> 2017 | KO77: =KN77+1 -> 2018 | KP77: 2019 | KQ77: 2020 | KR77: 2021 | KS77: 2022 | KT77: 2023 | KU77: 2024 | KV77: 2025 | LA77: =KM77 -> 2016 | LB77: 2017 | LC77: 2018 | LD77: 2019 | LE77: 2020 | LF77: 2021 | LG77: 2022 | LH77: 2023 | LI77: 2024 | LJ77: 2025 | LO77: =LA77 -> 2016 | LP77: 2017 | LQ77: 2018 | LR77: 2019 | LS77: 2020 | LT77: 2021 | LU77: 2022 | LV77: 2023 | LW77: 2024 | LX77: 2025 | MC77: =Start_year -> 2016 | MD77: =MC77+1 -> 2017 | ME77: =MD77+1 -> 2018 | MF77: 2019 | MG77: 2020 | MH77: 2021 | MI77: 2022 | MJ77: 2023 | MK77: 2024 | ML77: 2025 | MQ77: =MC77 -> 2016 | MR77: 2017 | MS77: 2018 | MT77: 2019 | MU77: 2020 | MV77: 2021 | MW77: 2022 | MX77: 2023 | MY77: 2024 | MZ77: 2025 | NE77: =MQ77 -> 2016 | NF77: 2017 | NG77: 2018 | NH77: 2019 | NI77: 2020 | NJ77: 2021 | NK77: 2022 | NL77: 2023 | NM77: 2024 | NN77: 2025 | NS77: =Start_year -> 2016 | NT77: =NS77+1 -> 2017 | NU77: =NT77+1 -> 2018 | NV77: 2019 | NW77: 2020 | NX77: 2021 | NY77: 2022 | NZ77: 2023 | OA77: 2024 | OB77: 2025 | OG77: =NS77 -> 2016 | OH77: 2017 | OI77: 2018 | OJ77: 2019 | OK77: 2020 | OL77: 2021 | OM77: 2022 | ON77: 2023 | OO77: 2024 | OP77: 2025 | OU77: =OG77 -> 2016 | OV77: 2017 | OW77: 2018 | OX77: 2019 | OY77: 2020 | OZ77: 2021 | PA77: 2022 | PB77: 2023 | PC77: 2024 | PD77: 2025
D78: Patinet cost profile | E78: ='B4. Optional variables'!C44 -> 0.89 | F78: ='B4. Optional variables'!D44 -> 0.03 | G78: ='B4. Optional variables'!E44 -> 0.02 | H78: ='B4. Optional variables'!F44 -> 0.02 | I78: ='B4. Optional variables'!G44 -> 0 | J78: ='B4. Optional variables'!H44 -> 0.04 | K78: ='B4. Optional variables'!I44 -> 0 | L78: ='B4. Optional variables'!J44 -> 0 | M78: ='B4. Optional variables'!K44 -> 0 | N78: ='B4. Optional variables'!L44 -> 0 | S78: ='B4. Optional variables'!C45 -> 0.89 | T78: ='B4. Optional variables'!D45 -> 0.03 | U78: ='B4. Optional variables'!E45 -> 0.02 | V78: ='B4. Optional variables'!F45 -> 0.02 | W78: ='B4. Optional variables'!G45 -> 0 | X78: ='B4. Optional variables'!H45 -> 0.04 | Y78: ='B4. Optional variables'!I45 -> 0 | Z78: ='B4. Optional variables'!J45 -> 0 | AA78: ='B4. Optional variables'!K45 -> 0 | AB78: ='B4. Optional variables'!L45 -> 0 | AG78: ='B4. Optional variables'!C46 -> 0.89 | AH78: ='B4. Optional variables'!D46 -> 0.03 | AI78: ='B4. Optional variables'!E46 -> 0.02 | AJ78: ='B4. Optional variables'!F46 -> 0.02 | AK78: ='B4. Optional variables'!G46 -> 0 | AL78: ='B4. Optional variables'!H46 -> 0.04 | AM78: ='B4. Optional variables'!I46 -> 0 | AN78: ='B4. Optional variables'!J46 -> 0 | AO78: ='B4. Optional variables'!K46 -> 0 | AP78: ='B4. Optional variables'!L46 -> 0 | AU78: 0 | AV78: =E78 -> 0.89 | AW78: 0.03 | AX78: 0.02 | AY78: 0.02 | AZ78: 0 | BA78: 0.04 | BB78: 0 | BC78: 0 | BD78: 0 | BI78: 0 | BJ78: =S78 -> 0.89 | BK78: 0.03 | BL78: 0.02 | BM78: 0.02 | BN78: 0 | BO78: 0.04 | BP78: 0 | BQ78: 0 | BR78: 0 | BW78: 0 | BX78: =AG78 -> 0.89 | BY78: 0.03 | BZ78: 0.02 | CA78: 0.02 | CB78: 0 | CC78: 0.04 | CD78: 0 | CE78: 0 | CF78: 0 | CK78: 0 | CL78: 0 | CM78: =E78 -> 0.89 | CN78: 0.03 | CO78: 0.02 | CP78: 0.02 | CQ78: 0 | CR78: 0.04 | CS78: 0 | CT78: 0 | CY78: 0 | CZ78: 0 | DA78: =S78 -> 0.89 | DB78: 0.03 | DC78: 0.02 | DD78: 0.02 | DE78: 0 | DF78: 0.04 | DG78: 0 | DH78: 0 | DM78: 0 | DN78: 0 | DO78: =AG78 -> 0.89 | DP78: 0.03 | DQ78: 0.02 | DR78: 0.02 | DS78: 0 | DT78: 0.04 | DU78: 0 | DV78: 0 | EA78: 0 | EB78: 0 | EC78: 0 | ED78: =E78 -> 0.89 | EE78: 0.03 | EF78: 0.02 | EG78: 0.02 | EH78: 0 | EI78: 0.04 | EJ78: 0 | EO78: 0 | EP78: 0 | EQ78: 0 | ER78: =S78 -> 0.89 | ES78: 0.03 | ET78: 0.02 | EU78: 0.02 | EV78: 0 | EW78: 0.04 | EX78: 0 | FC78: 0 | FD78: 0 | FE78: 0 | FF78: =AG78 -> 0.89 | FG78: 0.03 | FH78: 0.02 | FI78: 0.02 | FJ78: 0 | FK78: 0.04 | FL78: 0 | FQ78: 0 | FR78: 0 | FS78: 0 | FT78: 0 | FU78: =E78 -> 0.89 | FV78: 0.03 | FW78: 0.02 | FX78: 0.02 | FY78: 0 | FZ78: 0.04 | GE78: 0 | GF78: 0 | GG78: 0 | GH78: 0 | GI78: =S78 -> 0.89 | GJ78: 0.03 | GK78: 0.02 | GL78: 0.02 | GM78: 0 | GN78: 0.04 | GS78: 0 | GT78: 0 | GU78: 0 | GV78: 0 | GW78: =AG78 -> 0.89 | GX78: 0.03 | GY78: 0.02 | GZ78: 0.02 | HA78: 0 | HB78: 0.04 | HG78: 0 | HH78: 0 | HI78: 0 | HJ78: 0 | HK78: 0 | HL78: =E78 -> 0.89 | HM78: =F78 -> 0.03 | HN78: =G78 -> 0.02 | HO78: =H78 -> 0.02 | HP78: =I78 -> 0 | HU78: 0 | HV78: 0 | HW78: 0 | HX78: 0 | HY78: 0 | HZ78: =S78 -> 0.89 | IA78: =T78 -> 0.03 | IB78: =U78 -> 0.02 | IC78: =V78 -> 0.02 | ID78: =W78 -> 0 | II78: 0 | IJ78: 0 | IK78: 0 | IL78: 0 | IM78: 0 | IN78: =AG78 -> 0.89 | IO78: =AH78 -> 0.03 | IP78: =AI78 -> 0.02 | IQ78: =AJ78 -> 0.02 | IR78: =AK78 -> 0 | IW78: 0 | IX78: 0 | IY78: 0 | IZ78: 0 | JA78: 0 | JB78: 0 | JC78: =E78 -> 0.89 | JD78: =F78 -> 0.03 | JE78: =G78 -> 0.02 | JF78: =H78 -> 0.02 | JK78: 0 | JL78: 0 | JM78: 0 | JN78: 0 | JO78: 0 | JP78: 0 | JQ78: =S78 -> 0.89 | JR78: =T78 -> 0.03 | JS78: =U78 -> 0.02 | JT78: =V78 -> 0.02 | JY78: 0 | JZ78: 0 | KA78: 0 | KB78: 0 | KC78: 0 | KD78: 0 | KE78: =AG78 -> 0.89 | KF78: =AH78 -> 0.03 | KG78: =AI78 -> 0.02 | KH78: =AJ78 -> 0.02 | KM78: 0 | KN78: 0 | KO78: 0 | KP78: 0 | KQ78: 0 | KR78: 0 | KS78: 0 | KT78: =E78 -> 0.89 | KU78: =F78 -> 0.03 | KV78: =G78 -> 0.02 | LA78: 0 | LB78: 0 | LC78: 0 | LD78: 0 | LE78: 0 | LF78: 0 | LG78: 0 | LH78: =S78 -> 0.89 | LI78: =T78 -> 0.03 | LJ78: =U78 -> 0.02 | LO78: 0 | LP78: 0 | LQ78: 0 | LR78: 0 | LS78: 0 | LT78: 0 | LU78: 0 | LV78: =AG78 -> 0.89 | LW78: =AH78 -> 0.03 | LX78: =AI78 -> 0.02 | MC78: 0 | MD78: 0 | ME78: 0 | MF78: 0 | MG78: 0 | MH78: 0 | MI78: 0 | MJ78: 0 | MK78: =E78 -> 0.89 | ML78: =F78 -> 0.03 | MQ78: 0 | MR78: 0 | MS78: 0 | MT78: 0 | MU78: 0 | MV78: 0 | MW78: 0 | MX78: 0 | MY78: =S78 -> 0.89 | MZ78: =T78 -> 0.03 | NE78: 0 | NF78: 0 | NG78: 0 | NH78: 0 | NI78: 0 | NJ78: 0 | NK78: 0 | NL78: 0 | NM78: =AG78 -> 0.89 | NN78: =AH78 -> 0.03 | NS78: 0 | NT78: 0 | NU78: 0 | NV78: 0 | NW78: 0 | NX78: 0 | NY78: 0 | NZ78: 0 | OA78: 0 | OB78: =E78 -> 0.89 | OG78: 0 | OH78: 0 | OI78: 0 | OJ78: 0 | OK78: 0 | OL78: 0 | OM78: 0 | ON78: 0 | OO78: 0 | OP78: =S78 -> 0.89 | OU78: 0 | OV78: 0 | OW78: 0 | OX78: 0 | OY78: 0 | OZ78: 0 | PA78: 0 | PB78: 0 | PC78: 0 | PD78: =AG78 -> 0.89
D79: Activity | E79: =Activity!E79 -> 5 | F79: =E79 -> 5 | G79: =F79 -> 5 | H79: 5 | I79: 5 | J79: 5 | K79: 5 | L79: 5 | M79: 5 | N79: 5 | S79: =Activity!S79 -> 13.28888889 | T79: =S79 -> 13.28888889 | U79: =T79 -> 13.28888889 | V79: 13.28888889 | W79: 13.28888889 | X79: 13.28888889 | Y79: 13.28888889 | Z79: 13.28888889 | AA79: 13.28888889 | AB79: 13.28888889 | AG79: =Activity!AG79 -> 3.428571429 | AH79: =AG79 -> 3.428571429 | AI79: =AH79 -> 3.428571429 | AJ79: 3.428571429 | AK79: 3.428571429 | AL79: 3.428571429 | AM79: 3.428571429 | AN79: 3.428571429 | AO79: 3.428571429 | AP79: 3.428571429 | AU79: =Activity!F79 -> 5.1 | AV79: =AU79 -> 5.1 | AW79: =AV79 -> 5.1 | AX79: 5.1 | AY79: 5.1 | AZ79: 5.1 | BA79: 5.1 | BB79: 5.1 | BC79: 5.1 | BD79: 5.1 | BI79: =Activity!T79 -> 13.55466667 | BJ79: =BI79 -> 13.55466667 | BK79: =BJ79 -> 13.55466667 | BL79: 13.55466667 | BM79: 13.55466667 | BN79: 13.55466667 | BO79: 13.55466667 | BP79: 13.55466667 | BQ79: 13.55466667 | BR79: 13.55466667 | BW79: =Activity!AH79 -> 3.497142857 | BX79: =BW79 -> 3.497142857 | BY79: =BX79 -> 3.497142857 | BZ79: 3.497142857 | CA79: 3.497142857 | CB79: 3.497142857 | CC79: 3.497142857 | CD79: 3.497142857 | CE79: 3.497142857 | CF79: 3.497142857 | CK79: =Activity!G79 -> 5.202 | CL79: =CK79 -> 5.202 | CM79: 5.202 | CN79: 5.202 | CO79: 5.202 | CP79: 5.202 | CQ79: 5.202 | CR79: 5.202 | CS79: 5.202 | CT79: 5.202 | CY79: =Activity!U79 -> 13.82576 | CZ79: =CY79 -> 13.82576 | DA79: 13.82576 | DB79: 13.82576 | DC79: 13.82576 | DD79: 13.82576 | DE79: 13.82576 | DF79: 13.82576 | DG79: 13.82576 | DH79: 13.82576 | DM79: =Activity!AI79 -> 3.567085714 | DN79: =DM79 -> 3.567085714 | DO79: 3.567085714 | DP79: 3.567085714 | DQ79: 3.567085714 | DR79: 3.567085714 | DS79: 3.567085714 | DT79: 3.567085714 | DU79: 3.567085714 | DV79: 3.567085714 | EA79: =Activity!H79 -> 5.30604 | EB79: =EA79 -> 5.30604 | EC79: 5.30604 | ED79: 5.30604 | EE79: 5.30604 | EF79: 5.30604 | EG79: 5.30604 | EH79: 5.30604 | EI79: 5.30604 | EJ79: 5.30604 | EO79: =Activity!V79 -> 14.1022752 | EP79: =EO79 -> 14.1022752 | EQ79: 14.1022752 | ER79: 14.1022752 | ES79: 14.1022752 | ET79: 14.1022752 | EU79: 14.1022752 | EV79: 14.1022752 | EW79: 14.1022752 | EX79: 14.1022752 | FC79: =Activity!AJ79 -> 3.638427429 | FD79: =FC79 -> 3.638427429 | FE79: 3.638427429 | FF79: 3.638427429 | FG79: 3.638427429 | FH79: 3.638427429 | FI79: 3.638427429 | FJ79: 3.638427429 | FK79: 3.638427429 | FL79: 3.638427429 | FQ79: =Activity!I79 -> 5.4121608 | FR79: =FQ79 -> 5.4121608 | FS79: 5.4121608 | FT79: 5.4121608 | FU79: 5.4121608 | FV79: 5.4121608 | FW79: 5.4121608 | FX79: 5.4121608 | FY79: 5.4121608 | FZ79: 5.4121608 | GE79: =Activity!W79 -> 14.3843207 | GF79: =GE79 -> 14.3843207 | GG79: 14.3843207 | GH79: 14.3843207 | GI79: 14.3843207 | GJ79: 14.3843207 | GK79: 14.3843207 | GL79: 14.3843207 | GM79: 14.3843207 | GN79: 14.3843207 | GS79: =Activity!AK79 -> 3.711195977 | GT79: =GS79 -> 3.711195977 | GU79: 3.711195977 | GV79: 3.711195977 | GW79: 3.711195977 | GX79: 3.711195977 | GY79: 3.711195977 | GZ79: 3.711195977 | HA79: 3.711195977 | HB79: 3.711195977 | HG79: =Activity!J79 -> 5.520404016 | HH79: =HG79 -> 5.520404016 | HI79: 5.520404016 | HJ79: 5.520404016 | HK79: 5.520404016 | HL79: 5.520404016 | HM79: 5.520404016 | HN79: 5.520404016 | HO79: 5.520404016 | HP79: 5.520404016 | HU79: =Activity!X79 -> 14.67200712 | HV79: =HU79 -> 14.67200712 | HW79: 14.67200712 | HX79: 14.67200712 | HY79: 14.67200712 | HZ79: 14.67200712 | IA79: 14.67200712 | IB79: 14.67200712 | IC79: 14.67200712 | ID79: 14.67200712 | II79: =Activity!AL79 -> 3.785419897 | IJ79: =II79 -> 3.785419897 | IK79: 3.785419897 | IL79: 3.785419897 | IM79: 3.785419897 | IN79: 3.785419897 | IO79: 3.785419897 | IP79: 3.785419897 | IQ79: 3.785419897 | IR79: 3.785419897 | IW79: =Activity!K79 -> 5.630812096 | IX79: =IW79 -> 5.630812096 | IY79: 5.630812096 | IZ79: 5.630812096 | JA79: 5.630812096 | JB79: 5.630812096 | JC79: 5.630812096 | JD79: 5.630812096 | JE79: 5.630812096 | JF79: 5.630812096 | JK79: =Activity!Y79 -> 14.96544726 | JL79: =JK79 -> 14.96544726 | JM79: 14.96544726 | JN79: 14.96544726 | JO79: 14.96544726 | JP79: 14.96544726 | JQ79: 14.96544726 | JR79: 14.96544726 | JS79: 14.96544726 | JT79: 14.96544726 | JY79: =Activity!AM79 -> 3.861128295 | JZ79: =JY79 -> 3.861128295 | KA79: 3.861128295 | KB79: 3.861128295 | KC79: 3.861128295 | KD79: 3.861128295 | KE79: 3.861128295 | KF79: 3.861128295 | KG79: 3.861128295 | KH79: 3.861128295 | KM79: =Activity!L79 -> 5.743428338 | KN79: =KM79 -> 5.743428338 | KO79: 5.743428338 | KP79: 5.743428338 | KQ79: 5.743428338 | KR79: 5.743428338 | KS79: 5.743428338 | KT79: 5.743428338 | KU79: 5.743428338 | KV79: 5.743428338 | LA79: =Activity!Z79 -> 15.26475621 | LB79: =LA79 -> 15.26475621 | LC79: 15.26475621 | LD79: 15.26475621 | LE79: 15.26475621 | LF79: 15.26475621 | LG79: 15.26475621 | LH79: 15.26475621 | LI79: 15.26475621 | LJ79: 15.26475621 | LO79: =Activity!AN79 -> 3.938350861 | LP79: =LO79 -> 3.938350861 | LQ79: 3.938350861 | LR79: 3.938350861 | LS79: 3.938350861 | LT79: 3.938350861 | LU79: 3.938350861 | LV79: 3.938350861 | LW79: 3.938350861 | LX79: 3.938350861 | MC79: =Activity!M79 -> 5.858296905 | MD79: =MC79 -> 5.858296905 | ME79: 5.858296905 | MF79: 5.858296905 | MG79: 5.858296905 | MH79: 5.858296905 | MI79: 5.858296905 | MJ79: 5.858296905 | MK79: 5.858296905 | ML79: 5.858296905 | MQ79: =Activity!AA79 -> 15.57005133 | MR79: =MQ79 -> 15.57005133 | MS79: 15.57005133 | MT79: 15.57005133 | MU79: 15.57005133 | MV79: 15.57005133 | MW79: 15.57005133 | MX79: 15.57005133 | MY79: 15.57005133 | MZ79: 15.57005133 | NE79: =Activity!AO79 -> 4.017117878 | NF79: =NE79 -> 4.017117878 | NG79: 4.017117878 | NH79: 4.017117878 | NI79: 4.017117878 | NJ79: 4.017117878 | NK79: 4.017117878 | NL79: 4.017117878 | NM79: 4.017117878 | NN79: 4.017117878 | NS79: =Activity!N79 -> 5.975462843 | NT79: =NS79 -> 5.975462843 | NU79: 5.975462843 | NV79: 5.975462843 | NW79: 5.975462843 | NX79: 5.975462843 | NY79: 5.975462843 | NZ79: 5.975462843 | OA79: 5.975462843 | OB79: 5.975462843 | OG79: =Activity!AB79 -> 15.88145236 | OH79: =OG79 -> 15.88145236 | OI79: 15.88145236 | OJ79: 15.88145236 | OK79: 15.88145236 | OL79: 15.88145236 | OM79: 15.88145236 | ON79: 15.88145236 | OO79: 15.88145236 | OP79: 15.88145236 | OU79: =Activity!AP79 -> 4.097460235 | OV79: =OU79 -> 4.097460235 | OW79: 4.097460235 | OX79: 4.097460235 | OY79: 4.097460235 | OZ79: 4.097460235 | PA79: 4.097460235 | PB79: 4.097460235 | PC79: 4.097460235 | PD79: 4.097460235
A81: Stage - 3 Do nothing scenario | D81: Do nothing scenario
D83: Year 1 patients | AU83: Year 2 patients | CK83: Year 3 patients | EA83: Year 4 patients | FQ83: Year 5 patients | HG83: Year 6 patients | IW83: Year 7 patients | KM83: Year 8 patients | MC83: Year 9 patients | NS83: Year 10 patients
E85: =E52 -> 16405.20366 | F85: =F52 -> 16405.20366 | G85: 16405.20366 | H85: 16405.20366 | I85: 16405.20366 | J85: 16405.20366 | K85: 16405.20366 | L85: 16405.20366 | M85: 16405.20366 | N85: 16405.20366 | S85: =S52 -> 13020.00291 | T85: =T52 -> 13020.00291 | U85: 13020.00291 | V85: 13020.00291 | W85: 13020.00291 | X85: 13020.00291 | Y85: 13020.00291 | Z85: 13020.00291 | AA85: 13020.00291 | AB85: 13020.00291 | AG85: =AG52 -> 13020.00291 | AH85: =AH52 -> 13020.00291 | AI85: 13020.00291 | AJ85: 13020.00291 | AK85: 13020.00291 | AL85: 13020.00291 | AM85: 13020.00291 | AN85: 13020.00291 | AO85: 13020.00291 | AP85: 13020.00291 | AU85: =AU52 -> 16405.20366 | AV85: =AV52 -> 16405.20366 | AW85: 16405.20366 | AX85: 16405.20366 | AY85: 16405.20366 | AZ85: 16405.20366 | BA85: 16405.20366 | BB85: 16405.20366 | BC85: 16405.20366 | BD85: 16405.20366 | BI85: =BI52 -> 13020.00291 | BJ85: =BJ52 -> 13020.00291 | BK85: 13020.00291 | BL85: 13020.00291 | BM85: 13020.00291 | BN85: 13020.00291 | BO85: 13020.00291 | BP85: 13020.00291 | BQ85: 13020.00291 | BR85: 13020.00291 | BW85: =BW52 -> 13020.00291 | BX85: =BX52 -> 13020.00291 | BY85: 13020.00291 | BZ85: 13020.00291 | CA85: 13020.00291 | CB85: 13020.00291 | CC85: 13020.00291 | CD85: 13020.00291 | CE85: 13020.00291 | CF85: 13020.00291 | CK85: =CK52 -> 16405.20366 | CL85: =CL52 -> 16405.20366 | CM85: 16405.20366 | CN85: 16405.20366 | CO85: 16405.20366 | CP85: 16405.20366 | CQ85: 16405.20366 | CR85: 16405.20366 | CS85: 16405.20366 | CT85: 16405.20366 | CY85: =CY52 -> 13020.00291 | CZ85: =CZ52 -> 13020.00291 | DA85: 13020.00291 | DB85: 13020.00291 | DC85: 13020.00291 | DD85: 13020.00291 | DE85: 13020.00291 | DF85: 13020.00291 | DG85: 13020.00291 | DH85: 13020.00291 | DM85: =DM52 -> 13020.00291 | DN85: =DN52 -> 13020.00291 | DO85: 13020.00291 | DP85: 13020.00291 | DQ85: 13020.00291 | DR85: 13020.00291 | DS85: 13020.00291 | DT85: 13020.00291 | DU85: 13020.00291 | DV85: 13020.00291 | EA85: =EA52 -> 16405.20366 | EB85: =EB52 -> 16405.20366 | EC85: 16405.20366 | ED85: 16405.20366 | EE85: 16405.20366 | EF85: 16405.20366 | EG85: 16405.20366 | EH85: 16405.20366 | EI85: 16405.20366 | EJ85: 16405.20366 | EO85: =EO52 -> 13020.00291 | EP85: =EP52 -> 13020.00291 | EQ85: 13020.00291 | ER85: 13020.00291 | ES85: 13020.00291 | ET85: 13020.00291 | EU85: 13020.00291 | EV85: 13020.00291 | EW85: 13020.00291 | EX85: 13020.00291 | FC85: =FC52 -> 13020.00291 | FD85: =FD52 -> 13020.00291 | FE85: 13020.00291 | FF85: 13020.00291 | FG85: 13020.00291 | FH85: 13020.00291 | FI85: 13020.00291 | FJ85: 13020.00291 | FK85: 13020.00291 | FL85: 13020.00291 | FQ85: =FQ52 -> 16405.20366 | FR85: =FR52 -> 16405.20366 | FS85: 16405.20366 | FT85: 16405.20366 | FU85: 16405.20366 | FV85: 16405.20366 | FW85: 16405.20366 | FX85: 16405.20366 | FY85: 16405.20366 | FZ85: 16405.20366 | GE85: =GE52 -> 13020.00291 | GF85: =GF52 -> 13020.00291 | GG85: 13020.00291 | GH85: 13020.00291 | GI85: 13020.00291 | GJ85: 13020.00291 | GK85: 13020.00291 | GL85: 13020.00291 | GM85: 13020.00291 | GN85: 13020.00291 | GS85: =GS52 -> 13020.00291 | GT85: =GT52 -> 13020.00291 | GU85: 13020.00291 | GV85: 13020.00291 | GW85: 13020.00291 | GX85: 13020.00291 | GY85: 13020.00291 | GZ85: 13020.00291 | HA85: 13020.00291 | HB85: 13020.00291 | HG85: =HG52 -> 16405.20366 | HH85: =HH52 -> 16405.20366 | HI85: 16405.20366 | HJ85: 16405.20366 | HK85: 16405.20366 | HL85: 16405.20366 | HM85: 16405.20366 | HN85: 16405.20366 | HO85: 16405.20366 | HP85: 16405.20366 | HU85: =HU52 -> 13020.00291 | HV85: =HV52 -> 13020.00291 | HW85: 13020.00291 | HX85: 13020.00291 | HY85: 13020.00291 | HZ85: 13020.00291 | IA85: 13020.00291 | IB85: 13020.00291 | IC85: 13020.00291 | ID85: 13020.00291 | II85: =II52 -> 13020.00291 | IJ85: =IJ52 -> 13020.00291 | IK85: 13020.00291 | IL85: 13020.00291 | IM85: 13020.00291 | IN85: 13020.00291 | IO85: 13020.00291 | IP85: 13020.00291 | IQ85: 13020.00291 | IR85: 13020.00291 | IW85: =IW52 -> 16405.20366 | IX85: =IX52 -> 16405.20366 | IY85: 16405.20366 | IZ85: 16405.20366 | JA85: 16405.20366 | JB85: 16405.20366 | JC85: 16405.20366 | JD85: 16405.20366 | JE85: 16405.20366 | JF85: 16405.20366 | JK85: =JK52 -> 13020.00291 | JL85: =JL52 -> 13020.00291 | JM85: 13020.00291 | JN85: 13020.00291 | JO85: 13020.00291 | JP85: 13020.00291 | JQ85: 13020.00291 | JR85: 13020.00291 | JS85: 13020.00291 | JT85: 13020.00291 | JY85: =JY52 -> 13020.00291 | JZ85: =JZ52 -> 13020.00291 | KA85: 13020.00291 | KB85: 13020.00291 | KC85: 13020.00291 | KD85: 13020.00291 | KE85: 13020.00291 | KF85: 13020.00291 | KG85: 13020.00291 | KH85: 13020.00291 | KM85: =KM52 -> 16405.20366 | KN85: =KN52 -> 16405.20366 | KO85: 16405.20366 | KP85: 16405.20366 | KQ85: 16405.20366 | KR85: 16405.20366 | KS85: 16405.20366 | KT85: 16405.20366 | KU85: 16405.20366 | KV85: 16405.20366 | LA85: =LA52 -> 13020.00291 | LB85: =LB52 -> 13020.00291 | LC85: 13020.00291 | LD85: 13020.00291 | LE85: 13020.00291 | LF85: 13020.00291 | LG85: 13020.00291 | LH85: 13020.00291 | LI85: 13020.00291 | LJ85: 13020.00291 | LO85: =LO52 -> 13020.00291 | LP85: =LP52 -> 13020.00291 | LQ85: 13020.00291 | LR85: 13020.00291 | LS85: 13020.00291 | LT85: 13020.00291 | LU85: 13020.00291 | LV85: 13020.00291 | LW85: 13020.00291 | LX85: 13020.00291 | MC85: =MC52 -> 16405.20366 | MD85: =MD52 -> 16405.20366 | ME85: 16405.20366 | MF85: 16405.20366 | MG85: 16405.20366 | MH85: 16405.20366 | MI85: 16405.20366 | MJ85: 16405.20366 | MK85: 16405.20366 | ML85: 16405.20366 | MQ85: =MQ52 -> 13020.00291 | MR85: =MR52 -> 13020.00291 | MS85: 13020.00291 | MT85: 13020.00291 | MU85: 13020.00291 | MV85: 13020.00291 | MW85: 13020.00291 | MX85: 13020.00291 | MY85: 13020.00291 | MZ85: 13020.00291 | NE85: =NE52 -> 13020.00291 | NF85: =NF52 -> 13020.00291 | NG85: 13020.00291 | NH85: 13020.00291 | NI85: 13020.00291 | NJ85: 13020.00291 | NK85: 13020.00291 | NL85: 13020.00291 | NM85: 13020.00291 | NN85: 13020.00291 | NS85: =NS52 -> 16405.20366 | NT85: =NT52 -> 16405.20366 | NU85: 16405.20366 | NV85: 16405.20366 | NW85: 16405.20366 | NX85: 16405.20366 | NY85: 16405.20366 | NZ85: 16405.20366 | OA85: 16405.20366 | OB85: 16405.20366 | OG85: =OG52 -> 13020.00291 | OH85: =OH52 -> 13020.00291 | OI85: 13020.00291 | OJ85: 13020.00291 | OK85: 13020.00291 | OL85: 13020.00291 | OM85: 13020.00291 | ON85: 13020.00291 | OO85: 13020.00291 | OP85: 13020.00291 | OU85: =OU52 -> 13020.00291 | OV85: =OV52 -> 13020.00291 | OW85: 13020.00291 | OX85: 13020.00291 | OY85: 13020.00291 | OZ85: 13020.00291 | PA85: 13020.00291 | PB85: 13020.00291 | PC85: 13020.00291 | PD85: 13020.00291
E86: =Start_year -> 2016 | F86: =E86+1 -> 2017 | G86: 2018 | H86: 2019 | I86: 2020 | J86: 2021 | K86: 2022 | L86: 2023 | M86: 2024 | N86: 2025 | S86: =Start_year -> 2016 | T86: =S86+1 -> 2017 | U86: 2018 | V86: 2019 | W86: 2020 | X86: 2021 | Y86: 2022 | Z86: 2023 | AA86: 2024 | AB86: 2025 | AG86: =Start_year+1 -> 2017 | AH86: =AG86+1 -> 2018 | AI86: =AH86+1 -> 2019 | AJ86: 2020 | AK86: 2021 | AL86: 2022 | AM86: 2023 | AN86: 2024 | AO86: 2025 | AP86: 2026 | AU86: =Start_year -> 2016 | AV86: =AU86+1 -> 2017 | AW86: =AV86+1 -> 2018 | AX86: 2019 | AY86: 2020 | AZ86: 2021 | BA86: 2022 | BB86: 2023 | BC86: 2024 | BD86: 2025 | BI86: =AU86 -> 2016 | BJ86: 2017 | BK86: 2018 | BL86: 2019 | BM86: 2020 | BN86: 2021 | BO86: 2022 | BP86: 2023 | BQ86: 2024 | BR86: 2025 | BW86: =BI86 -> 2016 | BX86: 2017 | BY86: 2018 | BZ86: 2019 | CA86: 2020 | CB86: 2021 | CC86: 2022 | CD86: 2023 | CE86: 2024 | CF86: 2025 | CK86: =Start_year -> 2016 | CL86: =CK86+1 -> 2017 | CM86: =CL86+1 -> 2018 | CN86: 2019 | CO86: 2020 | CP86: 2021 | CQ86: 2022 | CR86: 2023 | CS86: 2024 | CT86: 2025 | CY86: =CK86 -> 2016 | CZ86: 2017 | DA86: 2018 | DB86: 2019 | DC86: 2020 | DD86: 2021 | DE86: 2022 | DF86: 2023 | DG86: 2024 | DH86: 2025 | DM86: =CY86 -> 2016 | DN86: 2017 | DO86: 2018 | DP86: 2019 | DQ86: 2020 | DR86: 2021 | DS86: 2022 | DT86: 2023 | DU86: 2024 | DV86: 2025 | EA86: =Start_year -> 2016 | EB86: =EA86+1 -> 2017 | EC86: =EB86+1 -> 2018 | ED86: 2019 | EE86: 2020 | EF86: 2021 | EG86: 2022 | EH86: 2023 | EI86: 2024 | EJ86: 2025 | EO86: =EA86 -> 2016 | EP86: 2017 | EQ86: 2018 | ER86: 2019 | ES86: 2020 | ET86: 2021 | EU86: 2022 | EV86: 2023 | EW86: 2024 | EX86: 2025 | FC86: =EO86 -> 2016 | FD86: 2017 | FE86: 2018 | FF86: 2019 | FG86: 2020 | FH86: 2021 | FI86: 2022 | FJ86: 2023 | FK86: 2024 | FL86: 2025 | FQ86: =Start_year -> 2016 | FR86: =FQ86+1 -> 2017 | FS86: =FR86+1 -> 2018 | FT86: 2019 | FU86: 2020 | FV86: 2021 | FW86: 2022 | FX86: 2023 | FY86: 2024 | FZ86: 2025 | GE86: =FQ86 -> 2016 | GF86: 2017 | GG86: 2018 | GH86: 2019 | GI86: 2020 | GJ86: 2021 | GK86: 2022 | GL86: 2023 | GM86: 2024 | GN86: 2025 | GS86: =GE86 -> 2016 | GT86: 2017 | GU86: 2018 | GV86: 2019 | GW86: 2020 | GX86: 2021 | GY86: 2022 | GZ86: 2023 | HA86: 2024 | HB86: 2025 | HG86: =Start_year -> 2016 | HH86: =HG86+1 -> 2017 | HI86: =HH86+1 -> 2018 | HJ86: 2019 | HK86: 2020 | HL86: 2021 | HM86: 2022 | HN86: 2023 | HO86: 2024 | HP86: 2025 | HU86: =HG86 -> 2016 | HV86: 2017 | HW86: 2018 | HX86: 2019 | HY86: 2020 | HZ86: 2021 | IA86: 2022 | IB86: 2023 | IC86: 2024 | ID86: 2025 | II86: =HU86 -> 2016 | IJ86: 2017 | IK86: 2018 | IL86: 2019 | IM86: 2020 | IN86: 2021 | IO86: 2022 | IP86: 2023 | IQ86: 2024 | IR86: 2025 | IW86: =Start_year -> 2016 | IX86: =IW86+1 -> 2017 | IY86: =IX86+1 -> 2018 | IZ86: 2019 | JA86: 2020 | JB86: 2021 | JC86: 2022 | JD86: 2023 | JE86: 2024 | JF86: 2025 | JK86: =IW86 -> 2016 | JL86: 2017 | JM86: 2018 | JN86: 2019 | JO86: 2020 | JP86: 2021 | JQ86: 2022 | JR86: 2023 | JS86: 2024 | JT86: 2025 | JY86: =JK86 -> 2016 | JZ86: 2017 | KA86: 2018 | KB86: 2019 | KC86: 2020 | KD86: 2021 | KE86: 2022 | KF86: 2023 | KG86: 2024 | KH86: 2025 | KM86: =Start_year -> 2016 | KN86: =KM86+1 -> 2017 | KO86: =KN86+1 -> 2018 | KP86: 2019 | KQ86: 2020 | KR86: 2021 | KS86: 2022 | KT86: 2023 | KU86: 2024 | KV86: 2025 | LA86: =KM86 -> 2016 | LB86: 2017 | LC86: 2018 | LD86: 2019 | LE86: 2020 | LF86: 2021 | LG86: 2022 | LH86: 2023 | LI86: 2024 | LJ86: 2025 | LO86: =LA86 -> 2016 | LP86: 2017 | LQ86: 2018 | LR86: 2019 | LS86: 2020 | LT86: 2021 | LU86: 2022 | LV86: 2023 | LW86: 2024 | LX86: 2025 | MC86: =Start_year -> 2016 | MD86: =MC86+1 -> 2017 | ME86: =MD86+1 -> 2018 | MF86: 2019 | MG86: 2020 | MH86: 2021 | MI86: 2022 | MJ86: 2023 | MK86: 2024 | ML86: 2025 | MQ86: =MC86 -> 2016 | MR86: 2017 | MS86: 2018 | MT86: 2019 | MU86: 2020 | MV86: 2021 | MW86: 2022 | MX86: 2023 | MY86: 2024 | MZ86: 2025 | NE86: =MQ86 -> 2016 | NF86: 2017 | NG86: 2018 | NH86: 2019 | NI86: 2020 | NJ86: 2021 | NK86: 2022 | NL86: 2023 | NM86: 2024 | NN86: 2025 | NS86: =Start_year -> 2016 | NT86: =NS86+1 -> 2017 | NU86: =NT86+1 -> 2018 | NV86: 2019 | NW86: 2020 | NX86: 2021 | NY86: 2022 | NZ86: 2023 | OA86: 2024 | OB86: 2025 | OG86: =NS86 -> 2016 | OH86: 2017 | OI86: 2018 | OJ86: 2019 | OK86: 2020 | OL86: 2021 | OM86: 2022 | ON86: 2023 | OO86: 2024 | OP86: 2025 | OU86: =OG86 -> 2016 | OV86: 2017 | OW86: 2018 | OX86: 2019 | OY86: 2020 | OZ86: 2021 | PA86: 2022 | PB86: 2023 | PC86: 2024 | PD86: 2025
D87: Actual cost | E87: =Activity!$E79*E$78*$B$71 -> 58107.67956 | F87: =Activity!$E79*F$78*$B$71 -> 1958.685828 | G87: =Activity!$E79*G$78*$B$71 -> 1305.790552 | H87: =Activity!$E79*H$78*$B$71 -> 1305.790552 | I87: =Activity!$E79*I$78*$B$71 -> 0 | J87: =Activity!$E79*J$78*$B$71 -> 2611.581104 | K87: =Activity!$E79*K$78*$B$71 -> 0 | L87: =Activity!$E79*L$78*$B$71 -> 0 | M87: =Activity!$E79*M$78*$B$71 -> 0 | N87: =Activity!$E79*N$78*$B$71 -> 0 | S87: =Activity!$S79*S$78*$P$71 -> 122569.2853 | T87: =Activity!$S79*T$78*$P$71 -> 4131.548942 | U87: =Activity!$S79*U$78*$P$71 -> 2754.365961 | V87: =Activity!$S79*V$78*$P$71 -> 2754.365961 | W87: =Activity!$S79*W$78*$P$71 -> 0 | X87: =Activity!$S79*X$78*$P$71 -> 5508.731923 | Y87: =Activity!$S79*Y$78*$P$71 -> 0 | Z87: =Activity!$S79*Z$78*$P$71 -> 0 | AA87: =Activity!$S79*AA$78*$P$71 -> 0 | AB87: =Activity!$S79*AB$78*$P$71 -> 0 | AG87: =Activity!$AG79*AG$78*$AD$71 -> 31623.22697 | AH87: =Activity!$AG79*AH$78*$AD$71 -> 1065.951471 | AI87: =Activity!$AG79*AI$78*$AD$71 -> 710.634314 | AJ87: =Activity!$AG79*AJ$78*$AD$71 -> 710.634314 | AK87: =Activity!$AG79*AK$78*$AD$71 -> 0 | AL87: =Activity!$AG79*AL$78*$AD$71 -> 1421.268628 | AM87: =Activity!$AG79*AM$78*$AD$71 -> 0 | AN87: =Activity!$AG79*AN$78*$AD$71 -> 0 | AO87: =Activity!$AG79*AO$78*$AD$71 -> 0 | AP87: =Activity!$AG79*AP$78*$AD$71 -> 0 | AU87: =Activity!$F79*AU$78*$AR$71 -> 0 | AV87: =Activity!$F79*AV$78*$AR$71 -> 59269.83315 | AW87: =Activity!$F79*AW$78*$AR$71 -> 1997.859544 | AX87: =Activity!$F79*AX$78*$AR$71 -> 1331.906363 | AY87: =Activity!$F79*AY$78*$AR$71 -> 1331.906363 | AZ87: =Activity!$F79*AZ$78*$AR$71 -> 0 | BA87: =Activity!$F79*BA$78*$AR$71 -> 2663.812726 | BB87: =Activity!$F79*BB$78*$AR$71 -> 0 | BC87: =Activity!$F79*BC$78*$AR$71 -> 0 | BD87: =Activity!$F79*BD$78*$AR$71 -> 0 | BI87: =Activity!$T79*BI$78*$BF$71 -> 0 | BJ87: =Activity!$T79*BJ$78*$BF$71 -> 125020.671 | BK87: =Activity!$T79*BK$78*$BF$71 -> 4214.179921 | BL87: =Activity!$T79*BL$78*$BF$71 -> 2809.453281 | BM87: =Activity!$T79*BM$78*$BF$71 -> 2809.453281 | BN87: =Activity!$T79*BN$78*$BF$71 -> 0 | BO87: =Activity!$T79*BO$78*$BF$71 -> 5618.906561 | BP87: =Activity!$T79*BP$78*$BF$71 -> 0 | BQ87: =Activity!$T79*BQ$78*$BF$71 -> 0 | BR87: =Activity!$T79*BR$78*$BF$71 -> 0 | BW87: =Activity!$AH79*BW$78*$BT$71 -> 0 | BX87: =Activity!$AH79*BX$78*$BT$71 -> 32255.69151 | BY87: =Activity!$AH79*BY$78*$BT$71 -> 1087.2705 | BZ87: =Activity!$AH79*BZ$78*$BT$71 -> 724.8470003 | CA87: =Activity!$AH79*CA$78*$BT$71 -> 724.8470003 | CB87: =Activity!$AH79*CB$78*$BT$71 -> 0 | CC87: =Activity!$AH79*CC$78*$BT$71 -> 1449.694001 | CD87: =Activity!$AH79*CD$78*$BT$71 -> 0 | CE87: =Activity!$AH79*CE$78*$BT$71 -> 0 | CF87: =Activity!$AH79*CF$78*$BT$71 -> 0 | CK87: =Activity!$G79*CK$78*$CH$71 -> 0 | CL87: =Activity!$G79*CL$78*$CH$71 -> 0 | CM87: =Activity!$G79*CM$78*$CH$71 -> 60455.22982 | CN87: =Activity!$G79*CN$78*$CH$71 -> 2037.816735 | CO87: =Activity!$G79*CO$78*$CH$71 -> 1358.54449 | CP87: =Activity!$G79*CP$78*$CH$71 -> 1358.54449 | CQ87: =Activity!$G79*CQ$78*$CH$71 -> 0 | CR87: =Activity!$G79*CR$78*$CH$71 -> 2717.08898 | CS87: =Activity!$G79*CS$78*$CH$71 -> 0 | CT87: =Activity!$G79*CT$78*$CH$71 -> 0 | CY87: =Activity!$U79*CY$78*$CV$71 -> 0 | CZ87: =Activity!$U79*CZ$78*$CV$71 -> 0 | DA87: =Activity!$U79*DA$78*$CV$71 -> 127521.0844 | DB87: =Activity!$U79*DB$78*$CV$71 -> 4298.463519 | DC87: =Activity!$U79*DC$78*$CV$71 -> 2865.642346 | DD87: =Activity!$U79*DD$78*$CV$71 -> 2865.642346 | DE87: =Activity!$U79*DE$78*$CV$71 -> 0 | DF87: =Activity!$U79*DF$78*$CV$71 -> 5731.284692 | DG87: =Activity!$U79*DG$78*$CV$71 -> 0 | DH87: =Activity!$U79*DH$78*$CV$71 -> 0 | DM87: =Activity!$AI79*DM$78*$DJ$71 -> 0 | DN87: =Activity!$AI79*DN$78*$AD$71 -> 0 | DO87: =Activity!$AI79*DO$78*$AD$71 -> 32900.80534 | DP87: =Activity!$AI79*DP$78*$AD$71 -> 1109.01591 | DQ87: =Activity!$AI79*DQ$78*$AD$71 -> 739.3439403 | DR87: =Activity!$AI79*DR$78*$AD$71 -> 739.3439403 | DS87: =Activity!$AI79*DS$78*$AD$71 -> 0 | DT87: =Activity!$AI79*DT$78*$AD$71 -> 1478.687881 | DU87: =Activity!$AI79*DU$78*$AD$71 -> 0 | DV87: =Activity!$AI79*DV$78*$AD$71 -> 0 | EA87: =Activity!$H79*EA$78*$DX$71 -> 0 | EB87: =Activity!$H79*EB$78*$DX$71 -> 0 | EC87: =Activity!$H79*EC$78*$DX$71 -> 0 | ED87: =Activity!$H79*ED$78*$DX$71 -> 61664.33441 | EE87: =Activity!$H79*EE$78*$DX$71 -> 2078.57307 | EF87: =Activity!$H79*EF$78*$DX$71 -> 1385.71538 | EG87: =Activity!$H79*EG$78*$DX$71 -> 1385.71538 | EH87: =Activity!$H79*EH$78*$DX$71 -> 0 | EI87: =Activity!$H79*EI$78*$DX$71 -> 2771.43076 | EJ87: =Activity!$H79*EJ$78*$DX$71 -> 0 | EO87: =Activity!$V79*EO$78*$EL$71 -> 0 | EP87: =Activity!$V79*EP$78*$EL$71 -> 0 | EQ87: =Activity!$V79*EQ$78*$EL$71 -> 0 | ER87: =Activity!$V79*ER$78*$EL$71 -> 130071.5061 | ES87: =Activity!$V79*ES$78*$EL$71 -> 4384.43279 | ET87: =Activity!$V79*ET$78*$EL$71 -> 2922.955193 | EU87: =Activity!$V79*EU$78*$EL$71 -> 2922.955193 | EV87: =Activity!$V79*EV$78*$EL$71 -> 0 | EW87: =Activity!$V79*EW$78*$EL$71 -> 5845.910386 | EX87: =Activity!$V79*EX$78*$EL$71 -> 0 | FC87: =Activity!$AJ79*FC$78*$EZ$71 -> 0 | FD87: =Activity!$AJ79*FD$78*$EZ$71 -> 0 | FE87: =Activity!$AJ79*FE$78*$EZ$71 -> 0 | FF87: =Activity!$AJ79*FF$78*$EZ$71 -> 33558.82145 | FG87: =Activity!$AJ79*FG$78*$EZ$71 -> 1131.196229 | FH87: =Activity!$AJ79*FH$78*$EZ$71 -> 754.1308191 | FI87: =Activity!$AJ79*FI$78*$EZ$71 -> 754.1308191 | FJ87: =Activity!$AJ79*FJ$78*$EZ$71 -> 0 | FK87: =Activity!$AJ79*FK$78*$EZ$71 -> 1508.261638 | FL87: =Activity!$AJ79*FL$78*$EZ$71 -> 0 | FQ87: =Activity!$I79*FQ$78*$FN$71 -> 0 | FR87: =Activity!$I79*FR$78*$FN$71 -> 0 | FS87: =Activity!$I79*FS$78*$FN$71 -> 0 | FT87: =Activity!$I79*FT$78*$FN$71 -> 0 | FU87: =Activity!$I79*FU$78*$FN$71 -> 62897.6211 | FV87: =Activity!$I79*FV$78*$FN$71 -> 2120.144531 | FW87: =Activity!$I79*FW$78*$FN$71 -> 1413.429688 | FX87: =Activity!$I79*FX$78*$FN$71 -> 1413.429688 | FY87: =Activity!$I79*FY$78*$FN$71 -> 0 | FZ87: =Activity!$I79*FZ$78*$FN$71 -> 2826.859375 | GE87: =Activity!$W79*GE$78*$GB$71 -> 0 | GF87: =Activity!$W79*GF$78*$GB$71 -> 0 | GG87: =Activity!$W79*GG$78*$GB$71 -> 0 | GH87: =Activity!$W79*GH$78*$GB$71 -> 0 | GI87: =Activity!$W79*GI$78*$GB$71 -> 132672.9362 | GJ87: =Activity!$W79*GJ$78*$GB$71 -> 4472.121446 | GK87: =Activity!$W79*GK$78*$GB$71 -> 2981.414297 | GL87: =Activity!$W79*GL$78*$GB$71 -> 2981.414297 | GM87: =Activity!$W79*GM$78*$GB$71 -> 0 | GN87: =Activity!$W79*GN$78*$GB$71 -> 5962.828594 | GS87: =Activity!$AK79*GS$78*$GP$71 -> 0 | GT87: =Activity!$AK79*GT$78*$GP$71 -> 0 | GU87: =Activity!$AK79*GU$78*$GP$71 -> 0 | GV87: =Activity!$AK79*GV$78*$GP$71 -> 0 | GW87: =Activity!$AK79*GW$78*$GP$71 -> 34229.99788 | GX87: =Activity!$AK79*GX$78*$GP$71 -> 1153.820153 | GY87: =Activity!$AK79*GY$78*$GP$71 -> 769.2134355 | GZ87: =Activity!$AK79*GZ$78*$GP$71 -> 769.2134355 | HA87: =Activity!$AK79*HA$78*$GP$71 -> 0 | HB87: =Activity!$AK79*HB$78*$GP$71 -> 1538.426871 | HG87: =Activity!$J79*HG$78*$HD$71 -> 0 | HH87: =Activity!$J79*HH$78*$HD$71 -> 0 | HI87: =Activity!$J79*HI$78*$HD$71 -> 0 | HJ87: =Activity!$J79*HJ$78*$HD$71 -> 0 | HK87: =Activity!$J79*HK$78*$HD$71 -> 0 | HL87: =Activity!$J79*HL$78*$HD$71 -> 64155.57352 | HM87: =Activity!$J79*HM$78*$HD$71 -> 2162.547422 | HN87: =Activity!$J79*HN$78*$HD$71 -> 1441.698281 | HO87: =Activity!$J79*HO$78*$HD$71 -> 1441.698281 | HP87: =Activity!$J79*HP$78*$HD$71 -> 0 | HU87: =Activity!$X79*HU$78*$HR$71 -> 0 | HV87: =Activity!$X79*HV$78*$HR$71 -> 0 | HW87: =Activity!$X79*HW$78*$HR$71 -> 0 | HX87: =Activity!$X79*HX$78*$HR$71 -> 0 | HY87: =Activity!$X79*HY$78*$HR$71 -> 0 | HZ87: =Activity!$X79*HZ$78*$HR$71 -> 135326.3949 | IA87: =Activity!$X79*IA$78*$HR$71 -> 4561.563874 | IB87: =Activity!$X79*IB$78*$HR$71 -> 3041.042583 | IC87: =Activity!$X79*IC$78*$HR$71 -> 3041.042583 | ID87: =Activity!$X79*ID$78*$HR$71 -> 0 | II87: =Activity!$AL79*II$78*$IF$71 -> 0 | IJ87: =Activity!$AL79*IJ$78*$IF$71 -> 0 | IK87: =Activity!$AL79*IK$78*$IF$71 -> 0 | IL87: =Activity!$AL79*IL$78*$IF$71 -> 0 | IM87: =Activity!$AL79*IM$78*$IF$71 -> 0 | IN87: =Activity!$AL79*IN$78*$IF$71 -> 34914.59784 | IO87: =Activity!$AL79*IO$78*$IF$71 -> 1176.896556 | IP87: =Activity!$AL79*IP$78*$IF$71 -> 784.5977042 | IQ87: =Activity!$AL79*IQ$78*$IF$71 -> 784.5977042 | IR87: =Activity!$AL79*IR$78*$IF$71 -> 0 | IW87: =Activity!$K79*IW$78*$IT$71 -> 0 | IX87: =Activity!$K79*IX$78*$IT$71 -> 0 | IY87: =Activity!$K79*IY$78*$IT$71 -> 0 | IZ87: =Activity!$K79*IZ$78*$IT$71 -> 0 | JA87: =Activity!$K79*JA$78*$IT$71 -> 0 | JB87: =Activity!$K79*JB$78*$IT$71 -> 0 | JC87: =Activity!$K79*JC$78*$IT$71 -> 65438.68499 | JD87: =Activity!$K79*JD$78*$IT$71 -> 2205.798371 | JE87: =Activity!$K79*JE$78*$IT$71 -> 1470.532247 | JF87: =Activity!$K79*JF$78*$IT$71 -> 1470.532247 | JK87: =Activity!$Y79*JK$78*$JH$71 -> 0 | JL87: =Activity!$Y79*JL$78*$JH$71 -> 0 | JM87: =Activity!$Y79*JM$78*$JH$71 -> 0 | JN87: =Activity!$Y79*JN$78*$JH$71 -> 0 | JO87: =Activity!$Y79*JO$78*$JH$71 -> 0 | JP87: =Activity!$Y79*JP$78*$JH$71 -> 0 | JQ87: =Activity!$Y79*JQ$78*$JH$71 -> 138032.9228 | JR87: =Activity!$Y79*JR$78*$JH$71 -> 4652.795152 | JS87: =Activity!$Y79*JS$78*$JH$71 -> 3101.863435 | JT87: =Activity!$Y79*JT$78*$JH$71 -> 3101.863435 | JY87: =Activity!$AM79*JY$78*$JV$71 -> 0 | JZ87: =Activity!$AM79*JZ$78*$JV$71 -> 0 | KA87: =Activity!$AM79*KA$78*$JV$71 -> 0 | KB87: =Activity!$AM79*KB$78*$JV$71 -> 0 | KC87: =Activity!$AM79*KC$78*$JV$71 -> 0 | KD87: =Activity!$AM79*KD$78*$JV$71 -> 0 | KE87: =Activity!$AM79*KE$78*$JV$71 -> 35612.88979 | KF87: =Activity!$AM79*KF$78*$JV$71 -> 1200.434487 | KG87: =Activity!$AM79*KG$78*$JV$71 -> 800.2896582 | KH87: =Activity!$AM79*KH$78*$JV$71 -> 800.2896582 | KM87: =Activity!$L79*KM$78*$KJ$71 -> 0 | KN87: =Activity!$L79*KN$78*$KJ$71 -> 0 | KO87: =Activity!$L79*KO$78*$KJ$71 -> 0 | KP87: =Activity!$L79*KP$78*$KJ$71 -> 0 | KQ87: =Activity!$L79*KQ$78*$KJ$71 -> 0 | KR87: =Activity!$L79*KR$78*$KJ$71 -> 0 | KS87: =Activity!$L79*KS$78*$KJ$71 -> 0 | KT87: =Activity!$L79*KT$78*$KJ$71 -> 66747.45869 | KU87: =Activity!$L79*KU$78*$KJ$71 -> 2249.914338 | KV87: =Activity!$L79*KV$78*$KJ$71 -> 1499.942892 | LA87: =Activity!$Z79*LA$78*$KX$71 -> 0 | LB87: =Activity!$Z79*LB$78*$KX$71 -> 0 | LC87: =Activity!$Z79*LC$78*$KX$71 -> 0 | LD87: =Activity!$Z79*LD$78*$KX$71 -> 0 | LE87: =Activity!$Z79*LE$78*$KX$71 -> 0 | LF87: =Activity!$Z79*LF$78*$KX$71 -> 0 | LG87: =Activity!$Z79*LG$78*$KX$71 -> 0 | LH87: =Activity!$Z79*LH$78*$KX$71 -> 140793.5813 | LI87: =Activity!$Z79*LI$78*$KX$71 -> 4745.851055 | LJ87: =Activity!$Z79*LJ$78*$KX$71 -> 3163.900703 | LO87: =Activity!$AN79*LO$78*$LL$71 -> 0 | LP87: =Activity!$AN79*LP$78*$LL$71 -> 0 | LQ87: =Activity!$AN79*LQ$78*$LL$71 -> 0 | LR87: =Activity!$AN79*LR$78*$LL$71 -> 0 | LS87: =Activity!$AN79*LS$78*$LL$71 -> 0 | LT87: =Activity!$AN79*LT$78*$LL$71 -> 0 | LU87: =Activity!$AN79*LU$78*$LL$71 -> 0 | LV87: =Activity!$AN79*LV$78*$LL$71 -> 36325.14759 | LW87: =Activity!$AN79*LW$78*$LL$71 -> 1224.443177 | LX87: =Activity!$AN79*LX$78*$LL$71 -> 816.2954514 | MC87: =Activity!$M79*MC$78*$LZ$71 -> 0 | MD87: =Activity!$M79*MD$78*$LZ$71 -> 0 | ME87: =Activity!$M79*ME$78*$LZ$71 -> 0 | MF87: =Activity!$M79*MF$78*$LZ$71 -> 0 | MG87: =Activity!$M79*MG$78*$LZ$71 -> 0 | MH87: =Activity!$M79*MH$78*$LZ$71 -> 0 | MI87: =Activity!$M79*MI$78*$LZ$71 -> 0 | MJ87: =Activity!$M79*MJ$78*$LZ$71 -> 0 | MK87: =Activity!$M79*MK$78*$LZ$71 -> 68082.40787 | ML87: =Activity!$M79*ML$78*$LZ$71 -> 2294.912625 | MQ87: =Activity!$AA79*MQ$78*$MN$71 -> 0 | MR87: =Activity!$AA79*MR$78*$MN$71 -> 0 | MS87: =Activity!$AA79*MS$78*$MN$71 -> 0 | MT87: =Activity!$AA79*MT$78*$MN$71 -> 0 | MU87: =Activity!$AA79*MU$78*$MN$71 -> 0 | MV87: =Activity!$AA79*MV$78*$MN$71 -> 0 | MW87: =Activity!$AA79*MW$78*$MN$71 -> 0 | MX87: =Activity!$AA79*MX$78*$MN$71 -> 0 | MY87: =Activity!$AA79*MY$78*$MN$71 -> 143609.4529 | MZ87: =Activity!$AA79*MZ$78*$MN$71 -> 4840.768076 | NE87: =Activity!$AO79*NE$78*$NB$71 -> 0 | NF87: =Activity!$AO79*NF$78*$NB$71 -> 0 | NG87: =Activity!$AO79*NG$78*$NB$71 -> 0 | NH87: =Activity!$AO79*NH$78*$NB$71 -> 0 | NI87: =Activity!$AO79*NI$78*$NB$71 -> 0 | NJ87: =Activity!$AO79*NJ$78*$NB$71 -> 0 | NK87: =Activity!$AO79*NK$78*$NB$71 -> 0 | NL87: =Activity!$AO79*NL$78*$NB$71 -> 0 | NM87: =Activity!$AO79*NM$78*$NB$71 -> 37051.65054 | NN87: =Activity!$AO79*NN$78*$NB$71 -> 1248.932041 | NS87: =Activity!$N79*NS$78*$NP$71 -> 0 | NT87: =Activity!$N79*NT$78*$NP$71 -> 0 | NU87: =Activity!$N79*NU$78*$NP$71 -> 0 | NV87: =Activity!$N79*NV$78*$NP$71 -> 0 | NW87: =Activity!$N79*NW$78*$NP$71 -> 0 | NX87: =Activity!$N79*NX$78*$NP$71 -> 0 | NY87: =Activity!$N79*NY$78*$NP$71 -> 0 | NZ87: =Activity!$N79*NZ$78*$NP$71 -> 0 | OA87: =Activity!$N79*OA$78*$NP$71 -> 0 | OB87: =Activity!$N79*OB$78*$NP$71 -> 69444.05602 | OG87: =Activity!$AB79*OG$78*$OD$71 -> 0 | OH87: =Activity!$AB79*OH$78*$OD$71 -> 0 | OI87: =Activity!$AB79*OI$78*$OD$71 -> 0 | OJ87: =Activity!$AB79*OJ$78*$OD$71 -> 0 | OK87: =Activity!$AB79*OK$78*$OD$71 -> 0 | OL87: =Activity!$AB79*OL$78*$OD$71 -> 0 | OM87: =Activity!$AB79*OM$78*$OD$71 -> 0 | ON87: =Activity!$AB79*ON$78*$OD$71 -> 0 | OO87: =Activity!$AB79*OO$78*$OD$71 -> 0 | OP87: =Activity!$AB79*OP$78*$OD$71 -> 146481.642 | OU87: =Activity!$AP79*OU$78*$OR$71 -> 0 | OV87: =Activity!$AP79*OV$78*$OR$71 -> 0 | OW87: =Activity!$AP79*OW$78*$OR$71 -> 0 | OX87: =Activity!$AP79*OX$78*$OR$71 -> 0 | OY87: =Activity!$AP79*OY$78*$OR$71 -> 0 | OZ87: =Activity!$AP79*OZ$78*$OR$71 -> 0 | PA87: =Activity!$AP79*PA$78*$OR$71 -> 0 | PB87: =Activity!$AP79*PB$78*$OR$71 -> 0 | PC87: =Activity!$AP79*PC$78*$OR$71 -> 0 | PD87: =Activity!$AP79*PD$78*$OR$71 -> 37792.68355
D88: Recurrence cost | E88: =Activity!$E79*$B$72*Cost!$B$104/10 -> 2590.111491 | F88: =Activity!$E79*$B$72*Cost!$B$104/10 -> 2590.111491 | G88: =Activity!$E79*$B$72*Cost!$B$104/10 -> 2590.111491 | H88: =Activity!$E79*$B$72*Cost!$B$104/10 -> 2590.111491 | I88: =Activity!$E79*$B$72*Cost!$B$104/10 -> 2590.111491 | J88: =Activity!$E79*$B$72*Cost!$B$104/10 -> 2590.111491 | K88: =Activity!$E79*$B$72*Cost!$B$104/10 -> 2590.111491 | L88: =Activity!$E79*$B$72*Cost!$B$104/10 -> 2590.111491 | M88: =Activity!$E79*$B$72*Cost!$B$104/10 -> 2590.111491 | N88: =Activity!$E79*$B$72*Cost!$B$104/10 -> 2590.111491 | S88: =Activity!$S79*$B$72*Cost!$P$104/10 -> 5463.445051 | T88: =Activity!$S79*$B$72*Cost!$P$104/10 -> 5463.445051 | U88: =Activity!$S79*$B$72*Cost!$P$104/10 -> 5463.445051 | V88: =Activity!$S79*$B$72*Cost!$P$104/10 -> 5463.445051 | W88: =Activity!$S79*$B$72*Cost!$P$104/10 -> 5463.445051 | X88: =Activity!$S79*$B$72*Cost!$P$104/10 -> 5463.445051 | Y88: =Activity!$S79*$B$72*Cost!$P$104/10 -> 5463.445051 | Z88: =Activity!$S79*$B$72*Cost!$P$104/10 -> 5463.445051 | AA88: =Activity!$S79*$B$72*Cost!$P$104/10 -> 5463.445051 | AB88: =Activity!$S79*$B$72*Cost!$P$104/10 -> 5463.445051 | AG88: =Activity!$AG79*$B$72*Cost!$AD$104/10 -> 1409.584485 | AH88: =Activity!$AG79*$B$72*Cost!$AD$104/10 -> 1409.584485 | AI88: =Activity!$AG79*$B$72*Cost!$AD$104/10 -> 1409.584485 | AJ88: =Activity!$AG79*$B$72*Cost!$AD$104/10 -> 1409.584485 | AK88: =Activity!$AG79*$B$72*Cost!$AD$104/10 -> 1409.584485 | AL88: =Activity!$AG79*$B$72*Cost!$AD$104/10 -> 1409.584485 | AM88: =Activity!$AG79*$B$72*Cost!$AD$104/10 -> 1409.584485 | AN88: =Activity!$AG79*$B$72*Cost!$AD$104/10 -> 1409.584485 | AO88: =Activity!$AG79*$B$72*Cost!$AD$104/10 -> 1409.584485 | AP88: =Activity!$AG79*$B$72*Cost!$AD$104/10 -> 1409.584485 | AU88: 0 | AV88: =Activity!$F79*$B$72*Cost!$B$104/10 -> 2641.913721 | AW88: =Activity!$F79*$B$72*Cost!$B$104/10 -> 2641.913721 | AX88: =Activity!$F79*$B$72*Cost!$B$104/10 -> 2641.913721 | AY88: =Activity!$F79*$B$72*Cost!$B$104/10 -> 2641.913721 | AZ88: =Activity!$F79*$B$72*Cost!$B$104/10 -> 2641.913721 | BA88: =Activity!$F79*$B$72*Cost!$B$104/10 -> 2641.913721 | BB88: =Activity!$F79*$B$72*Cost!$B$104/10 -> 2641.913721 | BC88: =Activity!$F79*$B$72*Cost!$B$104/10 -> 2641.913721 | BD88: =Activity!$F79*$B$72*Cost!$B$104/10 -> 2641.913721 | BI88: 0 | BJ88: =Activity!$T79*$B$72*Cost!$P$104/10 -> 5572.713952 | BK88: =Activity!$T79*$B$72*Cost!$P$104/10 -> 5572.713952 | BL88: =Activity!$T79*$B$72*Cost!$P$104/10 -> 5572.713952 | BM88: =Activity!$T79*$B$72*Cost!$P$104/10 -> 5572.713952 | BN88: =Activity!$T79*$B$72*Cost!$P$104/10 -> 5572.713952 | BO88: =Activity!$T79*$B$72*Cost!$P$104/10 -> 5572.713952 | BP88: =Activity!$T79*$B$72*Cost!$P$104/10 -> 5572.713952 | BQ88: =Activity!$T79*$B$72*Cost!$P$104/10 -> 5572.713952 | BR88: =Activity!$T79*$B$72*Cost!$P$104/10 -> 5572.713952 | BW88: 0 | BX88: =Activity!$AH79*$B$72*Cost!$AD$104/10 -> 1437.776175 | BY88: =Activity!$AH79*$B$72*Cost!$AD$104/10 -> 1437.776175 | BZ88: =Activity!$AH79*$B$72*Cost!$AD$104/10 -> 1437.776175 | CA88: =Activity!$AH79*$B$72*Cost!$AD$104/10 -> 1437.776175 | CB88: =Activity!$AH79*$B$72*Cost!$AD$104/10 -> 1437.776175 | CC88: =Activity!$AH79*$B$72*Cost!$AD$104/10 -> 1437.776175 | CD88: =Activity!$AH79*$B$72*Cost!$AD$104/10 -> 1437.776175 | CE88: =Activity!$AH79*$B$72*Cost!$AD$104/10 -> 1437.776175 | CF88: =Activity!$AH79*$B$72*Cost!$AD$104/10 -> 1437.776175 | CK88: 0 | CL88: 0 | CM88: =Activity!$G79*$B$72*Cost!$B$104/10 -> 2694.751996 | CN88: =Activity!$G79*$B$72*Cost!$B$104/10 -> 2694.751996 | CO88: =Activity!$G79*$B$72*Cost!$B$104/10 -> 2694.751996 | CP88: =Activity!$G79*$B$72*Cost!$B$104/10 -> 2694.751996 | CQ88: =Activity!$G79*$B$72*Cost!$B$104/10 -> 2694.751996 | CR88: =Activity!$G79*$B$72*Cost!$B$104/10 -> 2694.751996 | CS88: =Activity!$G79*$B$72*Cost!$B$104/10 -> 2694.751996 | CT88: =Activity!$G79*$B$72*Cost!$B$104/10 -> 2694.751996 | CY88: 0 | CZ88: 0 | DA88: =Activity!$U79*$B$72*Cost!$P$104/10 -> 5684.168231 | DB88: =Activity!$U79*$B$72*Cost!$P$104/10 -> 5684.168231 | DC88: =Activity!$U79*$B$72*Cost!$P$104/10 -> 5684.168231 | DD88: =Activity!$U79*$B$72*Cost!$P$104/10 -> 5684.168231 | DE88: =Activity!$U79*$B$72*Cost!$P$104/10 -> 5684.168231 | DF88: =Activity!$U79*$B$72*Cost!$P$104/10 -> 5684.168231 | DG88: =Activity!$U79*$B$72*Cost!$P$104/10 -> 5684.168231 | DH88: =Activity!$U79*$B$72*Cost!$P$104/10 -> 5684.168231 | DM88: 0 | DN88: 0 | DO88: =Activity!$AI79*$B$72*Cost!$AD$104/10 -> 1466.531698 | DP88: =Activity!$AI79*$B$72*Cost!$AD$104/10 -> 1466.531698 | DQ88: =Activity!$AI79*$B$72*Cost!$AD$104/10 -> 1466.531698 | DR88: =Activity!$AI79*$B$72*Cost!$AD$104/10 -> 1466.531698 | DS88: =Activity!$AI79*$B$72*Cost!$AD$104/10 -> 1466.531698 | DT88: =Activity!$AI79*$B$72*Cost!$AD$104/10 -> 1466.531698 | DU88: =Activity!$AI79*$B$72*Cost!$AD$104/10 -> 1466.531698 | DV88: =Activity!$AI79*$B$72*Cost!$AD$104/10 -> 1466.531698 | EA88: =Activity!$AI80*EA$78*$DJ$71 -> 0 | EB88: =Activity!$AI80*EB$78*$AD$71 -> 0 | EC88: =Activity!$AI80*EC$78*$AD$71 -> 0 | ED88: =Activity!$H79*$B$72*Cost!$B$104/10 -> 2748.647035 | EE88: =Activity!$H79*$B$72*Cost!$B$104/10 -> 2748.647035 | EF88: =Activity!$H79*$B$72*Cost!$B$104/10 -> 2748.647035 | EG88: =Activity!$H79*$B$72*Cost!$B$104/10 -> 2748.647035 | EH88: =Activity!$H79*$B$72*Cost!$B$104/10 -> 2748.647035 | EI88: =Activity!$H79*$B$72*Cost!$B$104/10 -> 2748.647035 | EJ88: =Activity!$H79*$B$72*Cost!$B$104/10 -> 2748.647035 | EO88: 0 | EP88: 0 | EQ88: 0 | ER88: =Activity!$V79*$B$72*Cost!$P$104/10 -> 5797.851595 | ES88: =Activity!$V79*$B$72*Cost!$P$104/10 -> 5797.851595 | ET88: =Activity!$V79*$B$72*Cost!$P$104/10 -> 5797.851595 | EU88: =Activity!$V79*$B$72*Cost!$P$104/10 -> 5797.851595 | EV88: =Activity!$V79*$B$72*Cost!$P$104/10 -> 5797.851595 | EW88: =Activity!$V79*$B$72*Cost!$P$104/10 -> 5797.851595 | EX88: =Activity!$V79*$B$72*Cost!$P$104/10 -> 5797.851595 | FC88: 0 | FD88: 0 | FE88: 0 | FF88: =Activity!$AJ79*$B$72*Cost!$AD$104/10 -> 1495.862332 | FG88: =Activity!$AJ79*$B$72*Cost!$AD$104/10 -> 1495.862332 | FH88: =Activity!$AJ79*$B$72*Cost!$AD$104/10 -> 1495.862332 | FI88: =Activity!$AJ79*$B$72*Cost!$AD$104/10 -> 1495.862332 | FJ88: =Activity!$AJ79*$B$72*Cost!$AD$104/10 -> 1495.862332 | FK88: =Activity!$AJ79*$B$72*Cost!$AD$104/10 -> 1495.862332 | FL88: =Activity!$AJ79*$B$72*Cost!$AD$104/10 -> 1495.862332 | FQ88: 0 | FR88: 0 | FS88: 0 | FT88: =Activity!$I79*$B$72*Cost!$B$104/10 -> 2803.619976 | FU88: =Activity!$I79*$B$72*Cost!$B$104/10 -> 2803.619976 | FV88: =Activity!$I79*$B$72*Cost!$B$104/10 -> 2803.619976 | FW88: =Activity!$I79*$B$72*Cost!$B$104/10 -> 2803.619976 | FX88: =Activity!$I79*$B$72*Cost!$B$104/10 -> 2803.619976 | FY88: =Activity!$I79*$B$72*Cost!$B$104/10 -> 2803.619976 | FZ88: =Activity!$I79*$B$72*Cost!$B$104/10 -> 2803.619976 | GE88: 0 | GF88: 0 | GG88: 0 | GH88: 0 | GI88: =Activity!$W79*$B$72*Cost!$P$104/10 -> 5913.808627 | GJ88: =Activity!$W79*$B$72*Cost!$P$104/10 -> 5913.808627 | GK88: =Activity!$W79*$B$72*Cost!$P$104/10 -> 5913.808627 | GL88: =Activity!$W79*$B$72*Cost!$P$104/10 -> 5913.808627 | GM88: =Activity!$W79*$B$72*Cost!$P$104/10 -> 5913.808627 | GN88: =Activity!$W79*$B$72*Cost!$P$104/10 -> 5913.808627 | GS88: 0 | GT88: 0 | GU88: 0 | GV88: 0 | GW88: =Activity!$AK79*$B$72*Cost!$AD$104/10 -> 1525.779579 | GX88: =Activity!$AK79*$B$72*Cost!$AD$104/10 -> 1525.779579 | GY88: =Activity!$AK79*$B$72*Cost!$AD$104/10 -> 1525.779579 | GZ88: =Activity!$AK79*$B$72*Cost!$AD$104/10 -> 1525.779579 | HA88: =Activity!$AK79*$B$72*Cost!$AD$104/10 -> 1525.779579 | HB88: =Activity!$AK79*$B$72*Cost!$AD$104/10 -> 1525.779579 | HG88: 0 | HH88: 0 | HI88: 0 | HJ88: 0 | HK88: 0 | HL88: =Activity!$J79*$B$72*Cost!$B$104/10 -> 2859.692376 | HM88: =Activity!$J79*$B$72*Cost!$B$104/10 -> 2859.692376 | HN88: =Activity!$J79*$B$72*Cost!$B$104/10 -> 2859.692376 | HO88: =Activity!$J79*$B$72*Cost!$B$104/10 -> 2859.692376 | HP88: =Activity!$J79*$B$72*Cost!$B$104/10 -> 2859.692376 | HU88: 0 | HV88: 0 | HW88: 0 | HX88: 0 | HY88: 0 | HZ88: =Activity!$X79*$B$72*Cost!$P$104/10 -> 6032.0848 | IA88: =Activity!$X79*$B$72*Cost!$P$104/10 -> 6032.0848 | IB88: =Activity!$X79*$B$72*Cost!$P$104/10 -> 6032.0848 | IC88: =Activity!$X79*$B$72*Cost!$P$104/10 -> 6032.0848 | ID88: =Activity!$X79*$B$72*Cost!$P$104/10 -> 6032.0848 | II88: 0 | IJ88: 0 | IK88: 0 | IL88: 0 | IM88: 0 | IN88: =Activity!$AL79*$B$72*Cost!$AD$104/10 -> 1556.29517 | IO88: =Activity!$AL79*$B$72*Cost!$AD$104/10 -> 1556.29517 | IP88: =Activity!$AL79*$B$72*Cost!$AD$104/10 -> 1556.29517 | IQ88: =Activity!$AL79*$B$72*Cost!$AD$104/10 -> 1556.29517 | IR88: =Activity!$AL79*$B$72*Cost!$AD$104/10 -> 1556.29517 | IW88: 0 | IX88: 0 | IY88: 0 | IZ88: 0 | JA88: 0 | JB88: 0 | JC88: =Activity!$K79*$B$72*Cost!$B$104/10 -> 2916.886223 | JD88: =Activity!$K79*$B$72*Cost!$B$104/10 -> 2916.886223 | JE88: =Activity!$K79*$B$72*Cost!$B$104/10 -> 2916.886223 | JF88: =Activity!$K79*$B$72*Cost!$B$104/10 -> 2916.886223 | JK88: 0 | JL88: 0 | JM88: 0 | JN88: 0 | JO88: 0 | JP88: 0 | JQ88: =Activity!$Y79*$B$72*Cost!$P$104/10 -> 6152.726496 | JR88: =Activity!$Y79*$B$72*Cost!$P$104/10 -> 6152.726496 | JS88: =Activity!$Y79*$B$72*Cost!$P$104/10 -> 6152.726496 | JT88: =Activity!$Y79*$B$72*Cost!$P$104/10 -> 6152.726496 | JY88: 0 | JZ88: 0 | KA88: 0 | KB88: 0 | KC88: 0 | KD88: 0 | KE88: =Activity!$AM79*$B$72*Cost!$AD$104/10 -> 1587.421074 | KF88: =Activity!$AM79*$B$72*Cost!$AD$104/10 -> 1587.421074 | KG88: =Activity!$AM79*$B$72*Cost!$AD$104/10 -> 1587.421074 | KH88: =Activity!$AM79*$B$72*Cost!$AD$104/10 -> 1587.421074 | KM88: 0 | KN88: 0 | KO88: 0 | KP88: 0 | KQ88: 0 | KR88: 0 | KS88: 0 | KT88: =Activity!$L79*$B$72*Cost!$B$104/10 -> 2975.223948 | KU88: =Activity!$L79*$B$72*Cost!$B$104/10 -> 2975.223948 | KV88: =Activity!$L79*$B$72*Cost!$B$104/10 -> 2975.223948 | LA88: 0 | LB88: 0 | LC88: 0 | LD88: 0 | LE88: 0 | LF88: 0 | LG88: 0 | LH88: =Activity!$Z79*$B$72*Cost!$P$104/10 -> 6275.781026 | LI88: =Activity!$Z79*$B$72*Cost!$P$104/10 -> 6275.781026 | LJ88: =Activity!$Z79*$B$72*Cost!$P$104/10 -> 6275.781026 | LO88: 0 | LP88: 0 | LQ88: 0 | LR88: 0 | LS88: 0 | LT88: 0 | LU88: 0 | LV88: =Activity!$AN79*$B$72*Cost!$AD$104/10 -> 1619.169495 | LW88: =Activity!$AN79*$B$72*Cost!$AD$104/10 -> 1619.169495 | LX88: =Activity!$AN79*$B$72*Cost!$AD$104/10 -> 1619.169495 | MC88: 0 | MD88: 0 | ME88: 0 | MF88: 0 | MG88: 0 | MH88: 0 | MI88: 0 | MJ88: 0 | MK88: =Activity!$M79*$B$72*Cost!$B$104/10 -> 3034.728427 | ML88: =Activity!$M79*$B$72*Cost!$B$104/10 -> 3034.728427 | MQ88: 0 | MR88: 0 | MS88: 0 | MT88: 0 | MU88: 0 | MV88: 0 | MW88: 0 | MX88: 0 | MY88: =Activity!$AA79*$B$72*Cost!$P$104/10 -> 6401.296646 | MZ88: =Activity!$AA79*$B$72*Cost!$P$104/10 -> 6401.296646 | NE88: 0 | NF88: 0 | NG88: 0 | NH88: 0 | NI88: 0 | NJ88: 0 | NK88: 0 | NL88: 0 | NM88: =Activity!$AO79*$B$72*Cost!$AD$104/10 -> 1651.552885 | NN88: =Activity!$AO79*$B$72*Cost!$AD$104/10 -> 1651.552885 | NS88: 0 | NT88: 0 | NU88: 0 | NV88: 0 | NW88: 0 | NX88: 0 | NY88: 0 | NZ88: 0 | OA88: 0 | OB88: =Activity!$N79*$B$72*Cost!$B$104/10 -> 3095.422995 | OG88: 0 | OH88: 0 | OI88: 0 | OJ88: 0 | OK88: 0 | OL88: 0 | OM88: 0 | ON88: 0 | OO88: 0 | OP88: =Activity!$AB79*$B$72*Cost!$P$104/10 -> 6529.322579 | OU88: 0 | OV88: 0 | OW88: 0 | OX88: 0 | OY88: 0 | OZ88: 0 | PA88: 0 | PB88: 0 | PC88: 0 | PD88: =Activity!$AP79*$B$72*Cost!$AD$104/10 -> 1684.583943
D90: Total cost | E90: =SUM(E87:E88) -> 60697.79105 | F90: =SUM(F87:F88) -> 4548.797319 | G90: 3895.902043 | H90: 3895.902043 | I90: 2590.111491 | J90: 5201.692595 | K90: 2590.111491 | L90: 2590.111491 | M90: 2590.111491 | N90: 2590.111491 | S90: =SUM(S87:S88) -> 128032.7303 | T90: =SUM(T87:T88) -> 9594.993993 | U90: 8217.811012 | V90: 8217.811012 | W90: 5463.445051 | X90: 10972.17697 | Y90: 5463.445051 | Z90: 5463.445051 | AA90: 5463.445051 | AB90: 5463.445051 | AG90: =SUM(AG87:AG88) -> 33032.81146 | AH90: =SUM(AH87:AH88) -> 2475.535956 | AI90: 2120.218799 | AJ90: 2120.218799 | AK90: 1409.584485 | AL90: 2830.853113 | AM90: 1409.584485 | AN90: 1409.584485 | AO90: 1409.584485 | AP90: 1409.584485 | AU90: =SUM(AU87:AU88) -> 0 | AV90: =SUM(AV87:AV88) -> 61911.74687 | AW90: 4639.773266 | AX90: 3973.820084 | AY90: 3973.820084 | AZ90: 2641.913721 | BA90: 5305.726447 | BB90: 2641.913721 | BC90: 2641.913721 | BD90: 2641.913721 | BI90: =SUM(BI87:BI88) -> 0 | BJ90: =SUM(BJ87:BJ88) -> 130593.3849 | BK90: 9786.893872 | BL90: 8382.167232 | BM90: 8382.167232 | BN90: 5572.713952 | BO90: 11191.62051 | BP90: 5572.713952 | BQ90: 5572.713952 | BR90: 5572.713952 | BW90: =SUM(BW87:BW88) -> 0 | BX90: =SUM(BX87:BX88) -> 33693.46769 | BY90: 2525.046675 | BZ90: 2162.623175 | CA90: 2162.623175 | CB90: 1437.776175 | CC90: 2887.470175 | CD90: 1437.776175 | CE90: 1437.776175 | CF90: 1437.776175 | CK90: =SUM(CK87:CK88) -> 0 | CL90: =SUM(CL87:CL88) -> 0 | CM90: 63149.98181 | CN90: 4732.568731 | CO90: 4053.296486 | CP90: 4053.296486 | CQ90: 2694.751996 | CR90: 5411.840976 | CS90: 2694.751996 | CT90: 2694.751996 | CY90: =SUM(CY87:CY88) -> 0 | CZ90: =SUM(CZ87:CZ88) -> 0 | DA90: 133205.2526 | DB90: 9982.63175 | DC90: 8549.810577 | DD90: 8549.810577 | DE90: 5684.168231 | DF90: 11415.45292 | DG90: 5684.168231 | DH90: 5684.168231 | DM90: =SUM(DM87:DM88) -> 0 | DN90: =SUM(DN87:DN88) -> 0 | DO90: 34367.33704 | DP90: 2575.547609 | DQ90: 2205.875639 | DR90: 2205.875639 | DS90: 1466.531698 | DT90: 2945.219579 | DU90: 1466.531698 | DV90: 1466.531698 | EA90: =SUM(EA87:EA88) -> 0 | EB90: =SUM(EB87:EB88) -> 0 | EC90: 0 | ED90: 64412.98145 | EE90: 4827.220106 | EF90: 4134.362416 | EG90: 4134.362416 | EH90: 2748.647035 | EI90: 5520.077796 | EJ90: 2748.647035 | EO90: =SUM(EO87:EO88) -> 0 | EP90: =SUM(EP87:EP88) -> 0 | EQ90: 0 | ER90: 135869.3577 | ES90: 10182.28438 | ET90: 8720.806788 | EU90: 8720.806788 | EV90: 5797.851595 | EW90: 11643.76198 | EX90: 5797.851595 | FC90: =SUM(FC87:FC88) -> 0 | FD90: =SUM(FD87:FD88) -> 0 | FE90: 0 | FF90: 35054.68378 | FG90: 2627.058561 | FH90: 2249.993151 | FI90: 2249.993151 | FJ90: 1495.862332 | FK90: 3004.12397 | FL90: 1495.862332 | FQ90: =SUM(FQ87:FQ88) -> 0 | FR90: =SUM(FR87:FR88) -> 0 | FS90: 0 | FT90: 2803.619976 | FU90: 65701.24108 | FV90: 4923.764508 | FW90: 4217.049664 | FX90: 4217.049664 | FY90: 2803.619976 | FZ90: 5630.479351 | GE90: =SUM(GE87:GE88) -> 0 | GF90: =SUM(GF87:GF88) -> 0 | GG90: 0 | GH90: 0 | GI90: 138586.7448 | GJ90: 10385.93007 | GK90: 8895.222924 | GL90: 8895.222924 | GM90: 5913.808627 | GN90: 11876.63722 | GS90: =SUM(GS87:GS88) -> 0 | GT90: =SUM(GT87:GT88) -> 0 | GU90: 0 | GV90: 0 | GW90: 35755.77746 | GX90: 2679.599732 | GY90: 2294.993014 | GZ90: 2294.993014 | HA90: 1525.779579 | HB90: 3064.20645 | HG90: =SUM(HG87:HG88) -> 0 | HH90: =SUM(HH87:HH88) -> 0 | HI90: 0 | HJ90: 0 | HK90: 0 | HL90: 67015.2659 | HM90: 5022.239798 | HN90: 4301.390657 | HO90: 4301.390657 | HP90: 2859.692376 | HU90: =SUM(HU87:HU88) -> 0 | HV90: =SUM(HV87:HV88) -> 0 | HW90: 0 | HX90: 0 | HY90: 0 | HZ90: 141358.4797 | IA90: 10593.64867 | IB90: 9073.127383 | IC90: 9073.127383 | ID90: 6032.0848 | II90: =SUM(II87:II88) -> 0 | IJ90: =SUM(IJ87:IJ88) -> 0 | IK90: 0 | IL90: 0 | IM90: 0 | IN90: 36470.89301 | IO90: 2733.191727 | IP90: 2340.892875 | IQ90: 2340.892875 | IR90: 1556.29517 | IW90: =SUM(IW87:IW88) -> 0 | IX90: =SUM(IX87:IX88) -> 0 | IY90: 0 | IZ90: 0 | JA90: 0 | JB90: 0 | JC90: 68355.57122 | JD90: 5122.684594 | JE90: 4387.41847 | JF90: 4387.41847 | JK90: =SUM(JK87:JK88) -> 0 | JL90: =SUM(JL87:JL88) -> 0 | JM90: 0 | JN90: 0 | JO90: 0 | JP90: 0 | JQ90: 144185.6493 | JR90: 10805.52165 | JS90: 9254.58993 | JT90: 9254.58993 | JY90: =SUM(JY87:JY88) -> 0 | JZ90: =SUM(JZ87:JZ88) -> 0 | KA90: 0 | KB90: 0 | KC90: 0 | KD90: 0 | KE90: 37200.31087 | KF90: 2787.855561 | KG90: 2387.710732 | KH90: 2387.710732 | KM90: =SUM(KM87:KM88) -> 0 | KN90: =SUM(KN87:KN88) -> 0 | KO90: 0 | KP90: 0 | KQ90: 0 | KR90: 0 | KS90: 0 | KT90: 69722.68264 | KU90: 5225.138286 | KV90: 4475.16684 | LA90: =SUM(LA87:LA88) -> 0 | LB90: =SUM(LB87:LB88) -> 0 | LC90: 0 | LD90: 0 | LE90: 0 | LF90: 0 | LG90: 0 | LH90: 147069.3623 | LI90: 11021.63208 | LJ90: 9439.681729 | LO90: =SUM(LO87:LO88) -> 0 | LP90: =SUM(LP87:LP88) -> 0 | LQ90: 0 | LR90: 0 | LS90: 0 | LT90: 0 | LU90: 0 | LV90: 37944.31708 | LW90: 2843.612672 | LX90: 2435.464947 | MC90: =SUM(MC87:MC88) -> 0 | MD90: =SUM(MD87:MD88) -> 0 | ME90: 0 | MF90: 0 | MG90: 0 | MH90: 0 | MI90: 0 | MJ90: 0 | MK90: 71117.13629 | ML90: 5329.641051 | MQ90: =SUM(MQ87:MQ88) -> 0 | MR90: =SUM(MR87:MR88) -> 0 | MS90: 0 | MT90: 0 | MU90: 0 | MV90: 0 | MW90: 0 | MX90: 0 | MY90: 150010.7496 | MZ90: 11242.06472 | NE90: =SUM(NE87:NE88) -> 0 | NF90: =SUM(NF87:NF88) -> 0 | NG90: 0 | NH90: 0 | NI90: 0 | NJ90: 0 | NK90: 0 | NL90: 0 | NM90: 38703.20342 | NN90: 2900.484926 | NS90: =SUM(NS87:NS88) -> 0 | NT90: =SUM(NT87:NT88) -> 0 | NU90: 0 | NV90: 0 | NW90: 0 | NX90: 0 | NY90: 0 | NZ90: 0 | OA90: 0 | OB90: 72539.47902 | OG90: =SUM(OG87:OG88) -> 0 | OH90: =SUM(OH87:OH88) -> 0 | OI90: 0 | OJ90: 0 | OK90: 0 | OL90: 0 | OM90: 0 | ON90: 0 | OO90: 0 | OP90: 153010.9646 | OU90: =SUM(OU87:OU88) -> 0 | OV90: =SUM(OV87:OV88) -> 0 | OW90: 0 | OX90: 0 | OY90: 0 | OZ90: 0 | PA90: 0 | PB90: 0 | PC90: 0 | PD90: 39477.26749
A92: Stage - 3 Do something scenario | D92: Do something scenario
D94: Year 1 patients | AU94: Year 2 patients | CK94: Year 3 patients | EA94: Year 4 patients | FQ94: Year 5 patients | HG94: Year 6 patients | IW94: Year 7 patients | KM94: Year 8 patients | MC94: Year 9 patients | NS94: Year 10 patients
